Workbook

Sheet Index
A1: Number | B1: Spreadsheet | C1: Magazine | D1: Title | E1: Folder | F1: File Name | G1: Hyperlink | H1: Negative | I1: Earth | J1: Galaxy | K1: Universe
A2: 1 | B2: Rb-Sr_01 | C2: Precambrian Research, Volume 21, 1983, Pages 197-222 | D2: Early Archaean Rocks At Fyfe Hills | E2: =("C:\Essays\Geo_Dating\Lead_206_207\") -> C:\Essays\Geo_Dating\Lead_206_207\ | F2: Diamonds_04.pdf | G2: =(E2 & F2) -> C:\Essays\Geo_Dating\Lead_206_207\Diamonds_04.pdf | H2: 4
A3: 2 | B3: Rb-Sr_02 | C3: Geochimica et Cosmochimica Acta, 1990, Voume 54, Pages 3509-3523 | D3: Shock-Melted Antarctic LL-Chondrites | E3: =("C:\Essays\Geo_Dating\Age_Earth\") -> C:\Essays\Geo_Dating\Age_Earth\ | F3: Meteorite_Okano.pdf | G3: C:\Essays\Geo_Dating\Age_Earth\Meteorite_Okano.pdf | I3: 36 | J3: 9 | K3: 2
A4: 3 | B4: Rb-Sr_03 | C4: Earth and Planetary Science Letters, Volume 42, 1979, Pages 58-70 | D4: Diamonds And Mantle-Derived Xenoliths | E4: =("C:\Essays\Geo_Dating\Lead_206_207\") -> C:\Essays\Geo_Dating\Lead_206_207\ | F4: Pb-206_06.pdf | G4: C:\Essays\Geo_Dating\Lead_206_207\Pb-206_06.pdf | I4: 26 | J4: 12 | K4: 11
A5: 4 | B5: Rb-Sr_04 | C5: Earth And Planetary Science Letters, Volume 3, 1967, Pages 179-189 | D5: 87Rb-87Sr Isochron Of The Norton County Achondrite | E5: =("C:\Essays\Geo_Dating\Rubidium\") -> C:\Essays\Geo_Dating\Rubidium\ | F5: Rubidium_001.pdf | G5: C:\Essays\Geo_Dating\Rubidium\Rubidium_001.pdf | H5: 4
A6: 5 | B6: Rb-Sr_05 | C6: Economic Geology, Volume 97, 2002, Pages 23–42 | D6: Base and Precious Metal Veins | E6: =("C:\Essays\Geo_Dating\Age_Earth\") -> C:\Essays\Geo_Dating\Age_Earth\ | F6: Ages_001.pdf | G6: C:\Essays\Geo_Dating\Age_Earth\Ages_001.pdf | I6: 221 | J6: 219 | K6: 218
A7: 6 | B7: Rb-Sr_06 | C7: Earth and Planetary Science Letters, Volume 99, 1990, Pages 230-249 | D7: The Munchberg Massif, Southern Germany | E7: =("C:\Essays\Geo_Dating\Rubidium\") -> C:\Essays\Geo_Dating\Rubidium\ | F7: Rubidium_005.pdf | G7: C:\Essays\Geo_Dating\Rubidium\Rubidium_005.pdf | H7: 1 | I7: 1
A8: 7 | B8: Rb-Sr_07 | C8: Canadian Journal Of Earth Science, 2006, Volume 43, Pages 1419-1444 | D8: Rocks of the Central Wyoming Province | E8: C:\Essays\Geo_Dating\Rubidium\ | F8: Rubidium_041.pdf | G8: C:\Essays\Geo_Dating\Rubidium\Rubidium_041.pdf | I8: 46 | J8: 15 | K8: 11
A9: 8 | B9: Rb-Sr_08 | C9: Earth and Planetary Science Letters, Volume 17, 1973, Pages 324-337 | D9: Basalts From Apollo 15 | E9: =("C:\Essays\Geo_Dating\Rubidium\") -> C:\Essays\Geo_Dating\Rubidium\ | F9: Rubidium_003.pdf | G9: C:\Essays\Geo_Dating\Rubidium\Rubidium_003.pdf | H9: 4 | I9: 1 | J9: 1 | K9: 1
A10: 9 | B10: Rb-Sr_09 | C10: Earth and Planetary Science Letters, Volume 37, 1977, Pages 1-12 | D10: History Of The Pasamonte Achondrite | E10: C:\Essays\Geo_Dating\Rubidium\ | F10: Rubidium_004.pdf | G10: C:\Essays\Geo_Dating\Rubidium\Rubidium_004.pdf | H10: 3 | I10: 11 | J10: 3 | K10: 3
A11: 10 | B11: Rb-Sr_10 | C11: Earth and Planetary Science Letters, Volume 50, 1980, Pages 247-259 | D11: Sr Isotopic Composition Of Afar Volcanics | E11: C:\Essays\Geo_Dating\Rubidium\ | F11: Rubidium_006.pdf | G11: C:\Essays\Geo_Dating\Rubidium\Rubidium_006.pdf | H11: 7
A12: 11 | B12: Rb-Sr_11 | C12: Earth and Planetary Science Letters, Volume 51, 1980, Pages 71-93 | D12: Orogenic Lherzolite Complexes | E12: C:\Essays\Geo_Dating\Rubidium\ | F12: Rubidium_007.pdf | G12: C:\Essays\Geo_Dating\Rubidium\Rubidium_007.pdf | H12: 40
A13: 12 | B13: Rb-Sr_12 | C13: Earth and Planetary Science Letters, Volume 61, 1982, Pages 97- 111 | D13: Isotopic Geochemistry (O, Sr, Pb) | E13: C:\Essays\Geo_Dating\Rubidium\ | F13: Rubidium_008.pdf | G13: C:\Essays\Geo_Dating\Rubidium\Rubidium_008.pdf | I13: 11
A14: 13 | B14: Rb-Sr_13 | C14: Earth and Planetary Science Letters, Volume 64, 1983, Pages 356-373 | D14: Cretaceous-Tertiary Boundary Sediments | E14: C:\Essays\Geo_Dating\Rubidium\ | F14: Rubidium_009.pdf | G14: C:\Essays\Geo_Dating\Rubidium\Rubidium_009.pdf | H14: 1 | I14: 2
A15: 14 | B15: Rb-Sr_14 | C15: Earth and Planetary Science Letters, Volume 59, 1982, Pages 327-342 | D15: Correlated Nd, Sr And Pb Isotope Variation | E15: C:\Essays\Geo_Dating\Rubidium\ | F15: Rubidium_010.pdf | G15: C:\Essays\Geo_Dating\Rubidium\Rubidium_010.pdf | I15: 9
A16: 15 | B16: Rb-Sr_15 | C16: Earth and Planetary Science Letters, Volume 73, 1985, Pages 269-277 | D16: A Depleted Mantle Source For Kimberlites | E16: C:\Essays\Geo_Dating\Rubidium\ | F16: Rubidium_011.pdf | G16: C:\Essays\Geo_Dating\Rubidium\Rubidium_011.pdf | I16: 13
A17: 16 | B17: Rb-Sr_16 | C17: Earth and Planetary Science Letters, Volume 71, 1984, Pages 46-58 | D17: Sm-Nd Isotopic Systematics | E17: C:\Essays\Geo_Dating\Rubidium\ | F17: Rubidium_012.pdf | G17: C:\Essays\Geo_Dating\Rubidium\Rubidium_012.pdf | H17: 5
A18: 17 | B18: Rb-Sr_17 | C18: Earth and Planetary Science Lellers, Volume 75, 1985, Pages 354-368 | D18: Strontium, Neodymium And Lead Compositions | E18: C:\Essays\Geo_Dating\Rubidium\ | F18: Rubidium_013.pdf | G18: C:\Essays\Geo_Dating\Rubidium\Rubidium_013.pdf | I18: 35 | J18: 3 | K18: 6
A19: 18 | B19: Rb-Sr_18 | C19: Earth and Planetary Science Letters, Volume 80, 1986, Pages 281-298 | D19: Trace Element And Sr And Nd Isotope | E19: C:\Essays\Geo_Dating\Rubidium\ | F19: Rubidium_014.pdf | G19: C:\Essays\Geo_Dating\Rubidium\Rubidium_014.pdf | H19: 2 | I19: 1 | J19: 1 | K19: 1
A20: 19 | B20: Rb-Sr_19 | C20: Earth and Planetary Science Letters, Volume 86, 1987, Pages 327-340 | D20: The southeast Australian lithospheric | E20: C:\Essays\Geo_Dating\Rubidium\ | F20: Rubidium_015.pdf | G20: C:\Essays\Geo_Dating\Rubidium\Rubidium_015.pdf | H20: 2 | I20: 10 | J20: 10 | K20: 10
A21: 20 | B21: Rb-Sr_20 | C21: Earth and Planetary Science Letters, Volume 90, 1988, Pages 26-40 | D21: Strontium, neodymium and lead isotopic | E21: C:\Essays\Geo_Dating\Rubidium\ | F21: Rubidium_016.pdf | G21: C:\Essays\Geo_Dating\Rubidium\Rubidium_016.pdf | I21: 15
A22: 21 | B22: Rb-Sr_21 | C22: Earth and Planetary Science Letters, Volume 99, 1990, Pages 362-379 | D22: Sr, Nd, and O isotope geochemistry | E22: C:\Essays\Geo_Dating\Rubidium\ | F22: Rubidium_017.pdf | G22: C:\Essays\Geo_Dating\Rubidium\Rubidium_017.pdf
A23: 22 | B23: Rb-Sr_22 | C23: Earth and Planetary Science Letters, Volume 105, 1991, Pages 149-169 | D23: Pb, Nd and Sr isotopic geochemistry | E23: C:\Essays\Geo_Dating\Rubidium\ | F23: Rubidium_018.pdf | G23: C:\Essays\Geo_Dating\Rubidium\Rubidium_018.pdf | H23: 24 | I23: 65 | J23: 12 | K23: 9
A24: 23 | B24: Rb-Sr_23 | C24: Earth and Planetary Science Letters, Volume 113, 1992, Pages 107-128 | D24: Sr, Nd, and Pb isotopes | E24: C:\Essays\Geo_Dating\Rubidium\ | F24: Rubidium_019.pdf | G24: C:\Essays\Geo_Dating\Rubidium\Rubidium_019.pdf | I24: 105 | J24: 22 | K24: 18
A25: 24 | B25: Rb-Sr_24 | C25: Earth and Planetary Science Letters, Volume 134, 1995, Pages 23-36 | D25: Production of Jurassic rhyolite | E25: C:\Essays\Geo_Dating\Rubidium\ | F25: Rubidium_020.pdf | G25: C:\Essays\Geo_Dating\Rubidium\Rubidium_020.pdf | H25: 7 | I25: 1 | J25: 1 | K25: 1
A26: 25 | B26: Rb-Sr_25 | C26: Earth and Planetary Science Letters, Volume 134, 1995, Pages 169-185 | D26: Evolution of Reunion Hotspot Mantle | E26: C:\Essays\Geo_Dating\Rubidium\ | F26: Rubidium_021.pdf | G26: C:\Essays\Geo_Dating\Rubidium\Rubidium_021.pdf | I26: 46 | K26: 1
A27: 26 | B27: Rb-Sr_26 | C27: Geochimica et Cosmochimica Acta, 1993, Volume 57, Pages 4687-4702 | D27: An extremely low U/Pb source | E27: C:\Essays\Geo_Dating\Rubidium\ | F27: Rubidium_022.pdf | G27: C:\Essays\Geo_Dating\Rubidium\Rubidium_022.pdf | I27: 62 | J27: 19 | K27: 14
A28: 27 | B28: Rb-Sr_27 | C28: Earth and Planetary Science Letters, Volume 183, 2000, Pages 73-92 | D28: The 72 Ma Geochemical Evolution | E28: C:\Essays\Geo_Dating\Rubidium\ | F28: Rubidium_023.pdf | G28: C:\Essays\Geo_Dating\Rubidium\Rubidium_023.pdf | I28: 58
A29: 28 | B29: Rb-Sr_28 | C29: Earth and Planetary Science Letters, Volume 244, 2006, Pages 234–250 | D29: The Himalayan collision zone | E29: C:\Essays\Geo_Dating\Rubidium\ | F29: Rubidium_024.pdf | G29: C:\Essays\Geo_Dating\Rubidium\Rubidium_024.pdf | I29: 28
A30: 29 | B30: Rb-Sr_29 | C30: Geochimica et Cosmochimica Acta, 2001, Volume 65, Number 4, Pages 571–587 | D30: Evidence for a nonmagmatic component | E30: C:\Essays\Geo_Dating\Rubidium\ | F30: Rubidium_025.pdf | G30: C:\Essays\Geo_Dating\Rubidium\Rubidium_025.pdf | I30: 14
A31: 30 | B31: Rb-Sr_30 | C31: Geochimica et Cosmochimica Acta, Volume 71, 2007, Pages 3656–3671 | D31: The origin of geochemical diversity | E31: C:\Essays\Geo_Dating\Rubidium\ | F31: Rubidium_026.pdf | G31: C:\Essays\Geo_Dating\Rubidium\Rubidium_026.pdf | I31: 13 | J31: 1 | K31: 1
A32: 31 | B32: Rb-Sr_31 | C32: Geochimica et Cosmochimica Acta, Volume 73, 2009, Pages 3963–3980 | D32: Mechanisms for incompatible-element enrichment | E32: C:\Essays\Geo_Dating\Rubidium\ | F32: Rubidium_027.pdf | G32: C:\Essays\Geo_Dating\Rubidium\Rubidium_027.pdf | I32: 3 | J32: 2 | K32: 1
A33: 32 | B33: Rb-Sr_32 | C33: Geochimica et Cosmochimica Acta, 1997, Volume 61, Number 22, Pages 4915-4931 | D33: Constraints on Martian differentiation processes | E33: C:\Essays\Geo_Dating\Rubidium\ | F33: Rubidium_028.pdf | G33: C:\Essays\Geo_Dating\Rubidium\Rubidium_028.pdf | H33: 4
A34: 33 | B34: Rb-Sr_33 | C34: Journal Of Petrology, 2008, Volume 49, Number 6, Pages 1069-1096 | D34: Geochemistry of the Volcan de l’Androy | E34: C:\Essays\Geo_Dating\Rubidium\ | F34: Rubidium_029.pdf | G34: C:\Essays\Geo_Dating\Rubidium\Rubidium_029.pdf | I34: 23
A35: 34 | B35: Rb-Sr_34 | C35: Journal Of Petrology, 1997, Volume 38, Number 1, Pages 115-132 | D35: Continental Lithospheric Contribution | E35: C:\Essays\Geo_Dating\Rubidium\ | F35: Rubidium_030.pdf | G35: C:\Essays\Geo_Dating\Rubidium\Rubidium_030.pdf | I35: 32
A36: 35 | B36: Rb-Sr_35 | C36: Journal Of Petrology, 2001, Volume 42, Number 4, Pages 731-763 | D36: Garnet Granulite Xenoliths | E36: C:\Essays\Geo_Dating\Rubidium\ | F36: Rubidium_031.pdf | G36: C:\Essays\Geo_Dating\Rubidium\Rubidium_031.pdf | I36: 93 | J36: 28 | K36: 21
A37: 36 | B37: Rb-Sr_36 | C37: Journal Of Petrology, 2000, Volume 41, Number 6, Pages 759–788 | D37: The Isotope and Trace Element Budget | E37: C:\Essays\Geo_Dating\Rubidium\ | F37: Rubidium_032.pdf | G37: C:\Essays\Geo_Dating\Rubidium\Rubidium_032.pdf | I37: 10 | J37: 5 | K37: 5
A38: 37 | B38: Rb-Sr_37 | C38: Journal Of Petrology, 1997, Volume 38, Number 11, Pages 1489–1512 | D38: Fluid Flow and Diffusion | E38: C:\Essays\Geo_Dating\Rubidium\ | F38: Rubidium_033.pdf | G38: C:\Essays\Geo_Dating\Rubidium\Rubidium_033.pdf
A39: 38 | B39: Rb-Sr_38 | C39: Journal Of Petrology, 2009, Volume 50, Number 10, Pages 1857-1898 | D39: Temporal Evolution of the Lithospheric Mantle | E39: C:\Essays\Geo_Dating\Rubidium\ | F39: Rubidium_034.pdf | G39: C:\Essays\Geo_Dating\Rubidium\Rubidium_034.pdf | H39: 13 | I39: 2 | J39: 1 | K39: 1
A40: 39 | B40: Rb-Sr_39 | C40: Journal Of Petrology, 2010, Volume 51, Number 10, Pages 2003-2045 | D40: Petrogenesis and Origins of Mid-Cretaceous | E40: C:\Essays\Geo_Dating\Rubidium\ | F40: Rubidium_035.pdf | G40: C:\Essays\Geo_Dating\Rubidium\Rubidium_035.pdf | I40: 38
A41: 40 | B41: Rb-Sr_40 | C41: Journal Of Petrology, 1999, Volume 40, Number 4, Pages 525–548 | D41: The Petrogenetic Association of Carbonatite | E41: C:\Essays\Geo_Dating\Rubidium\ | F41: Rubidium_036.pdf | G41: C:\Essays\Geo_Dating\Rubidium\Rubidium_036.pdf | I41: 13
A42: 41 | B42: Rb-Sr_41 | E42: C:\Essays\Geo_Dating\Rubidium\ | F42: Rubidium_037.pdf | G42: C:\Essays\Geo_Dating\Rubidium\Rubidium_037.pdf
A43: 38 | B43: Rb-Sr_42 | C43: Journal Of Petrology, 1998, Volume 39, Number 5, Pages 859–880 | D43: Geochemistry of Jurassic Oceanic Crust | E43: C:\Essays\Geo_Dating\Rubidium\ | F43: Rubidium_038.pdf | G43: C:\Essays\Geo_Dating\Rubidium\Rubidium_038.pdf | H43: 13 | I43: 21 | K43: 3
A44: 43 | B44: Rb-Sr_43 | C44: Geochimica Et Cosmochimica Acta, 2003, Volume 67, Number 18, Pages 3519–3536 | D44: The age of Dar al Gani 476 | E44: C:\Essays\Geo_Dating\Rubidium\ | F44: Rubidium_039.pdf | G44: C:\Essays\Geo_Dating\Rubidium\Rubidium_039.pdf | H44: 8
A45: 44 | B45: Rb-Sr_44 | C45: Journal Of Petrology, 1998, Volume 39, Number 4, Pages 711–748 | D45: Petrogenesis of the Flood Basalts | E45: C:\Essays\Geo_Dating\Iso_Plot_Dates\ | F45: Iso_Plot_005.pdf | G45: C:\Essays\Geo_Dating\Iso_Plot_Dates\Iso_Plot_005.pdf | I45: 92 | J45: 2 | K45: 2
A46: 45 | B46: Rb-Sr_45 | C46: Journal Of Petrology, 2004, Volume 45, Number 3, Pages 555-607 | D46: Nature of the Source Regions | E46: C:\Essays\Geo_Dating\Iso_Plot_Dates\ | F46: Iso_Plot_006.pdf | G46: C:\Essays\Geo_Dating\Iso_Plot_Dates\Iso_Plot_006.pdf | I46: 44 | J46: 13 | K46: 9
A47: 46 | B47: Rb-Sr_46 | C47: Journal Of Petrology, 2007, Volume 48, Number 4, Pages 661-692 | D47: Generation of Palaeocene Adakitic Andesites | E47: C:\Essays\Geo_Dating\Iso_Plot_Dates\ | F47: Iso_Plot_007.pdf | G47: C:\Essays\Geo_Dating\Iso_Plot_Dates\Iso_Plot_007.pdf | I47: 24 | J47: 2
A48: 47 | B48: Rb-Sr_47 | C48: Journal Of Petrology, 2005, Volume 46, Number 4, Pages 829-858 | D48: Evidence for a Widespread Tethyan | E48: C:\Essays\Geo_Dating\Iso_Plot_Dates\ | F48: Iso_Plot_009.pdf | G48: C:\Essays\Geo_Dating\Iso_Plot_Dates\Iso_Plot_009.pdf | I48: 192 | J48: 75 | K48: 57
A49: 48 | B49: Rb-Sr_48 | C49: Journal Of Petrology, 1999, Volume 40, Number 9, Pages 1399-1424 | D49: Post-Collisional Potassic and Ultrapotassic | E49: C:\Essays\Geo_Dating\Iso_Plot_Dates\ | F49: Iso_Plot_016.pdf | G49: C:\Essays\Geo_Dating\Iso_Plot_Dates\Iso_Plot_016.pdf | I49: 15 | J49: 6 | K49: 6
A50: 49 | B50: Rb-Sr_49 | C50: Journal Of Geophysical Research, 1998, Volume 103, Number B9, Pages 20,963-20,979 | D50: Origin of the Indian Ocean-type isotopic signature | E50: =("C:\Essays\Geo_Dating\Rubidium\") -> C:\Essays\Geo_Dating\Rubidium\ | F50: Rubidium_056.pdf | G50: C:\Essays\Geo_Dating\Rubidium\Rubidium_056.pdf | I50: 56 | J50: 6 | K50: 1
A51: 50 | B51: Rb-Sr_50 | C51: Geochimica et Cosmochimica Acta, 2008, Volume 72, Pages 2067 - 2089 | D51: U–Th–Pb Dating Of Secondary Minerals | E51: C:\Essays\Geo_Dating\Iso_Plot_Dates\ | F51: Iso_Plot_018.pdf | G51: C:\Essays\Geo_Dating\Iso_Plot_Dates\Iso_Plot_018.pdf | H51: 3 | I51: 36 | J51: 11 | K51: 9
H52: =SUM(H2:H51) -> 145 | I52: =SUM(I2:I51) -> 1524 | J52: =SUM(J2:J51) -> 479 | K52: =SUM(K2:K51) -> 422
H53: Negative | I53: Earth | J53: Galaxy | K53: Universe

Sheet Rb-Sr_01
A1: Rubidium | K1: Diamond_04.pdf
A2: Strontium | B2: Initial | C2: Today | D2: Today | E2: The Ratio | F2: Half | G2: Decay | H2: 2.303/Delta | I2: Age | J2: Age | K2: Age | L2: Model Age | M2: Model Age | N2: Model Age
A3: Dating | B3: 87Sr/86Sr | C3: 87Sr/86Sr | D3: 87Rb/86Sr | E3: Plus One | F3: Life | G3: Constant | H3: Constant | I3: Years | J3: Million Years | K3: Billion Years | L3: Million Years | M3: % Difference | N3: Difference
B4: 0.725 | C4: 0.80983 | D4: 1.875 | E4: =1+((C4-B4)/D4) -> 1.045242667 | F4: 48800000000 | G4: =(0.693/F4) -> 1.420081967e-11 | H4: =(2.303/G4) -> 1.621737374e+11 | I4: =(LOG(E4))*(H4) -> 3116513674 | J4: =(I4/1000000) -> 3116.513674 | K4: =(J4/1000) -> 3.116513674 | P4: 4924.787919
B5: 0.725 | C5: 0.83433 | D5: 2.402 | E5: =1+((C5-B5)/D5) -> 1.045516236 | F5: 48800000000 | G5: =(0.693/F5) -> 1.420081967e-11 | H5: =(2.303/G5) -> 1.621737374e+11 | I5: =(LOG(E5))*(H5) -> 3134945104 | J5: =(I5/1000000) -> 3134.945104 | K5: =(J5/1000) -> 3.134945104 | P5: 4893.348518
B6: 0.725 | C6: 0.79435 | D6: 1.385 | E6: 1.050072202 | F6: 48800000000 | G6: 1.420081967e-11 | H6: 1.621737374e+11 | I6: 3441190782 | J6: 3441.190782 | K6: 3.441190782 | P6: 4685.918749
B7: 0.725 | C7: 0.80122 | D7: 1.872 | E7: 1.040715812 | F7: 48800000000 | G7: 1.420081967e-11 | H7: 1.621737374e+11 | I7: 2810820029 | J7: 2810.820029 | K7: 2.810820029 | P7: 4588.196062
B8: 0.725 | C8: 0.80164 | D8: 1.715 | E8: 1.044688047 | F8: 48800000000 | G8: 1.420081967e-11 | H8: 1.621737374e+11 | I8: 3079132021 | J8: 3079.132021 | K8: 3.079132021 | P8: 4112.329309
B9: 0.725 | C9: 0.82572 | D9: 2.21 | E9: 1.045574661 | F9: 48800000000 | G9: 1.420081967e-11 | H9: 1.621737374e+11 | I9: 3138880735 | J9: 3138.880735 | K9: 3.138880735 | P9: 3441.190782
B10: 0.725 | C10: 0.82739 | D10: 2.294 | E10: 1.044633827 | F10: 48800000000 | G10: 1.420081967e-11 | H10: 1.621737374e+11 | I10: 3075476552 | J10: 3075.476552 | K10: 3.075476552 | P10: 3352.871288
B11: 0.725 | C11: 0.79991 | D11: 1.667 | E11: 1.044937013 | F11: 48800000000 | G11: 1.420081967e-11 | H11: 1.621737374e+11 | I11: 3095914899 | J11: 3095.914899 | K11: 3.095914899 | P11: 3149.029252
B12: 0.725 | C12: 0.83517 | D12: 2.47 | E12: 1.044603239 | F12: 48800000000 | G12: 1.420081967e-11 | H12: 1.621737374e+11 | I12: 3073414187 | J12: 3073.414187 | K12: 3.073414187 | P12: 3138.880735
B13: 0.725 | C13: 0.82555 | D13: 2.199 | E13: 1.04572533 | F13: 48800000000 | G13: 1.420081967e-11 | H13: 1.621737374e+11 | I13: 3149029252 | J13: 3149.029252 | K13: 3.149029252 | P13: 3134.945104
B14: 0.725 | C14: 0.83 | D14: 2.348 | E14: 1.04471891 | F14: 48800000000 | G14: 1.420081967e-11 | H14: 1.621737374e+11 | I14: 3081212728 | J14: 3081.212728 | K14: 3.081212728 | P14: 3126.423831
B15: 0.725 | C15: 0.82828 | D15: 2.342 | E15: 1.044099061 | F15: 48800000000 | G15: 1.420081967e-11 | H15: 1.621737374e+11 | I15: 3039412350 | J15: 3039.41235 | K15: 3.03941235 | P15: 3116.513674
B16: 0.725 | C16: 0.74362 | D16: 0.2588 | E16: 1.07194745 | F16: 48800000000 | G16: 1.420081967e-11 | H16: 1.621737374e+11 | I16: 4893348518 | J16: 4893.348518 | K16: 4.893348518 | P16: 3097.467826
B17: 0.725 | C17: 0.74504 | D17: 0.2913 | E17: 1.068795057 | F17: 48800000000 | G17: 1.420081967e-11 | H17: 1.621737374e+11 | I17: 4685918749 | J17: 4685.918749 | K17: 4.685918749 | P17: 3095.914899
B18: 0.725 | C18: 0.76512 | D18: 0.8839 | E18: 1.04538975 | F18: 48800000000 | G18: 1.420081967e-11 | H18: 1.621737374e+11 | I18: 3126423831 | J18: 3126.423831 | K18: 3.126423831 | P18: 3081.212728
B19: 0.725 | C19: 0.82863 | D19: 2.639 | E19: 1.039268662 | F19: 48800000000 | G19: 1.420081967e-11 | H19: 1.621737374e+11 | I19: 2712815028 | J19: 2712.815028 | K19: 2.712815028 | P19: 3079.132021
B20: 0.725 | C20: 0.83196 | D20: 2.74 | E20: 1.039036496 | F20: 48800000000 | G20: 1.420081967e-11 | H20: 1.621737374e+11 | I20: 2697079397 | J20: 2697.079397 | K20: 2.697079397 | P20: 3075.476552
B21: 0.725 | C21: 0.82057 | D21: 2.432 | E21: 1.039296875 | F21: 48800000000 | G21: 1.420081967e-11 | H21: 1.621737374e+11 | I21: 2714726970 | J21: 2714.72697 | K21: 2.71472697 | P21: 3073.414187
B22: 0.725 | C22: 0.77075 | D22: 0.7609 | E22: 1.060126166 | F22: 48800000000 | G22: 1.420081967e-11 | H22: 1.621737374e+11 | I22: 4112329309 | J22: 4112.329309 | K22: 4.112329309 | P22: 3039.41235
B23: 0.725 | C23: 0.75589 | D23: 0.4589 | E23: 1.06731314 | F23: 48800000000 | G23: 1.420081967e-11 | H23: 1.621737374e+11 | I23: 4588196062 | J23: 4588.196062 | K23: 4.588196062 | P23: 2810.820029
B24: 0.725 | C24: 0.76369 | D24: 0.5342 | E24: 1.072426058 | F24: 48800000000 | G24: 1.420081967e-11 | H24: 1.621737374e+11 | I24: 4924787919 | J24: 4924.787919 | K24: 4.924787919 | P24: 2714.72697
B25: 0.725 | C25: 0.79321 | D25: 1.399 | E25: 1.048756254 | F25: 48800000000 | G25: 1.420081967e-11 | H25: 1.621737374e+11 | I25: 3352871288 | J25: 3352.871288 | K25: 3.352871288 | P25: 2712.815028
B26: 0.725 | C26: 0.70884 | D26: 0.05603 | E26: 0.7115830805 | F26: 48800000000 | G26: 1.420081967e-11 | H26: 1.621737374e+11 | I26: -2.39651246e+10 | J26: -23965.1246 | K26: -23.9651246 | P26: 2697.079397
B27: 0.725 | C27: 0.76608 | D27: 0.9137 | E27: 1.044960053 | F27: 48800000000 | G27: 1.420081967e-11 | H27: 1.621737374e+11 | I27: 3097467826 | J27: 3097.467826 | K27: 3.097467826 | P27: 1834.782103
B28: 0.725 | C28: 0.73648 | D28: 0.6895 | E28: 1.016649746 | F28: 48800000000 | G28: 1.420081967e-11 | H28: 1.621737374e+11 | I28: 1163005696 | J28: 1163.005696 | K28: 1.163005696 | P28: 1421.663246
B29: 0.725 | C29: 0.76422 | D29: 1.486 | E29: 1.026393001 | F29: 48800000000 | G29: 1.420081967e-11 | H29: 1.621737374e+11 | I29: 1834782103 | J29: 1834.782103 | K29: 1.834782103 | P29: 1163.005696
B30: 0.725 | C30: 0.71024 | D30: 0.08304 | E30: 0.8222543353 | F30: 48800000000 | G30: 1.420081967e-11 | H30: 1.621737374e+11 | I30: -1.378376675e+10 | J30: -13783.76675 | K30: -13.78376675 | P30: -13783.76675
B31: 0.725 | C31: 0.70565 | D31: 0.02464 | E31: 0.2146915584 | F31: 48800000000 | G31: 1.420081967e-11 | H31: 1.621737374e+11 | I31: -1.083620638e+11 | J31: -108362.0638 | K31: -108.3620638 | P31: -23965.1246
B32: 0.725 | C32: 0.70654 | D32: 0.04032 | E32: 0.5421626984 | F32: 48800000000 | G32: 1.420081967e-11 | H32: 1.621737374e+11 | I32: -4.311719088e+10 | J32: -43117.19088 | K32: -43.11719088 | P32: -43117.19088
B33: 0.725 | C33: 0.7459 | D33: 1.025 | E33: 1.020390244 | F33: 48800000000 | G33: 1.420081967e-11 | H33: 1.621737374e+11 | I33: 1421663246 | J33: 1421.663246 | K33: 1.421663246 | P33: -108362.0638
I34: Average | J34: =AVERAGE(J4:J33) -> -3555.559593 | K34: =AVERAGE(K4:K33) -> -3.555559593 | P34: =COUNT(P4:P33) -> 30
I35: Maximum | J35: =MAX(J4:J34) -> 4924.787919 | K35: =MAX(K4:K34) -> 4.924787919
I36: Minimum | J36: =MIN(J4:J35) -> -108362.0638 | K36: =MIN(K4:K35) -> -108.3620638
I37: Difference | J37: =(J35+ABS(J36)) -> 113286.8517 | K37: =(K35+ABS(K36)) -> 113.2868517
B46: 207Pb/206Pb | C46: Age | D46: 20bPb/238 U | E46: Age | F46: 207Pb/235U | G46: Age
B47: 0.18186 | C47: =[1]!AgePb76(B47) -> 2669.905931 | D47: 0.49231 | E47: =[1]!AgePb6U8(D47) -> 2580.662401 | F47: 12.344 | G47: =[1]!AgePb7U5(F47) -> 2630.925365
B48: 0.17408 | C48: =[1]!AgePb76(B48) -> 2597.261492 | D48: 0.4818 | E48: =[1]!AgePb6U8(D48) -> 2535.101144 | F48: 11.564 | G48: =[1]!AgePb7U5(F48) -> 2569.76756
B49: 0.17711 | C49: =[1]!AgePb76(B49) -> 2625.992725 | D49: 0.48401 | E49: =[1]!AgePb6U8(D49) -> 2544.708353 | F49: 11.82 | G49: =[1]!AgePb7U5(F49) -> 2590.24872
B50: 0.17344 | C50: =[1]!AgePb76(B50) -> 2591.118585 | D50: 0.47107 | E50: =[1]!AgePb6U8(D50) -> 2488.251585 | F50: 11.265 | G50: =[1]!AgePb7U5(F50) -> 2545.311142
B51: 0.16963 | C51: =[1]!AgePb76(B51) -> 2553.995343 | D51: 0.46371 | E51: =[1]!AgePb6U8(D51) -> 2455.918185 | F51: 10.846 | G51: =[1]!AgePb7U5(F51) -> 2510.017016
B52: 0.20572 | C52: =[1]!AgePb76(B52) -> 2872.124646 | D52: 0.50726 | E52: =[1]!AgePb6U8(D52) -> 2644.921405 | F52: 14.388 | G52: =[1]!AgePb7U5(F52) -> 2775.638914
B53: 0.16825 | C53: =[1]!AgePb76(B53) -> 2540.309131 | D53: 0.45983 | E53: =[1]!AgePb6U8(D53) -> 2438.807353 | F53: 10.667 | G53: =[1]!AgePb7U5(F53) -> 2494.556881
B54: 0.16929 | C54: =[1]!AgePb76(B54) -> 2550.635446 | D54: 0.45983 | E54: =[1]!AgePb6U8(D54) -> 2438.807353 | F54: 10.733 | G54: =[1]!AgePb7U5(F54) -> 2500.284698
B55: 0.16489 | C55: =[1]!AgePb76(B55) -> 2506.431767 | D55: 0.45284 | E55: =[1]!AgePb6U8(D55) -> 2407.866311 | F55: 10.295 | G55: =[1]!AgePb7U5(F55) -> 2461.654211
B56: Average | C56: =AVERAGE(C47:C55) -> 2611.975007 | D56: Average | E56: =AVERAGE(E47:E55) -> 2503.893788 | F56: Average | G56: =AVERAGE(G47:G55) -> 2564.267167

Sheet Rb-Sr _02
A1: Strontium | B1: Initial | C1: Today | D1: Today | E1: The Ratio | F1: Half | G1: Decay | H1: 2.303/Delta | I1: Age | J1: Age | K1: Age | L1: Model Age | N1: 21.61
A2: Dating | B2: 87Sr/86Sr | C2: 87Sr/86Sr | D2: 87Rb/86Sr | E2: Plus One | F2: Life | G2: Constant | H2: Constant | I2: Years | J2: Million Years | K2: Billion Years | L2: Million Years | N2: 14.47
B3: 0.63885 | C3: 0.79483 | D3: 1.271 | E3: =1+((C3-B3)/D3) -> 1.122722266 | F3: 48800000000 | G3: =(0.693/F3) -> 1.420081967e-11 | H3: =(2.303/G3) -> 1.621737374e+11 | I3: =(LOG(E3))*(H3) -> 8152852567 | J3: =(I3/1000000) -> 8152.852567 | K3: =(J3/1000) -> 8.152852567 | L3: Meteorite_Okano.pdf | N3: 12.97
B4: 0.63885 | C4: 0.73016 | D4: 0.494 | E4: =1+((C4-B4)/D4) -> 1.184838057 | F4: 48800000000 | G4: =(0.693/F4) -> 1.420081967e-11 | H4: =(2.303/G4) -> 1.621737374e+11 | I4: =(LOG(E4))*(H4) -> 1.194555454e+10 | J4: =(I4/1000000) -> 11945.55454 | K4: =(J4/1000) -> 11.94555454 | N4: 12.35
B5: 0.63885 | C5: 0.75305 | D5: 0.901 | E5: =1+((C5-B5)/D5) -> 1.126748058 | F5: 48800000000 | G5: =(0.693/F5) -> 1.420081967e-11 | H5: =(2.303/G5) -> 1.621737374e+11 | I5: =(LOG(E5))*(H5) -> 8404948789 | J5: =(I5/1000000) -> 8404.948789 | K5: =(J5/1000) -> 8.404948789 | N5: 11.95
B6: 0.63885 | C6: 0.75446 | D6: 1.016 | E6: 1.11378937 | F6: 48800000000 | G6: 1.420081967e-11 | H6: 1.621737374e+11 | I6: 7590228572 | J6: 7590.228572 | K6: 7.590228572 | N6: 10.87
B7: 0.63885 | C7: 0.74187 | D7: 0.786 | E7: 1.131068702 | F7: 48800000000 | G7: 1.420081967e-11 | H7: 1.621737374e+11 | I7: 8674508642 | J7: 8674.508642 | K7: 8.674508642 | N7: 10.73
B8: 0.63885 | C8: 0.73188 | D8: 0.408 | E8: 1.228014706 | F8: 48800000000 | G8: 1.420081967e-11 | H8: 1.621737374e+11 | I8: 1.446647595e+10 | J8: 14466.47595 | K8: 14.46647595 | N8: 10.62
B9: 0.63885 | C9: 0.73685 | D9: 0.602 | E9: 1.162790698 | F9: 48800000000 | G9: 1.420081967e-11 | H9: 1.621737374e+11 | I9: 1.062263097e+10 | J9: 10622.63097 | K9: 10.62263097 | N9: 10.16
B10: 0.63885 | C10: 0.74218 | D10: 0.77 | E10: 1.134194805 | F10: 48800000000 | G10: 1.420081967e-11 | H10: 1.621737374e+11 | I10: 8868901207 | J10: 8868.901207 | K10: 8.868901207 | N10: 9.89
B11: 0.63885 | C11: 0.75349 | D11: 1.442 | E11: 1.079500693 | F11: 48800000000 | G11: 1.420081967e-11 | H11: 1.621737374e+11 | I11: 5387886022 | J11: 5387.886022 | K11: 5.387886022 | N11: 9.24
B12: 0.63885 | C12: 0.73716 | D12: 0.728 | E12: 1.135041209 | F12: 48800000000 | G12: 1.420081967e-11 | H12: 1.621737374e+11 | I12: 8921441523 | J12: 8921.441523 | K12: 8.921441523 | N12: 9.16
B13: 0.63885 | C13: 0.73069 | D13: 0.479 | E13: 1.191732777 | F13: 48800000000 | G13: 1.420081967e-11 | H13: 1.621737374e+11 | I13: 1.235421434e+10 | J13: 12354.21434 | K13: 12.35421434 | N13: 9.02
B14: 0.63885 | C14: 0.73729 | D14: 0.59 | E14: 1.166847458 | F14: 48800000000 | G14: 1.420081967e-11 | H14: 1.621737374e+11 | I14: 1.086792451e+10 | J14: 10867.92451 | K14: 10.86792451 | N14: 8.99
B15: 0.63885 | C15: 0.74072 | D15: 0.746 | E15: 1.13655496 | F15: 48800000000 | G15: 1.420081967e-11 | H15: 1.621737374e+11 | I15: 9015309663 | J15: 9015.309663 | K15: 9.015309663 | N15: 8.92
B16: 0.63885 | C16: 0.74566 | D16: 1.061 | E16: 1.10066918 | F16: 48800000000 | G16: 1.420081967e-11 | H16: 1.621737374e+11 | I16: 6755639901 | J16: 6755.639901 | K16: 6.755639901 | N16: 8.87
B17: 0.63885 | C17: 0.74309 | D17: 1.141 | E17: 1.091358457 | F17: 48800000000 | G17: 1.420081967e-11 | H17: 1.621737374e+11 | I17: 6157318134 | J17: 6157.318134 | K17: 6.157318134 | N17: 8.75
B18: 0.63885 | C18: 0.74899 | D18: 1.9 | E18: 1.057968421 | F18: 48800000000 | G18: 1.420081967e-11 | H18: 1.621737374e+11 | I18: 3968829998 | J18: 3968.829998 | K18: 3.968829998 | N18: 8.67
B19: 0.63885 | C19: 0.72944 | D19: 0.601 | E19: 1.150732113 | F19: 48800000000 | G19: 1.420081967e-11 | H19: 1.621737374e+11 | I19: 9888419248 | J19: 9888.419248 | K19: 9.888419248 | N19: 8.56
B20: 0.63885 | C20: 0.71211 | D20: 0.204 | E20: 1.359117647 | F20: 48800000000 | G20: 1.420081967e-11 | H20: 1.621737374e+11 | I20: 2.161079407e+10 | J20: 21610.79407 | K20: 21.61079407 | N20: 8.4
B21: 0.63885 | C21: 0.90359 | D21: 2.987 | E21: 1.088630733 | F21: 48800000000 | G21: 1.420081967e-11 | H21: 1.621737374e+11 | I21: 5981063237 | J21: 5981.063237 | K21: 5.981063237 | N21: 8.15
B22: 0.63885 | C22: 1.0143 | D22: 2.679 | E22: 1.140145577 | F22: 48800000000 | G22: 1.420081967e-11 | H22: 1.621737374e+11 | I22: 9237465821 | J22: 9237.465821 | K22: 9.237465821 | N22: 7.59
B23: 0.63885 | C23: 0.84196 | D23: 2.505 | E23: 1.081081836 | F23: 48800000000 | G23: 1.420081967e-11 | H23: 1.621737374e+11 | I23: 5490970946 | J23: 5490.970946 | K23: 5.490970946 | N23: 6.95
B24: 0.63885 | C24: 0.87221 | D24: 2.392 | E24: 1.097558528 | F24: 48800000000 | G24: 1.420081967e-11 | H24: 1.621737374e+11 | I24: 6556309374 | J24: 6556.309374 | K24: 6.556309374 | N24: 6.9
B25: 0.63885 | C25: 0.85001 | D25: 2.298 | E25: 1.091888599 | F25: 48800000000 | G25: 1.420081967e-11 | H25: 1.621737374e+11 | I25: 6191522661 | J25: 6191.522661 | K25: 6.191522661 | N25: 6.76
B26: 0.63885 | C26: 0.82304 | D26: 2.288 | E26: 1.080502622 | F26: 48800000000 | G26: 1.420081967e-11 | H26: 1.621737374e+11 | I26: 5453225753 | J26: 5453.225753 | K26: 5.453225753 | N26: 6.56
B27: 0.63885 | C27: 0.79307 | D27: 1.914 | E27: 1.080574713 | F27: 48800000000 | G27: 1.420081967e-11 | H27: 1.621737374e+11 | I27: 5457924707 | J27: 5457.924707 | K27: 5.457924707 | N27: 6.19
B28: 0.63885 | C28: 0.74063 | D28: 0.788 | E28: 1.129162437 | F28: 48800000000 | G28: 1.420081967e-11 | H28: 1.621737374e+11 | I28: 8555706157 | J28: 8555.706157 | K28: 8.555706157 | N28: 6.16
B29: 0.63885 | C29: 0.7472 | D29: 0.78 | E29: 1.138910256 | F29: 48800000000 | G29: 1.420081967e-11 | H29: 1.621737374e+11 | I29: 9161113984 | J29: 9161.113984 | K29: 9.161113984 | N29: 5.98
B30: 0.63885 | C30: 0.74578 | D30: 0.65 | E30: 1.164507692 | F30: 48800000000 | G30: 1.420081967e-11 | H30: 1.621737374e+11 | I30: 1.072655399e+10 | J30: 10726.55399 | K30: 10.72655399 | N30: 5.68
B31: 0.63885 | C31: 0.77005 | D31: 0.649 | E31: 1.202157165 | F31: 48800000000 | G31: 1.420081967e-11 | H31: 1.621737374e+11 | I31: 1.296761462e+10 | J31: 12967.61462 | K31: 12.96761462 | N31: 5.49
B32: 0.63885 | C32: 0.74502 | D32: 0.78 | E32: 1.136115385 | F32: 48800000000 | G32: 1.420081967e-11 | H32: 1.621737374e+11 | I32: 8988064366 | J32: 8988.064366 | K32: 8.988064366 | N32: 5.48
B33: 0.63885 | C33: 0.75477 | D33: 1.381 | E33: 1.083939175 | F33: 48800000000 | G33: 1.420081967e-11 | H33: 1.621737374e+11 | I33: 5676877463 | J33: 5676.877463 | K33: 5.676877463 | N33: 5.46
B34: 0.63885 | C34: 0.74551 | D34: 0.806 | E34: 1.132332506 | F34: 48800000000 | G34: 1.420081967e-11 | H34: 1.621737374e+11 | I34: 8753161233 | J34: 8753.161233 | K34: 8.753161233 | N34: 5.45
B35: 0.63885 | C35: 0.743 | D35: 0.671 | E35: 1.155216095 | F35: 48800000000 | G35: 1.420081967e-11 | H35: 1.621737374e+11 | I35: 1.01623304e+10 | J35: 10162.3304 | K35: 10.1623304 | N35: 5.39
B36: 0.63885 | C36: 1.05029 | D36: 5.245 | E36: 1.078444233 | F36: 48800000000 | G36: 1.420081967e-11 | H36: 1.621737374e+11 | I36: 5318924326 | J36: 5318.924326 | K36: 5.318924326 | N36: 5.32
B37: 0.63885 | C37: 0.97143 | D37: 4.108 | E37: 1.080959104 | F37: 48800000000 | G37: 1.420081967e-11 | H37: 1.621737374e+11 | I37: 5482974643 | J37: 5482.974643 | K37: 5.482974643
B38: 0.63885 | C38: 0.80897 | D38: 1.641 | E38: 1.103668495 | F38: 48800000000 | G38: 1.420081967e-11 | H38: 1.621737374e+11 | I38: 6947303231 | J38: 6947.303231 | K38: 6.947303231
B39: 0.63885 | C39: 0.74578 | D39: 1.039 | E39: 1.102916266 | F39: 48800000000 | G39: 1.420081967e-11 | H39: 1.621737374e+11 | I39: 6899282981 | J39: 6899.282981 | K39: 6.899282981
I40: Average | J40: =AVERAGE(J3:J39) -> 8585.466717 | K40: =AVERAGE(K3:K39) -> 8.585466717
I41: Maximum | J41: =MAX(J3:J40) -> 21610.79407 | K41: =MAX(K3:K40) -> 21.61079407
I42: Minimum | J42: =MIN(J3:J41) -> 3968.829998 | K42: =MIN(K3:K41) -> 3.968829998
I43: Difference | J43: =(J41-J42) -> 17641.96407 | K43: =(K41-K42) -> 17.64196407
K48: Age | L48: Age | M48: Age
K49: Million Years | L49: Million Years | M49: Million Years
K50: 21610.79407 | L50: 9015.309663 | M50: 6755.639901
K51: 14466.47595 | L51: 8988.064366 | M51: 6556.309374
K52: 12967.61462 | L52: 8921.441523 | M52: 6191.522661
K53: 12354.21434 | L53: 8868.901207 | M53: 6157.318134
K54: 11945.55454 | L54: 8753.161233 | M54: 5981.063237
K55: 10867.92451 | L55: 8674.508642 | M55: 5676.877463
K56: 10726.55399 | L56: 8555.706157 | M56: 5490.970946
K57: 10622.63097 | L57: 8404.948789 | M57: 5482.974643
K58: 10162.3304 | L58: 8152.852567 | M58: 5457.924707
K59: 9888.419248 | L59: 7590.228572 | M59: 5453.225753
K60: 9237.465821 | L60: 6947.303231 | M60: 5387.886022
K61: 9161.113984 | L61: 6899.282981 | M61: 5318.924326

Sheet Rb-Sr _03
A1: Rubidium | K1: Pb-206_06.pdf
A2: Strontium | B2: Initial | C2: Today | D2: Today | E2: The Ratio | F2: Half | G2: Decay | H2: 2.303/Delta | I2: Age | J2: Age | K2: Age | L2: Model Age | M2: Model Age | N2: Model Age
A3: Dating | B3: 87Sr/86Sr | C3: 87Sr/86Sr | D3: 87Rb/86Sr | E3: Plus One | F3: Life | G3: Constant | H3: Constant | I3: Years | J3: Million Years | K3: Billion Years | L3: Million Years | M3: % Difference | N3: Difference
B4: 0.701 | C4: 0.704 | D4: 0.046 | E4: =1+((C4-B4)/D4) -> 1.065217391 | F4: 48800000000 | G4: =(0.693/F4) -> 1.420081967e-11 | H4: =(2.303/G4) -> 1.621737374e+11 | I4: =(LOG(E4))*(H4) -> 4449763281 | J4: =(I4/1000000) -> 4449.763281 | K4: =(J4/1000) -> 4.449763281
B5: 0.701 | C5: 0.70702 | D5: 0.022 | E5: 1.273636364 | F5: 48800000000 | G5: 1.420081967e-11 | H5: 1.621737374e+11 | I5: 1.703561324e+10 | J5: 17035.61324 | K5: =(J5/1000) -> 17.03561324
B6: 0.701 | C6: 0.70638 | D6: 0.002 | E6: 3.69 | F6: 48800000000 | G6: 1.420081967e-11 | H6: 1.621737374e+11 | I6: 9.195678499e+10 | J6: 91956.78499 | K6: 91.95678499
B7: 0.701 | C7: 0.70328 | D7: 0.002 | E7: 2.14 | F7: 48800000000 | G7: 1.420081967e-11 | H7: 1.621737374e+11 | I7: 5.35844365e+10 | J7: 53584.4365 | K7: 53.5844365
B8: 0.701 | C8: 0.70668 | D8: 0.12 | E8: 1.047333333 | F8: 48800000000 | G8: 1.420081967e-11 | H8: 1.621737374e+11 | I8: 3257247512 | J8: 3257.247512 | K8: 3.257247512
B9: 0.701 | C9: 0.7035 | D9: 0.01 | E9: 1.25 | F9: 48800000000 | G9: 1.420081967e-11 | H9: 1.621737374e+11 | I9: 1.5716259e+10 | J9: 15716.259 | K9: 15.716259
B10: 0.701 | C10: 0.70335 | D10: 0.008 | E10: 1.29375 | F10: 48800000000 | G10: 1.420081967e-11 | H10: 1.621737374e+11 | I10: 1.813919136e+10 | J10: 18139.19136 | K10: 18.13919136
B11: 0.701 | C11: 0.70344 | D11: 0.004 | E11: 1.61 | F11: 48800000000 | G11: 1.420081967e-11 | H11: 1.621737374e+11 | I11: 3.35417253e+10 | J11: 33541.7253 | K11: 33.5417253
B12: 0.701 | C12: 0.70316 | D12: 0.002 | E12: 2.08 | F12: 48800000000 | G12: 1.420081967e-11 | H12: 1.621737374e+11 | I12: 5.158151975e+10 | J12: 51581.51975 | K12: 51.58151975
B13: 0.701 | C13: 0.70354 | D13: 0.003 | E13: 1.846666667 | F13: 48800000000 | G13: 1.420081967e-11 | H13: 1.621737374e+11 | I13: 4.320122026e+10 | J13: 43201.22026 | K13: 43.20122026
B14: 0.701 | C14: 0.70348 | D14: 0.006 | E14: 1.413333333 | F14: 48800000000 | G14: 1.420081967e-11 | H14: 1.621737374e+11 | I14: 2.436572861e+10 | J14: 24365.72861 | K14: 24.36572861
B15: 0.701 | C15: 0.70327 | D15: 0.012 | E15: 1.189166667 | F15: 48800000000 | G15: 1.420081967e-11 | H15: 1.621737374e+11 | I15: 1.220239426e+10 | J15: 12202.39426 | K15: 12.20239426
B16: 0.701 | C16: 0.70399 | D16: 0.014 | E16: 1.213571429 | F16: 48800000000 | G16: 1.420081967e-11 | H16: 1.621737374e+11 | I16: 1.363319089e+10 | J16: 13633.19089 | K16: 13.63319089
B17: 0.701 | C17: 0.70392 | D17: 0.012 | E17: 1.243333333 | F17: 48800000000 | G17: 1.420081967e-11 | H17: 1.621737374e+11 | I17: 1.533962089e+10 | J17: 15339.62089 | K17: 15.33962089
I18: Average | J18: =AVERAGE(J4:J17) -> 28428.90685
I19: Maximum | J19: =MAX(J4:J18) -> 91956.78499
I20: Minimum | J20: =MIN(J4:J19) -> 3257.247512
I21: Difference | J21: =(J19-J20) -> 88699.53748
K24: Age | L24: Age
K25: Million Years | L25: Million Years
K26: 91956.78499 | L26: 18139.19136
K27: 53584.4365 | L27: 17035.61324
K28: 51581.51975 | L28: 15716.259
K29: 43201.22026 | L29: 15339.62089
K30: 33541.7253 | L30: 13633.19089
A31: Sample | B31: Pb isotope ratios | C31: Pb isotope ratios | D31: Pb-207/206 | E31: Pb-207/206 | K31: 24365.72861 | L31: 12202.39426
B32: 206/204 | C32: 207/204 | D32: Ratio | E32: Ages
A33: HRV 67 | B33: 18.73 | C33: 15.32 | D33: =(C33/B33) -> 0.8179391351 | E33: =[1]!AgePb76($D$33) -> 4953.298614
A34: HRV 173b | B34: 14.93 | C34: 14.86 | D34: 0.9953114534 | E34: =[1]!AgePb76($D$34) -> 5230.767863
A35: HRV 158a | B35: 16.81 | C35: 15.215 | D35: 0.9051160024 | E35: =[1]!AgePb76($D$35) -> 5096.883028
A36: 10A | B36: 14.78 | C36: 14.9 | D36: 1.00811908 | E36: =[1]!AgePb76($D$36) -> 5248.732347
A37: JJG 6 | B37: 17.48 | C37: 15.34 | D37: 0.8775743707 | E37: =[1]!AgePb76($D$37) -> 5053.16679
A38: LBM 1 | B38: 19.02 | C38: 15.46 | D38: 0.8128286015 | E38: =[1]!AgePb76($D$38) -> 4944.382742
A39: LBM 9 | B39: 19.22 | C39: 15.51 | D39: 0.8069719043 | E39: =[1]!AgePb76($D$39) -> 4934.091502
A40: LBM 11 | B40: 17.65 | C40: 15.35 | D40: 0.8696883853 | E40: =[1]!AgePb76($D$40) -> 5040.381158
A41: LBM 90 | B41: 20.17 | C41: 15.72 | D41: 0.7793753099 | E41: =[1]!AgePb76($D$41) -> 4884.5053
A42: LBM 38b | B42: 19.89 | C42: 15.71 | D42: 0.7898441428 | E42: =[1]!AgePb76($D$42) -> 4903.532766
A43: KD 771 | B43: 19.61 | C43: 15.66 | D43: 0.7985721571 | E43: =[1]!AgePb76($D$43) -> 4919.192135
A44: KD 772 | B44: 19.76 | C44: 15.68 | D44: 0.7935222672 | E44: =[1]!AgePb76($D$44) -> 4910.154218
A45: KD 773 | B45: 19.62 | C45: 15.6 | D45: 0.7951070336 | E45: =[1]!AgePb76($D$45) -> 4912.99709
A46: KD 774 | B46: 19.88 | C46: 15.64 | D46: 0.7867203219 | E46: =[1]!AgePb76($D$46) -> 4897.883357
D47: Average | E47: =AVERAGE(E33:E46) -> 4994.997779
D48: Maximum | E48: =MAX(E33:E46) -> 5248.732347
D49: Minimum | E49: =MIN(E33:E46) -> 4884.5053
D50: Std Deviation | E50: =STDEV(E33:E46) -> 121.9954651

Sheet Rb-Sr _04
A1: Rubidium | K1: Dates_004.pdf
A2: Strontium | B2: Initial | C2: Today | D2: Today | E2: The Ratio | F2: Half | G2: Decay | H2: 2.303/Delta | I2: Age | J2: Age | K2: Age | L2: Model Age | M2: Model Age | N2: Model Age
A3: Dating | B3: 87Sr/86Sr | C3: 87Sr/86Sr | D3: 87Rb/86Sr | E3: Plus One | F3: Life | G3: Constant | H3: Constant | I3: Years | J3: Million Years | K3: Billion Years | L3: Million Years | M3: % Difference | N3: Difference
B4: 0.703 | C4: 0.7308 | D4: 0.434 | E4: =1+((C4-B4)/D4) -> 1.0640553 | F4: 48800000000 | G4: =(0.693/F4) -> 1.420081967e-11 | H4: =(2.303/G4) -> 1.621737374e+11 | I4: =(LOG(E4))*(H4) -> 4372884938 | J4: =(I4/1000000) -> 4372.884938 | K4: =(J4/1000) -> 4.372884938
B5: 0.703 | C5: 0.73 | D5: 0.441 | E5: 1.06122449 | F5: 48800000000 | G5: 1.420081967e-11 | H5: 1.621737374e+11 | I5: 4185260390 | J5: 4185.26039 | K5: 4.18526039
B6: 0.703 | C6: 0.7305 | D6: 0.441 | E6: 1.062358277 | F6: 48800000000 | G6: 1.420081967e-11 | H6: 1.621737374e+11 | I6: 4260467188 | J6: 4260.467188 | K6: 4.260467188
B7: 0.703 | C7: 0.7313 | D7: 0.464 | E7: 1.060991379 | F7: 48800000000 | G7: 1.420081967e-11 | H7: 1.621737374e+11 | I7: 4169787655 | J7: 4169.787655 | K7: 4.169787655
B8: 0.703 | C8: 0.7302 | D8: 0.464 | E8: 1.05862069 | F8: 48800000000 | G8: 1.420081967e-11 | H8: 1.621737374e+11 | I8: 4012239496 | J8: 4012.239496 | K8: 4.012239496
B9: 0.703 | C9: 0.731 | D9: 0.45 | E9: 1.062222222 | F9: 48800000000 | G9: 1.420081967e-11 | H9: 1.621737374e+11 | I9: 4251446611 | J9: 4251.446611 | K9: 4.251446611
B10: 0.703 | C10: 0.7265 | D10: 0.396 | E10: 1.059343434 | F10: 48800000000 | G10: 1.420081967e-11 | H10: 1.621737374e+11 | I10: 4060308061 | J10: 4060.308061 | K10: 4.060308061
B11: 0.703 | C11: 0.7242 | D11: 0.396 | E11: 1.053535354 | F11: 48800000000 | G11: 1.420081967e-11 | H11: 1.621737374e+11 | I11: 3673091438 | J11: 3673.091438 | K11: 3.673091438
B12: 0.703 | C12: 0.925 | D12: 3.1 | E12: 1.071612903 | F12: 48800000000 | G12: 1.420081967e-11 | H12: 1.621737374e+11 | I12: 4871364065 | J12: 4871.364065 | K12: 4.871364065
B13: 0.703 | C13: 1.126 | D13: 6.3 | E13: 1.067142857 | F13: 48800000000 | G13: 1.420081967e-11 | H13: 1.621737374e+11 | I13: 4576958326 | J13: 4576.958326 | K13: 4.576958326
B14: 0.703 | C14: 1.126 | D14: 6.3 | E14: 1.067142857 | F14: 48800000000 | G14: 1.420081967e-11 | H14: 1.621737374e+11 | I14: 4576958326 | J14: 4576.958326 | K14: 4.576958326
B15: 0.703 | C15: 0.8966 | D15: 2.89 | E15: 1.066989619 | F15: 48800000000 | G15: 1.420081967e-11 | H15: 1.621737374e+11 | I15: 4566843945 | J15: 4566.843945 | K15: 4.566843945
B16: 0.703 | C16: 0.8963 | D16: 2.89 | E16: 1.066885813 | F16: 48800000000 | G16: 1.420081967e-11 | H16: 1.621737374e+11 | I16: 4559991443 | J16: 4559.991443 | K16: 4.559991443
B17: 0.703 | C17: 0.7464 | D17: 0.663 | E17: 1.06546003 | F17: 48800000000 | G17: 1.420081967e-11 | H17: 1.621737374e+11 | I17: 4465804505 | J17: 4465.804505 | K17: 4.465804505
B18: 0.703 | C18: 0.9051 | D18: 3.05 | E18: 1.066262295 | F18: 48800000000 | G18: 1.420081967e-11 | H18: 1.621737374e+11 | I18: 4518817461 | J18: 4518.817461 | K18: 4.518817461
B19: 0.703 | C19: 0.9059 | D19: 3.05 | E19: 1.06652459 | F19: 48800000000 | G19: 1.420081967e-11 | H19: 1.621737374e+11 | I19: 4536141036 | J19: 4536.141036 | K19: 4.536141036
B20: 0.703 | C20: 0.7529 | D20: 0.815 | E20: 1.061226994 | F20: 48800000000 | G20: 1.420081967e-11 | H20: 1.621737374e+11 | I20: 4185426580 | J20: 4185.42658 | K20: 4.18542658
B21: 0.703 | C21: 0.7487 | D21: 0.744 | E21: 1.061424731 | F21: 48800000000 | G21: 1.420081967e-11 | H21: 1.621737374e+11 | I21: 4198548722 | J21: 4198.548722 | K21: 4.198548722
B22: 0.703 | C22: 0.7519 | D22: 0.785 | E22: 1.062292994 | F22: 48800000000 | G22: 1.420081967e-11 | H22: 1.621737374e+11 | I22: 4256138988 | J22: 4256.138988 | K22: 4.256138988
B23: 0.703 | C23: 0.7519 | D23: 0.785 | E23: 1.062292994 | F23: 48800000000 | G23: 1.420081967e-11 | H23: 1.621737374e+11 | I23: 4256138988 | J23: 4256.138988 | K23: 4.256138988
B24: 0.703 | C24: 0.7014 | D24: 0.0126 | E24: 0.873015873 | F24: 48800000000 | G24: 1.420081967e-11 | H24: 1.621737374e+11 | I24: -9564659972 | J24: -9564.659972 | K24: -9.564659972
B25: 0.703 | C25: 0.7008 | D25: 0.0126 | E25: 0.8253968254 | F25: 48800000000 | G25: 1.420081967e-11 | H25: 1.621737374e+11 | I25: -1.351510613e+10 | J25: -13515.10613 | K25: -13.51510613
B26: 0.703 | C26: 0.7007 | D26: 0.0126 | E26: 0.8174603175 | F26: 48800000000 | G26: 1.420081967e-11 | H26: 1.621737374e+11 | I26: -1.419560572e+10 | J26: -14195.60572 | K26: -14.19560572
B27: 0.703 | C27: 0.7004 | D27: 0.0126 | E27: 0.7936507937 | F27: 48800000000 | G27: 1.420081967e-11 | H27: 1.621737374e+11 | I27: -1.627746642e+10 | J27: -16277.46642 | K27: -16.27746642
I28: Average | J28: =AVERAGE(J4:J27) -> 1375.074163
I29: Maximum | J29: =MAX(J4:J28) -> 4871.364065
I30: Minimum | J30: =MIN(J4:J29) -> -16277.46642
I31: Difference | J31: =(J29+ABS(J30)) -> 21148.83049

Sheet Rb-Sr _05
A1: Rubidium | B1: TABLE 1. | K1: Ages_001.pdf | U1: 508074
A2: Strontium | B2: Initial | C2: Today | D2: Today | E2: The Ratio | F2: Half | G2: Decay | H2: 2.303/Delta | I2: Age | J2: Age | K2: Age | L2: Model Age | M2: Model Age | N2: Model Age | U2: 508074
A3: Dating | B3: 87Sr/86Sr | C3: 87Sr/86Sr | D3: 87Rb/86Sr | E3: Plus One | F3: Life | G3: Constant | H3: Constant | I3: Years | J3: Million Years | K3: Billion Years | L3: Million Years | M3: % Difference | N3: Difference | U3: 314336
B4: 0.7053 | C4: 0.758 | D4: 0.4387 | E4: =1+((C4-B4)/D4) -> 1.12012765 | F4: 48800000000 | G4: =(0.693/F4) -> 1.420081967e-11 | H4: =(2.303/G4) -> 1.621737374e+11 | I4: =(LOG(E4))*(H4) -> 7989897483 | J4: =(I4/1000000) -> 7989.897483 | K4: =(J4/1000) -> 7.989897483 | U4: 314336
B5: 0.7053 | C5: 0.744 | D5: 0.0397 | E5: 1.974811083 | F5: 48800000000 | G5: 1.420081967e-11 | H5: 1.621737374e+11 | I5: 4.792648389e+10 | J5: 47926.48389 | K5: 47.92648389 | U5: 302580
B6: 0.7053 | C6: 0.8882 | D6: 0.1669 | E6: 2.095865788 | F6: 48800000000 | G6: 1.420081967e-11 | H6: 1.621737374e+11 | I6: 5.211671474e+10 | J6: 52116.71474 | K6: 52.11671474 | U6: 288775
B7: 0.7053 | C7: 1.3256 | D7: 0.0733 | E7: 9.462482947 | F7: 48800000000 | G7: 1.420081967e-11 | H7: 1.621737374e+11 | I7: 1.582823964e+11 | J7: 158282.3964 | K7: 158.2823964 | U7: 287077
B8: 0.7053 | C8: 1.4122 | D8: 0.1037 | E8: 7.816779171 | F8: 48800000000 | G8: 1.420081967e-11 | H8: 1.621737374e+11 | I8: 1.448256629e+11 | J8: 144825.6629 | K8: 144.8256629 | U8: 207257
B9: 0.7053 | C9: 0.9074 | D9: 0.0155 | E9: 14.03870968 | F9: 48800000000 | G9: 1.420081967e-11 | H9: 1.621737374e+11 | I9: 1.860663389e+11 | J9: 186066.3389 | K9: 186.0663389 | U9: 201185
B10: 0.7053 | C10: 1.0152 | D10: 0.0565 | E10: 6.484955752 | F10: 48800000000 | G10: 1.420081967e-11 | H10: 1.621737374e+11 | I10: 1.316699954e+11 | J10: 131669.9954 | K10: 131.6699954 | U10: 191104
B11: 0.7053 | C11: 1.2913 | D11: 0.0635 | E11: 10.22834646 | F11: 48800000000 | G11: 1.420081967e-11 | H11: 1.621737374e+11 | I11: 1.637639206e+11 | J11: 163763.9206 | K11: 163.7639206 | U11: 190573
B12: 0.7053 | C12: 1.0865 | D12: 0.0929 | E12: 5.103336921 | F12: 48800000000 | G12: 1.420081967e-11 | H12: 1.621737374e+11 | I12: 1.147953678e+11 | J12: 114795.3678 | K12: 114.7953678 | U12: 189167
B13: 0.7053 | C13: 1.1358 | D13: 0.2232 | E13: 2.928763441 | F13: 48800000000 | G13: 1.420081967e-11 | H13: 1.621737374e+11 | I13: 7.568393625e+10 | J13: 75683.93625 | K13: 75.68393625 | U13: 186066
B14: 0.7053 | C14: 1.0235 | D14: 0.0226 | E14: 15.07964602 | F14: 48800000000 | G14: 1.420081967e-11 | H14: 1.621737374e+11 | I14: 1.911040964e+11 | J14: 191104.0964 | K14: 191.1040964 | U14: 183607
B15: 0.7053 | C15: 0.8715 | D15: 0.0119 | E15: 14.96638655 | F15: 48800000000 | G15: 1.420081967e-11 | H15: 1.621737374e+11 | I15: 1.905731089e+11 | J15: 190573.1089 | K15: 190.5731089 | U15: 183225
B16: 0.7053 | C16: 0.854 | D16: 0.0257 | E16: 6.785992218 | F16: 48800000000 | G16: 1.420081967e-11 | H16: 1.621737374e+11 | I16: 1.348658462e+11 | J16: 134865.8462 | K16: 134.8658462 | U16: 165542
B17: 0.7053 | C17: 0.9111 | D17: 0.0247 | E17: 9.331983806 | F17: 48800000000 | G17: 1.420081967e-11 | H17: 1.621737374e+11 | I17: 1.573043049e+11 | J17: 157304.3049 | K17: 157.3043049 | M17: Age | N17: Age | O17: Age | P17: Age | U17: 163764
B18: 0.7053 | C18: 0.841 | D18: 0.0001 | E18: 1358 | F18: 48800000000 | G18: 1.420081967e-11 | H18: 1.621737374e+11 | I18: 5.080740645e+11 | J18: 508074.0645 | K18: 508.0740645 | M18: Million Years | N18: Million Years | O18: Million Years | P18: Million Years | U18: 158436
B19: 0.7053 | C19: 0.857 | D19: 0.0271 | E19: 6.597785978 | F19: 48800000000 | G19: 1.420081967e-11 | H19: 1.621737374e+11 | I19: 1.328848723e+11 | J19: 132884.8723 | K19: 132.8848723 | M19: 508074.0645 | N19: 157304.3049 | O19: 125399.2393 | P19: 86482.8 | U19: 158282
B20: 0.7053 | C20: 0.8327 | D20: 0.0022 | E20: 58.90909091 | F20: 48800000000 | G20: 1.420081967e-11 | H20: 1.621737374e+11 | I20: 2.870770828e+11 | J20: 287077.0828 | K20: 287.0770828 | M20: 314336.4062 | N20: 151141.8531 | O20: 114795.6434 | P20: 75683.93625 | U20: 157714
B21: 0.7053 | C21: 0.7396 | D21: 0.0004 | E21: =1+((C21-B21)/D21) -> 86.75 | F21: 48800000000 | G21: =(0.693/F21) -> 1.420081967e-11 | H21: =(2.303/G21) -> 1.621737374e+11 | I21: =(LOG(E21))*(H21) -> 3.143364062e+11 | J21: =(I21/1000000) -> 314336.4062 | K21: =(J21/1000) -> 314.3364062 | M21: 302580.1368 | N21: 150088.8538 | O21: 114795.3678 | P21: 72915.48295 | U21: 157589
B22: 0.7053 | C22: 1.2945 | D22: 0.0431 | E22: 14.67053364 | F22: 48800000000 | G22: 1.420081967e-11 | H22: 1.621737374e+11 | I22: 1.891668929e+11 | J22: 189166.8929 | K22: 189.1668929 | M22: 287077.0828 | N22: 149802.2977 | O22: 113949.6546 | P22: 71225.00559 | U22: 157304
B23: 0.7053 | C23: 1.2461 | D23: 0.0301 | E23: 18.96677741 | F23: 48800000000 | G23: 1.420081967e-11 | H23: 1.621737374e+11 | I23: 2.072569899e+11 | J23: 207256.9899 | K23: 207.2569899 | M23: 207256.9899 | N23: 144825.6629 | O23: 111884.3627 | P23: 69728.58872 | U23: 151317
B24: 0.7053 | C24: 1.1698 | D24: 0.1132 | E24: 5.10335689 | F24: 48800000000 | G24: 1.420081967e-11 | H24: 1.621737374e+11 | I24: 1.147956434e+11 | J24: 114795.6434 | K24: 114.7956434 | M24: 201184.508 | N24: 142976.5277 | O24: 110719.4985 | P24: 63934.25208 | U24: 151142
B25: 0.7053 | C25: 1.317 | D25: 0.049 | E25: 13.48367347 | F25: 48800000000 | G25: 1.420081967e-11 | H25: 1.621737374e+11 | I25: 1.832252227e+11 | J25: 183225.2227 | K25: 183.2252227 | M25: 191104.0964 | N25: 138114.8903 | O25: 109164.2343 | P25: 63405.81818 | U25: 150089
B26: 0.7053 | C26: 1.1417 | D26: 0.0578 | E26: 8.55017301 | F26: 48800000000 | G26: 1.420081967e-11 | H26: 1.621737374e+11 | I26: 1.511418531e+11 | J26: 151141.8531 | K26: 151.1418531 | M26: 190573.1089 | N26: 134865.8462 | O26: 108617.331 | P26: 61739.82808 | U26: 149802
B27: 0.7053 | C27: 1.283 | D27: 0.0681 | E27: 9.483113069 | F27: 48800000000 | G27: 1.420081967e-11 | H27: 1.621737374e+11 | I27: 1.584357833e+11 | J27: 158435.7833 | K27: 158.4357833 | M27: 189166.8929 | N27: 134061.0801 | O27: 108277.93 | P27: 56734.59288 | U27: 147429
B28: 0.7053 | C28: 1.1289 | D28: 0.0742 | E28: 6.708894879 | F28: 48800000000 | G28: 1.420081967e-11 | H28: 1.621737374e+11 | I28: 1.340610801e+11 | J28: 134061.0801 | K28: 134.0610801 | M28: 186066.3389 | N28: 134038.9096 | O28: 102140.2446 | P28: 52116.71474 | U28: 144826
B29: 0.7053 | C29: 0.7921 | D29: 0.0277 | E29: 4.133574007 | F29: 48800000000 | G29: 1.420081967e-11 | H29: 1.621737374e+11 | I29: 9.995184506e+10 | J29: 99951.84506 | K29: 99.95184506 | M29: 183607.4458 | N29: 132884.8723 | O29: 99951.84506 | P29: 47926.48389 | U29: 142977
B30: 0.7053 | C30: 0.8611 | D30: 0.0095 | E30: 17.4 | F30: 48800000000 | G30: 1.420081967e-11 | H30: 1.621737374e+11 | I30: 2.01184508e+11 | J30: 201184.508 | K30: 201.184508 | M30: 183225.2227 | N30: 132745.5307 | O30: 93847.78191 | P30: 46968.30716 | U30: 138882
B31: 0.7053 | C31: 1.0831 | D31: 0.1018 | E31: 4.711198428 | F31: 48800000000 | G31: 1.420081967e-11 | H31: 1.621737374e+11 | I31: 1.091642343e+11 | J31: 109164.2343 | K31: 109.1642343 | M31: 163763.9206 | N31: 131669.9954 | O31: 89245.6296 | P31: 39944.21793 | U31: 138115
B32: 0.7053 | C32: 0.9661 | D32: 0.0457 | E32: 6.70678337 | F32: 48800000000 | G32: 1.420081967e-11 | H32: 1.621737374e+11 | I32: 1.340389096e+11 | J32: 134038.9096 | K32: 134.0389096 | M32: 158435.7833 | N32: 130663.5604 | O32: 88625.54017 | P32: 37622.94593 | U32: 134866
B33: 0.7053 | C33: 0.9568 | D33: 0.0659 | E33: 4.816388467 | F33: 48800000000 | G33: 1.420081967e-11 | H33: 1.621737374e+11 | I33: 1.107194985e+11 | J33: 110719.4985 | K33: 110.7194985 | M33: 158282.3964 | N33: 129494.5753 | O33: 87708.15786 | P33: 16153.35354 | U33: 134061
B34: 0.7053 | C34: 1.0729 | D34: 0.1459 | E34: 3.519533927 | F34: 48800000000 | G34: 1.420081967e-11 | H34: 1.621737374e+11 | I34: 8.862554017e+10 | J34: 88625.54017 | K34: 88.62554017 | U34: 134039
B35: 0.7053 | C35: 1.155 | D35: 1.7445 | E35: 1.257781599 | F35: 48800000000 | G35: 1.420081967e-11 | H35: 1.621737374e+11 | I35: 1.615335354e+10 | J35: 16153.35354 | K35: 16.15335354 | U35: 132885
B36: 0.7053 | C36: 0.804 | D36: 0.1041 | E36: 1.948126801 | F36: 48800000000 | G36: 1.420081967e-11 | H36: 1.621737374e+11 | I36: 4.696830716e+10 | J36: 46968.30716 | K36: 46.96830716 | U36: 132746
B37: 0.7053 | C37: 0.9193 | D37: 0.0865 | E37: 3.473988439 | F37: 48800000000 | G37: 1.420081967e-11 | H37: 1.621737374e+11 | I37: 8.770815786e+10 | J37: 87708.15786 | K37: 87.70815786 | U37: 131670
B38: 0.7053 | C38: 1.3149 | D38: 0.0825 | E38: 8.389090909 | F38: 48800000000 | G38: 1.420081967e-11 | H38: 1.621737374e+11 | I38: 1.498022977e+11 | J38: 149802.2977 | K38: 149.8022977 | U38: 130664
B39: 0.7053 | C39: 1.3682 | D39: 0.0893 | E39: 8.423292273 | F39: 48800000000 | G39: 1.420081967e-11 | H39: 1.621737374e+11 | I39: 1.500888538e+11 | J39: 150088.8538 | K39: 150.0888538 | U39: 129495
B40: 0.7053 | C40: 1.626 | D40: 0.1392 | E40: 7.614224138 | F40: 48800000000 | G40: 1.420081967e-11 | H40: 1.621737374e+11 | I40: 1.429765277e+11 | J40: 142976.5277 | K40: 142.9765277 | U40: 125399
B41: 0.7053 | C41: 1.6408 | D41: 0.0745 | E41: 13.55704698 | F41: 48800000000 | G41: 1.420081967e-11 | H41: 1.621737374e+11 | I41: 1.836074458e+11 | J41: 183607.4458 | K41: 183.6074458 | U41: 118679
B42: 0.7053 | C42: 1.5779 | D42: 0.1429 | E42: 7.10636809 | F42: 48800000000 | G42: 1.420081967e-11 | H42: 1.621737374e+11 | I42: 1.381148903e+11 | J42: 138114.8903 | K42: 138.1148903 | U42: 114796
B43: 0.7053 | C43: 0.919 | D43: 0.28 | E43: 1.763214286 | F43: 48800000000 | G43: 1.420081967e-11 | H43: 1.621737374e+11 | I43: 3.994421793e+10 | J43: 39944.21793 | K43: 39.94421793 | U43: 114795
B44: 0.7053 | C44: 1.1253 | D44: 0.0058 | E44: 73.4137931 | F44: 48800000000 | G44: 1.420081967e-11 | H44: 1.621737374e+11 | I44: 3.025801368e+11 | J44: 302580.1368 | K44: 302.5801368 | U44: 113950
B45: 0.7053 | C45: 1.0769 | D45: 2.2447 | E45: 1.165545507 | F45: 48800000000 | G45: 1.420081967e-11 | H45: 1.621737374e+11 | I45: 1.078929463e+10 | J45: 10789.29463 | K45: 10.78929463 | U45: 111884
B46: 0.7053 | C46: 1.1009 | D46: 0.1212 | E46: 4.264026403 | F46: 48800000000 | G46: 1.420081967e-11 | H46: 1.621737374e+11 | I46: 1.021402446e+11 | J46: 102140.2446 | K46: 102.1402446 | U46: 110719
B47: 0.7053 | C47: 0.9802 | D47: 0.1859 | E47: 2.478752017 | F47: 48800000000 | G47: 1.420081967e-11 | H47: 1.621737374e+11 | I47: 6.393425208e+10 | J47: 63934.25208 | K47: 63.93425208 | U47: 109164
B48: 0.7053 | C48: 0.9539 | D48: 0.3521 | E48: 1.706049418 | F48: 48800000000 | G48: 1.420081967e-11 | H48: 1.621737374e+11 | I48: 3.762294593e+10 | J48: 37622.94593 | K48: 37.62294593 | U48: 108617
B49: 0.7053 | C49: 1.0488 | D49: 0.1231 | E49: 3.790414297 | F49: 48800000000 | G49: 1.420081967e-11 | H49: 1.621737374e+11 | I49: 9.384778191e+10 | J49: 93847.78191 | K49: 93.84778191 | U49: 108278
B50: 0.7053 | C50: 1.0351 | D50: 0.1293 | E50: 3.550657386 | F50: 48800000000 | G50: 1.420081967e-11 | H50: 1.621737374e+11 | I50: 8.92456296e+10 | J50: 89245.6296 | K50: 89.2456296 | U50: 102716
B51: 0.7053 | C51: 1.239 | D51: 0.1082 | E51: 5.932532348 | F51: 48800000000 | G51: 1.420081967e-11 | H51: 1.621737374e+11 | I51: 1.253992393e+11 | J51: 125399.2393 | K51: 125.3992393 | U51: 102140
B52: 0.7053 | C52: 0.9432 | D52: 0.1696 | E52: 2.402712264 | F52: 48800000000 | G52: 1.420081967e-11 | H52: 1.621737374e+11 | I52: 6.173982808e+10 | J52: 61739.82808 | K52: 61.73982808 | U52: 101380
B53: 0.7053 | C53: 1.132 | D53: 0.3447 | E53: 2.237888019 | F53: 48800000000 | G53: 1.420081967e-11 | H53: 1.621737374e+11 | I53: 5.673459288e+10 | J53: 56734.59288 | K53: 56.73459288 | U53: 100277
B54: 0.7053 | C54: 0.9531 | D54: 0.1697 | E54: 2.460223925 | F54: 48800000000 | G54: 1.420081967e-11 | H54: 1.621737374e+11 | I54: 6.340581818e+10 | J54: 63405.81818 | K54: 63.40581818 | U54: 99952
B55: 0.7053 | C55: 0.9465 | D55: 0.1379 | E55: 2.749093546 | F55: 48800000000 | G55: 1.420081967e-11 | H55: 1.621737374e+11 | I55: 7.122500559e+10 | J55: 71225.00559 | K55: 71.22500559 | U55: 99779
B56: 0.7053 | C56: 0.9721 | D56: 0.066 | E56: 5.042424242 | F56: 48800000000 | G56: 1.420081967e-11 | H56: 1.621737374e+11 | I56: 1.139496546e+11 | J56: 113949.6546 | K56: 113.9496546 | U56: 99683
B57: 0.7053 | C57: 1.1548 | D57: 0.1862 | E57: 3.414070892 | F57: 48800000000 | G57: 1.420081967e-11 | H57: 1.621737374e+11 | I57: 8.64828e+10 | J57: 86482.8 | K57: 86.4828 | U57: 99369
B58: 0.7053 | C58: 1.2325 | D58: 0.0944 | E58: 6.584745763 | F58: 48800000000 | G58: 1.420081967e-11 | H58: 1.621737374e+11 | I58: 1.327455307e+11 | J58: 132745.5307 | K58: 132.7455307 | U58: 99238
B59: 0.7053 | C59: 1.196 | D59: 0.0928 | E59: 6.287715517 | F59: 48800000000 | G59: 1.420081967e-11 | H59: 1.621737374e+11 | I59: 1.294945753e+11 | J59: 129494.5753 | K59: 129.4945753 | U59: 99177
B60: 0.7053 | C60: 1.1316 | D60: 0.1094 | E60: 4.896709324 | F60: 48800000000 | G60: 1.420081967e-11 | H60: 1.621737374e+11 | I60: 1.118843627e+11 | J60: 111884.3627 | K60: 111.8843627 | U60: 98948
B61: 0.7053 | C61: 1.137 | D61: 0.1182 | E61: 4.652284264 | F61: 48800000000 | G61: 1.420081967e-11 | H61: 1.621737374e+11 | I61: 1.0827793e+11 | J61: 108277.93 | K61: 108.27793 | U61: 98765
B62: 0.7053 | C62: 0.9194 | D62: 0.0397 | E62: 6.392947103 | F62: 48800000000 | G62: 1.420081967e-11 | H62: 1.621737374e+11 | I62: 1.306635604e+11 | J62: 130663.5604 | K62: 130.6635604 | U62: 98736
B63: 0.7053 | C63: 0.9844 | D63: 0.1537 | E63: 2.815875081 | F63: 48800000000 | G63: 1.420081967e-11 | H63: 1.621737374e+11 | I63: 7.291548295e+10 | J63: 72915.48295 | K63: 72.91548295 | U63: 98685
B64: 0.7053 | C64: 0.9324 | D64: 0.0618 | E64: 4.674757282 | F64: 48800000000 | G64: 1.420081967e-11 | H64: 1.621737374e+11 | I64: 1.08617331e+11 | J64: 108617.331 | K64: 108.617331 | U64: 98591
B65: 0.7053 | C65: 0.925 | D65: 0.1299 | E65: 2.691301001 | F65: 48800000000 | G65: 1.420081967e-11 | H65: 1.621737374e+11 | I65: 6.972858872e+10 | J65: 69728.58872 | K65: 69.72858872 | U65: 98450
I66: Average | J66: =AVERAGE(J2:J65) -> 128708.0183 | U66: 98436
I67: Maximum | J67: =MAX(J4:J66) -> 508074.0645 | U67: 98285
I68: Minimum | J68: =MIN(J4:J67) -> 7989.897483 | U68: 98243
I69: Difference | J69: =(J67+ABS(J68)) -> 516063.962 | U69: 97979
U70: 97830
B71: TABLE 2. | U71: 97628
B72: Initial | C72: Today | D72: Today | E72: The Ratio | F72: Half | G72: Decay | H72: 2.303/Delta | I72: Age | J72: Age | K72: Age | M72: Age | N72: Age | O72: Age | U72: 97604
B73: 87Sr/86Sr | C73: 87Sr/86Sr | D73: 87Rb/86Sr | E73: Plus One | F73: Life | G73: Constant | H73: Constant | I73: Years | J73: Million Years | K73: Billion Years | M73: Million Years | N73: Million Years | O73: Million Years | U73: 97545
B74: 0.7053 | C74: 0.751 | D74: 0.2392 | E74: =1+((C74-B74)/D74) -> 1.191053512 | F74: 48800000000 | G74: =(0.693/F74) -> 1.420081967e-11 | H74: =(2.303/G74) -> 1.621737374e+11 | I74: =(LOG(E74))*(H74) -> 1.231405848e+10 | J74: =(I74/1000000) -> 12314.05848 | K74: =(J74/1000) -> 12.31405848 | M74: 508074.0645 | N74: 147428.958 | O74: 87708.15786 | U74: 97421
B75: 0.7053 | C75: 1.2087 | D75: 0.1146 | E75: =1+((C75-B75)/D75) -> 5.392670157 | F75: 48800000000 | G75: =(0.693/F75) -> 1.420081967e-11 | H75: =(2.303/G75) -> 1.621737374e+11 | I75: =(LOG(E75))*(H75) -> 1.186793666e+11 | J75: =(I75/1000000) -> 118679.3666 | K75: =(J75/1000) -> 118.6793666 | M75: 314336.4062 | N75: 138881.5314 | O75: 84716.36743 | U75: 97402
B76: 0.7053 | C76: 0.9613 | D76: 0.036 | E76: 8.111111111 | F76: 48800000000 | G76: 1.420081967e-11 | H76: 1.621737374e+11 | I76: 1.47428958e+11 | J76: 147428.958 | K76: 147.428958 | M76: 165541.6057 | N76: 118679.3666 | O76: 82293.81023 | U76: 97242
B77: 0.7053 | C77: 1.1889 | D77: 0.0782 | E77: 7.184143223 | F77: 48800000000 | G77: 1.420081967e-11 | H77: 1.621737374e+11 | I77: 1.388815314e+11 | J77: 138881.5314 | K77: 138.8815314 | M77: 157714.3578 | N77: 98450.25552 | O77: 59079.88994 | U77: 97117
B78: 0.7053 | C78: 1.0797 | D78: 0.1229 | E78: 4.04637917 | F78: 48800000000 | G78: 1.420081967e-11 | H78: 1.621737374e+11 | I78: 9.845025552e+10 | J78: 98450.25552 | K78: 98.45025552 | M78: 157588.9493 | N78: 91449.95462 | O78: 45663.27456 | U78: 97033
B79: 0.7053 | C79: 0.8789 | D79: 0.0207 | E79: 9.38647343 | F79: 48800000000 | G79: 1.420081967e-11 | H79: 1.621737374e+11 | I79: 1.577143578e+11 | J79: 157714.3578 | K79: 157.7143578 | M79: 151316.7263 | N79: 89235.66588 | O79: 12314.05848 | U79: 96792
B80: 0.7053 | C80: 0.841 | D80: 0.0001 | E80: 1358 | F80: 48800000000 | G80: 1.420081967e-11 | H80: 1.621737374e+11 | I80: 5.080740645e+11 | J80: 508074.0645 | K80: 508.0740645 | U80: 96687
B81: 0.7053 | C81: 0.8448 | D81: 0.0147 | E81: 10.48979592 | F81: 48800000000 | G81: 1.420081967e-11 | H81: 1.621737374e+11 | I81: 1.655416057e+11 | J81: 165541.6057 | K81: 165.5416057 | U81: 96655
B82: 0.7053 | C82: 0.7396 | D82: 0.0004 | E82: 86.75 | F82: 48800000000 | G82: 1.420081967e-11 | H82: 1.621737374e+11 | I82: 3.143364062e+11 | J82: 314336.4062 | K82: 314.3364062 | U82: 96602
B83: 0.7053 | C83: 1.0221 | D83: 0.1429 | E83: 3.21693492 | F83: 48800000000 | G83: 1.420081967e-11 | H83: 1.621737374e+11 | I83: 8.229381023e+10 | J83: 82293.81023 | K83: 82.29381023 | U83: 96293
B84: 0.7053 | C84: 1.2259 | D84: 0.0622 | E84: 9.36977492 | F84: 48800000000 | G84: 1.420081967e-11 | H84: 1.621737374e+11 | I84: 1.575889493e+11 | J84: 157588.9493 | K84: 157.5889493 | U84: 96252
B85: 0.7053 | C85: 0.9614 | D85: 0.2807 | E85: 1.912361952 | F85: 48800000000 | G85: 1.420081967e-11 | H85: 1.621737374e+11 | I85: 4.566327456e+10 | J85: 45663.27456 | K85: 45.66327456 | U85: 96236
B86: 0.7053 | C86: 1.0726 | D86: 0.2796 | E86: 2.313662375 | F86: 48800000000 | G86: 1.420081967e-11 | H86: 1.621737374e+11 | I86: 5.907988994e+10 | J86: 59079.88994 | K86: 59.07988994 | U86: 96043
B87: 0.7053 | C87: 0.9519 | D87: 0.0967 | E87: 3.550155119 | F87: 48800000000 | G87: 1.420081967e-11 | H87: 1.621737374e+11 | I87: 8.923566588e+10 | J87: 89235.66588 | K87: 89.23566588 | U87: 95981
B88: 0.7053 | C88: 0.9287 | D88: 0.0959 | E88: 3.329509906 | F88: 48800000000 | G88: 1.420081967e-11 | H88: 1.621737374e+11 | I88: 8.471636743e+10 | J88: 84716.36743 | K88: 84.71636743 | U88: 95894
B89: 0.7053 | C89: 0.9193 | D89: 0.0865 | E89: 3.473988439 | F89: 48800000000 | G89: 1.420081967e-11 | H89: 1.621737374e+11 | I89: 8.770815786e+10 | J89: 87708.15786 | K89: 87.70815786 | U89: 95761
B90: 0.7053 | C90: 1.5056 | D90: 0.1057 | E90: 8.571428571 | F90: 48800000000 | G90: 1.420081967e-11 | H90: 1.621737374e+11 | I90: 1.513167263e+11 | J90: 151316.7263 | K90: 151.3167263 | U90: 95711
B91: 0.7053 | C91: 0.961 | D91: 0.096 | E91: 3.663541667 | F91: 48800000000 | G91: 1.420081967e-11 | H91: 1.621737374e+11 | I91: 9.144995462e+10 | J91: 91449.95462 | K91: 91.44995462 | U91: 95609
I92: Average | J92: =AVERAGE(J74:J91) -> 139470.7445 | U92: 95522
I93: Maximum | J93: =MAX(J74:J92) -> 508074.0645 | U93: 95510
I94: Minimum | J94: =MIN(J74:J93) -> 12314.05848 | U94: 95388
I95: Difference | J95: =(J93+ABS(J94)) -> 520388.123 | U95: 95218
U96: 95197
B97: TABLE 3. | U97: 95185
B98: Initial | C98: Today | D98: Today | E98: The Ratio | F98: Half | G98: Decay | H98: 2.303/Delta | I98: Age | J98: Age | K98: Age | U98: 95125
B99: 87Sr/86Sr | C99: 87Sr/86Sr | D99: 87Rb/86Sr | E99: Plus One | F99: Life | G99: Constant | H99: Constant | I99: Years | J99: Million Years | K99: Billion Years | U99: 94994
B100: 0.7092 | C100: 0.925 | D100: 15.27 | E100: =1+((C100-B100)/D100) -> 1.014132286 | F100: 48800000000 | G100: =(0.693/F100) -> 1.420081967e-11 | H100: =(2.303/G100) -> 1.621737374e+11 | I100: =(LOG(E100))*(H100) -> 988385514.3 | J100: =(I100/1000000) -> 988.3855143 | K100: =(J100/1000) -> 0.9883855143 | U100: 94819
B101: 0.7092 | C101: 0.862 | D101: 9.64 | E101: 1.015850622 | F101: 48800000000 | G101: 1.420081967e-11 | H101: 1.621737374e+11 | I101: 1107622466 | J101: 1107.622466 | K101: 1.107622466 | U101: 94465
B102: 0.7092 | C102: 0.714 | D102: 0.34 | E102: 1.014117647 | F102: 48800000000 | G102: 1.420081967e-11 | H102: 1.621737374e+11 | I102: 987368870.1 | J102: 987.3688701 | K102: 0.9873688701 | U102: 94453
B103: 0.7092 | C103: 0.719 | D103: 0.392 | E103: 1.025 | F103: 48800000000 | G103: 1.420081967e-11 | H103: 1.621737374e+11 | I103: 1739129330 | J103: 1739.12933 | K103: 1.73912933 | U103: 94431
B104: 0.7092 | C104: 0.717 | D104: 0.305 | E104: 1.02557377 | F104: 48800000000 | G104: 1.420081967e-11 | H104: 1.621737374e+11 | I104: 1778543978 | J104: 1778.543978 | K104: 1.778543978 | U104: 94408
B105: 0.7092 | C105: 0.76 | D105: 1.321 | E105: 1.038455715 | F105: 48800000000 | G105: 1.420081967e-11 | H105: 1.621737374e+11 | I105: 2657700112 | J105: 2657.700112 | K105: 2.657700112 | U105: 94397
B106: 0.7092 | C106: 0.74 | D106: 0.768 | E106: 1.040104167 | F106: 48800000000 | G106: 1.420081967e-11 | H106: 1.621737374e+11 | I106: 2769414344 | J106: 2769.414344 | K106: 2.769414344 | U106: 94345
U107: 94339
U108: 94249
B109: TABLE 4. | U109: 94235
A110: Sample | B110: Initial | C110: Today | D110: Today | E110: The Ratio | F110: Half | G110: Decay | H110: 2.303/Delta | I110: Age | J110: Age | K110: Age | L110: Model Age | U110: 94139
A111: Number | B111: 87Sr/86Sr | C111: 87Sr/86Sr | D111: 87Rb/86Sr | E111: Plus One | F111: Life | G111: Constant | H111: Constant | I111: Years | J111: Million Years | K111: Billion Years | L111: Million Years | U111: 94100
A112: 918-13G | B112: 0.7053 | C112: 0.70558 | D112: 0.3995 | E112: =1+((C112-B112)/D112) -> 1.000700876 | F112: 48800000000 | G112: =(0.693/F112) -> 1.420081967e-11 | H112: =(2.303/G112) -> 1.621737374e+11 | I112: =(LOG(E112))*(H112) -> 49346225.1 | J112: =(I112/1000000) -> 49.3462251 | K112: =(J112/1000) -> 0.0493462251 | L112: 1245 | U112: 93928
A113: 918-13H | B113: 0.7053 | C113: 0.70548 | D113: 0.2293 | E113: 1.000784998 | F113: 48800000000 | G113: =(0.693/F113) -> 1.420081967e-11 | H113: =(2.303/G113) -> 1.621737374e+11 | I113: =(LOG(E113))*(H113) -> 55266617.18 | J113: =(I113/1000000) -> 55.26661718 | K113: =(J113/1000) -> 0.05526661718 | L113: 1385 | U113: 93848
A114: 918-13J | B114: 0.7053 | C114: 0.70588 | D114: 0.2758 | E114: 1.002102973 | F114: 48800000000 | G114: 1.420081967e-11 | H114: 1.621737374e+11 | I114: 147959315.4 | J114: 147.9593154 | K114: 0.1479593154 | L114: 1500 | U114: 93841
A115: 837-8A | B115: 0.7053 | C115: 0.70539 | D115: 0.202 | E115: 1.000445545 | F115: 48800000000 | G115: 1.420081967e-11 | H115: 1.621737374e+11 | I115: 31373230.9 | J115: 31.3732309 | K115: 0.0313732309 | L115: 1078 | U115: 93766
A116: 837-8C | B116: 0.7053 | C116: 0.70569 | D116: 0.1809 | E116: 1.002155887 | F116: 48800000000 | G116: 1.420081967e-11 | H116: 1.621737374e+11 | I116: 151678195 | J116: 151.678195 | K116: 0.151678195 | L116: 1254 | U116: 93730
A117: 837-10A | B117: 0.7053 | C117: 0.70561 | D117: 0.2533 | E117: 1.001223845 | F117: 48800000000 | G117: 1.420081967e-11 | H117: 1.621737374e+11 | I117: 86144136.39 | J117: 86.14413639 | K117: 0.08614413639 | L117: 1165 | U117: 93582
A118: 837-10B | B118: 0.7053 | C118: 0.70571 | D118: 0.1836 | E118: 1.002233115 | F118: 48800000000 | G118: 1.420081967e-11 | H118: 1.621737374e+11 | I118: 157105559 | J118: 157.105559 | K118: 0.157105559 | L118: 1489 | U118: 93574
A119: 837-10C | B119: 0.7053 | C119: 0.70595 | D119: 0.2513 | E119: 1.00258655 | F119: 48800000000 | G119: 1.420081967e-11 | H119: 1.621737374e+11 | I119: 181938515.5 | J119: 181.9385155 | K119: 0.1819385155 | L119: 1135 | U119: 93504
A120: 877-28F | B120: 0.7053 | C120: 0.70537 | D120: 0.1131 | E120: 1.000618921 | F120: 48800000000 | G120: 1.420081967e-11 | H120: 1.621737374e+11 | I120: 43577861.01 | J120: 43.57786101 | K120: 0.04357786101 | L120: 1345 | U120: 93401
A121: 877-29D | B121: 0.7053 | C121: 0.70578 | D121: 0.1357 | E121: 1.003537214 | F121: 48800000000 | G121: 1.420081967e-11 | H121: 1.621737374e+11 | I121: 248690536.7 | J121: 248.6905367 | K121: 0.2486905367 | L121: 1697 | U121: 93394
U122: 93271
U123: 93199
B124: TABLE 5. | U124: 93124
A125: Sample | B125: Initial | C125: Today | D125: Today | E125: The Ratio | F125: Half | G125: Decay | H125: 2.303/Delta | I125: Age | J125: Age | K125: Age | L125: Model Age | U125: 93079
A126: Number | B126: 87Sr/86Sr | C126: 87Sr/86Sr | D126: 87Rb/86Sr | E126: Plus One | F126: Life | G126: Constant | H126: Constant | I126: Years | J126: Million Years | K126: Billion Years | L126: Million Years | U126: 92995
A127: 858-6A | B127: 0.705 | C127: 47.1796 | D127: 26.114 | E127: =1+((C127-B127)/D127) -> 2.779681397 | F127: 48800000000 | G127: 1.420081967e-11 | H127: 1.621737374e+11 | I127: 7.200433186e+10 | J127: 72004.33186 | K127: =(J127/1000) -> 72.00433186 | L127: 838 | U127: 92972
A128: 858-6C | B128: 0.705 | C128: 78.8435 | D128: 26.092 | E128: 3.994730185 | F128: 48800000000 | G128: 1.420081967e-11 | H128: 1.621737374e+11 | I128: 9.754546795e+10 | J128: 97545.46795 | K128: 97.54546795 | L128: 406 | U128: 92967
A129: 858-6D | B129: 0.705 | C129: 50.2589 | D129: 16.271 | E129: 4.045535001 | F129: 48800000000 | G129: 1.420081967e-11 | H129: 1.621737374e+11 | I129: 9.84355604e+10 | J129: 98435.5604 | K129: 98.4355604 | L129: 966 | U129: 92963
A130: 858-6E | B130: 0.705 | C130: 53.5341 | D130: 17.239 | E130: 4.064510702 | F130: 48800000000 | G130: 1.420081967e-11 | H130: 1.621737374e+11 | I130: 9.876514747e+10 | J130: 98765.14747 | K130: 98.76514747 | L130: 988 | U130: 92915
A131: 858-6F | B131: 0.705 | C131: 87.3447 | D131: 28.175 | E131: 4.075055901 | F131: 48800000000 | G131: 1.420081967e-11 | H131: 1.621737374e+11 | I131: 9.894764145e+10 | J131: 98947.64145 | K131: 98.94764145 | L131: 589 | U131: 92878
A132: 858-6G | B132: 0.705 | C132: 9.2937 | D132: 3.171 | E132: 3.708514664 | F132: 48800000000 | G132: 1.420081967e-11 | H132: 1.621737374e+11 | I132: 9.230929142e+10 | J132: 92309.29142 | K132: 92.30929142 | L132: 1023 | U132: 92863
A133: 858-6H | B133: 0.705 | C133: 24.4463 | D133: 8.239 | E133: 3.881575434 | F133: 48800000000 | G133: 1.420081967e-11 | H133: 1.621737374e+11 | I133: 9.552163366e+10 | J133: 95521.63366 | K133: 95.52163366 | L133: 726 | U133: 92829
A134: 858-6I | B134: 0.705 | C134: 7.5234 | D134: 2.573 | E134: 3.649980567 | F134: 48800000000 | G134: 1.420081967e-11 | H134: 1.621737374e+11 | I134: 9.118876035e+10 | J134: 91188.76035 | K134: 91.18876035 | L134: 1044 | U134: 92634
A135: 858-6J | B135: 0.705 | C135: 6.7472 | D135: 2.302 | E135: 3.624761077 | F135: 48800000000 | G135: 1.420081967e-11 | H135: 1.621737374e+11 | I135: 9.070042822e+10 | J135: 90700.42822 | K135: 90.70042822 | L135: 1405 | U135: 92630
A136: 858-6K | B136: 0.705 | C136: 10.2455 | D136: 3.478 | E136: 3.743099482 | F136: 48800000000 | G136: 1.420081967e-11 | H136: 1.621737374e+11 | I136: 9.296307361e+10 | J136: 92963.07361 | K136: 92.96307361 | L136: 1279 | U136: 92374
A137: 858-6L | B137: 0.705 | C137: 3.3085 | D137: 1.136 | E137: 3.29181338 | F137: 48800000000 | G137: 1.420081967e-11 | H137: 1.621737374e+11 | I137: 8.391440124e+10 | J137: 83914.40124 | K137: 83.91440124 | L137: 1460 | U137: 92315
A138: 858-6M | B138: 0.705 | C138: 32.528 | D138: 10.713 | E138: 3.970503127 | F138: 48800000000 | G138: 1.420081967e-11 | H138: 1.621737374e+11 | I138: 9.711701972e+10 | J138: 97117.01972 | K138: 97.11701972 | L138: 1091 | U138: 92309
A139: 858-6N | B139: 0.705 | C139: 1.7302 | D139: 0.596 | E139: 2.720134228 | F139: 48800000000 | G139: 1.420081967e-11 | H139: 1.621737374e+11 | I139: 7.047913891e+10 | J139: 70479.13891 | K139: 70.47913891 | L139: 1717 | U139: 92205
A140: 858-6P | B140: 0.705 | C140: 5.6954 | D140: 1.948 | E140: 3.561806982 | F140: 48800000000 | G140: 1.420081967e-11 | H140: 1.621737374e+11 | I140: 8.946644746e+10 | J140: 89466.44746 | K140: 89.46644746 | L140: 1317 | U140: 92140
A141: 858-6Q | B141: 0.705 | C141: 19.03 | D141: 6.399 | E141: 3.863728708 | F141: 48800000000 | G141: 1.420081967e-11 | H141: 1.621737374e+11 | I141: 9.51970582e+10 | J141: 95197.0582 | K141: 95.1970582 | L141: 1057 | U141: 92108
A142: 858-6R | B142: 0.705 | C142: 11.2179 | D142: 3.815 | E142: 3.755674967 | F142: 48800000000 | G142: 1.420081967e-11 | H142: 1.621737374e+11 | I142: 9.319930069e+10 | J142: 93199.30069 | K142: 93.19930069 | L142: 1056 | U142: 91906
A143: 858-6S | B143: 0.705 | C143: 3.6167 | D143: 1.243 | E143: 3.342477876 | F143: 48800000000 | G143: 1.420081967e-11 | H143: 1.621737374e+11 | I143: 8.499015399e+10 | J143: 84990.15399 | K143: 84.99015399 | L143: 1245 | U143: 91674
A144: 858-6T | B144: 0.705 | C144: 15.9306 | D144: 5.399 | E144: 3.820077792 | F144: 48800000000 | G144: 1.420081967e-11 | H144: 1.621737374e+11 | I144: 9.439682523e+10 | J144: 94396.82523 | K144: 94.39682523 | L144: 896 | U144: 91650
A145: 858-7A | B145: 0.705 | C145: 84.186 | D145: 26.479 | E145: 4.152724801 | F145: 48800000000 | G145: 1.420081967e-11 | H145: 1.621737374e+11 | I145: 1.002773981e+11 | J145: 100277.3981 | K145: 100.2773981 | L145: 842 | U145: 91450
A146: 858-7B | B146: 0.705 | C146: 13.5894 | D146: 4.595 | E146: 3.804004353 | F146: 48800000000 | G146: 1.420081967e-11 | H146: 1.621737374e+11 | I146: 9.409985239e+10 | J146: 94099.85239 | K146: 94.09985239 | L146: 1181 | U146: 91435
A147: 858-7C | B147: 0.705 | C147: 3.2341 | D147: 1.111 | E147: 3.276417642 | F147: 48800000000 | G147: 1.420081967e-11 | H147: 1.621737374e+11 | I147: 8.358422354e+10 | J147: 83584.22354 | K147: 83.58422354 | L147: 1480 | U147: 91238
A148: 858-7D | B148: 0.705 | C148: 13.5747 | D148: 4.605 | E148: 3.794723127 | F148: 48800000000 | G148: 1.420081967e-11 | H148: 1.621737374e+11 | I148: 9.392780048e+10 | J148: 93927.80048 | K148: 93.92780048 | L148: 1052 | U148: 91189
A149: 858-7E | B149: 0.705 | C149: 2.1969 | D149: 0.756 | E149: 2.973412698 | F149: 48800000000 | G149: 1.420081967e-11 | H149: 1.621737374e+11 | I149: 7.674956319e+10 | J149: 76749.56319 | K149: 76.74956319 | L149: 1563 | U149: 91005
A150: 858-7F | B150: 0.705 | C150: 21.7124 | D150: 7.257 | E150: 3.894777456 | F150: 48800000000 | G150: 1.420081967e-11 | H150: 1.621737374e+11 | I150: 9.576077781e+10 | J150: 95760.77781 | K150: 95.76077781 | L150: 1131 | U150: 90891
A151: 858-7G | B151: 0.705 | C151: 0.5365 | D151: 0.185 | E151: 0.08918918919 | F151: 48800000000 | G151: 1.420081967e-11 | H151: 1.621737374e+11 | I151: -1.70231791e+11 | J151: -170231.791 | K151: -170.231791 | L151: 4475 | U151: 90700
A152: 858-7H | B152: 0.705 | C152: 20.327 | D152: 6.811 | E152: 3.880927911 | F152: 48800000000 | G152: 1.420081967e-11 | H152: 1.621737374e+11 | I152: 9.550988338e+10 | J152: 95509.88338 | K152: 95.50988338 | L152: 1727 | U152: 90536
A153: 858-7I | B153: 0.705 | C153: 16.7395 | D153: 5.621 | E153: 3.852606298 | F153: 48800000000 | G153: 1.420081967e-11 | H153: 1.621737374e+11 | I153: 9.499401757e+10 | J153: 94994.01757 | K153: 94.99401757 | L153: 1262 | U153: 90367
A154: 858-7J | B154: 0.705 | C154: 11.643 | D154: 3.94 | E154: 3.776142132 | F154: 48800000000 | G154: 1.420081967e-11 | H154: 1.621737374e+11 | I154: 9.358208473e+10 | J154: 93582.08473 | K154: 93.58208473 | L154: 1331 | U154: 90127
A155: 858-7K | B155: 0.705 | C155: 2.6075 | D155: 0.896 | E155: 3.123325893 | F155: 48800000000 | G155: 1.420081967e-11 | H155: 1.621737374e+11 | I155: 8.021393637e+10 | J155: 80213.93637 | K155: 80.21393637 | L155: 1573 | U155: 90089
A156: 858-7L | B156: 0.705 | C156: 0.2079 | D156: 0.072 | E156: -5.904166667 | F156: 48800000000 | G156: 1.420081967e-11 | H156: 1.621737374e+11 | K156: 0 | L156: 7816 | U156: 90018
A157: 858-7M | B157: 0.705 | C157: 28.0368 | D157: 9.258 | E157: 3.952235904 | F157: 48800000000 | G157: 1.420081967e-11 | H157: 1.621737374e+11 | I157: 9.67922371e+10 | J157: 96792.2371 | K157: 96.7922371 | L157: 1195 | U157: 89838
A158: 858-7N | B158: 0.705 | C158: 22.5888 | D158: 7.567 | E158: 3.892004757 | F158: 48800000000 | G158: 1.420081967e-11 | H158: 1.621737374e+11 | I158: 9.571061989e+10 | J158: 95710.61989 | K158: 95.71061989 | L158: 1001 | U158: 89736
A159: 858-7P | B159: 0.705 | C159: 0.5646 | D159: 0.195 | E159: =1+((C159-B159)/D159) -> 0.28 | F159: 48800000000 | G159: 1.420081967e-11 | H159: 1.621737374e+11 | I159: -8.965644823e+10 | J159: -89656.44823 | K159: =(J159/1000) -> -89.65644823 | L159: 2680 | U159: 89466
A160: 858-7Q | B160: 0.705 | C160: 10.754 | D160: 3.652 | E160: 3.751642935 | F160: 48800000000 | G160: 1.420081967e-11 | H160: 1.621737374e+11 | I160: 9.312364632e+10 | J160: 93123.64632 | K160: 93.12364632 | L160: 1203 | U160: 89246
A161: 858-7R | B161: 0.705 | C161: 4.2466 | D161: 1.457 | E161: 3.430748113 | F161: 48800000000 | G161: 1.420081967e-11 | H161: 1.621737374e+11 | I161: 8.682600801e+10 | J161: 86826.00801 | K161: 86.82600801 | L161: 1246 | U161: 89236
A162: 858-7S | B162: 0.705 | C162: 49.6911 | D162: 16.009 | E162: 4.059910051 | F162: 48800000000 | G162: 1.420081967e-11 | H162: 1.621737374e+11 | I162: 9.868538073e+10 | J162: 98685.38073 | K162: 98.68538073 | L162: 1055 | U162: 89236
A163: 858-7T | B163: 0.705 | C163: 18.9888 | D163: 6.382 | E163: 3.864901285 | F163: 48800000000 | G163: 1.420081967e-11 | H163: 1.621737374e+11 | I163: 9.521842964e+10 | J163: 95218.42964 | K163: 95.21842964 | L163: 1077 | U163: 89171
A164: 858-7U | B164: 0.705 | C164: 15.3773 | D164: 5.208 | E164: 3.817261905 | F164: 48800000000 | G164: 1.420081967e-11 | H164: 1.621737374e+11 | I164: 9.434488928e+10 | J164: 94344.88928 | K164: 94.34488928 | L164: 971 | U164: 88932
A165: 858-7V | B165: 0.705 | C165: 2.6913 | D165: 0.921 | E165: 3.156677524 | F165: 48800000000 | G165: 1.420081967e-11 | H165: 1.621737374e+11 | I165: 8.096203028e+10 | J165: 80962.03028 | K165: 80.96203028 | L165: 2630 | U165: 88876
A166: 858-7W | B166: 0.705 | C166: 10.4422 | D166: 3.553 | E166: 3.740557276 | F166: 48800000000 | G166: 1.420081967e-11 | H166: 1.621737374e+11 | I166: 9.291522252e+10 | J166: 92915.22252 | K166: 92.91522252 | L166: 1104 | U166: 88626
A167: 858-7X | B167: 0.705 | C167: 35.4564 | D167: 11.802 | E167: 3.944534825 | F167: 48800000000 | G167: 1.420081967e-11 | H167: 1.621737374e+11 | I167: 9.665486547e+10 | J167: 96654.86547 | K167: 96.65486547 | L167: 779 | U167: 88540
A168: 858-8A | B168: 0.705 | C168: 3.0315 | D168: 1.042 | E168: 3.232725528 | F168: 48800000000 | G168: 1.420081967e-11 | H168: 1.621737374e+11 | I168: 8.263868205e+10 | J168: 82638.68205 | K168: 82.63868205 | L168: 1628 | U168: 88295
A169: 858-8B | B169: 0.705 | C169: 10.1632 | D169: 3.457 | E169: 3.735956031 | F169: 48800000000 | G169: 1.420081967e-11 | H169: 1.621737374e+11 | I169: 9.282853211e+10 | J169: 92828.53211 | K169: 92.82853211 | L169: 1147 | U169: 87708
A170: 858-8C | B170: 0.705 | C170: 2.4509 | D170: 0.842 | E170: 3.073515439 | F170: 48800000000 | G170: 1.420081967e-11 | H170: 1.621737374e+11 | I170: 7.908165515e+10 | J170: 79081.65515 | K170: 79.08165515 | L170: 1855 | U170: 87708
A171: 858-8D | B171: 0.705 | C171: 0.3622 | D171: 0.125 | E171: -1.7424 | F171: 48800000000 | G171: 1.420081967e-11 | H171: 1.621737374e+11 | K171: 0 | L171: 6105 | U171: 87585
A172: 858-8E | B172: 0.705 | C172: 12.6709 | D172: 4.298 | E172: 3.784062355 | F172: 48800000000 | G172: 1.420081967e-11 | H172: 1.621737374e+11 | I172: 9.372965499e+10 | J172: 93729.65499 | K172: 93.72965499 | L172: 1085 | U172: 87359
A173: 858-8F | B173: 0.705 | C173: 3.9965 | D173: 1.373 | E173: 3.397305171 | F173: 48800000000 | G173: 1.420081967e-11 | H173: 1.621737374e+11 | I173: 8.613607667e+10 | J173: 86136.07667 | K173: 86.13607667 | L173: 1190 | U173: 87260
A174: 858-8G | B174: 0.705 | C174: 8.8794 | D174: 3.028 | E174: 3.699603699 | F174: 48800000000 | G174: 1.420081967e-11 | H174: 1.621737374e+11 | I174: 9.2139853e+10 | J174: 92139.853 | K174: 92.139853 | L174: 1120 | U174: 86826
A175: 858-8H | B175: 0.705 | C175: 2.1441 | D175: 0.737 | E175: 2.952645862 | F175: 48800000000 | G175: 1.420081967e-11 | H175: 1.621737374e+11 | I175: 7.625593378e+10 | J175: 76255.93378 | K175: 76.25593378 | L175: 2135 | U175: 86691
A176: 858-8I | B176: 0.705 | C176: 9.0546 | D176: 3.089 | E176: 3.703010683 | F176: 48800000000 | G176: 1.420081967e-11 | H176: 1.621737374e+11 | I176: 9.220468357e+10 | J176: 92204.68357 | K176: 92.20468357 | L176: 1067 | U176: 86483
A177: 858-8L | B177: 0.705 | C177: 8.2054 | D177: 2.791 | E177: 3.687352204 | F177: 48800000000 | G177: 1.420081967e-11 | H177: 1.621737374e+11 | I177: 9.190622826e+10 | J177: 91906.22826 | K177: 91.90622826 | L177: 1432 | U177: 86474
A178: 858-8M | B178: 0.705 | C178: 1.127 | D178: 0.387 | E178: 2.090439276 | F178: 48800000000 | G178: 1.420081967e-11 | H178: 1.621737374e+11 | I178: 5.19341214e+10 | J178: 51934.1214 | K178: 51.9341214 | L178: 3516 | U178: 86136
A179: 858-8N | B179: 0.705 | C179: 4.0696 | D179: 1.394 | E179: 3.413629842 | F179: 48800000000 | G179: 1.420081967e-11 | H179: 1.621737374e+11 | I179: 8.647370071e+10 | J179: 86473.70071 | K179: 86.47370071 | L179: 1615 | U179: 86050
A180: 858-8P | B180: 0.705 | C180: 2.1378 | D180: 0.735 | E180: 2.949387755 | F180: 48800000000 | G180: 1.420081967e-11 | H180: 1.621737374e+11 | I180: 7.617817339e+10 | J180: 76178.17339 | K180: 76.17817339 | L180: 1712 | U180: 85924
A181: 858-8Q | B181: 0.705 | C181: 3.8532 | D181: 1.322 | E181: 3.381391831 | F181: 48800000000 | G181: =(0.693/F181) -> 1.420081967e-11 | H181: =(2.303/G181) -> 1.621737374e+11 | I181: =(LOG(E181))*(H181) -> 8.580539451e+10 | J181: =(I181/1000000) -> 85805.39451 | K181: =(J181/1000) -> 85.80539451 | L181: 1454 | U181: 85805
A182: 858-8R | B182: 0.705 | C182: 5.5554 | D182: 1.902 | E182: 3.550157729 | F182: 48800000000 | G182: 1.420081967e-11 | H182: 1.621737374e+11 | I182: 8.923571765e+10 | J182: 89235.71765 | K182: 89.23571765 | L182: 1260 | U182: 85263
A183: 858-8S | B183: 0.705 | C183: 10.6546 | D183: 3.619 | E183: 3.749267754 | F183: 48800000000 | G183: 1.420081967e-11 | H183: 1.621737374e+11 | I183: 9.307904192e+10 | J183: 93079.04192 | K183: 93.07904192 | L183: 1230 | U183: 84990
A184: 858-8T | B184: 0.705 | C184: 5.5492 | D184: 1.902 | E184: 3.546898002 | F184: 48800000000 | G184: 1.420081967e-11 | H184: 1.621737374e+11 | I184: 8.917101862e+10 | J184: 89171.01862 | K184: 89.17101862 | L184: 1127 | U184: 84716
A185: 858-8U | B185: 0.705 | C185: 3.6446 | D185: 1.248 | E185: 3.355448718 | F185: 48800000000 | G185: 1.420081967e-11 | H185: 1.621737374e+11 | I185: 8.526294067e+10 | J185: 85262.94067 | K185: 85.26294067 | L185: 1837 | U185: 83914
A186: 858-8V | B186: 0.705 | C186: 4.4099 | D186: 1.511 | E186: 3.451952349 | F186: 48800000000 | G186: 1.420081967e-11 | H186: 1.621737374e+11 | I186: 8.725997829e+10 | J186: 87259.97829 | K186: 87.25997829 | L186: 1413 | U186: 83584
A187: 858-8W | B187: 0.705 | C187: 17.4941 | D187: 5.983 | E187: 3.806134046 | F187: 48800000000 | G187: 1.420081967e-11 | H187: 1.621737374e+11 | I187: 9.413927265e+10 | J187: 94139.27265 | K187: 94.13927265 | L187: 449 | U187: 82639
A188: 858-8X | B188: 0.705 | C188: 17.8882 | D188: 6.1 | E188: 3.816918033 | F188: 48800000000 | G188: 1.420081967e-11 | H188: 1.621737374e+11 | I188: 9.433854432e+10 | J188: 94338.54432 | K188: 94.33854432 | L188: 551 | U188: 82294
A189: 858-8Y | B189: 0.705 | C189: 3.9477 | D189: 1.355 | E189: 3.393136531 | F189: 48800000000 | G189: 1.420081967e-11 | H189: 1.621737374e+11 | I189: 8.604960154e+10 | J189: 86049.60154 | K189: 86.04960154 | L189: 1280 | U189: 80962
A190: 858-8Z | B190: 0.705 | C190: 10.1696 | D190: 3.456 | E190: 3.738599537 | F190: 48800000000 | G190: 1.420081967e-11 | H190: 1.621737374e+11 | I190: 9.28783505e+10 | J190: 92878.3505 | K190: 92.8783505 | L190: 1167 | U190: 80214
A191: 858-8AA | B191: 0.705 | C191: 2.3099 | D191: 0.791 | E191: =1+((C191-B191)/D191) -> 3.028950695 | F191: 48800000000 | G191: 1.420081967e-11 | H191: 1.621737374e+11 | I191: 7.80529555e+10 | J191: 78052.9555 | K191: 78.0529555 | L191: 3028 | U191: 79082
A192: 858-8AB | B192: 0.705 | C192: 36.6022 | D192: 12.285 | E192: 3.922035002 | F192: 48800000000 | G192: 1.420081967e-11 | H192: 1.621737374e+11 | I192: 9.625197248e+10 | J192: 96251.97248 | K192: 96.25197248 | L192: 588 | U192: 78053
A193: 858-8AD | B193: 0.705 | C193: 16.157 | D193: 5.435 | E193: 3.843054278 | F193: 48800000000 | G193: 1.420081967e-11 | H193: 1.621737374e+11 | I193: 9.481917613e+10 | J193: 94819.17613 | K193: 94.81917613 | L193: 1222 | U193: 76750
A194: 858-9A | B194: 0.705 | C194: 104.042 | D194: 32.11 | E194: 4.218218623 | F194: 48800000000 | G194: 1.420081967e-11 | H194: 1.621737374e+11 | I194: 1.0137952e+11 | J194: 101379.52 | K194: 101.37952 | L194: 827 | U194: 76256
A195: 858-9B | B195: 0.705 | C195: 61.353 | D195: 19.452 | E195: 4.117828501 | F195: 48800000000 | G195: 1.420081967e-11 | H195: 1.621737374e+11 | I195: 9.968304819e+10 | J195: 99683.04819 | K195: 99.68304819 | L195: 1056 | U195: 76178
A196: 858-9C | B196: 0.705 | C196: 92.199 | D196: 29.519 | E196: 4.09949524 | F196: 48800000000 | G196: 1.420081967e-11 | H196: 1.621737374e+11 | I196: 9.936877678e+10 | J196: 99368.77678 | K196: 99.36877678 | L196: 620 | U196: 75684
A197: 858-9D | B197: 0.705 | C197: 5.0514 | D197: 1.728 | E197: 3.515277778 | F197: 48800000000 | G197: 1.420081967e-11 | H197: 1.621737374e+11 | I197: 8.854031669e+10 | J197: 88540.31669 | K197: 88.54031669 | L197: 1490 | U197: 75048
A198: 858-9E | B198: 0.705 | C198: 49.3552 | D198: 16.22 | E198: 3.999395808 | F198: 48800000000 | G198: 1.420081967e-11 | H198: 1.621737374e+11 | I198: 9.762767962e+10 | J198: 97627.67962 | K198: 97.62767962 | L198: 754 | U198: 72915
A199: 858-9F | B199: 0.705 | C199: 1.1934 | D199: 0.411 | E199: 2.188321168 | F199: 48800000000 | G199: 1.420081967e-11 | H199: 1.621737374e+11 | I199: 5.515708194e+10 | J199: 55157.08194 | K199: 55.15708194 | L199: 2453 | U199: 72004
A200: 858-9G | B200: 0.705 | C200: 18.5089 | D200: 0.3 | E200: 60.34633333 | F200: 48800000000 | G200: 1.420081967e-11 | H200: 1.621737374e+11 | I200: 2.887748094e+11 | J200: 288774.8094 | K200: 288.7748094 | L200: 682 | U200: 71225
... 226 more rows

Sheet Rb-Sr _06
A1: Rubidium | B1: TABLE 1. | K1: Rubidium_006.pdf
A2: Strontium | B2: Initial | C2: Today | D2: Today | E2: The Ratio | F2: Half | G2: Decay | H2: 2.303/Delta | I2: Age | J2: Age | K2: Age | L2: Model Age | M2: Model Age | N2: Model Age
A3: Dating | B3: 87Sr/86Sr | C3: 87Sr/86Sr | D3: 87Rb/86Sr | E3: Plus One | F3: Life | G3: Constant | H3: Constant | I3: Years | J3: Million Years | K3: Billion Years | L3: Million Years | M3: % Difference | N3: Difference
B4: 0.703952 | C4: 0.704619 | D4: 0.0168 | E4: =1+((C4-B4)/D4) -> 1.039702381 | F4: 48800000000 | G4: =(0.693/F4) -> 1.420081967e-11 | H4: =(2.303/G4) -> 1.621737374e+11 | I4: =(LOG(E4))*(H4) -> 2742201972 | J4: =(I4/1000000) -> 2742.201972 | K4: =(J4/1000) -> 2.742201972
B5: 0.703952 | C5: 0.704376 | D5: 0.0338 | E5: 1.012544379 | F5: 48800000000 | G5: 1.420081967e-11 | H5: 1.621737374e+11 | I5: 878019471.6 | J5: 878.0194716 | K5: 0.8780194716
B6: 0.703952 | C6: 0.706052 | D6: 0.1141 | E6: 1.018404908 | F6: 48800000000 | G6: 1.420081967e-11 | H6: 1.621737374e+11 | I6: 1284494433 | J6: 1284.494433 | K6: 1.284494433
B7: 0.703952 | C7: 0.704341 | D7: 0.032 | E7: 1.01215625 | F7: 48800000000 | G7: 1.420081967e-11 | H7: 1.621737374e+11 | I7: 851016611 | J7: 851.016611 | K7: 0.851016611
B8: 0.703952 | C8: 0.704461 | D8: 0.0301 | E8: 1.016910299 | F8: 48800000000 | G8: 1.420081967e-11 | H8: 1.621737374e+11 | I8: 1181053884 | J8: 1181.053884 | K8: 1.181053884
B9: 0.703952 | C9: 0.718042 | D9: 1.026 | E9: 1.013732943 | F9: 48800000000 | G9: 1.420081967e-11 | H9: 1.621737374e+11 | I9: 960645875.6 | J9: 960.6458756 | K9: 0.9606458756
B10: 0.703952 | C10: 0.70841 | D10: 0.2332 | E10: 1.019116638 | F10: 48800000000 | G10: 1.420081967e-11 | H10: 1.621737374e+11 | I10: 1333699290 | J10: 1333.69929 | K10: 1.33369929
B11: 0.703952 | C11: 0.703874 | D11: 0.0186 | E11: 0.9958064516 | F11: 48800000000 | G11: 1.420081967e-11 | H11: 1.621737374e+11 | I11: -295977506.9 | J11: -295.9775069 | K11: -0.2959775069
B12: 0.703952 | C12: 0.703992 | D12: 0.0117 | E12: 1.003418803 | F12: 48800000000 | G12: 1.420081967e-11 | H12: 1.621737374e+11 | I12: 240379616.4 | J12: 240.3796164 | K12: 0.2403796164
B13: 0.703952 | C13: 0.703962 | D13: 0.00252 | E13: 1.003968254 | F13: 48800000000 | G13: 1.420081967e-11 | H13: 1.621737374e+11 | I13: 278935648.7 | J13: 278.9356487 | K13: 0.2789356487
B14: 0.703952 | C14: 0.703972 | D14: 0.00017 | E14: 1.117647059 | F14: 48800000000 | G14: 1.420081967e-11 | H14: 1.621737374e+11 | I14: 7833750419 | J14: 7833.750419 | K14: 7.833750419
B15: 0.703952 | C15: 0.704106 | D15: 0.0303 | E15: 1.005082508 | F15: 48800000000 | G15: 1.420081967e-11 | H15: 1.621737374e+11 | I15: 357060333.6 | J15: 357.0603336 | K15: 0.3570603336
B16: 0.703952 | C16: 0.703978 | D16: 0.019 | E16: 1.001368421 | F16: 48800000000 | G16: 1.420081967e-11 | H16: 1.621737374e+11 | I16: 96313597.32 | J16: 96.31359732 | K16: 0.09631359732
B17: 0.703952 | C17: 0.70407 | D17: 0.018 | E17: =1+((C17-B17)/D17) -> 1.006555556 | F17: 48800000000 | G17: =(0.693/F17) -> 1.420081967e-11 | H17: =(2.303/G17) -> 1.621737374e+11 | I17: =(LOG(E17))*(H17) -> 460208558.7 | J17: =(I17/1000000) -> 460.2085587 | K17: =(J17/1000) -> 0.4602085587
B18: 0.703952 | C18: 0.704945 | D18: 0.1776 | E18: 1.005591216 | F18: 48800000000 | G18: 1.420081967e-11 | H18: 1.621737374e+11 | I18: 392699027.3 | J18: 392.6990273 | K18: 0.3926990273
B19: 0.703952 | C19: 0.703876 | D19: 4.4e-05 | E19: -0.7272727273 | F19: 48800000000 | G19: 1.420081967e-11 | H19: 1.621737374e+11 | J19: 0 | K19: 0
B20: 0.703952 | C20: 0.704007 | D20: 0.0202 | E20: 1.002722772 | F20: 48800000000 | G20: 1.420081967e-11 | H20: 1.621737374e+11 | I20: 191507410.5 | J20: 191.5074105 | K20: 0.1915074105
I21: Average | J21: =AVERAGE(J4:J20) -> 1105.059332
I22: Maximum | J22: =MAX(J4:J21) -> 7833.750419
I23: Minimum | J23: =MIN(J4:J22) -> -295.9775069
I24: Difference | J24: =(J22+ABS(J23)) -> 8129.727926

Sheet Rb-Sr _07
A1: Rubidium | K1: Rubidium_041.pdf | N1: 38746
A2: Strontium | B2: Initial | C2: Today | D2: Today | E2: The Ratio | F2: Half | G2: Decay | H2: 2.303/Delta | I2: Age | J2: Age | K2: Age | N2: 35596
A3: Dating | B3: 87Sr/86Sr | C3: 87Sr/86Sr | D3: 87Rb/86Sr | E3: Plus One | F3: Life | G3: Constant | H3: Constant | I3: Years | J3: Million Years | K3: Billion Years | N3: 26410
B4: 0.70296 | C4: 0.71438 | D4: 0.2731 | E4: =1+((C4-B4)/D4) -> 1.041816185 | F4: 48800000000 | G4: =(0.693/F4) -> 1.420081967e-11 | H4: =(2.303/G4) -> 1.621737374e+11 | I4: =(LOG(E4))*(H4) -> 2885249161 | J4: =(I4/1000000) -> 2885.249161 | K4: =(J4/1000) -> 2.885249161 | N4: 26280
B5: 0.70373 | C5: 0.72582 | D5: 0.5164 | E5: =1+((C5-B5)/D5) -> 1.042776917 | F5: 48800000000 | G5: 1.420081967e-11 | H5: =(2.303/G5) -> 1.621737374e+11 | I5: =(LOG(E5))*(H5) -> 2950168797 | J5: =(I5/1000000) -> 2950.168797 | K5: =(J5/1000) -> 2.950168797 | N5: 24363
B6: 0.70295 | C6: 0.75832 | D6: 1.2944 | E6: 1.042776576 | F6: 48800000000 | G6: 1.420081967e-11 | H6: 1.621737374e+11 | I6: 2950145759 | J6: 2950.145759 | K6: 2.950145759 | N6: 23152
B7: 0.70302 | C7: 0.71582 | D7: 0.2994 | E7: 1.042752171 | F7: 48800000000 | G7: 1.420081967e-11 | H7: 1.621737374e+11 | I7: 2948497378 | J7: 2948.497378 | K7: 2.948497378 | N7: 21599
B8: 0.70082 | C8: 0.72168 | D8: 0.4875 | E8: 1.042789744 | F8: 48800000000 | G8: 1.420081967e-11 | H8: 1.621737374e+11 | I8: 2951035116 | J8: 2951.035116 | K8: 2.951035116 | N8: 20970
B9: 0.70477 | C9: 0.70551 | D9: 0.0174 | E9: 1.042528736 | F9: 48800000000 | G9: 1.420081967e-11 | H9: 1.621737374e+11 | I9: 2933404147 | J9: 2933.404147 | K9: 2.933404147 | N9: 19442
B10: 0.70033 | C10: 0.70366 | D10: 0.0778 | E10: 1.042802057 | F10: 48800000000 | G10: 1.420081967e-11 | H10: 1.621737374e+11 | I10: 2951866743 | J10: 2951.866743 | K10: 2.951866743 | N10: 16203
B11: 0.70297 | C11: 0.72586 | D11: 0.5349 | E11: 1.042793045 | F11: 48800000000 | G11: 1.420081967e-11 | H11: 1.621737374e+11 | I11: 2951258126 | J11: 2951.258126 | K11: 2.951258126 | N11: 16133
B12: 0.70236 | C12: 0.73997 | D12: 0.8792 | E12: 1.042777525 | F12: 48800000000 | G12: 1.420081967e-11 | H12: 1.621737374e+11 | I12: 2950209856 | J12: 2950.209856 | K12: 2.950209856 | N12: 12986
B13: 0.70415 | C13: 0.71709 | D13: 0.3025 | E13: 1.04277686 | F13: 48800000000 | G13: 1.420081967e-11 | H13: 1.621737374e+11 | I13: 2950164906 | J13: 2950.164906 | K13: 2.950164906 | N13: 10794
B14: 0.70389 | C14: 0.71694 | D14: 0.3051 | E14: 1.042772861 | F14: 48800000000 | G14: 1.420081967e-11 | H14: 1.621737374e+11 | I14: 2949894863 | J14: 2949.894863 | K14: 2.949894863 | N14: 10722
B15: 0.703 | C15: 0.73099 | D15: 0.6542 | E15: 1.042785081 | F15: 48800000000 | G15: 1.420081967e-11 | H15: 1.621737374e+11 | I15: 2950720200 | J15: 2950.7202 | K15: 2.9507202 | N15: 10673
B16: 0.73157 | C16: 0.88829 | D16: 3.6633 | E16: 1.042781099 | F16: 48800000000 | G16: 1.420081967e-11 | H16: 1.621737374e+11 | I16: 2950451250 | J16: 2950.45125 | K16: 2.95045125 | N16: 9809
B17: 0.71118 | C17: 0.78657 | D17: 1.7623 | E17: 1.042779322 | F17: 48800000000 | G17: 1.420081967e-11 | H17: 1.621737374e+11 | I17: 2950331260 | J17: 2950.33126 | K17: 2.95033126 | N17: 8723
B18: 0.70189 | C18: 0.70667 | D18: 0.1117 | E18: 1.042793196 | F18: 48800000000 | G18: 1.420081967e-11 | H18: 1.621737374e+11 | I18: 2951268300 | J18: 2951.2683 | K18: 2.9512683 | N18: 7583
B19: 0.70268 | C19: 0.71708 | D19: 0.3366 | E19: 1.042780749 | F19: 48800000000 | G19: 1.420081967e-11 | H19: 1.621737374e+11 | I19: 2950427587 | J19: 2950.427587 | K19: 2.950427587 | N19: 6685
B20: 0.7132 | C20: 0.77897 | D20: 1.5952 | E20: 1.04122994 | F20: 48800000000 | G20: 1.420081967e-11 | H20: 1.621737374e+11 | I20: 2845605394 | J20: 2845.605394 | K20: 2.845605394 | N20: 5294
B21: 0.70795 | C21: 0.75155 | D21: 1.0577 | E21: 1.041221518 | F21: 48800000000 | G21: 1.420081967e-11 | H21: 1.621737374e+11 | I21: 2845035747 | J21: 2845.035747 | K21: 2.845035747 | N21: 5287
B22: 0.70505 | C22: 0.72348 | D22: 0.447 | E22: 1.041230425 | F22: 48800000000 | G22: 1.420081967e-11 | H22: 1.621737374e+11 | I22: 2845638217 | J22: 2845.638217 | K22: 2.845638217 | N22: 5286
B23: 0.70688 | C23: 0.7519 | D23: 1.0919 | E23: 1.041230882 | F23: 48800000000 | G23: 1.420081967e-11 | H23: 1.621737374e+11 | I23: 2845669122 | J23: 2845.669122 | K23: 2.845669122 | N23: 5281
B24: 0.70777 | C24: 0.72372 | D24: 0.3868 | E24: 1.041235781 | F24: 48800000000 | G24: 1.420081967e-11 | H24: 1.621737374e+11 | I24: 2846000488 | J24: 2846.000488 | K24: 2.846000488 | N24: 5275
B25: 0.70361 | C25: 0.71703 | D25: 0.3256 | E25: 1.041216216 | F25: 48800000000 | G25: 1.420081967e-11 | H25: 1.621737374e+11 | I25: 2844677092 | J25: 2844.677092 | K25: 2.844677092 | N25: 5250
B26: 0.70211 | C26: 0.70463 | D26: 0.0612 | E26: 1.041176471 | F26: 48800000000 | G26: 1.420081967e-11 | H26: 1.621737374e+11 | I26: 2841988521 | J26: 2841.988521 | K26: 2.841988521 | N26: 5231
B27: 0.69975 | C27: 0.72092 | D27: 0.5134 | E27: 1.041234905 | F27: 48800000000 | G27: 1.420081967e-11 | H27: 1.621737374e+11 | I27: 2845941220 | J27: 2845.94122 | K27: 2.84594122 | N27: 5215
B28: 0.70323 | C28: 0.70991 | D28: 0.1621 | E28: 1.04120913 | F28: 48800000000 | G28: 1.420081967e-11 | H28: 1.621737374e+11 | I28: 2844197768 | J28: 2844.197768 | K28: 2.844197768 | N28: 5206
B29: 0.70628 | C29: 0.75886 | D29: 1.2754 | E29: 1.041226282 | F29: 48800000000 | G29: 1.420081967e-11 | H29: 1.621737374e+11 | I29: 2845357967 | J29: 2845.357967 | K29: 2.845357967 | N29: 5205
B30: 0.70397 | C30: 0.71688 | D30: 0.3131 | E30: 1.041232833 | F30: 48800000000 | G30: 1.420081967e-11 | H30: 1.621737374e+11 | I30: 2845801093 | J30: 2845.801093 | K30: 2.845801093 | N30: 5201
B31: 0.72139 | C31: 0.82309 | D31: 2.4669 | E31: 1.04122583 | F31: 48800000000 | G31: 1.420081967e-11 | H31: 1.621737374e+11 | I31: 2845327395 | J31: 2845.327395 | K31: 2.845327395 | N31: 5190
B32: 0.70232 | C32: 0.70728 | D32: 0.1202 | E32: 1.041264559 | F32: 48800000000 | G32: 1.420081967e-11 | H32: 1.621737374e+11 | I32: 2847947080 | J32: 2847.94708 | K32: 2.84794708 | N32: 5177
B33: 0.73203 | C33: 0.93128 | D33: 5.2362 | E33: 1.038052404 | F33: 48800000000 | G33: 1.420081967e-11 | H33: 1.621737374e+11 | I33: 2630341049 | J33: 2630.341049 | K33: 2.630341049 | N33: 5169
B34: 0.70586 | C34: 0.71555 | D34: 0.2369 | E34: 1.040903335 | F34: 48800000000 | G34: 1.420081967e-11 | H34: 1.621737374e+11 | I34: 2823509619 | J34: 2823.509619 | K34: 2.823509619 | N34: 5165
B35: 0.70401 | C35: 0.71828 | D35: 0.3493 | E35: 1.040853135 | F35: 48800000000 | G35: 1.420081967e-11 | H35: 1.621737374e+11 | I35: 2820112836 | J35: 2820.112836 | K35: 2.820112836 | N35: 5154
B36: 0.70221 | C36: 0.7084 | D36: 0.1514 | E36: 1.040885073 | F36: 48800000000 | G36: 1.420081967e-11 | H36: 1.621737374e+11 | I36: 2822273931 | J36: 2822.273931 | K36: 2.822273931 | N36: 5145
B37: 0.70042 | C37: 0.74576 | D37: 1.1097 | E37: 1.04085789 | F37: 48800000000 | G37: 1.420081967e-11 | H37: 1.621737374e+11 | I37: 2820434569 | J37: 2820.434569 | K37: 2.820434569 | N37: 5112
B38: 0.70246 | C38: 0.71647 | D38: 0.3428 | E38: 1.040869312 | F38: 48800000000 | G38: 1.420081967e-11 | H38: 1.621737374e+11 | I38: 2821207453 | J38: 2821.207453 | K38: 2.821207453 | N38: 5106
B39: 0.70173 | C39: 0.71559 | D39: 0.3394 | E39: 1.040836771 | F39: 48800000000 | G39: 1.420081967e-11 | H39: 1.621737374e+11 | I39: 2819005524 | J39: 2819.005524 | K39: 2.819005524 | N39: 5079
B40: 0.70273 | C40: 0.70736 | D40: 0.1132 | E40: 1.04090106 | F40: 48800000000 | G40: 1.420081967e-11 | H40: 1.621737374e+11 | I40: 2823355707 | J40: 2823.355707 | K40: 2.823355707 | N40: 5046
B41: 0.7028 | C41: 0.74487 | D41: 1.0296 | E41: 1.040860528 | F41: 48800000000 | G41: 1.420081967e-11 | H41: 1.621737374e+11 | I41: 2820613130 | J41: 2820.61313 | K41: 2.82061313 | N41: 5034
B42: 0.703 | C42: 0.71138 | D42: 0.205 | E42: 1.040878049 | F42: 48800000000 | G42: 1.420081967e-11 | H42: 1.621737374e+11 | I42: 2821798662 | J42: 2821.798662 | K42: 2.821798662 | N42: 5028
B43: 0.70322 | C43: 0.71815 | D43: 0.3654 | E43: 1.040859332 | F43: 48800000000 | G43: 1.420081967e-11 | H43: 1.621737374e+11 | I43: 2820532193 | J43: 2820.532193 | K43: 2.820532193 | N43: 4972
B44: 0.7012 | C44: 0.73115 | D44: 0.7331 | E44: 1.040853908 | F44: 48800000000 | G44: 1.420081967e-11 | H44: 1.621737374e+11 | I44: 2820165158 | J44: 2820.165158 | K44: 2.820165158 | N44: 4947
B45: 0.70137 | C45: 0.72329 | D45: 0.5364 | E45: 1.040865026 | F45: 48800000000 | G45: 1.420081967e-11 | H45: 1.621737374e+11 | I45: 2820917475 | J45: 2820.917475 | K45: 2.820917475 | N45: 4882
B46: 0.70847 | C46: 0.75152 | D46: 1.0536 | E46: 1.040859909 | F46: 48800000000 | G46: 1.420081967e-11 | H46: 1.621737374e+11 | I46: 2820571212 | J46: 2820.571212 | K46: 2.820571212 | N46: 4853
B47: 0.7015 | C47: 0.71062 | D47: 0.2233 | E47: 1.040841917 | F47: 48800000000 | G47: 1.420081967e-11 | H47: 1.621737374e+11 | I47: 2819353737 | J47: 2819.353737 | K47: 2.819353737
B48: 0.70411 | C48: 0.74577 | D48: 1.0197 | E48: 1.040855153 | F48: 48800000000 | G48: 1.420081967e-11 | H48: 1.621737374e+11 | I48: 2820249431 | J48: 2820.249431 | K48: 2.820249431
B49: 0.70379 | C49: 0.71385 | D49: 0.2464 | E49: 1.040827922 | F49: 48800000000 | G49: 1.420081967e-11 | H49: 1.621737374e+11 | I49: 2818406750 | J49: 2818.40675 | K49: 2.81840675
B50: 0.7045 | C50: 0.70728 | D50: 0.0679 | E50: 1.040942563 | F50: 48800000000 | G50: 1.420081967e-11 | H50: 1.621737374e+11 | I50: 2826163862 | J50: 2826.163862 | K50: 2.826163862
B51: 0.70619 | C51: 0.72082 | D51: 0.358 | E51: 1.040865922 | F51: 48800000000 | G51: 1.420081967e-11 | H51: 1.621737374e+11 | I51: 2820978082 | J51: 2820.978082 | K51: 2.820978082 | L51: Dating | M51: Age | N51: 25630 | O51: Age | P51: Age | Q51: Age
B52: 0.70082 | C52: 0.75615 | D52: 1.3543 | E52: 1.040855054 | F52: 48800000000 | G52: 1.420081967e-11 | H52: 1.621737374e+11 | I52: 2820242718 | J52: 2820.242718 | K52: 2.820242718 | L52: Summary | M52: 87Rb/86Sr | N52: 7926 | O52: 207Pb/206Pb | P52: 208Pb/232Th | Q52: 206Pb/238U
B53: 0.70358 | C53: 0.75178 | D53: 1.1795 | E53: 1.040864773 | F53: 48800000000 | G53: 1.420081967e-11 | H53: 1.621737374e+11 | I53: 2820900362 | J53: 2820.900362 | K53: 2.820900362 | L53: Average | M53: 2863.30828 | N53: 26332 | O53: 5123.208843 | P53: 17899.18872 | Q53: 11906.4739
I54: Average | J54: =AVERAGE(J2:J53) -> 2863.30828 | L54: Maximum | M54: 2951.866743 | N54: 9001 | O54: 5293.604792 | P54: 38746.23647 | Q54: 18984.88902
I55: Maximum | J55: =MAX(J2:J54) -> 2951.866743 | L55: Minimum | M55: 2630.341049 | N55: 6650 | O55: 4662.421161 | P55: 6650.0375 | Q55: 7293.712645
I56: Minimum | J56: =MIN(J2:J55) -> 2630.341049 | L56: Std Deviation | M56: 37.52292962 | N56: 10724 | O56: 151.7109317 | P56: 9753.954585 | Q56: 3297.957281
I57: Std Deviation | J57: =STDEV(J23:J53) -> 37.52292962 | N57: 12193
N58: 37951
N59: 15957
A60: Neodymium | K60: Rubidium_041.pdf | N60: 10047
A61: Samarium | B61: Initial | C61: Today | D61: Today | E61: The Ratio | F61: Half | G61: Decay | H61: 2.303/Delta | I61: Age | J61: Age | K61: Age | L61: Model Age | M61: Model Age | N61: 9947
A62: Dating | B62: 143Nd/144Nd | C62: 143Nd/144Nd | D62: 147Sm/144Nd | E62: Plus One | F62: Life | G62: Constant | H62: Constant | I62: Years | J62: Million Years | K62: Billion Years | L62: Million Years | M62: % Difference
B63: 0.50897 | C63: 0.510734 | D63: 0.0926 | E63: =1+((C63-B63)/D63) -> 1.019049676 | F63: 106000000000 | G63: =(0.693/F63) -> 6.537735849e-12 | H63: =(2.303/G63) -> 3.522626263e+11 | I63: =(LOG(E63))*(H63) -> 2886917364 | J63: =(I63/1000000) -> 2886.917364 | K63: =(J63/1000) -> 2.886917364 | N63: 18324
B64: 0.508886 | C64: 0.510647 | D64: 0.0904 | E64: =1+((C64-B64)/D64) -> 1.019480088 | F64: 106000000000 | G64: 6.537735849e-12 | H64: =(2.303/G64) -> 3.522626263e+11 | I64: =(LOG(E64))*(H64) -> 2951519766 | J64: =(I64/1000000) -> 2951.519766 | K64: =(J64/1000) -> 2.951519766 | N64: 10093
B65: 0.508997 | C65: 0.510946 | D65: 0.1001 | E65: 1.019470529 | F65: 106000000000 | G65: 6.537735849e-12 | H65: 3.522626263e+11 | I65: 2950085309 | J65: 2950.085309 | K65: 2.950085309 | N65: 8177
B66: 0.508678 | C66: 0.510762 | D66: 0.107 | E66: 1.019476636 | F66: 106000000000 | G66: 6.537735849e-12 | H66: 3.522626263e+11 | I66: 2951001603 | J66: 2951.001603 | K66: 2.951001603 | N66: 9106
B67: 0.508861 | C67: 0.511195 | D67: 0.1198 | E67: 1.019482471 | F67: 106000000000 | G67: 6.537735849e-12 | H67: 3.522626263e+11 | I67: 2951877258 | J67: 2951.877258 | K67: 2.951877258 | N67: 10214
B68: 0.508899 | C68: 0.510977 | D68: 0.1066 | E68: 1.019493433 | F68: 106000000000 | G68: 6.537735849e-12 | H68: 3.522626263e+11 | I68: 2953522322 | J68: 2953.522322 | K68: 2.953522322 | N68: 12614
B69: 0.508905 | C69: 0.512751 | D69: 0.1974 | E69: 1.019483283 | F69: 106000000000 | G69: 6.537735849e-12 | H69: 3.522626263e+11 | I69: 2951999092 | J69: 2951.999092 | K69: 2.951999092 | N69: 11287
B70: 0.508871 | C70: 0.510855 | D70: 0.1019 | E70: 1.019470069 | F70: 106000000000 | G70: 6.537735849e-12 | H70: 3.522626263e+11 | I70: 2950016163 | J70: 2950.016163 | K70: 2.950016163 | N70: 12915
B71: 0.508905 | C71: 0.51059 | D71: 0.0865 | E71: 1.019479769 | F71: 106000000000 | G71: 6.537735849e-12 | H71: 3.522626263e+11 | I71: 2951471790 | J71: 2951.47179 | K71: 2.95147179 | N71: 17028
B72: 0.508753 | C72: 0.511061 | D72: 0.1185 | E72: 1.019476793 | F72: 106000000000 | G72: 6.537735849e-12 | H72: 3.522626263e+11 | I72: 2951025273 | J72: 2951.025273 | K72: 2.951025273 | N72: 12260
B73: 0.508756 | C73: 0.511146 | D73: 0.1227 | E73: 1.019478403 | F73: 106000000000 | G73: 6.537735849e-12 | H73: 3.522626263e+11 | I73: 2951266778 | J73: 2951.266778 | K73: 2.951266778 | N73: 12803
B74: 0.508928 | C74: 0.510751 | D74: 0.0936 | E74: 1.019476496 | F74: 106000000000 | G74: 6.537735849e-12 | H74: 3.522626263e+11 | I74: 2950980626 | J74: 2950.980626 | K74: 2.950980626 | N74: 8379
B75: 0.508301 | C75: 0.510759 | D75: 0.1262 | E75: 1.019477021 | F75: 106000000000 | G75: 6.537735849e-12 | H75: 3.522626263e+11 | I75: 2951059390 | J75: 2951.05939 | K75: 2.95105939 | N75: 8098
B76: 0.508622 | C76: 0.510628 | D76: 0.103 | E76: 1.019475728 | F76: 106000000000 | G76: 6.537735849e-12 | H76: 3.522626263e+11 | I76: 2950865442 | J76: 2950.865442 | K76: 2.950865442 | N76: 11024
B77: 0.508774 | C77: 0.510882 | D77: 0.1082 | E77: 1.01948244 | F77: 106000000000 | G77: 6.537735849e-12 | H77: 3.522626263e+11 | I77: 2951872628 | J77: 2951.872628 | K77: 2.951872628 | N77: 7294
B78: 0.508832 | C78: 0.510304 | D78: 0.0756 | E78: 1.019470899 | F78: 106000000000 | G78: 6.537735849e-12 | H78: 3.522626263e+11 | I78: 2950140832 | J78: 2950.140832 | K78: 2.950140832 | N78: 13022
B79: 0.508885 | C79: 0.510497 | D79: 0.0858 | E79: 1.018787879 | F79: 106000000000 | G79: 6.537735849e-12 | H79: 3.522626263e+11 | I79: 2847609777 | J79: 2847.609777 | K79: 2.847609777
B80: 0.508892 | C80: 0.510388 | D80: 0.0797 | E80: 1.018770389 | F80: 106000000000 | G80: 6.537735849e-12 | H80: 3.522626263e+11 | I80: 2844983404 | J80: 2844.983404 | K80: 2.844983404 | N80: 8833
B81: 0.508921 | C81: 0.510573 | D81: 0.088 | E81: 1.018772727 | F81: 106000000000 | G81: 6.537735849e-12 | H81: 3.522626263e+11 | I81: 2845334542 | J81: 2845.334542 | K81: 2.845334542 | N81: 12875
B82: 0.508933 | C82: 0.511052 | D82: 0.1128 | E82: 1.018785461 | F82: 106000000000 | G82: 6.537735849e-12 | H82: 3.522626263e+11 | I82: 2847246710 | J82: 2847.24671 | K82: 2.84724671 | N82: 18985
B83: 0.508817 | C83: 0.510289 | D83: 0.0784 | E83: 1.01877551 | F83: 106000000000 | G83: 6.537735849e-12 | H83: 3.522626263e+11 | I83: 2845752445 | J83: 2845.752445 | K83: 2.845752445 | N83: 14562
B84: 0.508867 | C84: 0.510413 | D84: 0.0823 | E84: 1.018784933 | F84: 106000000000 | G84: 6.537735849e-12 | H84: 3.522626263e+11 | I84: 2847167450 | J84: 2847.16745 | K84: 2.84716745 | N84: 10626
B85: 0.508958 | C85: 0.512052 | D85: 0.1647 | E85: 1.018785671 | F85: 106000000000 | G85: 6.537735849e-12 | H85: 3.522626263e+11 | I85: 2847278233 | J85: 2847.278233 | K85: 2.847278233 | N85: 7575
B86: 0.508845 | C86: 0.510237 | D86: 0.0741 | E86: 1.018785425 | F86: 106000000000 | G86: 6.537735849e-12 | H86: 3.522626263e+11 | I86: 2847241321 | J86: 2847.241321 | K86: 2.847241321 | N86: 16581
B87: 0.508914 | C87: 0.510684 | D87: 0.0943 | E87: 1.018769883 | F87: 106000000000 | G87: 6.537735849e-12 | H87: 3.522626263e+11 | I87: 2844907479 | J87: 2844.907479 | K87: 2.844907479 | N87: 12850
B88: 0.508898 | C88: 0.51072 | D88: 0.0971 | E88: 1.018764161 | F88: 106000000000 | G88: 6.537735849e-12 | H88: 3.522626263e+11 | I88: 2844048116 | J88: 2844.048116 | K88: 2.844048116
B89: 0.508924 | C89: 0.510467 | D89: 0.0822 | E89: 1.01877129 | F89: 106000000000 | G89: 6.537735849e-12 | H89: 3.522626263e+11 | I89: 2845118642 | J89: 2845.118642 | K89: 2.845118642
B90: 0.50886 | C90: 0.510755 | D90: 0.1009 | E90: 1.018780971 | F90: 106000000000 | G90: 6.537735849e-12 | H90: 3.522626263e+11 | I90: 2846572509 | J90: 2846.572509 | K90: 2.846572509
B91: 0.508913 | C91: 0.510437 | D91: 0.0812 | E91: 1.018768473 | F91: 106000000000 | G91: 6.537735849e-12 | H91: 3.522626263e+11 | I91: 2844695676 | J91: 2844.695676 | K91: 2.844695676
B92: 0.508986 | C92: 0.511095 | D92: 0.1216 | E92: 1.01734375 | F92: 106000000000 | G92: 6.537735849e-12 | H92: 3.522626263e+11 | I92: 2630599140 | J92: 2630.59914 | K92: 2.63059914
B93: 0.508857 | C93: 0.510913 | D93: 0.1105 | E93: 1.018606335 | F93: 106000000000 | G93: 6.537735849e-12 | H93: 3.522626263e+11 | I93: 2820345903 | J93: 2820.345903 | K93: 2.820345903
B94: 0.509163 | C94: 0.511446 | D94: 0.1226 | E94: 1.018621533 | F94: 106000000000 | G94: 6.537735849e-12 | H94: 3.522626263e+11 | I94: 2822628582 | J94: 2822.628582 | K94: 2.822628582
B95: 0.508808 | C95: 0.510371 | D95: 0.084 | E95: 1.018607143 | F95: 106000000000 | G95: 6.537735849e-12 | H95: 3.522626263e+11 | I95: 2820467259 | J95: 2820.467259 | K95: 2.820467259
B96: 0.508872 | C96: 0.51047 | D96: 0.0859 | E96: 1.018603027 | F96: 106000000000 | G96: 6.537735849e-12 | H96: 3.522626263e+11 | I96: 2819849059 | J96: 2819.849059 | K96: 2.819849059
B97: 0.509025 | C97: 0.510571 | D97: 0.0831 | E97: 1.018604091 | F97: 106000000000 | G97: 6.537735849e-12 | H97: 3.522626263e+11 | I97: 2820008965 | J97: 2820.008965 | K97: 2.820008965
B98: 0.508964 | C98: 0.510573 | D98: 0.0864 | E98: 1.018622685 | F98: 106000000000 | G98: 6.537735849e-12 | H98: 3.522626263e+11 | I98: 2822801561 | J98: 2822.801561 | K98: 2.822801561
B99: 0.509034 | C99: 0.510411 | D99: 0.074 | E99: 1.018608108 | F99: 106000000000 | G99: 6.537735849e-12 | H99: 3.522626263e+11 | I99: 2820612231 | J99: 2820.612231 | K99: 2.820612231
B100: 0.509015 | C100: 0.510556 | D100: 0.0828 | E100: 1.018611111 | F100: 106000000000 | G100: 6.537735849e-12 | H100: 3.522626263e+11 | I100: 2821063255 | J100: 2821.063255 | K100: 2.821063255
B101: 0.509029 | C101: 0.510541 | D101: 0.0806 | E101: 1.018759305 | F101: 106000000000 | G101: 6.537735849e-12 | H101: 3.522626263e+11 | I101: 2843318982 | J101: 2843.318982 | K101: 2.843318982
B102: 0.508978 | C102: 0.510712 | D102: 0.0925 | E102: 1.018745946 | F102: 106000000000 | G102: 6.537735849e-12 | H102: 3.522626263e+11 | I102: 2841312826 | J102: 2841.312826 | K102: 2.841312826
B103: 0.508896 | C103: 0.510902 | D103: 0.107 | E103: 1.018747664 | F103: 106000000000 | G103: 6.537735849e-12 | H103: 3.522626263e+11 | I103: 2841570760 | J103: 2841.57076 | K103: 2.84157076
B104: 0.508907 | C104: 0.51114 | D104: 0.1191 | E104: 1.01874895 | F104: 106000000000 | G104: 6.537735849e-12 | H104: 3.522626263e+11 | I104: 2841764015 | J104: 2841.764015 | K104: 2.841764015
B105: 0.508884 | C105: 0.510749 | D105: 0.0995 | E105: 1.018743719 | F105: 106000000000 | G105: 6.537735849e-12 | H105: 3.522626263e+11 | I105: 2840978343 | J105: 2840.978343 | K105: 2.840978343
B106: 0.508952 | C106: 0.511806 | D106: 0.1523 | E106: 1.01873933 | F106: 106000000000 | G106: 6.537735849e-12 | H106: 3.522626263e+11 | I106: 2840319343 | J106: 2840.319343 | K106: 2.840319343
B107: 0.508779 | C107: 0.510847 | D107: 0.1103 | E107: 1.018748867 | F107: 106000000000 | G107: 6.537735849e-12 | H107: 3.522626263e+11 | I107: 2841751441 | J107: 2841.751441 | K107: 2.841751441
B108: 0.508972 | C108: 0.511118 | D108: 0.1145 | E108: 1.018742358 | F108: 106000000000 | G108: 6.537735849e-12 | H108: 3.522626263e+11 | I108: 2840774033 | J108: 2840.774033 | K108: 2.840774033
B109: 0.508985 | C109: 0.510429 | D109: 0.0768 | E109: 1.018802083 | F109: 106000000000 | G109: 6.537735849e-12 | H109: 3.522626263e+11 | I109: 2849742780 | J109: 2849.74278 | K109: 2.84974278
B110: 0.508914 | C110: 0.510536 | D110: 0.0865 | E110: 1.018751445 | F110: 106000000000 | G110: 6.537735849e-12 | H110: 3.522626263e+11 | I110: 2842138633 | J110: 2842.138633 | K110: 2.842138633
B111: 0.50901 | C111: 0.511817 | D111: 0.1498 | E111: 1.018738318 | F111: 106000000000 | G111: 6.537735849e-12 | H111: 3.522626263e+11 | I111: 2840167292 | J111: 2840.167292 | K111: 2.840167292
B112: 0.508928 | C112: 0.511819 | D112: 0.1542 | E112: 1.018748379 | F112: 106000000000 | G112: 6.537735849e-12 | H112: 3.522626263e+11 | I112: 2841678158 | J112: 2841.678158 | K112: 2.841678158
I113: Average | J113: =AVERAGE(J61:J112) -> 2869.14941
I114: Maximum | J114: =MAX(J61:J113) -> 2953.522322
I115: Minimum | J115: =MIN(J61:J114) -> 2630.59914
I116: Std Deviation | J116: =STDEV(J82:J112) -> 38.64162981
H120: Age | J120: Age | L120: Age
B121: 206Pb/204Pb | C121: 207Pb/204Pb | D121: 208Pb/204Pb | E121: 238U/204Pb | F121: 232Th/204Pb | G121: 207Pb/206Pb | H121: 207Pb/206Pb | I121: 208Pb/232Th | J121: 208Pb/232Th | K121: 206Pb/238U | L121: 206Pb/238U
A122: 95LH1 | B122: 15.239 | C122: 15.175 | D122: 37.173 | E122: 1.4 | F122: 13.8 | G122: =(C122/B122) -> 0.9958002494 | H122: =[1]!AgePb76(G122) -> 5231.457942 | I122: =(D122/F122) -> 2.693695652 | J122: =[1]!AgePb8Th2(I122) -> 26409.85323 | K122: =(B122/E122) -> 10.885 | L122: =[1]!AgePb6U8(K122) -> 15956.66141
A123: 95LH2 | B123: 16.133 | C123: 15.366 | D123: 50.373 | E123: 4.3 | F123: 128.5 | G123: =(C123/B123) -> 0.9524576954 | H123: =[1]!AgePb76(G123) -> 5168.831647 | I123: =(D123/F123) -> 0.3920077821 | J123: =[1]!AgePb8Th2(I123) -> 6685.136988 | K123: =(B123/E123) -> 3.751860465 | L123: =[1]!AgePb6U8(K123) -> 10046.96998
A124: 95LH3 | B124: 16.185 | C124: 15.377 | D124: 41.289 | E124: 4.4 | F124: 58.5 | G124: 0.950077232 | H124: =[1]!AgePb76(G124) -> 5165.305192 | I124: 0.7057948718 | J124: =[1]!AgePb8Th2(I124) -> 10793.96064 | K124: 3.678409091 | L124: =[1]!AgePb6U8(K124) -> 9946.54707
A125: 95LH4 | B125: 14.544 | C125: 15.066 | D125: 35.177 | E125: 0.9 | F125: 7.3 | G125: 1.035891089 | H125: =[1]!AgePb76(G125) -> 5286.871768 | I125: 4.818767123 | J125: =[1]!AgePb8Th2(I125) -> 35595.52107 | K125: 16.16 | L125: =[1]!AgePb6U8(K125) -> 18324.45508
A126: 95PRP1 | B126: 19.687 | C126: 16.032 | D126: 37.381 | E126: 5.2 | F126: 14 | G126: 0.8143444913 | H126: =[1]!AgePb76(G126) -> 4947.033579 | I126: 2.670071429 | J126: =[1]!AgePb8Th2(I126) -> 26280.16422 | K126: 3.785961538 | L126: =[1]!AgePb6U8(K126) -> 10093.06658
A127: 96LH1 | B127: 20.956 | C127: 16.302 | D127: 43.527 | E127: 8.2 | F127: 48.3 | G127: 0.7779156328 | H127: =[1]!AgePb76(G127) -> 4881.830684 | I127: 0.9011801242 | J127: =[1]!AgePb8Th2(I127) -> 12985.84763 | K127: 2.555609756 | L127: =[1]!AgePb6U8(K127) -> 8177.447666
A128: 96LH3 | B128: 16.464 | C128: 15.414 | D128: 43.176 | E128: 5.3 | F128: 80 | G128: 0.9362244898 | H128: =[1]!AgePb76(G128) -> 5144.596118 | I128: 0.5397 | J128: =[1]!AgePb8Th2(I128) -> 8723.346988 | K128: 3.106415094 | L128: =[1]!AgePb6U8(K128) -> 9105.884984
A129: 96PRP1 | B129: 18.22 | C129: 15.775 | D129: 37.173 | E129: 4.7 | F129: 15.9 | G129: 0.8658068057 | H129: =[1]!AgePb76(G129) -> 5034.042652 | I129: 2.337924528 | J129: =[1]!AgePb8Th2(I129) -> 24362.79364 | K129: 3.876595745 | L129: =[1]!AgePb6U8(K129) -> 10214.00408
A130: 9 7B-NE1 | B130: 15.799 | C130: 15.393 | D130: 36.873 | E130: 2.6 | F130: 17.2 | G130: 0.974302171 | H130: =[1]!AgePb76(G130) -> 5200.76345 | I130: 2.14377907 | J130: =[1]!AgePb8Th2(I130) -> 23151.60387 | K130: 6.076538462 | L130: =[1]!AgePb6U8(K130) -> 12614.24574
A131: 97B39E2 | B131: 18.087 | C131: 15.797 | D131: 40.256 | E131: 3.8 | F131: 24.9 | G131: 0.8733897274 | H131: =[1]!AgePb76(G131) -> 5046.397438 | I131: 1.616706827 | J131: =[1]!AgePb8Th2(I131) -> 19442.47784 | K131: 4.759736842 | L131: =[1]!AgePb6U8(K131) -> 11286.97364
A132: 9 7B'\E3 | B132: 18.603 | C132: 16.033 | D132: 42.433 | E132: 2.9 | F132: 22.2 | G132: 0.8618502392 | H132: =[1]!AgePb76(G132) -> 5027.550576 | I132: 1.911396396 | J132: =[1]!AgePb8Th2(I132) -> 21599.45078 | K132: 6.414827586 | L132: =[1]!AgePb6U8(K132) -> 12915.27299
A133: 97BYE5 | B133: 15.641 | C133: 15.397 | D133: 35.962 | E133: 1.2 | F133: 6.2 | G133: 0.9843999744 | H133: =[1]!AgePb76(G133) -> 5215.269139 | I133: 5.800322581 | J133: =[1]!AgePb8Th2(I133) -> 38746.23647 | K133: 13.03416667 | L133: =[1]!AgePb6U8(K133) -> 17028.16975
A134: 97BYE6 | B134: 17.663 | C134: 15.781 | D134: 44.585 | E134: 3.1 | F134: 36.5 | G134: 0.8934495839 | H134: =[1]!AgePb76(G134) -> 5078.53978 | I134: 1.221506849 | J134: =[1]!AgePb8Th2(I134) -> 16133.11221 | K134: 5.697741935 | L134: =[1]!AgePb6U8(K134) -> 12259.59997
A135: 97BNE7 | B135: 15.718 | C135: 15.374 | D135: 45.763 | E135: 2.5 | F135: 65.4 | G135: 0.9781142639 | H135: =[1]!AgePb76(G135) -> 5206.258198 | I135: 0.6997400612 | J135: =[1]!AgePb8Th2(I135) -> 10722.08861 | K135: 6.2872 | L135: =[1]!AgePb6U8(K135) -> 12803.34817
A136: 96BH1 | B136: 17.08 | C136: 15.556 | D136: 46.027 | E136: 6.4 | F136: 101.1 | G136: 0.9107728337 | H136: =[1]!AgePb76(G136) -> 5105.687303 | I136: 0.4552621167 | J136: =[1]!AgePb8Th2(I136) -> 7583.345798 | K136: 2.66875 | L136: =[1]!AgePb6U8(K136) -> 8379.377951
A137: 96BH2 | B137: 26.125 | C137: 17.44 | D137: 61.03 | E137: 10.4 | F137: 97.7 | G137: 0.6675598086 | H137: =[1]!AgePb76(G137) -> 4662.421161 | I137: 0.624667349 | J137: =[1]!AgePb8Th2(I137) -> 9809.056827 | K137: 2.512019231 | L137: =[1]!AgePb6U8(K137) -> 8097.928454
A138: 96BH3 | B138: 15.853 | C138: 15.323 | D138: 36.443 | E138: 3.5 | F138: 20 | G138: 0.966567842 | H138: =[1]!AgePb76(G138) -> 5189.544976 | I138: 1.82215 | J138: =[1]!AgePb8Th2(I138) -> 20970.16687 | K138: 4.529428571 | L138: =[1]!AgePb6U8(K138) -> 11023.91283
A139: 96BH4 | B139: 19.321 | C139: 16.008 | D139: 42.365 | E139: 9.2 | F139: 60.9 | G139: 0.8285285441 | H139: =[1]!AgePb76(G139) -> 4971.585927 | I139: 0.6956486043 | J139: =[1]!AgePb8Th2(I139) -> 10673.37696 | K139: 2.100108696 | L139: =[1]!AgePb6U8(K139) -> 7293.712645
A140: 96BH5 | B140: 16.346 | C140: 15.406 | D140: 41.916 | E140: 2.5 | F140: 34.1 | G140: 0.9424935764 | H140: =[1]!AgePb76(G140) -> 5154.007964 | I140: 1.229208211 | J140: =[1]!AgePb8Th2(I140) -> 16203.06135 | K140: 6.5384 | L140: =[1]!AgePb6U8(K140) -> 13021.82084
A141: 96BH6 | B141: 15.049 | C141: 15.184 | D141: 41.745 | G141: 1.008970696 | H141: =[1]!AgePb76(G141) -> 5249.918293 | I141: 0 | K141: 0
A142: 96BH7 | B142: 17.03 | C142: 15.577 | D142: 35.498 | E142: 5.8 | F142: 13.9 | G142: 0.9146799765 | H142: =[1]!AgePb76(G142) -> 5111.734594 | I142: 2.55381295 | J142: =[1]!AgePb8Th2(I142) -> 25629.53203 | K142: 2.936206897 | L142: =[1]!AgePb6U8(K142) -> 8832.989802
A143: 96BH8 | B143: 14.647 | C143: 15.046 | D143: 41.678 | E143: 2.3 | F143: 86.8 | G143: 1.027241073 | H143: =[1]!AgePb76(G143) -> 5275.109646 | I143: 0.4801612903 | J143: =[1]!AgePb8Th2(I143) -> 7926.246827 | K143: 6.36826087 | L143: =[1]!AgePb6U8(K143) -> 12874.66046
A144: 96BH9 | B144: 14.409 | C144: 14.998 | D144: 36.174 | E144: 0.8 | F144: 13.5 | G144: 1.04087723 | H144: =[1]!AgePb76(G144) -> 5293.604792 | I144: 2.679555556 | J144: =[1]!AgePb8Th2(I144) -> 26332.32889 | K144: 18.01125 | L144: =[1]!AgePb6U8(K144) -> 18984.88902
A145: 9 7BH2 | B145: 14.573 | C145: 15.028 | D145: 42.414 | E145: 1.7 | F145: 75.6 | G145: 1.031222123 | H145: =[1]!AgePb76(G145) -> 5280.53594 | I145: 0.561031746 | J145: =[1]!AgePb8Th2(I145) -> 9001.454842 | K145: 8.572352941 | L145: =[1]!AgePb6U8(K145) -> 14561.66989
A146: 9713113 | B146: 15.953 | C146: 15.287 | D146: 52.595 | E146: 3.8 | F146: 135 | G146: 0.9582523663 | H146: =[1]!AgePb76(G146) -> 5177.377116 | I146: 0.3895925926 | J146: =[1]!AgePb8Th2(I146) -> 6650.0375 | K146: 4.198157895 | L146: =[1]!AgePb6U8(K146) -> 10625.65229
A147: 97BH5 | B147: 21.711 | C147: 16.553 | D147: 46.541 | E147: 9.7 | F147: 66.5 | G147: 0.7624245774 | H147: =[1]!AgePb76(G147) -> 4853.11197 | I147: 0.6998646617 | J147: =[1]!AgePb8Th2(I147) -> 10723.57023 | K147: 2.238247423 | L147: =[1]!AgePb6U8(K147) -> 7574.744654
A148: 9713116 | B148: 14.513 | C148: 15.02 | D148: 41.073 | E148: 1.2 | F148: 49.6 | G148: 1.034934197 | H148: =[1]!AgePb76(G148) -> 5285.575717 | I148: 0.8280846774 | J148: =[1]!AgePb8Th2(I148) -> 12193.40666 | K148: 12.09416667 | L148: =[1]!AgePb6U8(K148) -> 16581.25279
A149: 9-B\E4 | B149: 15.849 | C149: 15.487 | D149: 34.889 | E149: 2.5 | F149: 6.3 | G149: 0.9771594422 | H149: =[1]!AgePb76(G149) -> 5204.884047 | I149: 5.537936508 | J149: =[1]!AgePb8Th2(I149) -> 37950.91656 | K149: 6.3396 | L149: =[1]!AgePb6U8(K149) -> 12849.53647
G150: Average | H150: =AVERAGE(H122:H149) -> 5123.208843 | J150: =AVERAGE(J122:J149) -> 17899.18872 | L150: =AVERAGE(L122:L149) -> 11906.4739
G151: Maximum | H151: =MAX(H122:H150) -> 5293.604792 | J151: =MAX(J122:J150) -> 38746.23647 | L151: =MAX(L122:L150) -> 18984.88902
G152: Minimum | H152: =MIN(H122:H151) -> 4662.421161 | J152: =MIN(J122:J151) -> 6650.0375 | L152: =MIN(L122:L151) -> 7293.712645
G153: Std Deviation | H153: =STDEV(H120:H149) -> 151.7109317 | J153: =STDEV(J120:J149) -> 9753.954585 | L153: =STDEV(L120:L149) -> 3297.957281

Sheet Rb-Sr _08
A1: Rubidium | B1: TABLE 1. | K1: Rubidium_003.pdf
A2: Strontium | B2: Initial | C2: Today | D2: Today | E2: The Ratio | F2: Half | G2: Decay | H2: 2.303/Delta | I2: Age | J2: Age | K2: Age | L2: Model Age | M2: Model Age | N2: Model Age
A3: Dating | B3: 87Sr/86Sr | C3: 87Sr/86Sr | D3: 87Rb/86Sr | E3: Plus One | F3: Life | G3: Constant | H3: Constant | I3: Years | J3: Million Years | K3: Billion Years | L3: Million Years | M3: % Difference | N3: Difference
B4: 0.69934 | C4: 0.6994 | D4: 0.00064 | E4: =1+((C4-B4)/D4) -> 1.09375 | F4: 48800000000 | G4: =(0.693/F4) -> 1.420081967e-11 | H4: =(2.303/G4) -> 1.621737374e+11 | I4: =(LOG(E4))*(H4) -> 6311488220 | J4: =(I4/1000000) -> 6311.48822 | K4: =(J4/1000) -> 6.31148822 | L4: 27210.66048
B5: 0.69934 | C5: 0.70349 | D5: 0.0088 | E5: 1.471590909 | F5: 48800000000 | G5: 1.420081967e-11 | H5: 1.621737374e+11 | I5: 2.721066048e+10 | J5: 27210.66048 | K5: 27.21066048 | L5: 6311.48822
B6: 0.69934 | C6: 0.70793 | D6: 0.1826 | E6: 1.047042716 | F6: 48800000000 | G6: 1.420081967e-11 | H6: 1.621737374e+11 | I6: 3237701363 | J6: 3237.701363 | K6: 3.237701363 | L6: 3346.665672
B7: 0.69934 | C7: 0.69935 | D7: 0.00193 | E7: 1.005181347 | F7: 48800000000 | G7: 1.420081967e-11 | H7: 1.621737374e+11 | I7: 363986129.2 | J7: 363.9861292 | K7: 0.3639861292 | L7: 3320.100783
B8: 0.69934 | C8: 0.70473 | D8: 0.1135 | E8: 1.047488987 | F8: 48800000000 | G8: 1.420081967e-11 | H8: 1.621737374e+11 | I8: 3267714130 | J8: 3267.71413 | K8: 3.26771413 | L8: 3282.838654
B9: 0.69934 | C9: 0.70594 | D9: 0.1431 | E9: 1.046121593 | F9: 48800000000 | G9: 1.420081967e-11 | H9: 1.621737374e+11 | I9: 3175713141 | J9: 3175.713141 | K9: 3.175713141 | L9: 3267.71413
B10: 0.69934 | C10: 0.70608 | D10: 0.1431 | E10: 1.04709993 | F10: 48800000000 | G10: 1.420081967e-11 | H10: 1.621737374e+11 | I10: 3241549844 | J10: 3241.549844 | K10: 3.241549844 | L10: 3264.773659
B11: 0.69934 | C11: 0.69931 | D11: 0.0016 | E11: =1+((C11-B11)/D11) -> 0.98125 | F11: 48800000000 | G11: =(0.693/F11) -> 1.420081967e-11 | H11: =(2.303/G11) -> 1.621737374e+11 | I11: =(LOG(E11))*(H11) -> -1333121679 | J11: =(I11/1000000) -> -1333.121679 | K11: =(J11/1000) -> -1.333121679 | L11: 3249.649975
B12: 0.69934 | C12: 0.70748 | D12: 0.1706 | E12: 1.047713951 | F12: 48800000000 | G12: 1.420081967e-11 | H12: 1.621737374e+11 | I12: 3282838654 | J12: 3282.838654 | K12: 3.282838654 | L12: 3241.549844
B13: 0.69934 | C13: 0.69935 | D13: 0.00148 | E13: 1.006756757 | F13: 48800000000 | G13: 1.420081967e-11 | H13: 1.621737374e+11 | I13: 474285693 | J13: 474.285693 | K13: 0.474285693 | L13: 3237.701363
B14: 0.69934 | C14: 0.70639 | D14: 0.1493 | E14: 1.047220362 | F14: 48800000000 | G14: 1.420081967e-11 | H14: 1.621737374e+11 | I14: 3249649975 | J14: 3249.649975 | K14: 3.249649975 | L14: 3175.713141
B15: 0.69934 | C15: 0.70048 | D15: 0.02486 | E15: 1.045856798 | F15: 48800000000 | G15: 1.420081967e-11 | H15: 1.621737374e+11 | I15: 3157883287 | J15: 3157.883287 | K15: 3.157883287 | L15: 3157.883287
B16: 0.69934 | C16: 0.70064 | D16: 0.0274 | E16: 1.047445255 | F16: 48800000000 | G16: 1.420081967e-11 | H16: 1.621737374e+11 | I16: 3264773659 | J16: 3264.773659 | K16: 3.264773659 | L16: 3085.069492
B17: 0.69934 | C17: 0.69931 | D17: 0.00057 | E17: 0.9473684211 | F17: 48800000000 | G17: 1.420081967e-11 | H17: 1.621737374e+11 | I17: -3808017072 | J17: -3808.017072 | K17: -3.808017072 | L17: 3049.907631
B18: 0.69934 | C18: 0.69934 | D18: 0.0007 | E18: 1 | F18: 48800000000 | G18: 1.420081967e-11 | H18: 1.621737374e+11 | I18: 0 | J18: 0 | K18: 0 | L18: 474.285693
B19: 0.69934 | C19: 0.69932 | D19: 0.0005 | E19: 0.96 | F19: 48800000000 | G19: 1.420081967e-11 | H19: 1.621737374e+11 | I19: -2875140397 | J19: -2875.140397 | K19: -2.875140397 | L19: 363.9861292
B20: 0.69934 | C20: 0.69933 | D20: 0.00066 | E20: 0.9848484848 | F20: 48800000000 | G20: 1.420081967e-11 | H20: 1.621737374e+11 | I20: -1075305761 | J20: -1075.305761 | K20: -1.075305761 | L20: 0
B21: 0.69934 | C21: 0.69955 | D21: 0.00469 | E21: 1.044776119 | F21: 48800000000 | G21: 1.420081967e-11 | H21: 1.621737374e+11 | I21: 3085069492 | J21: 3085.069492 | K21: 3.085069492 | L21: -1075.305761
B22: 0.69934 | C22: 0.70048 | D22: 0.02576 | E22: 1.044254658 | F22: 48800000000 | G22: 1.420081967e-11 | H22: 1.621737374e+11 | I22: 3049907631 | J22: 3049.907631 | K22: 3.049907631 | L22: -1333.121679
B23: 0.69934 | C23: 0.7038 | D23: 0.0924 | E23: 1.048268398 | F23: 48800000000 | G23: 1.420081967e-11 | H23: 1.621737374e+11 | I23: 3320100783 | J23: 3320.100783 | K23: 3.320100783 | L23: -2875.140397
B24: 0.69934 | C24: 0.70972 | D24: 0.2133 | E24: 1.048663854 | F24: 48800000000 | G24: 1.420081967e-11 | H24: 1.621737374e+11 | I24: 3346665672 | J24: 3346.665672 | K24: 3.346665672 | L24: -3808.017072
I25: Average | J25: =AVERAGE(J4:J24) -> 3045.162059 | L25: =COUNT(L4:L24) -> 21
I26: Maximum | J26: =MAX(J4:J25) -> 27210.66048
I27: Minimum | J27: =MIN(J4:J26) -> -3808.017072
I28: Difference | J28: =(J26+ABS(J27)) -> 31018.67756

Sheet Rb-Sr _09
A1: Rubidium | B1: TABLE 1. | K1: Rubidium_004.pdf | M1: 25500 | N1: 4874
A2: Strontium | B2: Initial | C2: Today | D2: Today | E2: The Ratio | F2: Half | G2: Decay | H2: 2.303/Delta | I2: Age | J2: Age | K2: Age | M2: 14800 | N2: -10700
A3: Dating | B3: 87Sr/86Sr | C3: 87Sr/86Sr | D3: 87Rb/86Sr | E3: Plus One | F3: Life | G3: Constant | H3: Constant | I3: Years | J3: Million Years | K3: Billion Years | M3: 14800 | N3: -10700
A4: TABLE 1 | B4: 0.69897 | C4: 0.69947 | D4: 0.00769 | E4: =1+((C4-B4)/D4) -> 1.065019506 | F4: 48800000000 | G4: =(0.693/F4) -> 1.420081967e-11 | H4: =(2.303/G4) -> 1.621737374e+11 | I4: =(LOG(E4))*(H4) -> 4436678068 | J4: =(I4/1000000) -> 4436.678068 | K4: =(J4/1000) -> 4.436678068 | M4: 8627 | N4: -9600
B5: 0.69897 | C5: 0.69962 | D5: 0.00948 | E5: 1.068565401 | F5: 48800000000 | G5: 1.420081967e-11 | H5: 1.621737374e+11 | I5: 4670783328 | J5: 4670.783328 | K5: 4.670783328 | M5: 5694 | N5: 103
B6: 0.69897 | C6: 0.69966 | D6: 0.00808 | E6: 1.08539604 | F6: 48800000000 | G6: 1.420081967e-11 | H6: 1.621737374e+11 | I6: 5771476686 | J6: 5771.476686 | K6: 5.771476686 | M6: 5694 | N6: 103
B7: 0.69897 | C7: 0.69996 | D7: 0.0135 | E7: 1.073333333 | F7: 48800000000 | G7: 1.420081967e-11 | H7: 1.621737374e+11 | I7: 4984347702 | J7: 4984.347702 | K7: 4.984347702 | M7: 5597 | N7: 277
B8: 0.69897 | C8: 0.69977 | D8: 0.01404 | E8: 1.056980057 | F8: 48800000000 | G8: 1.420081967e-11 | H8: 1.621737374e+11 | I8: 3903001792 | J8: 3903.001792 | K8: 3.903001792 | M8: 5591 | N8: 295
B9: 0.69897 | C9: 0.69972 | D9: 0.01376 | E9: 1.054505814 | F9: 48800000000 | G9: 1.420081967e-11 | H9: 1.621737374e+11 | I9: 3737938992 | J9: 3737.938992 | K9: 3.737938992 | M9: 5336 | N9: 296
M10: 5032 | N10: 376
M11: 5032 | N11: 377
A12: TABLE 2 | B12: 0.69897 | C12: 0.69916 | D12: 0.00457 | E12: =1+((C12-B12)/D12) -> 1.041575492 | F12: 48800000000 | G12: =(0.693/F12) -> 1.420081967e-11 | H12: =(2.303/G12) -> 1.621737374e+11 | I12: =(LOG(E12))*(H12) -> 2868975474 | J12: =(I12/1000000) -> 2868.975474 | K12: =(J12/1000) -> 2.868975474 | M12: 4922 | N12: 570
B13: 0.69897 | C13: 0.69914 | D13: 0.00488 | E13: 1.034836066 | F13: 48800000000 | G13: 1.420081967e-11 | H13: 1.621737374e+11 | I13: 2411775836 | J13: 2411.775836 | K13: 2.411775836 | M13: 4907 | N13: 865
B14: 0.69897 | C14: 0.69977 | D14: 0.01404 | E14: 1.056980057 | F14: 48800000000 | G14: 1.420081967e-11 | H14: 1.621737374e+11 | I14: 3903001792 | J14: 3903.001792 | K14: 3.903001792 | M14: 4903 | N14: 865
B15: 0.69897 | C15: 0.69972 | D15: 0.01376 | E15: 1.054505814 | F15: 48800000000 | G15: 1.420081967e-11 | H15: 1.621737374e+11 | I15: 3737938992 | J15: 3737.938992 | K15: 3.737938992 | M15: 4874 | N15: 1477
B16: 0.69897 | C16: 0.70084 | D16: 0.02043 | E16: 1.091532061 | F16: 48800000000 | G16: 1.420081967e-11 | H16: 1.621737374e+11 | I16: 6168520780 | J16: 6168.52078 | K16: 6.16852078 | M16: 4814 | N16: 1644
B17: 0.69897 | C17: 0.70082 | D17: 0.02044 | E17: 1.090508806 | F17: 48800000000 | G17: 1.420081967e-11 | H17: 1.621737374e+11 | I17: 6102464271 | J17: 6102.464271 | K17: 6.102464271 | M17: 4806 | N17: 1724
B18: 0.69897 | C18: 0.71362 | D18: 0.3047 | E18: 1.048080079 | F18: 48800000000 | G18: 1.420081967e-11 | H18: 1.621737374e+11 | I18: 3307446817 | J18: 3307.446817 | K18: 3.307446817 | M18: 4784 | N18: 1784
B19: 0.69897 | C19: 0.71094 | D19: 0.1835 | E19: 1.065231608 | F19: 48800000000 | G19: 1.420081967e-11 | H19: 1.621737374e+11 | I19: 4450703245 | J19: 4450.703245 | K19: 4.450703245 | M19: 4678 | N19: 1786
B20: 0.69897 | C20: 0.69978 | D20: 0.00815 | E20: 1.099386503 | F20: 48800000000 | G20: 1.420081967e-11 | H20: 1.621737374e+11 | I20: 6673514312 | J20: 6673.514312 | K20: 6.673514312 | M20: 4663 | N20: 1798
I21: Average | J21: =AVERAGE(J12:J20) -> 4402.704613 | K21: =AVERAGE(K12:K20) -> 4.402704613 | M21: 4646 | N21: 1851
I22: Maximum | J22: =MAX(J12:J21) -> 6673.514312 | K22: =MAX(K12:K21) -> 6.673514312 | M22: 4645 | N22: 2263
I23: Minimum | J23: =MIN(J12:J22) -> 2411.775836 | K23: =MIN(K12:K22) -> 2.411775836 | M23: 4645 | N23: 2953
I24: Difference | J24: =(J22-ABS(J23)) -> 4261.738476 | K24: =(K22+ABS(K23)) -> 9.085290148 | M24: 4536 | N24: 3088
M25: 4523 | N25: 3161
M26: 4522 | N26: 3215
M27: 4500 | N27: 3290
M28: 4421 | N28: 3380
M29: 4167 | N29: 3390
M30: 4160 | N30: 3396
A31: 206Pb/238U | B31: 207Pb/235U | C31: 207Pb/206Pb | D31: 208Pb/232Th | M31: 4136 | N31: 3419
A32: 4874 | B32: 4663 | C32: 4573 | D32: 4678 | M32: 4061 | N32: 3549
A33: 4814 | B33: 4645 | C33: 4572 | M33: 4014 | N33: 3597
A34: 5694 | B34: 4806 | C34: 4484 | D34: 14800 | M34: 3955 | N34: 3666
A35: 5597 | B35: 4784 | C35: 4454 | M35: 3666 | N35: 3955
A36: 3380 | B36: 4421 | C36: 4963 | D36: -9600 | M36: 3597 | N36: 4014
A37: 5336 | B37: 5032 | C37: 4912 | M37: 3549 | N37: 4061
A38: 296 | B38: 1724 | C38: 4709 | D38: 295 | M38: 3419 | N38: 4136
A39: 277 | B39: 1644 | C39: 4664 | M39: 3396 | N39: 4160
A40: 103 | B40: 865 | C40: 4515 | D40: 570 | M40: 3390 | N40: 4167
A41: 377 | B41: 1786 | C41: 4454 | D41: 4922 | M41: 3380 | N41: 4421
A42: 376 | B42: 1784 | C42: 4457 | M42: 3290 | N42: 4500
A43: 2953 | B43: 3955 | C43: 4510 | D43: 4160 | M43: 3215 | N43: 4522
A44: 3290 | B44: 4061 | C44: 4468 | D44: -10700 | M44: 3161 | N44: 4523
A45: 3215 | B45: 4014 | C45: 4440 | M45: 3088 | N45: 4536
A46: 4903 | B46: 4645 | C46: 4535 | D46: 3597 | M46: 2953 | N46: 4645
A47: 4907 | B47: 4646 | C47: 4534 | M47: 2263 | N47: 4645
A48: 4522 | B48: 4536 | C48: 4542 | D48: 3549 | M48: 1851 | N48: 4646
A49: 4500 | B49: 4523 | C49: 4534 | M49: 1798 | N49: 4663
A50: 1851 | B50: 3419 | C50: 4534 | D50: 8627 | M50: 1786 | N50: 4678
A51: 1477 | B51: 3161 | C51: 4519 | M51: 1784 | N51: 4784
A52: 1798 | B52: 3396 | C52: 4555 | M52: 1724 | N52: 4806
A53: 3390 | B53: 4136 | C53: 4520 | F53: Summary | G53: 206Pb/238U | H53: 207Pb/235U | I53: 207Pb/206Pb | J53: 208Pb/232Th | M53: 1644 | N53: 4814
A54: =AVERAGE(A32:A53) -> 3087.727273 | B54: =AVERAGE(B32:B53) -> 3665.727273 | C54: =AVERAGE(C32:C53) -> 4565.818182 | D54: =AVERAGE(D32:D53) -> 2263.454545 | F54: Average | G54: 3087.727273 | H54: 3665.727273 | I54: 4565.818182 | J54: 2263.454545 | M54: 1477 | N54: 4903
A55: =MAX(A32:A54) -> 5694 | B55: =MAX(B32:B54) -> 5032 | C55: =MAX(C32:C54) -> 4963 | D55: =MAX(D32:D54) -> 14800 | F55: Maximum | G55: 5694 | H55: 5032 | I55: 4963 | J55: 14800 | M55: 865 | N55: 4907
A56: =MIN(A32:A55) -> 103 | B56: =MIN(B32:B55) -> 865 | C56: =MIN(C32:C55) -> 4440 | D56: =MIN(D32:D55) -> -10700 | F56: Minimum | G56: 103 | H56: 865 | I56: 4440 | J56: -10700 | M56: 865 | N56: 4922
A57: =(A55-A56) -> 5591 | B57: =(B55-B56) -> 4167 | C57: =(C55-C56) -> 523 | D57: =(D55-D56) -> 25500 | F57: Difference | G57: 5591 | H57: 4167 | I57: 523 | J57: 25500 | M57: 570 | N57: 5032
M58: 377 | N58: 5032
M59: 376 | N59: 5336
M60: 296 | N60: 5591
M61: 295 | N61: 5597
M62: 277 | N62: 5694
M63: 103 | N63: 5694
M64: 103 | N64: 8627
M65: -9600 | N65: 14800
M66: -10700 | N66: 14800
M67: -10700 | N67: 25500

Sheet Rb-Sr _10
A1: Rubidium | B1: TABLE 1. | K1: Rubidium_006.pdf
A2: Strontium | B2: Initial | C2: Today | D2: Today | E2: The Ratio | F2: Half | G2: Decay | H2: 2.303/Delta | I2: Age | J2: Age | K2: Age | L2: Model Age | M2: Model Age | N2: Model Age
A3: Dating | B3: 87Sr/86Sr | C3: 87Sr/86Sr | D3: 87Rb/86Sr | E3: Plus One | F3: Life | G3: Constant | H3: Constant | I3: Years | J3: Million Years | K3: Billion Years | L3: Million Years | M3: % Difference | N3: Difference
A4: TABLE 3 | B4: 0.7033 | C4: 0.70348 | D4: 0.00552 | E4: =1+((C4-B4)/D4) -> 1.032608696 | F4: 48800000000 | G4: =(0.693/F4) -> 1.420081967e-11 | H4: =(2.303/G4) -> 1.621737374e+11 | I4: =(LOG(E4))*(H4) -> 2260017192 | J4: =(I4/1000000) -> 2260.017192 | K4: =(J4/1000) -> 2.260017192 | L4: Quaternary | N4: 2260.017192
B5: 0.7035 | C5: 0.70365 | D5: 0.095 | E5: 1.001578947 | F5: 48800000000 | G5: 1.420081967e-11 | H5: 1.621737374e+11 | I5: 111119390.8 | J5: 111.1193908 | K5: 0.1111193908 | L5: Quaternary | N5: 640.1491133
B6: 0.7035 | C6: 0.70375 | D6: 0.11 | E6: 1.002272727 | F6: 48800000000 | G6: 1.420081967e-11 | H6: 1.621737374e+11 | I6: 159889193 | J6: 159.889193 | K6: 0.159889193 | L6: Quaternary | N6: 451.3226076
B7: 0.7035 | C7: 0.70391 | D7: 0.1 | E7: 1.0041 | F7: 48800000000 | G7: 1.420081967e-11 | H7: 1.621737374e+11 | I7: 288177392.1 | J7: 288.1773921 | K7: 0.2881773921 | L7: Quaternary | N7: 414.5758626
B8: 0.7035 | C8: 0.70354 | D8: 0.23 | E8: 1.000173913 | F8: 48800000000 | G8: 1.420081967e-11 | H8: 1.621737374e+11 | I8: 12247832.26 | J8: 12.24783226 | K8: 0.01224783226 | L8: Quaternary | N8: 382.1895266
B9: 0.7035 | C9: 0.70365 | D9: 0.18 | E9: =1+((C9-B9)/D9) -> 1.000833333 | F9: 48800000000 | G9: =(0.693/F9) -> 1.420081967e-11 | H9: =(2.303/G9) -> 1.621737374e+11 | I9: =(LOG(E9))*(H9) -> 58668191.02 | J9: =(I9/1000000) -> 58.66819102 | K9: =(J9/1000) -> 0.05866819102 | L9: Quaternary | N9: 368.5091952
B10: 0.7035 | C10: 0.7036 | D10: 0.071 | E10: 1.001408451 | F10: 48800000000 | G10: 1.420081967e-11 | H10: 1.621737374e+11 | I10: 99129023.05 | J10: 99.12902305 | K10: 0.09912902305 | L10: Quaternary | N10: 345.9265058
B11: 0.7035 | C11: 0.70382 | D11: 0.061 | E11: =1+((C11-B11)/D11) -> 1.005245902 | F11: 48800000000 | G11: =(0.693/F11) -> 1.420081967e-11 | H11: =(2.303/G11) -> 1.621737374e+11 | I11: =(LOG(E11))*(H11) -> 368509195.2 | J11: =(I11/1000000) -> 368.5091952 | K11: =(J11/1000) -> 0.3685091952 | L11: Quaternary | N11: 342.7313783
B12: 0.7035 | C12: 0.7038 | D12: 0.095 | E12: 1.003157895 | F12: 48800000000 | G12: 1.420081967e-11 | H12: 1.621737374e+11 | I12: 222063744.4 | J12: 222.0637444 | K12: 0.2220637444 | L12: Quaternary | N12: 288.1773921
B13: 0.7035 | C13: 0.70371 | D13: 0.26 | E13: =1+((C13-B13)/D13) -> 1.000807692 | F13: 48800000000 | G13: =(0.693/F13) -> 1.420081967e-11 | H13: =(2.303/G13) -> 1.621737374e+11 | I13: =(LOG(E13))*(H13) -> 56863744.43 | J13: =(I13/1000000) -> 56.86374443 | K13: =(J13/1000) -> 0.05686374443 | L13: Quaternary | N13: 274.0283695
B14: 0.7035 | C14: 0.70368 | D14: 0.14 | E14: 1.001285714 | F14: 48800000000 | G14: 1.420081967e-11 | H14: 1.621737374e+11 | I14: 90496183.95 | J14: 90.49618395 | K14: 0.09049618395 | L14: Quaternary | N14: 222.0637444
B15: 0.7035 | C15: 0.70375 | D15: 0.14 | E15: 1.001785714 | F15: 48800000000 | G15: 1.420081967e-11 | H15: 1.621737374e+11 | I15: 125657766.2 | J15: 125.6577662 | K15: 0.1256577662 | L15: Quaternary | N15: 207.3760268
B16: 0.7035 | C16: 0.70381 | D16: 0.11 | E16: 1.002818182 | F16: 48800000000 | G16: 1.420081967e-11 | H16: 1.621737374e+11 | I16: 198208649.4 | J16: 198.2086494 | K16: 0.1982086494 | L16: Quaternary | N16: 198.2086494
B17: 0.7035 | C17: 0.70371 | D17: 0.57 | E17: 1.000368421 | F17: 48800000000 | G17: 1.420081967e-11 | H17: 1.621737374e+11 | I17: 25943543.05 | J17: 25.94354305 | K17: 0.02594354305 | L17: Quaternary | N17: 193.4198574
B18: 0.7035 | C18: 0.70373 | D18: 0.71 | E18: 1.000323944 | F18: 48800000000 | G18: 1.420081967e-11 | H18: 1.621737374e+11 | I18: 22812032.94 | J18: 22.81203294 | K18: 0.02281203294 | L18: Quaternary | N18: 192.6982303
B19: 0.7035 | C19: 0.7035315 | D19: 0.15 | E19: 1.00021 | F19: 48800000000 | G19: 1.420081967e-11 | H19: 1.621737374e+11 | I19: 14788990.65 | J19: 14.78899065 | K19: 0.01478899065 | L19: Quaternary | N19: 175.8581669
B20: 0.7035 | C20: 0.70366 | D20: 0.12 | E20: 1.001333333 | F20: 48800000000 | G20: 1.420081967e-11 | H20: 1.621737374e+11 | I20: 93845662.45 | J20: 93.84566245 | K20: 0.09384566245 | L20: Quaternary | N20: 159.889193
B21: 0.7035 | C21: 0.70359 | D21: 0.014 | E21: 1.006428571 | F21: 48800000000 | G21: 1.420081967e-11 | H21: 1.621737374e+11 | I21: 451322607.6 | J21: 451.3226076 | K21: 0.4513226076 | L21: Quaternary | N21: 125.6577662
B22: 0.7035 | C22: 0.7036 | D22: 0.09 | E22: =1+((C22-B22)/D22) -> 1.001111111 | F22: 48800000000 | G22: =(0.693/F22) -> 1.420081967e-11 | H22: =(2.303/G22) -> 1.621737374e+11 | I22: =(LOG(E22))*(H22) -> 78213399.77 | J22: =(I22/1000000) -> 78.21339977 | K22: =(J22/1000) -> 0.07821339977 | L22: Quaternary | N22: 111.1193908
B23: 0.7035 | C23: 0.7035517 | D23: 0.07 | E23: 1.000738571 | F23: 48800000000 | G23: 1.420081967e-11 | H23: 1.621737374e+11 | I23: 51999241.69 | J23: 51.99924169 | K23: 0.05199924169 | L23: Quaternary | M23: 5 | N23: 107.6359547
B24: 0.7035 | C24: 0.7037 | D24: 0.073 | E24: 1.002739726 | F24: 48800000000 | G24: 1.420081967e-11 | H24: 1.621737374e+11 | I24: 192698230.3 | J24: 192.6982303 | K24: 0.1926982303 | L24: Quaternary | N24: 100.5441416
B25: 0.7035 | C25: 0.70373 | D25: 0.059 | E25: 1.003898305 | F25: 48800000000 | G25: 1.420081967e-11 | H25: 1.621737374e+11 | I25: 274028369.5 | J25: 274.0283695 | K25: 0.2740283695 | L25: Quaternary | N25: 99.12902305
B26: 0.7035 | C26: 0.7037 | D26: 0.041 | E26: 1.004878049 | F26: 48800000000 | G26: 1.420081967e-11 | H26: 1.621737374e+11 | I26: 342731378.3 | J26: 342.7313783 | K26: 0.3427313783 | L26: Quaternary | N26: 93.84566245
B27: 0.7035 | C27: 0.7040416 | D27: 0.11 | E27: 1.004923636 | F27: 48800000000 | G27: 1.420081967e-11 | H27: 1.621737374e+11 | I27: 345926505.8 | J27: 345.9265058 | K27: 0.3459265058 | L27: Quaternary | N27: 90.49618395
B28: 0.7035 | C28: 0.70361 | D28: 0.04 | E28: 1.00275 | F28: 48800000000 | G28: 1.420081967e-11 | H28: 1.621737374e+11 | I28: 193419857.4 | J28: 193.4198574 | K28: 0.1934198574 | L28: Quaternary | N28: 83.25644425
B29: 0.7035 | C29: 0.70392 | D29: 0.046 | E29: 1.009130435 | F29: 48800000000 | G29: 1.420081967e-11 | H29: 1.621737374e+11 | I29: 640149113.3 | J29: 640.1491133 | K29: 0.6401491133 | L29: Quaternary | N29: 78.21339977
B30: 0.7035 | C30: 0.70349 | D30: 0.076 | E30: 0.9998684211 | F30: 48800000000 | G30: 1.420081967e-11 | H30: 1.621737374e+11 | I30: -9267867.538 | J30: -9.267867538 | K30: -0.009267867538 | L30: Quaternary | N30: 59.57039698
B31: 0.7035 | C31: 0.70373 | D31: 0.078 | E31: 1.002948718 | F31: 48800000000 | G31: 1.420081967e-11 | H31: 1.621737374e+11 | I31: 207376026.8 | J31: 207.3760268 | K31: 0.2073760268 | L31: Quaternary | N31: 58.66819102
B32: 0.7035 | C32: 0.70399 | D32: 0.083 | E32: 1.005903614 | F32: 48800000000 | G32: 1.420081967e-11 | H32: 1.621737374e+11 | I32: 414575862.6 | J32: 414.5758626 | K32: 0.4145758626 | L32: Quaternary | N32: 56.86374443
B33: 0.7035 | C33: 0.70387 | D33: 0.068 | E33: 1.005441176 | F33: 48800000000 | G33: 1.420081967e-11 | H33: 1.621737374e+11 | I33: 382189526.6 | J33: 382.1895266 | K33: 0.3821895266 | L33: Quaternary | N33: 51.99924169
B34: 0.7035 | C34: 0.70335 | D34: 0.098 | E34: 0.9984693878 | F34: 48800000000 | G34: 1.420081967e-11 | H34: 1.621737374e+11 | I34: -107885381.2 | J34: -107.8853812 | K34: -0.1078853812 | L34: Quaternary | N34: 50.98341665
B35: 0.7035 | C35: 0.70335 | D35: 0.64 | E35: 0.999765625 | F35: 48800000000 | G35: 1.420081967e-11 | H35: 1.621737374e+11 | I35: -16509237.7 | J35: -16.5092377 | K35: -0.0165092377 | L35: Quaternary | N35: 32.00688955
B36: 0.7035 | C36: 0.703285 | D36: 0.15 | E36: 0.9985666667 | F36: 48800000000 | G36: 1.420081967e-11 | H36: 1.621737374e+11 | I36: -101023745.9 | J36: -101.0237459 | K36: -0.1010237459 | L36: Quaternary | N36: 25.94354305
B37: 0.7035 | C37: 0.70338 | D37: 0.18 | E37: 0.9993333333 | F37: 48800000000 | G37: 1.420081967e-11 | H37: 1.621737374e+11 | I37: -46969764.5 | J37: -46.9697645 | K37: -0.0469697645 | L37: Quaternary | N37: 22.81203294
B38: 0.7035 | C38: 0.70355 | D38: 0.11 | E38: 1.000454545 | F38: 48800000000 | G38: 1.420081967e-11 | H38: 1.621737374e+11 | I38: 32006889.55 | J38: 32.00688955 | K38: 0.03200688955 | L38: Quaternary | N38: 18.32901243
B39: 0.7035 | C39: 0.70341 | D39: 0.17 | E39: 0.9994705882 | F39: 48800000000 | G39: 1.420081967e-11 | H39: 1.621737374e+11 | I39: -37296957.9 | J39: -37.2969579 | K39: -0.0372969579 | L39: Quaternary | N39: 14.78899065
B40: 0.7035 | C40: 0.70361 | D40: 0.13 | E40: 1.000846154 | F40: 48800000000 | G40: 1.420081967e-11 | H40: 1.621737374e+11 | I40: 59570396.98 | J40: 59.57039698 | K40: 0.05957039698 | L40: Quaternary | N40: 12.24783226
B41: 0.7035 | C41: 0.70338 | D41: 0.3 | E41: 0.9996 | F41: 48800000000 | G41: 1.420081967e-11 | H41: 1.621737374e+11 | I41: -28178099.7 | J41: -28.1780997 | K41: -0.0281780997 | L41: Quaternary | N41: -9.267867538
B42: 0.7035 | C42: 0.70369 | D42: 0.73 | E42: 1.000260274 | F42: 48800000000 | G42: 1.420081967e-11 | H42: 1.621737374e+11 | I42: 18329012.43 | J42: 18.32901243 | K42: 0.01832901243 | L42: Quaternary | N42: -16.5092377
B43: 0.7035 | C43: 0.70392 | D43: 0.58 | E43: 1.000724138 | F43: 48800000000 | G43: 1.420081967e-11 | H43: 1.621737374e+11 | I43: 50983416.65 | J43: 50.98341665 | K43: 0.05098341665 | L43: Quaternary | N43: -28.1780997
B44: 0.7035 | C44: 0.70367 | D44: 0.068 | E44: 1.0025 | F44: 48800000000 | G44: 1.420081967e-11 | H44: 1.621737374e+11 | I44: 175858166.9 | J44: 175.8581669 | K44: 0.1758581669 | L44: Quaternary | N44: -37.2969579
B45: 0.7035 | C45: 0.70361 | D45: 0.093 | E45: 1.001182796 | F45: 48800000000 | G45: 1.420081967e-11 | H45: 1.621737374e+11 | I45: 83256444.25 | J45: 83.25644425 | K45: 0.08325644425 | L45: Quaternary | N45: -46.9697645
B46: 0.7035 | C46: 0.70376 | D46: 0.17 | E46: 1.001529412 | F46: 48800000000 | G46: 1.420081967e-11 | H46: 1.621737374e+11 | I46: 107635954.7 | J46: 107.6359547 | K46: 0.1076359547 | L46: Quaternary | N46: -101.0237459
B47: 0.7035 | C47: 0.7037 | D47: 0.14 | E47: 1.001428571 | F47: 48800000000 | G47: 1.420081967e-11 | H47: 1.621737374e+11 | I47: 100544141.6 | J47: 100.5441416 | K47: 0.1005441416 | L47: Quaternary | N47: -107.8853812
I48: Average | J48: =AVERAGE(J4:J47) -> 183.2754822 | K48: =AVERAGE(K4:K47) -> 0.1832754822
I49: Maximum | J49: =MAX(J4:J48) -> 2260.017192 | K49: =MAX(K4:K48) -> 2.260017192
I50: Minimum | J50: =MIN(J4:J49) -> -107.8853812 | K50: =MIN(K4:K49) -> -0.1078853812
I51: Difference | J51: =(J49+ABS(J50)) -> 2367.902573 | K51: =(K49+ABS(K50)) -> 2.367902573

Sheet Rb-Sr _11
A1: Rubidium | K1: Rubidium_007.pdf | Q1: -135140
A2: Strontium | B2: Initial | C2: Today | D2: Today | E2: The Ratio | F2: Half | G2: Decay | H2: 2.303/Delta | I2: Age | J2: Age | K2: Age | L2: Model Age | M2: Model Age | N2: Model Age | Q2: -127188
A3: Dating | B3: 87Sr/86Sr | C3: 87Sr/86Sr | D3: 87Rb/86Sr | E3: Plus One | F3: Life | G3: Constant | H3: Constant | I3: Years | J3: Million Years | K3: Billion Years | L3: Million Years | M3: % Difference | N3: Difference | Q3: -112295
A4: TABLE 3 | B4: 0.71014 | C4: 0.70228 | D4: 0.00055 | E4: =1+((C4-B4)/D4) -> -13.29090909 | F4: 48800000000 | G4: =(0.693/F4) -> 1.420081967e-11 | H4: =(2.303/G4) -> 1.621737374e+11 | I4: =(LOG(E4))*(H4) ->  | K4: =(J4/1000) -> 0 | Q4: -102498
B5: 0.71014 | C5: 0.70199 | D5: 0.00027 | E5: -29.18518519 | F5: 48800000000 | G5: 1.420081967e-11 | H5: 1.621737374e+11 | K5: 0 | Q5: -102193
B6: 0.71014 | C6: 0.70339 | D6: 0.104 | E6: 0.9350961538 | F6: 48800000000 | G6: 1.420081967e-11 | H6: 1.621737374e+11 | I6: -4726347502 | J6: =(I6/1000000) -> -4726.347502 | K6: -4.726347502 | Q6: -93280
B7: 0.71014 | C7: 0.703 | D7: 0.00243 | E7: -1.938271605 | F7: 48800000000 | G7: 1.420081967e-11 | H7: 1.621737374e+11 | K7: 0 | Q7: -75367
B8: 0.71014 | C8: 0.7032 | D8: 0.0546 | E8: 0.8728937729 | F8: 48800000000 | G8: 1.420081967e-11 | H8: 1.621737374e+11 | I8: -9574511173 | J8: -9574.511173 | K8: -9.574511173 | Q8: -75013
B9: 0.71014 | C9: 0.70314 | D9: 3e-05 | E9: -232.3333333 | F9: 48800000000 | G9: 1.420081967e-11 | H9: 1.621737374e+11 | K9: 0 | Q9: -51132
B10: 0.71014 | C10: 0.70311 | D10: 7.7e-05 | E10: -90.2987013 | F10: 48800000000 | G10: 1.420081967e-11 | H10: 1.621737374e+11 | K10: 0 | Q10: -50620
B11: 0.71014 | C11: 0.70232 | D11: 0.0016 | E11: -3.8875 | F11: 48800000000 | G11: 1.420081967e-11 | H11: 1.621737374e+11 | K11: 0 | Q11: -47871
B12: 0.71014 | C12: 0.7045 | D12: 0.0234 | E12: 0.758974359 | F12: 48800000000 | G12: 1.420081967e-11 | H12: 1.621737374e+11 | I12: -1.942401818e+10 | J12: -19424.01818 | K12: -19.42401818 | Q12: -43835
B13: 0.71014 | C13: 0.7031 | D13: 0.00382 | E13: -0.8429319372 | F13: 48800000000 | G13: 1.420081967e-11 | H13: 1.621737374e+11 | K13: 0 | Q13: -31536
B14: 0.71014 | C14: 0.70271 | D14: 0.00148 | E14: =1+((C14-B14)/D14) -> -4.02027027 | F14: 48800000000 | G14: =(0.693/F14) -> 1.420081967e-11 | H14: =(2.303/G14) -> 1.621737374e+11 | I14: =(LOG(E14))*(H14) ->  | K14: =(J14/1000) -> 0 | Q14: -31139
B15: 0.71014 | C15: 0.70321 | D15: 0.0192 | E15: 0.6390625 | F15: 48800000000 | G15: 1.420081967e-11 | H15: 1.621737374e+11 | I15: -3.153576428e+10 | J15: =(I15/1000000) -> -31535.76428 | K15: -31.53576428 | Q15: -30117
B16: 0.71014 | C16: 0.7027 | D16: 0.0062 | E16: -0.2 | F16: 48800000000 | G16: 1.420081967e-11 | H16: 1.621737374e+11 | K16: 0 | Q16: -27119
B17: 0.71014 | C17: 0.70303 | D17: 0.0329 | E17: 0.7838905775 | F17: 48800000000 | G17: 1.420081967e-11 | H17: 1.621737374e+11 | I17: -1.714898982e+10 | J17: -17148.98982 | K17: -17.14898982 | Q17: -22440
B18: 0.71014 | C18: 0.70304 | D18: 0.00213 | E18: =1+((C18-B18)/D18) -> -2.333333333 | F18: 48800000000 | G18: =(0.693/F18) -> 1.420081967e-11 | H18: =(2.303/G18) -> 1.621737374e+11 | I18: =(LOG(E18))*(H18) ->  | K18: =(J18/1000) -> 0 | Q18: -22425
B19: 0.71014 | C19: 0.70251 | D19: 0.00062 | E19: -11.30645161 | F19: 48800000000 | G19: 1.420081967e-11 | H19: 1.621737374e+11 | K19: 0 | Q19: -19424
B20: 0.71014 | C20: 0.70528 | D20: 0.156 | E20: 0.9688461538 | F20: 48800000000 | G20: 1.420081967e-11 | H20: 1.621737374e+11 | I20: -2229107288 | J20: =(I20/1000000) -> -2229.107288 | K20: -2.229107288 | Q20: -19296
B21: 0.71014 | C21: 0.70735 | D21: 0.00327 | E21: 0.1467889908 | F21: 48800000000 | G21: 1.420081967e-11 | H21: 1.621737374e+11 | I21: -1.35140432e+11 | J21: -135140.432 | K21: -135.140432 | Q21: -19115
B22: 0.71014 | C22: 0.70279 | D22: 0.0443 | E22: 0.8340857788 | F22: 48800000000 | G22: 1.420081967e-11 | H22: 1.621737374e+11 | I22: -1.277755257e+10 | J22: -12777.55257 | K22: -12.77755257 | Q22: -18170
B23: 0.71014 | C23: 0.70205 | D23: 0.0026 | E23: -2.111538462 | F23: 48800000000 | G23: 1.420081967e-11 | H23: 1.621737374e+11 | K23: 0 | Q23: -17149
B24: 0.71014 | C24: 0.70297 | D24: 0.00858 | E24: 0.1643356643 | F24: 48800000000 | G24: 1.420081967e-11 | H24: 1.621737374e+11 | I24: -1.271877011e+11 | J24: -127187.7011 | K24: -127.1877011 | Q24: -17149
B25: 0.71014 | C25: 0.70239 | D25: 0.0038 | E25: -1.039473684 | F25: 48800000000 | G25: 1.420081967e-11 | H25: 1.621737374e+11 | K25: 0 | Q25: -12778
B26: 0.71014 | C26: 0.70244 | D26: 0.00446 | E26: -0.7264573991 | F26: 48800000000 | G26: 1.420081967e-11 | H26: 1.621737374e+11 | K26: 0 | Q26: -12334
B27: 0.71014 | C27: 0.70256 | D27: 0.0099 | E27: 0.2343434343 | F27: 48800000000 | G27: 1.420081967e-11 | H27: 1.621737374e+11 | I27: -1.021933281e+11 | J27: -102193.3281 | K27: -102.1933281 | Q27: -12237
B28: 0.71014 | C28: 0.70333 | D28: 0.000184 | E28: -36.01086957 | F28: 48800000000 | G28: 1.420081967e-11 | H28: 1.621737374e+11 | K28: 0 | Q28: -11620
B29: 0.71014 | C29: 0.702 | D29: 0.000837 | E29: -8.72520908 | F29: 48800000000 | G29: 1.420081967e-11 | H29: 1.621737374e+11 | K29: 0 | Q29: -9799
B30: 0.71014 | C30: 0.70254 | D30: 0.00046 | E30: -15.52173913 | F30: 48800000000 | G30: 1.420081967e-11 | H30: 1.621737374e+11 | K30: 0 | Q30: -9575
B31: 0.71014 | C31: 0.70225 | D31: 0.0099 | E31: 0.203030303 | F31: 48800000000 | G31: 1.420081967e-11 | H31: 1.621737374e+11 | I31: -1.122954428e+11 | J31: -112295.4428 | K31: -112.2954428 | M31: Summary | N31: Table 2 | O31: Table 3 | Q31: -9237
I32: Average | J32: =AVERAGE(J4:J31) -> -52203.0177 | K32: =AVERAGE(K4:K31) -> -20.50832838 | M32: Average | N32: -52203.0177 | O32: -29099.20551 | Q32: -9176
I33: Maximum | J33: =MAX(J4:J32) -> -2229.107288 | K33: =MAX(K4:K32) -> 0 | M33: Maximum | N33: -2229.107288 | O33: -1257.878561 | Q33: -8807
I34: Minimum | J34: =MIN(J4:J33) -> -135140.432 | K34: =MIN(K4:K33) -> -135.140432 | M34: Minimum | N34: -135140.432 | O34: -102497.5668 | Q34: -7359
I35: Difference | J35: =(J33+ABS(J34)) -> 132911.3247 | K35: =(K33+ABS(K34)) -> 135.140432 | M35: Difference | N35: 132911.3247 | O35: 101239.6883 | Q35: -6157
Q36: -6117
Q37: -4726
A38: TABLE 2 | B38: 0.71014 | C38: 0.70265 | D38: 0.0114 | E38: =1+((C38-B38)/D38) -> 0.3429824561 | F38: 48800000000 | G38: =(0.693/F38) -> 1.420081967e-11 | H38: =(2.303/G38) -> 1.621737374e+11 | I38: =(LOG(E38))*(H38) -> -7.536669186e+10 | J38: =(I38/1000000) -> -75366.69186 | K38: =(J38/1000) -> -75.36669186 | Q38: -3194
B39: 0.71014 | C39: 0.70325 | D39: 0.0453 | E39: 0.8479028698 | F39: 48800000000 | G39: 1.420081967e-11 | H39: 1.621737374e+11 | I39: -1.162037992e+10 | J39: -11620.37992 | K39: -11.62037992 | Q39: -2229
B40: 0.71014 | C40: 0.70343 | D40: 0.013 | E40: 0.4838461538 | F40: 48800000000 | G40: 1.420081967e-11 | H40: 1.621737374e+11 | I40: -5.113219664e+10 | J40: -51132.19664 | K40: -51.13219664 | Q40: -1258
B41: 0.71014 | C41: 0.70413 | D41: 0.0492 | E41: 0.8778455285 | F41: 48800000000 | G41: 1.420081967e-11 | H41: 1.621737374e+11 | I41: -9176097983 | J41: -9176.097983 | K41: -9.176097983
B42: 0.71014 | C42: 0.70324 | D42: 0.0094 | E42: 0.2659574468 | F42: 48800000000 | G42: 1.420081967e-11 | H42: 1.621737374e+11 | I42: -9.32803625e+10 | J42: -93280.3625 | K42: -93.2803625
B43: 0.71014 | C43: 0.70313 | D43: 0.00408 | E43: -0.7181372549 | F43: 48800000000 | G43: 1.420081967e-11 | H43: 1.621737374e+11 | K43: 0
B44: 0.71014 | C44: 0.70486 | D44: 0.0103 | E44: 0.4873786408 | F44: 48800000000 | G44: 1.420081967e-11 | H44: 1.621737374e+11 | I44: -5.061985748e+10 | J44: -50619.85748 | K44: -50.61985748
B45: 0.71014 | C45: 0.70662 | D45: 0.0794 | E45: 0.9556675063 | F45: 48800000000 | G45: 1.420081967e-11 | H45: 1.621737374e+11 | I45: -3193716636 | J45: -3193.716636 | K45: -3.193716636
B46: 0.71014 | C46: 0.70458 | D46: 0.012 | E46: 0.5366666667 | F46: 48800000000 | G46: 1.420081967e-11 | H46: 1.621737374e+11 | I46: -4.383481176e+10 | J46: -43834.81176 | K46: -43.83481176
B47: 0.71014 | C47: 0.70667 | D47: 0.0216 | E47: 0.8393518519 | F47: 48800000000 | G47: 1.420081967e-11 | H47: 1.621737374e+11 | I47: -1.233427718e+10 | J47: -12334.27718 | K47: -12.33427718
B48: 0.71014 | C48: 0.70593 | D48: 0.0121 | E48: 0.6520661157 | F48: 48800000000 | G48: 1.420081967e-11 | H48: 1.621737374e+11 | I48: -3.011701996e+10 | J48: -30117.01996 | K48: -30.11701996
B49: 0.71014 | C49: 0.70458 | D49: 0.0473 | E49: 0.8824524313 | F49: 48800000000 | G49: 1.420081967e-11 | H49: 1.621737374e+11 | I49: -8807444204 | J49: -8807.444204 | K49: -8.807444204
B50: 0.71014 | C50: 0.70301 | D50: 0.0093 | E50: 0.2333333333 | F50: 48800000000 | G50: 1.420081967e-11 | H50: 1.621737374e+11 | I50: -1.024975668e+11 | J50: -102497.5668 | K50: -102.4975668
B51: 0.71014 | C51: 0.70432 | D51: 0.0118 | E51: 0.506779661 | F51: 48800000000 | G51: 1.420081967e-11 | H51: 1.621737374e+11 | I51: -4.787057732e+10 | J51: -47870.57732 | K51: -47.87057732
B52: 0.71014 | C52: 0.70377 | D52: 0.0268 | E52: 0.7623134328 | F52: 48800000000 | G52: 1.420081967e-11 | H52: 1.621737374e+11 | I52: -1.911483904e+10 | J52: -19114.83904 | K52: -19.11483904
B53: 0.71014 | C53: 0.70362 | D53: 0.0502 | E53: 0.8701195219 | F53: 48800000000 | G53: 1.420081967e-11 | H53: 1.621737374e+11 | I53: -9798713568 | J53: -9798.713568 | K53: -9.798713568
B54: 0.71014 | C54: 0.7063 | D54: 0.00586 | E54: 0.3447098976 | F54: 48800000000 | G54: 1.420081967e-11 | H54: 1.621737374e+11 | I54: -7.501285351e+10 | J54: -75012.85351 | K54: -75.01285351
B55: 0.71014 | C55: 0.70466 | D55: 0.0241 | E55: 0.7726141079 | F55: 48800000000 | G55: 1.420081967e-11 | H55: 1.621737374e+11 | I55: -1.816951836e+10 | J55: -18169.51836 | K55: -18.16951836
B56: 0.71014 | C56: 0.70653 | D56: 0.0434 | E56: 0.9168202765 | F56: 48800000000 | G56: 1.420081967e-11 | H56: 1.621737374e+11 | I56: -6116510682 | J56: -6116.510682 | K56: -6.116510682
B57: 0.71014 | C57: 0.70552 | D57: 0.261 | E57: 0.9822988506 | F57: 48800000000 | G57: 1.420081967e-11 | H57: 1.621737374e+11 | I57: -1257878561 | J57: -1257.878561 | K57: -1.257878561 | Q57: 0
B58: 0.71014 | C58: 0.70453 | D58: 0.0157 | E58: 0.6426751592 | F58: 48800000000 | G58: 1.420081967e-11 | H58: 1.621737374e+11 | I58: -3.113873381e+10 | J58: -31138.73381 | K58: -31.13873381 | Q58: 0
B59: 0.71014 | C59: 0.70263 | D59: 0.0235 | E59: 0.6804255319 | F59: 48800000000 | G59: 1.420081967e-11 | H59: 1.621737374e+11 | I59: -2.711859482e+10 | J59: -27118.59482 | K59: -27.11859482
B60: 0.71014 | C60: 0.70351 | D60: 0.0243 | E60: 0.7271604938 | F60: 48800000000 | G60: 1.420081967e-11 | H60: 1.621737374e+11 | I60: -2.24399353e+10 | J60: -22439.9353 | K60: -22.4399353
B61: 0.71014 | C61: 0.70333 | D61: 0.0427 | E61: 0.8405152225 | F61: 48800000000 | G61: 1.420081967e-11 | H61: 1.621737374e+11 | I61: -1.223672476e+10 | J61: -12236.72476 | K61: -12.23672476
B62: 0.71014 | C62: 0.70425 | D62: 0.0216 | E62: 0.7273148148 | F62: 48800000000 | G62: 1.420081967e-11 | H62: 1.621737374e+11 | I62: -2.242498969e+10 | J62: -22424.98969 | K62: -22.42498969
B63: 0.71014 | C63: 0.70216 | D63: 0.0333 | E63: 0.7603603604 | F63: 48800000000 | G63: 1.420081967e-11 | H63: 1.621737374e+11 | I63: -1.929551758e+10 | J63: -19295.51758 | K63: -19.29551758
B64: 0.71014 | C64: 0.70279 | D64: 0.0598 | E64: 0.877090301 | F64: 48800000000 | G64: 1.420081967e-11 | H64: 1.621737374e+11 | I64: -9236717349 | J64: -9236.717349 | K64: -9.236717349
B65: 0.71014 | C65: 0.70305 | D65: 0.0847 | E65: 0.9162927981 | F65: 48800000000 | G65: 1.420081967e-11 | H65: 1.621737374e+11 | I65: -6157043823 | J65: -6157.043823 | K65: -6.157043823
B66: 0.71014 | C66: 0.7037 | D66: 0.0298 | E66: 0.7838926174 | F66: 48800000000 | G66: 1.420081967e-11 | H66: 1.621737374e+11 | I66: -1.714880654e+10 | J66: -17148.80654 | K66: -17.14880654
B67: 0.71014 | C67: 0.70389 | D67: 0.063 | E67: 0.9007936508 | F67: 48800000000 | G67: 1.420081967e-11 | H67: 1.621737374e+11 | I67: -7358582020 | J67: -7358.58202 | K67: -7.35858202
I68: Average | J68: =AVERAGE(J38:J67) -> -29099.20551 | K68: =AVERAGE(K38:K67) -> -28.12923199
I69: Maximum | J69: =MAX(J38:J68) -> -1257.878561 | K69: =MAX(K38:K68) -> 0
I70: Minimum | J70: =MIN(J38:J69) -> -102497.5668 | K70: =MIN(K38:K69) -> -102.4975668
I71: Difference | J71: =(J69+ABS(J70)) -> 101239.6883 | K71: =(K69+ABS(K70)) -> 102.4975668

Sheet Rb-Sr _12
A1: Rubidium | B1: TABLE 1. | K1: Rubidium_008.pdf
A2: Strontium | B2: Initial | C2: Today | D2: Today | E2: The Ratio | F2: Half | G2: Decay | H2: 2.303/Delta | I2: Age | J2: Age | K2: Age | L2: Model Age | M2: Model Age | N2: Model Age
A3: Dating | B3: 87Sr/86Sr | C3: 87Sr/86Sr | D3: 87Rb/86Sr | E3: Plus One | F3: Life | G3: Constant | H3: Constant | I3: Years | J3: Million Years | K3: Billion Years | L3: Million Years | M3: % Difference | N3: Difference
A4: TABLE 1 | B4: 0.702 | C4: 0.74572 | D4: 47.2 | E4: =1+((C4-B4)/D4) -> 1.000926271 | F4: 48800000000 | G4: =(0.693/F4) -> 1.420081967e-11 | H4: =(2.303/G4) -> 1.621737374e+11 | I4: =(LOG(E4))*(H4) -> 65208157.88 | J4: =(I4/1000000) -> 65.20815788 | K4: =(J4/1000) -> 0.06520815788
B5: 0.702 | C5: 0.7431 | D5: 41.6 | E5: 1.000987981 | F5: 48800000000 | G5: 1.420081967e-11 | H5: 1.621737374e+11 | I5: 69550279.38 | J5: 69.55027938 | K5: 0.06955027938
B6: 0.702 | C6: 0.73831 | D6: 36.9 | E6: 1.000984011 | F6: 48800000000 | G6: 1.420081967e-11 | H6: 1.621737374e+11 | I6: 69270948.09 | J6: 69.27094809 | K6: 0.06927094809
B7: 0.702 | C7: 0.71213 | D7: 10.3 | E7: 1.000983495 | F7: 48800000000 | G7: 1.420081967e-11 | H7: 1.621737374e+11 | I7: 69234662.83 | J7: 69.23466283 | K7: 0.06923466283
B8: 0.702 | C8: 0.7979 | D8: 106.3 | E8: 1.000902164 | F8: 48800000000 | G8: 1.420081967e-11 | H8: 1.621737374e+11 | I8: 63511789.65 | J8: 63.51178965 | K8: 0.06351178965
B9: 0.702 | C9: 0.77051 | D9: 73.8 | E9: 1.00092832 | F9: 48800000000 | G9: 1.420081967e-11 | H9: 1.621737374e+11 | I9: 65352309.26 | J9: 65.35230926 | K9: 0.06535230926
B10: 0.702 | C10: 0.7135 | D10: 12.7 | E10: 1.000905512 | F10: 48800000000 | G10: 1.420081967e-11 | H10: 1.621737374e+11 | I10: 63747388.91 | J10: 63.74738891 | K10: 0.06374738891
B11: 0.702 | C11: 0.71297 | D11: 14.79 | E11: 1.000741717 | F11: 48800000000 | G11: 1.420081967e-11 | H11: 1.621737374e+11 | I11: 52220650.58 | J11: 52.22065058 | K11: 0.05222065058
B12: 0.702 | C12: 0.70355 | D12: 0.066 | E12: 1.023484848 | F12: 48800000000 | G12: 1.420081967e-11 | H12: 1.621737374e+11 | I12: 1634941205 | J12: 1634.941205 | K12: 1.634941205
B13: 0.702 | C13: 0.70312 | D13: 0.0649 | E13: 1.017257319 | F13: 48800000000 | G13: 1.420081967e-11 | H13: 1.621737374e+11 | I13: 1205084369 | J13: 1205.084369 | K13: 1.205084369
B14: 0.702 | C14: 0.70381 | D14: 0.251 | E14: 1.007211155 | F14: 48800000000 | G14: 1.420081967e-11 | H14: 1.621737374e+11 | I14: 506067552.1 | J14: 506.0675521 | K14: 0.5060675521
B15: 0.702 | C15: 0.70432 | D15: 0.205 | E15: 1.011317073 | F15: 48800000000 | G15: 1.420081967e-11 | H15: 1.621737374e+11 | I15: 792598049.6 | J15: 792.5980496 | K15: 0.7925980496
B16: 0.702 | C16: 0.70507 | D16: 0.595 | E16: 1.005159664 | F16: 48800000000 | G16: 1.420081967e-11 | H16: 1.621737374e+11 | I16: 362466806 | J16: 362.466806 | K16: 0.362466806
B17: 0.702 | C17: 0.77026 | D17: 70.4 | E17: 1.000969602 | F17: 48800000000 | G17: 1.420081967e-11 | H17: 1.621737374e+11 | I17: 68257126.29 | J17: 68.25712629 | K17: 0.06825712629
B18: 0.702 | C18: 0.70498 | D18: 1.1 | E18: =1+((C18-B18)/D18) -> 1.002709091 | F18: 48800000000 | G18: =(0.693/F18) -> 1.420081967e-11 | H18: =(2.303/G18) -> 1.621737374e+11 | I18: =(LOG(E18))*(H18) -> 190546425.8 | J18: =(I18/1000000) -> 190.5464258 | K18: =(J18/1000) -> 0.1905464258
B19: 0.702 | C19: 0.70633 | D19: 2.801 | E19: 1.001545876 | F19: 48800000000 | G19: 1.420081967e-11 | H19: 1.621737374e+11 | I19: 108793802.8 | J19: 108.7938028 | K19: 0.1087938028 | M19: Dating | N19: 87Rb/86Sr | O19: 87Rb/86Sr | P19: Pb207/Pb206
B20: 0.702 | C20: 0.72654 | D20: 24.8 | E20: 1.000989516 | F20: 48800000000 | G20: 1.420081967e-11 | H20: 1.621737374e+11 | I20: 69658309.74 | J20: 69.65830974 | K20: 0.06965830974 | M20: Summary | N20: Age | O20: Age | P20: Age
I21: Average | J21: =AVERAGE(J4:J20) -> 320.9711667 | K21: =AVERAGE(K4:K20) -> 0.3209711667 | M21: Average | N21: 320.9711667 | O21: 57.1126075 | P21: 4982.279181
I22: Maximum | J22: =MAX(J4:J21) -> 1634.941205 | K22: =MAX(K4:K21) -> 1.634941205 | M22: Maximum | N22: 1634.941205 | O22: 140.9445522 | P22: 5079.726951
I23: Minimum | J23: =MIN(J4:J22) -> 52.22065058 | K23: =MIN(K4:K22) -> 0.05222065058 | M23: Minimum | N23: 52.22065058 | O23: 0 | P23: 4931.996442
I24: Difference | J24: =(J22+ABS(J23)) -> 1687.161856 | K24: =(K22+ABS(K23)) -> 1.687161856 | M24: Difference | N24: 1687.161856 | O24: 140.9445522 | P24: 10011.72339
A27: TABLE 2 | B27: 0.70375 | C27: 0.70375 | D27: 0.0001 | E27: =1+((C27-B27)/D27) -> 1 | F27: 48800000000 | G27: =(0.693/F27) -> 1.420081967e-11 | H27: =(2.303/G27) -> 1.621737374e+11 | I27: =(LOG(E27))*(H27) -> 0 | J27: =(I27/1000000) -> 0 | K27: =(J27/1000) -> 0
B28: 0.70401 | C28: 0.70402 | D28: 0.0124 | E28: 1.000806452 | F28: 48800000000 | G28: 1.420081967e-11 | H28: 1.621737374e+11 | I28: 56776431.33 | J28: 56.77643133 | K28: 0.05677643133
B29: 0.70398 | C29: 0.70415 | D29: 0.204 | E29: 1.000833333 | F29: 48800000000 | G29: 1.420081967e-11 | H29: 1.621737374e+11 | I29: 58668191.02 | J29: 58.66819102 | K29: 0.05866819102
B30: 0.70353 | C30: 0.70414 | D30: 0.714 | E30: 1.000854342 | F30: 48800000000 | G30: 1.420081967e-11 | H30: 1.621737374e+11 | I30: 60146589.7 | J30: 60.1465897 | K30: 0.0601465897
B31: 0.70362 | C31: 0.70388 | D31: 0.304 | E31: 1.000855263 | F31: 48800000000 | G31: 1.420081967e-11 | H31: 1.621737374e+11 | I31: 60211431.03 | J31: 60.21143103 | K31: 0.06021143103
B32: 0.70534 | C32: 0.70536 | D32: 0.0203 | E32: 1.000985222 | F32: 48800000000 | G32: 1.420081967e-11 | H32: 1.621737374e+11 | I32: 69356144.7 | J32: 69.3561447 | K32: 0.0693561447
B33: 0.70517 | C33: 0.70517 | D33: 0.0001 | E33: 1 | F33: 48800000000 | G33: 1.420081967e-11 | H33: 1.621737374e+11 | I33: 0 | J33: 0 | K33: 0
B34: 0.70505 | C34: 0.70506 | D34: 0.0122 | E34: 1.000819672 | F34: 48800000000 | G34: 1.420081967e-11 | H34: 1.621737374e+11 | I34: 57706811.3 | J34: 57.7068113 | K34: 0.0577068113
B35: 0.7054 | C35: 0.70558 | D35: 0.208 | E35: 1.000865385 | F35: 48800000000 | G35: 1.420081967e-11 | H35: 1.621737374e+11 | I35: 60923684.25 | J35: 60.92368425 | K35: 0.06092368425
B36: 0.70598 | C36: 0.70616 | D36: 0.209 | E36: 1.000861244 | F36: 48800000000 | G36: 1.420081967e-11 | H36: 1.621737374e+11 | I36: 60632308.81 | J36: 60.63230881 | K36: 0.06063230881
B37: 0.70454 | C37: 0.7097 | D37: 6.056 | E37: 1.000852048 | F37: 48800000000 | G37: 1.420081967e-11 | H37: 1.621737374e+11 | I37: 59985145.65 | J37: 59.98514565 | K37: 0.05998514565
B38: 0.70495 | C38: 0.70874 | D38: 1.892 | E38: 1.002003171 | F38: 48800000000 | G38: 1.420081967e-11 | H38: 1.621737374e+11 | I38: 140944552.2 | J38: 140.9445522 | K38: 0.1409445522
I39: Average | J39: =AVERAGE(J27:J38) -> 57.1126075 | K39: =AVERAGE(K27:K38) -> 0.0571126075
E40: Pb207/Pb206 | I40: Maximum | J40: =MAX(J27:J39) -> 140.9445522 | K40: =MAX(K27:K39) -> 0.1409445522
B41: Pb206/Pb204 | C41: Pb207/Pb204 | D41: Pb207/Pb206 | E41: Age | I41: Minimum | J41: =MIN(J27:J40) -> 0 | K41: =MIN(K27:K40) -> 0
A42: TABLE 3 | B42: 19.03 | C42: 15.61 | D42: =(C42/B42) -> 0.8202837625 | E42: =[1]!AgePb76($D$42) -> 4957.369263 | I42: Difference | J42: =(J40+ABS(J41)) -> 140.9445522 | K42: =(K40+ABS(K41)) -> 0.1409445522
B43: 19.01 | C43: 15.6 | D43: =(C43/B43) -> 0.8206207259 | E43: =[1]!AgePb76($D$43) -> 4957.953269
B44: 18.67 | C44: 15.6 | D44: 0.8355650777 | E44: =[1]!AgePb76($D$44) -> 4983.600754
B45: 19.3 | C45: 15.62 | D45: 0.8093264249 | E45: =[1]!AgePb76($D$45) -> 4938.238326
B46: 18.82 | C46: 15.63 | D46: 0.8304994687 | E46: =[1]!AgePb76($D$46) -> 4974.962167
B47: 18.98 | C47: 15.64 | D47: 0.8240252898 | E47: =[1]!AgePb76($D$47) -> 4963.839602 | G47: Pb207/Pb206 | H47: Pb207/Pb206
B48: 19.36 | C48: 15.6 | D48: 0.805785124 | E48: =[1]!AgePb76($D$48) -> 4931.996442 | G48: Age | H48: Age
B49: 18.62 | C49: 16.65 | D49: 0.8941997852 | E49: =[1]!AgePb76($D$49) -> 5079.726951 | G49: 5079.726951 | H49: 4963.839602
B50: 18.84 | C50: 15.7 | D50: 0.8333333333 | E50: =[1]!AgePb76($D$50) -> 4979.801749 | G50: 5047.946667 | H50: 4957.953269
B51: 19.1 | C51: 16.7 | D51: 0.8743455497 | E51: =[1]!AgePb76($D$51) -> 5047.946667 | G51: 4989.635801 | H51: 4957.369263
B52: 18.71 | C52: 15.7 | D52: 0.8391234634 | E52: =[1]!AgePb76($D$52) -> 4989.635801 | G52: 4983.600754 | H52: 4938.238326
D53: Average | E53: =AVERAGE(E41:E52) -> 4982.279181 | G53: 4979.801749 | H53: 4931.996442
D54: Maximum | E54: =MAX(E41:E53) -> 5079.726951 | G54: 4974.962167
D55: Minimum | E55: =MIN(E41:E54) -> 4931.996442 | G55: 4963.839602
D56: Difference | E56: =(E54+ABS(E55)) -> 10011.72339 | G56: 4957.953269
G57: 4957.369263
G58: 4938.238326
G59: 4931.996442

Sheet Rb-Sr _13
A1: Rubidium | B1: TABLE 1. | K1: Rubidium_009.pdf
A2: Strontium | B2: Initial | C2: Today | D2: Today | E2: The Ratio | F2: Half | G2: Decay | H2: 2.303/Delta | I2: Age | J2: Age | K2: Age | L2: Model Age | M2: Model Age | N2: Model Age
A3: Dating | B3: 87Sr/86Sr | C3: 87Sr/86Sr | D3: 87Rb/86Sr | E3: Plus One | F3: Life | G3: Constant | H3: Constant | I3: Years | J3: Million Years | K3: Billion Years | L3: Million Years | M3: % Difference | N3: Difference
A4: TABLE 1 | B4: 0.7079 | C4: 0.708805 | D4: 1.42 | E4: =1+((C4-B4)/D4) -> 1.000637324 | F4: 48800000000 | G4: =(0.693/F4) -> 1.420081967e-11 | H4: =(2.303/G4) -> 1.621737374e+11 | I4: =(LOG(E4))*(H4) -> 44873166.32 | J4: =(I4/1000000) -> 44.87316632 | K4: =(J4/1000) -> 0.04487316632 | L4: 65 | M4: 5157.160984
B5: 0.7079 | C5: 0.710439 | D5: 3.756 | E5: 1.000675985 | F5: 48800000000 | G5: 1.420081967e-11 | H5: 1.621737374e+11 | I5: 47594328.85 | J5: 47.59432885 | K5: 0.04759432885 | M5: 4765.277045
B6: 0.7079 | C6: 0.708351 | D6: 0.32 | E6: 1.001409375 | F6: 48800000000 | G6: 1.420081967e-11 | H6: 1.621737374e+11 | I6: 99194030.68 | J6: 99.19403068 | K6: 0.09919403068 | M6: 584.4943026
B7: 0.7079 | C7: 0.710123 | D7: 1.775 | E7: 1.001252394 | F7: 48800000000 | G7: 1.420081967e-11 | H7: 1.621737374e+11 | I7: 88152397.78 | J7: 88.15239778 | K7: 0.08815239778 | M7: 293.2739708
B8: 0.7079 | C8: 0.714498 | D8: 2.375 | E8: 1.002778105 | F8: 48800000000 | G8: 1.420081967e-11 | H8: 1.621737374e+11 | I8: 195393887.3 | J8: 195.3938873 | K8: 0.1953938873 | M8: 195.3938873
B9: 0.7079 | C9: 0.715409 | D9: 2.734 | E9: 1.002746525 | F9: 48800000000 | G9: 1.420081967e-11 | H9: 1.621737374e+11 | I9: 193175796.6 | J9: 193.1757966 | K9: 0.1931757966 | M9: 193.1757966
B10: 0.7079 | C10: 0.712202 | D10: 1.76 | E10: 1.002444318 | F10: 48800000000 | G10: 1.420081967e-11 | H10: 1.621737374e+11 | I10: 171946103.1 | J10: 171.9461031 | K10: 0.1719461031 | M10: 171.9461031
B11: 0.7079 | C11: 0.713194 | D11: 2.226 | E11: 1.002378257 | F11: 48800000000 | G11: 1.420081967e-11 | H11: 1.621737374e+11 | I11: 167304527.1 | J11: 167.3045271 | K11: 0.1673045271 | M11: 167.3045271
B12: 0.7079 | C12: 0.709223 | D12: 1.61 | E12: 1.000821739 | F12: 48800000000 | G12: 1.420081967e-11 | H12: 1.621737374e+11 | I12: 57852273.07 | J12: 57.85227307 | K12: 0.05785227307 | M12: 136.5250663
B13: 0.7079 | C13: 0.708913 | D13: 0.666 | E13: 1.001521021 | F13: 48800000000 | G13: 1.420081967e-11 | H13: 1.621737374e+11 | I13: 107045884.9 | J13: 107.0458849 | K13: 0.1070458849 | M13: 107.0458849
B14: 0.7079 | C14: 0.707865 | D14: 0.0093 | E14: 0.9962365591 | F14: 48800000000 | G14: 1.420081967e-11 | H14: 1.621737374e+11 | I14: -265563532.9 | J14: -265.5635329 | K14: -0.2655635329 | M14: 99.19403068
B15: 0.7079 | C15: 0.707958 | D15: 0.0139 | E15: =1+((C15-B15)/D15) -> 1.004172662 | F15: 48800000000 | G15: =(0.693/F15) -> 1.420081967e-11 | H15: =(2.303/G15) -> 1.621737374e+11 | I15: =(LOG(E15))*(H15) -> 293273970.8 | J15: =(I15/1000000) -> 293.2739708 | K15: =(J15/1000) -> 0.2932739708 | M15: 88.15239778
B16: 0.7079 | C16: 0.707913 | D16: 0.0067 | E16: 1.001940299 | F16: 48800000000 | G16: 1.420081967e-11 | H16: 1.621737374e+11 | I16: 136525066.3 | J16: 136.5250663 | K16: 0.1365250663 | M16: 57.85227307
B17: 0.7079 | C17: 0.708409 | D17: 0.0067 | E17: 1.075970149 | F17: 48800000000 | G17: 1.420081967e-11 | H17: 1.621737374e+11 | I17: 5157160984 | J17: 5157.160984 | K17: 5.157160984 | M17: 47.59432885
B18: 0.7079 | C18: 0.707963 | D18: 0.0009 | E18: 1.07 | F18: 48800000000 | G18: 1.420081967e-11 | H18: 1.621737374e+11 | I18: 4765277045 | J18: 4765.277045 | K18: 4.765277045 | M18: 44.87316632
B19: 0.7079 | C19: 0.707905 | D19: 0.0006 | E19: 1.008333333 | F19: 48800000000 | G19: =(0.693/F19) -> 1.420081967e-11 | H19: =(2.303/G19) -> 1.621737374e+11 | I19: =(LOG(E19))*(H19) -> 584494302.6 | J19: =(I19/1000000) -> 584.4943026 | K19: =(J19/1000) -> 0.5844943026 | M19: -265.5635329
I20: Average | J20: =AVERAGE(J4:J19) -> 740.2312645 | K20: =AVERAGE(K4:K19) -> 0.7402312645 | M20: =COUNT(M4:M19) -> 16
I21: Maximum | J21: =MAX(J4:J20) -> 5157.160984 | K21: =MAX(K4:K20) -> 5.157160984
I22: Minimum | J22: =MIN(J4:J21) -> -265.5635329 | K22: =MIN(K4:K21) -> -0.2655635329
I23: Difference | J23: =(J21+ABS(J22)) -> 5422.724517 | K23: =(K21+ABS(K22)) -> 5.422724517

Sheet Rb-Sr _14
A1: Rubidium | B1: TABLE 1. | K1: Rubidium_010.pdf
A2: Strontium | B2: Initial | C2: Today | D2: Today | E2: The Ratio | F2: Half | G2: Decay | H2: 2.303/Delta | I2: Age | J2: Age | K2: Age | L2: Model Age | M2: Model Age | N2: Model Age
A3: Dating | B3: 87Sr/86Sr | C3: 87Sr/86Sr | D3: 87Rb/86Sr | E3: Plus One | F3: Life | G3: Constant | H3: Constant | I3: Years | J3: Million Years | K3: Billion Years | L3: Million Years | M3: % Difference | N3: Difference
A4: TABLE 1 | B4: 0.70496 | C4: 0.70498 | D4: 0.0152 | E4: =1+((C4-B4)/D4) -> 1.001315789 | F4: 48800000000 | G4: =(0.693/F4) -> 1.420081967e-11 | H4: =(2.303/G4) -> 1.621737374e+11 | I4: =(LOG(E4))*(H4) -> 92611662.59 | J4: =(I4/1000000) -> 92.61166259 | K4: =(J4/1000) -> 0.09261166259 | L4: 65
B5: 0.70486 | C5: 0.705 | D5: 0.1443 | E5: 1.000970201 | F5: 48800000000 | G5: 1.420081967e-11 | H5: 1.621737374e+11 | I5: 68299252.39 | J5: 68.29925239 | K5: 0.06829925239
B6: 0.70472 | C6: 0.70486 | D6: 0.1451 | E6: 1.000964852 | F6: 48800000000 | G6: 1.420081967e-11 | H6: 1.621737374e+11 | I6: 67922870.15 | J6: 67.92287015 | K6: 0.06792287015
B7: 0.70505 | C7: 0.70512 | D7: 0.0742 | E7: 1.000943396 | F7: 48800000000 | G7: 1.420081967e-11 | H7: 1.621737374e+11 | I7: 66413167.82 | J7: 66.41316782 | K7: 0.06641316782
B8: 0.70507 | C8: 0.70511 | D8: 0.0422 | E8: 1.000947867 | F8: 48800000000 | G8: 1.420081967e-11 | H8: 1.621737374e+11 | I8: 66727773.11 | J8: 66.72777311 | K8: 0.06672777311
B9: 0.70461 | C9: 0.70498 | D9: 0.3764 | E9: 1.000982997 | F9: 48800000000 | G9: 1.420081967e-11 | H9: 1.621737374e+11 | I9: 69199599.08 | J9: 69.19959908 | K9: 0.06919959908
B10: 0.70415 | C10: 0.70423 | D10: 0.0779 | E10: 1.001026958 | F10: 48800000000 | G10: 1.420081967e-11 | H10: 1.621737374e+11 | I10: 72292702.52 | J10: 72.29270252 | K10: 0.07229270252
B11: 0.70426 | C11: 0.70444 | D11: 0.1858 | E11: 1.000968784 | F11: 48800000000 | G11: 1.420081967e-11 | H11: 1.621737374e+11 | I11: 68199524.75 | J11: 68.19952475 | K11: 0.06819952475
B12: 0.70414 | C12: 0.70417 | D12: 0.0341 | E12: 1.000879765 | F12: 48800000000 | G12: 1.420081967e-11 | H12: 1.621737374e+11 | I12: 61935656.27 | J12: 61.93565627 | K12: 0.06193565627
B13: 0.70391 | C13: 0.70391 | D13: 0.0011 | E13: 1 | F13: 48800000000 | G13: 1.420081967e-11 | H13: 1.621737374e+11 | I13: 0 | J13: 0 | K13: 0
B14: 0.70437 | C14: 0.70455 | D14: 0.1776 | E14: 1.001013514 | F14: 48800000000 | G14: 1.420081967e-11 | H14: 1.621737374e+11 | I14: 71346782.31 | J14: 71.34678231 | K14: 0.07134678231
I15: Average | J15: =AVERAGE(J4:J14) -> 64.08627191 | K15: =AVERAGE(K4:K14) -> 0.06408627191
I16: Maximum | J16: =MAX(J4:J15) -> 92.61166259 | K16: =MAX(K4:K15) -> 0.09261166259
A17: TABLE 2 | B17: Pb206/Pb204 | C17: Pb207/Pb204 | D17: Pb207/Pb206 | E17: Age | I17: Minimum | J17: =MIN(J4:J16) -> 0 | K17: =MIN(K4:K16) -> 0
B18: 17.648 | C18: 15.472 | D18: =(C18/B18) -> 0.8766999093 | E18: =[1]!AgePb76($D$18) -> 5051.755039 | I18: Difference | J18: =(J16+ABS(J17)) -> 92.61166259 | K18: =(K16+ABS(K17)) -> 0.09261166259
B19: 17.641 | C19: 15.477 | D19: =(C19/B19) -> 0.8773312171 | E19: =[1]!AgePb76($D$19) -> 5052.774387
B20: 17.65 | C20: 15.483 | D20: 0.877223796 | E20: =[1]!AgePb76($D$20) -> 5052.600994
B21: 17.535 | C21: 15.471 | D21: 0.8822925577 | E21: =[1]!AgePb76($D$21) -> 5060.758281
B22: 18.029 | C22: 15.491 | D22: 0.8592268013 | E22: =[1]!AgePb76($D$22) -> 5023.228476
B23: 18.18 | C23: 15.508 | D23: 0.8530253025 | E23: =[1]!AgePb76($D$23) -> 5012.955582
B24: 18.07 | C24: 15.494 | D24: 0.8574432761 | E24: =[1]!AgePb76($D$24) -> 5020.282121
B25: 18.315 | C25: 15.524 | D25: 0.8476112476 | E25: =[1]!AgePb76($D$25) -> 5003.922048
B26: 18.16 | C26: 15.507 | D26: 0.8539096916 | E26: =[1]!AgePb76($D$26) -> 5014.425428 | G26: Summary | H26: Pb207/Pb206 | I26: 147Sm/144Nd | J26: 87Rb/86Sr
D27: Average | E27: =AVERAGE(E16:E26) -> 5032.522484 | G27: Average | H27: 5032.522484 | I27: 70.07868764 | J27: 64.08627191
D28: Maximum | E28: =MAX(E16:E27) -> 5060.758281 | G28: Maximum | H28: 5060.758281 | I28: 70.48924499 | J28: 92.61166259
D29: Minimum | E29: =MIN(E16:E28) -> 5003.922048 | G29: Minimum | H29: 5003.922048 | I29: 69.46873152 | J29: 0
D30: Difference | E30: =(E28-ABS(E29)) -> 56.83623276 | G30: Difference | H30: 56.83623276 | I30: 139.9579765 | J30: 92.61166259
A36: Neodymium | K36: Rubidium_010.pdf
A37: Samarium | B37: Initial | C37: Today | D37: Today | E37: The Ratio | F37: Half | G37: Decay | H37: 2.303/Delta | I37: Age | J37: Age | K37: Age | L37: Model Age | M37: Model Age | N37: Model Age
A38: Dating | B38: 143Nd/144Nd | C38: 143Nd/144Nd | D38: 147Sm/144Nd | E38: Plus One | F38: Life | G38: Constant | H38: Constant | I38: Years | J38: Million Years | K38: Billion Years | L38: Million Years | M38: % Difference | N38: Difference
B39: 0.512398 | C39: 0.512461 | D39: 0.1367 | E39: =1+((C39-B39)/D39) -> 1.000460863 | F39: 106000000000 | G39: =(0.693/F39) -> 6.537735849e-12 | H39: =(2.303/G39) -> 3.522626263e+11 | I39: =(LOG(E39))*(H39) -> 70489244.99 | J39: =(I39/1000000) -> 70.48924499 | K39: =(J39/1000) -> 0.07048924499
B40: 0.512403 | C40: 0.512466 | D40: 0.1369 | E40: =1+((C40-B40)/D40) -> 1.00046019 | F40: 106000000000 | G40: 6.537735849e-12 | H40: =(2.303/G40) -> 3.522626263e+11 | I40: =(LOG(E40))*(H40) -> 70386289.5 | J40: =(I40/1000000) -> 70.3862895 | K40: =(J40/1000) -> 0.0703862895
B41: 0.512394 | C41: 0.512456 | D41: 0.1356 | E41: 1.000457227 | F41: 106000000000 | G41: 6.537735849e-12 | H41: 3.522626263e+11 | I41: 69933234.15 | J41: 69.93323415 | K41: 0.06993323415
B42: 0.512317 | C42: 0.512376 | D42: 0.1283 | E42: 1.00045986 | F42: 106000000000 | G42: 6.537735849e-12 | H42: 3.522626263e+11 | I42: 70335794.42 | J42: 70.33579442 | K42: 0.07033579442
B43: 0.512321 | C43: 0.512379 | D43: 0.1277 | E43: 1.00045419 | F43: 106000000000 | G43: 6.537735849e-12 | H43: 3.522626263e+11 | I43: 69468731.52 | J43: 69.46873152 | K43: 0.06946873152
B44: 0.512499 | C44: 0.512555 | D44: 0.1217 | E44: 1.000460148 | F44: 106000000000 | G44: 6.537735849e-12 | H44: 3.522626263e+11 | I44: 70379864.76 | J44: 70.37986476 | K44: 0.07037986476
B45: 0.512624 | C45: 0.512699 | D45: 0.1637 | E45: =1+((C45-B45)/D45) -> 1.000458155 | F45: 106000000000 | G45: =(0.693/F45) -> 6.537735849e-12 | H45: =(2.303/G45) -> 3.522626263e+11 | I45: =(LOG(E45))*(H45) -> 70075143.5 | J45: =(I45/1000000) -> 70.0751435 | K45: =(J45/1000) -> 0.0700751435
B46: 0.512617 | C46: 0.512682 | D46: 0.142 | E46: 1.000457746 | F46: 106000000000 | G46: 6.537735849e-12 | H46: 3.522626263e+11 | I46: 70012649.45 | J46: 70.01264945 | K46: 0.07001264945
B47: 0.512612 | C47: 0.512694 | D47: 0.18 | E47: 1.000455556 | F47: 106000000000 | G47: 6.537735849e-12 | H47: 3.522626263e+11 | I47: 69677622.47 | J47: 69.67762247 | K47: 0.06967762247
B48: 0.512503 | C48: 0.512566 | D48: 0.1376 | E48: 1.000457849 | F48: 106000000000 | G48: 6.537735849e-12 | H48: 3.522626263e+11 | I48: 70028301.65 | J48: 70.02830165 | K48: 0.07002830165
I49: Average | J49: =AVERAGE(J38:J48) -> 70.07868764
I50: Maximum | J50: =MAX(J38:J49) -> 70.48924499
I51: Minimum | J51: =MIN(J38:J50) -> 69.46873152
I52: Difference | J52: =(J50+ABS(J51)) -> 139.9579765

Sheet Rb-Sr _15
A1: Rubidium | B1: TABLE 1. | K1: Rubidium_011.pdf | P1: 10870
A2: Strontium | B2: Initial | C2: Today | D2: Today | E2: The Ratio | F2: Half | G2: Decay | H2: 2.303/Delta | I2: Age | J2: Age | K2: Age | L2: Model Age | M2: Model Age | N2: Model Age | P2: 7656
A3: Dating | B3: 87Sr/86Sr | C3: 87Sr/86Sr | D3: 87Rb/86Sr | E3: Plus One | F3: Life | G3: Constant | H3: Constant | I3: Years | J3: Million Years | K3: Billion Years | L3: Million Years | M3: % Difference | N3: Difference | P3: 5433
A4: TABLE 1 | B4: 0.7041 | C4: 0.70429 | D4: 0.1152 | E4: =1+((C4-B4)/D4) -> 1.001649306 | F4: 48800000000 | G4: =(0.693/F4) -> 1.420081967e-11 | H4: =(2.303/G4) -> 1.621737374e+11 | I4: =(LOG(E4))*(H4) -> 116066813.7 | J4: =(I4/1000000) -> 116.0668137 | K4: =(J4/1000) -> 0.1160668137 | L4: 71 | P4: 5017
B5: 0.7041 | C5: 0.7042 | D5: 0.083 | E5: 1.001204819 | F5: 48800000000 | G5: 1.420081967e-11 | H5: 1.621737374e+11 | I5: 84805740.83 | J5: 84.80574083 | K5: 0.08480574083 | P5: 5011
B6: 0.7099 | C6: 0.711 | D6: 1.136 | E6: 1.00096831 | F6: 48800000000 | G6: 1.420081967e-11 | H6: 1.621737374e+11 | I6: 68166188.22 | J6: 68.16618822 | K6: 0.06816618822 | P6: 5005
B7: 0.7045 | C7: 0.7062 | D7: 1.523 | E7: 1.001116218 | F7: 48800000000 | G7: 1.420081967e-11 | H7: 1.621737374e+11 | I7: 78572683.1 | J7: 78.5726831 | K7: 0.0785726831 | P7: 5003
B8: 0.7045 | C8: 0.70467 | D8: 0.1104 | E8: 1.001539855 | F8: 48800000000 | G8: 1.420081967e-11 | H8: 1.621737374e+11 | I8: 108370361.9 | J8: 108.3703619 | K8: 0.1083703619 | P8: 5001
B9: 0.7044 | C9: 0.7045 | D9: 0.083 | E9: 1.001204819 | F9: 48800000000 | G9: 1.420081967e-11 | H9: 1.621737374e+11 | I9: 84805740.83 | J9: 84.80574083 | K9: 0.08480574083 | P9: 4997
B10: 0.7044 | C10: 0.70446 | D10: 0.083 | E10: 1.000722892 | F10: 48800000000 | G10: 1.420081967e-11 | H10: 1.621737374e+11 | I10: 50895697.21 | J10: 50.89569721 | K10: 0.05089569721 | P10: 4985
B11: 0.7041 | C11: 0.70416 | D11: 0.0546 | E11: 1.001098901 | F11: 48800000000 | G11: 1.420081967e-11 | H11: 1.621737374e+11 | I11: 77354383.67 | J11: 77.35438367 | K11: 0.07735438367 | P11: 4933
B12: 0.709 | C12: 0.71017 | D12: 1.113 | E12: 1.001051213 | F12: 48800000000 | G12: 1.420081967e-11 | H12: 1.621737374e+11 | I12: 73999258.17 | J12: 73.99925817 | K12: 0.07399925817 | P12: 4913
B13: 0.704 | C13: 0.70404 | D13: 0.0219 | E13: 1.001826484 | F13: 48800000000 | G13: 1.420081967e-11 | H13: 1.621737374e+11 | I13: 128524048.9 | J13: 128.5240489 | K13: 0.1285240489 | P13: 4909
B14: 0.7043 | C14: 0.70455 | D14: 0.261 | E14: =1+((C14-B14)/D14) -> 1.000957854 | F14: 48800000000 | G14: =(0.693/F14) -> 1.420081967e-11 | H14: =(2.303/G14) -> 1.621737374e+11 | I14: =(LOG(E14))*(H14) -> 67430507.07 | J14: =(I14/1000000) -> 67.43050707 | K14: =(J14/1000) -> 0.06743050707
B15: 0.7078 | C15: 0.70828 | D15: 0.4285 | E15: 1.001120187 | F15: 48800000000 | G15: 1.420081967e-11 | H15: 1.621737374e+11 | I15: 78851891.52 | J15: 78.85189152 | K15: 0.07885189152
B16: 0.7038 | C16: 0.70395 | D16: 0.2097 | E16: 1.000715308 | F16: 48800000000 | G16: 1.420081967e-11 | H16: 1.621737374e+11 | I16: 50361932.25 | J16: 50.36193225 | K16: 0.05036193225
B17: 0.7042 | C17: 0.70435 | D17: 0.1403 | E17: 1.001069138 | F17: 48800000000 | G17: 1.420081967e-11 | H17: 1.621737374e+11 | I17: 75260373.24 | J17: 75.26037324 | K17: 0.07526037324
B18: 0.704 | C18: 0.70404 | D18: 0.0281 | E18: 1.001423488 | F18: 48800000000 | G18: 1.420081967e-11 | H18: 1.621737374e+11 | I18: 100186587.7 | J18: 100.1865877 | K18: 0.1001865877
B19: 0.7044 | C19: 0.70447 | D19: 0.0338 | E19: 1.002071006 | F19: 48800000000 | G19: 1.420081967e-11 | H19: 1.621737374e+11 | I19: 145712513.8 | J19: 145.7125138 | K19: 0.1457125138
B20: 0.7046 | C20: 0.70463 | D20: 0.0261 | E20: 1.001149425 | F20: 48800000000 | G20: 1.420081967e-11 | H20: 1.621737374e+11 | I20: 80908865.02 | J20: 80.90886502 | K20: 0.08090886502
I21: Average | J21: =AVERAGE(J4:J20) -> 86.4866816 | K21: =AVERAGE(K4:K20) -> 0.0864866816
I22: Maximum | J22: =MAX(J4:J21) -> 145.7125138 | K22: =MAX(K4:K21) -> 0.1457125138
I23: Minimum | J23: =MIN(J4:J22) -> 50.36193225 | K23: =MIN(K4:K22) -> 0.05036193225
I24: Difference | J24: =(J22+ABS(J23)) -> 196.0744461 | K24: =(K22+ABS(K23)) -> 0.1960744461
F27: 207Pb/206Pb | I27: 206Pb/238U
A28: TABLE 2 | B28: 208 pb/ 204 pb | C28: 207 pb/ 204 pb | D28: 206 pb/ 204 pb | E28: 207 pb/ 206 pb | F28: Age | G28: 238 u/ 204 pb | H28: 206 pb / 238 u | I28: Age
B29: 38.527 | C29: 15.592 | D29: 18.386 | E29: =(C29/D29) -> 0.8480365495 | F29: =[1]!AgePb76($E$29) -> 5004.633894 | G29: 4.18 | H29: =(D29/G29) -> 4.398564593 | I29: =[1]!AgePb6U8(H29) -> 10869.51234
B30: 38.791 | C30: 15.558 | D30: 18.598 | E30: =(C30/D30) -> 0.8365415636 | F30: =[1]!AgePb76($E$30) -> 4985.259596 | G30: 8.16 | H30: =(D30/G30) -> 2.279166667 | I30: =[1]!AgePb6U8(H30) -> 7655.692668
B31: 38.619 | C31: 15.584 | D31: 18.426 | E31: 0.8457614241 | F31: =[1]!AgePb76($E$31) -> 5000.821501 | G31: 13.93 | H31: 1.32275664 | I31: =[1]!AgePb6U8(H31) -> 5432.745769
B32: 38.667 | C32: 15.589 | D32: 18.476 | E32: 0.8437432345 | F32: =[1]!AgePb76($E$32) -> 4997.430524
B33: 38.694 | C33: 15.573 | D33: 18.385 | E33: 0.8470492249 | F33: =[1]!AgePb76($E$33) -> 5002.980785
B34: 39.083 | C34: 15.507 | D34: 18.128 | E34: 0.8554170344 | F34: =[1]!AgePb76($E$34) -> 5016.926895
B35: 38.256 | C35: 15.605 | D35: 18.315 | E35: 0.852033852 | F35: =[1]!AgePb76($E$35) -> 5011.305876 | G35: 20.4 | H35: 0.8977941176 | I35: =[1]!AgePb6U8(H35) -> 4130.16742
B36: 39.815 | C36: 15.688 | D36: 19.792 | E36: 0.7926434923 | F36: =[1]!AgePb76($E$36) -> 4908.5752 | G36: 49.22 | H36: 0.4021129622 | I36: =[1]!AgePb6U8(H36) -> 2178.76137
B37: 39.558 | C37: 15.674 | D37: 19.711 | E37: 0.7951905028 | F37: =[1]!AgePb76($E$37) -> 4913.146656 | G37: 81.82 | H37: 0.2409068687 | I37: =[1]!AgePb6U8(H37) -> 1391.409883
B38: 39.51 | C38: 15.668 | D38: 19.425 | E38: 0.8065894466 | F38: =[1]!AgePb76($E$38) -> 4933.416696 | G38: 52.96 | H38: 0.3667862538 | I38: =[1]!AgePb6U8(H38) -> 2014.260654
E39: Average | F39: =AVERAGE(F29:F38) -> 4977.449762 | I39: =AVERAGE(I29:I38) -> 4810.364301
E40: Maximum | F40: =MAX(F29:F39) -> 5016.926895 | I40: =MAX(I29:I39) -> 10869.51234
E41: Minimum | F41: =MIN(F29:F40) -> 4908.5752 | I41: =MIN(I29:I40) -> 1391.409883
E42: Difference | F42: =(F40-ABS(F41)) -> 108.3516949 | I42: =(I40-ABS(I41)) -> 9478.10246
E45: Summary | F45: 207Pb/206Pb | G45: 206Pb/238U | H45: 87Rb/86Sr | I45: 147Sm/144Nd
E46: Average | F46: 4977.449762 | G46: 4810.364301 | H46: 86.4866816 | I46: 72.31606565
E47: Maximum | F47: 5016.926895 | G47: 10869.51234 | H47: 145.7125138 | I47: 80.07627232 | K47: =(5017/146) -> 34.3630137 | L47: =(10870/80) -> 135.875
E48: Minimum | F48: 4908.5752 | G48: 1391.409883 | H48: 50.36193225 | I48: 62.98115203 | L48: =(10870/147) -> 73.94557823
E49: Difference | F49: 108.3516949 | G49: 9478.10246 | H49: 196.0744461 | I49: 17.09512029
A55: Neodymium | K55: Rubidium_010.pdf
A56: Samarium | B56: Initial | C56: Today | D56: Today | E56: The Ratio | F56: Half | G56: Decay | H56: 2.303/Delta | I56: Age | J56: Age | K56: Age | L56: Model Age | M56: Model Age | N56: Model Age
A57: Dating | B57: 143Nd/144Nd | C57: 143Nd/144Nd | D57: 147Sm/144Nd | E57: Plus One | F57: Life | G57: Constant | H57: Constant | I57: Years | J57: Million Years | K57: Billion Years | L57: Million Years | M57: % Difference | N57: Difference
B58: 0.51269 | C58: 0.512732 | D58: 0.0852 | E58: =1+((C58-B58)/D58) -> 1.000492958 | F58: 106000000000 | G58: =(0.693/F58) -> 6.537735849e-12 | H58: =(2.303/G58) -> 3.522626263e+11 | I58: =(LOG(E58))*(H58) -> 75396910.98 | J58: =(I58/1000000) -> 75.39691098 | K58: =(J58/1000) -> 0.07539691098
B59: 0.51285 | C59: 0.512888 | D59: 0.0857 | E59: =1+((C59-B59)/D59) -> 1.000443407 | F59: 106000000000 | G59: 6.537735849e-12 | H59: =(2.303/G59) -> 3.522626263e+11 | I59: =(LOG(E59))*(H59) -> 67819937.89 | J59: =(I59/1000000) -> 67.81993789 | K59: =(J59/1000) -> 0.06781993789
B60: 0.51264 | C60: 0.51268 | D60: 0.0764 | E60: 1.00052356 | F60: 106000000000 | G60: 6.537735849e-12 | H60: 3.522626263e+11 | I60: 80076272.32 | J60: 80.07627232 | K60: 0.08007627232
B61: 0.51272 | C61: 0.51276 | D61: 0.08 | E61: 1.0005 | F61: 106000000000 | G61: =(0.693/F61) -> 6.537735849e-12 | H61: 3.522626263e+11 | I61: 76473740.54 | J61: 76.47374054 | K61: 0.07647374054
B62: 0.51264 | C62: 0.512678 | D62: 0.0755 | E62: 1.000503311 | F62: 106000000000 | G62: 6.537735849e-12 | H62: 3.522626263e+11 | I62: 76980061.76 | J62: 76.98006176 | K62: 0.07698006176
B63: 0.51272 | C63: 0.512767 | D63: 0.1102 | E63: 1.000426497 | F63: 106000000000 | G63: 6.537735849e-12 | H63: 3.522626263e+11 | I63: 65234080.78 | J63: 65.23408078 | K63: 0.06523408078
B64: 0.51287 | C64: 0.512929 | D64: 0.1296 | E64: 1.000455247 | F64: 106000000000 | G64: 6.537735849e-12 | H64: 3.522626263e+11 | I64: 69630426.15 | J64: 69.63042615 | K64: 0.06963042615
B65: 0.5129 | C65: 0.512967 | D65: 0.1445 | E65: 1.000463668 | F65: 106000000000 | G65: 6.537735849e-12 | H65: 3.522626263e+11 | I65: 70918112.91 | J65: 70.91811291 | K65: 0.07091811291
B66: 0.51278 | C66: 0.512813 | D66: 0.065 | E66: 1.000507692 | F66: 106000000000 | G66: 6.537735849e-12 | H66: 3.522626263e+11 | I66: 77649961.1 | J66: 77.6499611 | K66: 0.0776499611
B67: 0.5128 | C67: 0.512828 | D67: 0.068 | E67: 1.000411765 | F67: 106000000000 | G67: 6.537735849e-12 | H67: 3.522626263e+11 | I67: 62981152.03 | J67: 62.98115203 | K67: 0.06298115203
I68: Average | J68: =AVERAGE(J58:J67) -> 72.31606565
I69: Maximum | J69: =MAX(J58:J68) -> 80.07627232
I70: Minimum | J70: =MIN(J58:J69) -> 62.98115203
I71: Difference | J71: =(J69-ABS(J70)) -> 17.09512029

Sheet Rb-Sr _16
A1: Rubidium | B1: TABLE 1. | K1: Rubidium_012.pdf
A2: Strontium | B2: Initial | C2: Today | D2: Today | E2: The Ratio | F2: Half | G2: Decay | H2: 2.303/Delta | I2: Age | J2: Age | K2: Age | L2: Model Age | M2: Model Age | N2: Model Age
A3: Dating | B3: 87Sr/86Sr | C3: 87Sr/86Sr | D3: 87Rb/86Sr | E3: Plus One | F3: Life | G3: Constant | H3: Constant | I3: Years | J3: Million Years | K3: Billion Years | L3: Million Years | M3: % Difference | N3: Difference
A4: TABLE 1 | B4: 0.725 | C4: 0.79991 | D4: 1.667 | E4: =1+((C4-B4)/D4) -> 1.044937013 | F4: 48800000000 | G4: =(0.693/F4) -> 1.420081967e-11 | H4: =(2.303/G4) -> 1.621737374e+11 | I4: =(LOG(E4))*(H4) -> 3095914899 | J4: =(I4/1000000) -> 3095.914899 | K4: =(J4/1000) -> 3.095914899 | L4: 3120 | M4: =(L4/J4) * 100 -> 100.7779639 | N4: =(L4-J4) -> 24.0851014
B5: 0.725 | C5: 0.83517 | D5: 2.47 | E5: 1.044603239 | F5: 48800000000 | G5: 1.420081967e-11 | H5: 1.621737374e+11 | I5: 3073414187 | J5: 3073.414187 | K5: 3.073414187 | L5: 3120 | M5: =(L5/J5) * 100 -> 101.5157675 | N5: =(L5-J5) -> 46.58581273
B6: 0.734 | C6: 0.74362 | D6: 0.259 | E6: 1.037142857 | F6: 48800000000 | G6: 1.420081967e-11 | H6: 1.621737374e+11 | I6: 2568601825 | J6: 2568.601825 | K6: 2.568601825 | L6: 2460 | M6: 95.77194786 | N6: =(J6-L6) -> 108.6018245
B7: 0.734 | C7: 0.83196 | D7: 2.74 | E7: 1.035751825 | F7: 48800000000 | G7: 1.420081967e-11 | H7: 1.621737374e+11 | I7: 2474075041 | J7: 2474.075041 | K7: 2.474075041 | L7: 2460 | M7: 99.43109888 | N7: =(J7-L7) -> 14.07504051
B8: 0.706 | C8: 0.77116 | D8: 1.494 | E8: 1.043614458 | F8: 48800000000 | G8: 1.420081967e-11 | H8: 1.621737374e+11 | I8: 3006715203 | J8: 3006.715203 | K8: 3.006715203 | L8: 3060 | M8: 101.772193 | N8: =(L8-J8) -> 53.2847971
B9: 0.706 | C9: 0.73648 | D9: 0.689 | E9: 1.044238026 | F9: 48800000000 | G9: 1.420081967e-11 | H9: 1.621737374e+11 | I9: 3048785837 | J9: 3048.785837 | K9: 3.048785837 | L9: 3060 | M9: 100.3678239 | N9: =(L9-J9) -> 11.21416287
B10: 0.706 | C10: 0.76422 | D10: 1.486 | E10: 1.039179004 | F10: 48800000000 | G10: 1.420081967e-11 | H10: 1.621737374e+11 | I10: 2706738628 | J10: 2706.738628 | K10: 2.706738628 | L10: 3060 | M10: 113.0511815 | N10: =(L10-J10) -> 353.2613723
B11: 0.706 | C11: 0.70884 | D11: 0.056 | E11: 1.050714286 | F11: 48800000000 | G11: 1.420081967e-11 | H11: 1.621737374e+11 | I11: 3484243886 | J11: 3484.243886 | K11: 3.484243886 | L11: 2300 | M11: 66.01145256 | N11: 1184.243886
B12: 0.706 | C12: 0.70565 | D12: 0.025 | E12: 0.986 | F12: 48800000000 | G12: 1.420081967e-11 | H12: 1.621737374e+11 | I12: -993003588.2 | J12: -993.0035882 | K12: -0.9930035882 | L12: 2300 | M12: -231.6205125 | N12: =(L12-J12) -> 3293.003588
B13: 0.706 | C13: 0.70534 | D13: 0.011 | E13: 0.94 | F13: 48800000000 | G13: 1.420081967e-11 | H13: 1.621737374e+11 | I13: -4357956413 | J13: -4357.956413 | K13: -4.357956413 | L13: 2300 | M13: -52.77703084 | N13: 6657.956413
B14: 0.706 | C14: 0.70601 | D14: 0.031 | E14: 1.000322581 | F14: 48800000000 | G14: 1.420081967e-11 | H14: 1.621737374e+11 | I14: 22716065.11 | J14: 22.71606511 | K14: 0.02271606511 | L14: 2300 | M14: 10124.99299 | N14: 2277.283935
B15: 0.706 | C15: 0.7054 | D15: 0.002 | E15: 0.7 | F15: 48800000000 | G15: 1.420081967e-11 | H15: 1.621737374e+11 | I15: -2.512102978e+10 | J15: -25121.02978 | K15: -25.12102978 | L15: 2300 | M15: -9.155675625 | N15: 27421.02978
B16: 0.706 | C16: 0.70654 | D16: 0.04 | E16: 1.0135 | F16: 48800000000 | G16: 1.420081967e-11 | H16: 1.621737374e+11 | I16: 944459794.3 | J16: 944.4597943 | K16: 0.9444597943 | L16: 2300 | M16: 243.5254538 | N16: 1355.540206
B17: 0.706 | C17: 0.70656 | D17: 0.029 | E17: 1.019310345 | F17: 48800000000 | G17: 1.420081967e-11 | H17: 1.621737374e+11 | I17: 1347085093 | J17: 1347.085093 | K17: 1.347085093 | L17: 2300 | M17: 170.7390284 | N17: 952.9149069
B18: 0.706 | C18: 0.70579 | D18: 0.014 | E18: 0.985 | F18: 48800000000 | G18: 1.420081967e-11 | H18: 1.621737374e+11 | I18: -1064471031 | J18: -1064.471031 | K18: -1.064471031 | L18: 2300 | M18: -216.0697597 | N18: 3364.471031
B19: 0.706 | C19: 0.70578 | D19: 0.002 | E19: 0.89 | F19: 48800000000 | G19: 1.420081967e-11 | H19: 1.621737374e+11 | I19: -8207611771 | J19: -8207.611771 | K19: -8.207611771 | L19: 2300 | M19: -28.02276794 | N19: 10507.61177
I20: Average | J20: =AVERAGE(J4:J19) -> -873.2076327 | K20: =AVERAGE(K4:K19) -> -0.8732076327
I21: Maximum | J21: =MAX(J4:J20) -> 3484.243886 | K21: =MAX(K4:K20) -> 3.484243886
I22: Minimum | J22: =MIN(J4:J21) -> -25121.02978 | K22: =MIN(K4:K21) -> -25.12102978
I23: Difference | J23: =(J21+ABS(J22)) -> 28605.27366 | K23: =(K21+ABS(K22)) -> 28.60527366

Sheet Rb-Sr _17
A1: Rubidium | B1: TABLE 1. | K1: Rubidium_013.pdf | P1: 205093
A2: Strontium | B2: Initial | C2: Today | D2: Today | E2: The Ratio | F2: Half | G2: Decay | H2: 2.303/Delta | I2: Age | J2: Age | K2: Age | L2: Model Age | M2: Model Age | N2: Model Age | P2: 189521
A3: Dating | B3: 87Sr/86Sr | C3: 87Sr/86Sr | D3: 87Rb/86Sr | E3: Plus One | F3: Life | G3: Constant | H3: Constant | I3: Years | J3: Million Years | K3: Billion Years | L3: Million Years | M3: % Difference | N3: Difference | P3: 188777
A4: TABLE 1 | B4: 0.678 | C4: 0.70579 | D4: 0.025 | E4: =1+((C4-B4)/D4) -> 2.1116 | F4: 48800000000 | G4: =(0.693/F4) -> 1.420081967e-11 | H4: =(2.303/G4) -> 1.621737374e+11 | I4: =(LOG(E4))*(H4) -> 5.264348502e+10 | J4: =(I4/1000000) -> 52643.48502 | K4: =(J4/1000) -> 52.64348502 | L4: 2500 | M4: =(J4/L4) * 100 -> 2105.739401 | N4: =(J4-L4) -> 50143.48502 | P4: 95450
B5: 0.678 | C5: 0.70235 | D5: 0.0014 | E5: 18.39285714 | F5: 48800000000 | G5: 1.420081967e-11 | H5: 1.621737374e+11 | I5: 2.050928869e+11 | J5: 205092.8869 | K5: 205.0928869 | L5: 2500 | M5: =(J5/L5) * 100 -> 8203.715474 | N5: 202592.8869 | P5: 52643
B6: 0.678 | C6: 0.70382 | D6: 0.0019 | E6: 14.58947368 | F6: 48800000000 | G6: 1.420081967e-11 | H6: 1.621737374e+11 | I6: 1.887766564e+11 | J6: 188776.6564 | K6: 188.7766564 | L6: 2500 | M6: 7551.066257 | N6: =(J6-L6) -> 186276.6564 | P6: 13119
B7: 0.678 | C7: 0.70246 | D7: 0.0085 | E7: 3.877647059 | F7: 48800000000 | G7: 1.420081967e-11 | H7: 1.621737374e+11 | I7: 9.545031723e+10 | J7: 95450.31723 | K7: 95.45031723 | L7: 2500 | M7: 3818.012689 | N7: 92950.31723 | P7: 12220
B8: 0.678 | C8: 0.71362 | D8: 0.188 | E8: 1.189468085 | F8: 48800000000 | G8: 1.420081967e-11 | H8: 1.621737374e+11 | I8: 1.22202442e+10 | J8: 12220.2442 | K8: 12.2202442 | L8: 2500 | M8: 488.8097682 | N8: 9720.244204 | P8: 11974
B9: 0.678 | C9: 0.70274 | D9: 0.0018 | E9: 14.74444444 | F9: 48800000000 | G9: 1.420081967e-11 | H9: 1.621737374e+11 | I9: 1.895208374e+11 | J9: 189520.8374 | K9: 189.5208374 | L9: 2500 | M9: 7580.833496 | N9: 187020.8374 | P9: 11908
B10: 0.678 | C10: 0.7255 | D10: 0.232 | E10: 1.204741379 | F10: 48800000000 | G10: 1.420081967e-11 | H10: 1.621737374e+11 | I10: 1.311885431e+10 | J10: 13118.85431 | K10: 13.11885431 | L10: 2500 | M10: 524.7541724 | N10: 10618.85431 | P10: 9960
B11: 0.678 | C11: 0.73359 | D11: 0.403 | E11: 1.137940447 | F11: 48800000000 | G11: 1.420081967e-11 | H11: 1.621737374e+11 | I11: 9101114592 | J11: 9101.114592 | K11: 9.101114592 | L11: 2500 | M11: 364.0445837 | N11: 6601.114592 | P11: 9101
B12: 0.678 | C12: 0.71525 | D12: 0.201 | E12: 1.185323383 | F12: 48800000000 | G12: 1.420081967e-11 | H12: 1.621737374e+11 | I12: 1.197439823e+10 | J12: 11974.39823 | K12: 11.97439823 | L12: 2500 | M12: 478.9759291 | N12: 9474.398227 | P12: 7124
B13: 0.678 | C13: 0.71795 | D13: 0.263 | E13: 1.151901141 | F13: 48800000000 | G13: 1.420081967e-11 | H13: 1.621737374e+11 | I13: 9959933869 | J13: 9959.933869 | K13: 9.959933869 | L13: 2500 | M13: 398.3973547 | N13: 7459.933869 | P13: 6022
B14: 0.678 | C14: 0.81728 | D14: 1.99 | E14: 1.06998995 | F14: 48800000000 | G14: 1.420081967e-11 | H14: 1.621737374e+11 | I14: 4764615499 | J14: 4764.615499 | K14: 4.764615499 | L14: 2500 | M14: 190.58462 | N14: 2264.615499 | P14: 5362
B15: 0.678 | C15: 0.73138 | D15: 0.598 | E15: 1.089264214 | F15: 48800000000 | G15: 1.420081967e-11 | H15: 1.621737374e+11 | I15: 6022035638 | J15: 6022.035638 | K15: 6.022035638 | L15: 2500 | M15: 240.8814255 | N15: 3522.035638 | P15: 5352
B16: 0.678 | C16: 0.83011 | D16: 2.03 | E16: 1.074931034 | F16: 48800000000 | G16: 1.420081967e-11 | H16: 1.621737374e+11 | I16: 5089109449 | J16: 5089.109449 | K16: 5.089109449 | L16: 2500 | M16: 203.564378 | N16: 2589.109449 | P16: 5314
B17: 0.678 | C17: 0.72092 | D17: 0.233 | E17: 1.184206009 | F17: 48800000000 | G17: 1.420081967e-11 | H17: 1.621737374e+11 | I17: 1.190797323e+10 | J17: 11907.97323 | K17: 11.90797323 | L17: 2500 | M17: 476.3189293 | N17: 9407.973233 | P17: 5314
B18: 0.678 | C18: 0.73878 | D18: 0.571 | E18: 1.106444834 | F18: 48800000000 | G18: 1.420081967e-11 | H18: 1.621737374e+11 | I18: 7124254214 | J18: 7124.254214 | K18: 7.124254214 | L18: 2500 | M18: 284.9701686 | N18: 4624.254214 | P18: 5311
B19: 0.678 | C19: 0.806 | D19: 2.9 | E19: =1+((C19-B19)/D19) -> 1.044137931 | F19: 48800000000 | G19: =(0.693/F19) -> 1.420081967e-11 | H19: =(2.303/G19) -> 1.621737374e+11 | I19: =(LOG(E19))*(H19) -> 3042034358 | J19: =(I19/1000000) -> 3042.034358 | K19: =(J19/1000) -> 3.042034358 | L19: 2500 | M19: 121.6813743 | N19: 542.0343581 | P19: 5306
B20: 0.678 | C20: 0.8926 | D20: 4.96 | E20: 1.043266129 | F20: 48800000000 | G20: 1.420081967e-11 | H20: 1.621737374e+11 | I20: 2983203363 | J20: 2983.203363 | K20: 2.983203363 | L20: 2500 | M20: 119.3281345 | N20: 483.2033628 | P20: 5306
B21: 0.678 | C21: 0.83452 | D21: 3.75 | E21: 1.041738667 | F21: 48800000000 | G21: 1.420081967e-11 | H21: 1.621737374e+11 | I21: 2880008430 | J21: 2880.00843 | K21: 2.88000843 | L21: 2500 | M21: 115.2003372 | N21: 380.0084305 | P21: 5259
B22: 0.678 | C22: 0.7089 | D22: 0.542 | E22: 1.05701107 | F22: 48800000000 | G22: 1.420081967e-11 | H22: 1.621737374e+11 | I22: 3905068301 | J22: 3905.068301 | K22: 3.905068301 | L22: 2500 | M22: 156.202732 | N22: 1405.068301 | P22: 5238
B23: 0.678 | C23: 0.71112 | D23: 1.6 | E23: 1.0207 | F23: 48800000000 | G23: 1.420081967e-11 | H23: 1.621737374e+11 | I23: 1443040528 | J23: 1443.040528 | K23: 1.443040528 | L23: 2500 | M23: 57.72162112 | N23: =(L23-J23) -> 1056.959472 | P23: 5228
B24: 0.678 | C24: 0.71387 | D24: 0.604 | E24: 1.059387417 | F24: 48800000000 | G24: 1.420081967e-11 | H24: 1.621737374e+11 | I24: 4063232231 | J24: 4063.232231 | K24: 4.063232231 | L24: 2500 | M24: 162.5292893 | N24: 1563.232231 | P24: 5197
I25: Average | J25: =AVERAGE(J4:J24) -> 40051.58588 | P25: 5179
I26: Maximum | J26: =MAX(J4:J25) -> 205092.8869 | P26: 5161
A27: TABLE 3 | B27: Pb206/Pb204 | C27: Pb207/Pb204 | D27: Pb207/Pb206 | E27: Age | I27: Minimum | J27: =MIN(J4:J26) -> 1443.040528 | P27: 5156
B28: 17.75 | C28: 15.55 | D28: =(C28/B28) -> 0.876056338 | E28: =[1]!AgePb76($D$28) -> 5050.715088 | I28: Difference | J28: =(J26-J27) -> 203649.8463 | P28: 5125
B29: 16.73 | C29: 15.45 | D29: =(C29/B29) -> 0.9234907352 | E29: =[1]!AgePb76($D$29) -> 5125.271603 | P29: 5089
B30: 14.18 | C30: 14.98 | D30: 1.056417489 | E30: =[1]!AgePb76($D$30) -> 5314.373148 | P30: 5051
B31: 14.8 | C31: 14.81 | D31: 1.000675676 | E31: =[1]!AgePb76($D$31) -> 5238.321502 | P31: 5050
B32: 16.23 | C32: 15.32 | D32: 0.943930992 | E32: =[1]!AgePb76($D$32) -> 5156.156629 | P32: 5050
B33: 14.95 | C33: 15.18 | D33: 1.015384615 | E33: =[1]!AgePb76($D$33) -> 5258.816365 | J33: Age | K33: Age | P33: 5002
B34: 17.81 | C34: 15.6 | D34: 0.8759124088 | E34: =[1]!AgePb76($D$34) -> 5050.482401 | J34: Million Years | K34: Million Years | P34: 5002
B35: 17.81 | C35: 15.6 | D35: 0.8759124088 | E35: =[1]!AgePb76($D$35) -> 5050.482401 | J35: 205092.8869 | K35: 11974.39823 | P35: 5001
B36: 16.09 | C36: 15.64 | D36: 0.9720323182 | E36: =[1]!AgePb76($D$36) -> 5197.480873 | J36: 189520.8374 | K36: 11907.97323
B37: 14.11 | C37: 14.82 | D37: 1.050318923 | E37: =[1]!AgePb76($D$37) -> 5306.261575 | J37: 188776.6564 | K37: 9959.933869
B38: 13.43 | C38: 14.68 | D38: 1.093075205 | E38: =[1]!AgePb76($D$38) -> 5362.112889 | J38: 95450.31723 | K38: 9101.114592
B39: 13.56 | C39: 14.72 | D39: 1.085545723 | E39: =[1]!AgePb76($D$39) -> 5352.446378 | J39: 52643.48502 | K39: 7124.254214
B40: 19.02 | C40: 15.75 | D40: 0.8280757098 | E40: =[1]!AgePb76($D$40) -> 4970.809006 | J40: 13118.85431 | K40: 6022.035638
B41: 16.36 | C41: 15.5 | D41: 0.9474327628 | E41: =[1]!AgePb76($D$41) -> 5161.376651 | J41: 12220.2442 | K41: 5089.109449
B42: 24.65 | C42: 16.87 | D42: 0.6843813387 | E42: =[1]!AgePb76($D$42) -> 4698.268558
B43: 18.76 | C43: 15.88 | D43: 0.8464818763 | E43: =[1]!AgePb76($D$43) -> 5002.02993
D44: Average | E44: =AVERAGE(E28:E43) -> 5143.462812 | F44: 5138.102426
D45: Maximum | E45: =MAX(E28:E44) -> 5362.112889 | F45: 5314.373148
D46: Minimum | E46: =MIN(E28:E45) -> 4698.268558 | F46: 4940.027981
D47: Difference | E47: =(E45-E46) -> 663.8443304 | F47: 374.3451674
A50: TABLE 4 | B50: Pb206/Pb204 | C50: Pb207/Pb204 | D50: Pb207/Pb206 | E50: Age
B51: 14.18 | C51: 14.98 | D51: 1.056417489 | E51: =[1]!AgePb76($D$51) -> 5314.373148
B52: 15.9 | C52: 15.25 | D52: 0.9591194969 | E52: =[1]!AgePb76($D$52) -> 5178.651178
B53: 14.13 | C53: 14.89 | D53: 1.05378627 | E53: =[1]!AgePb76($D$53) -> 5310.879498
B54: 14.11 | C54: 14.82 | D54: 1.050318923 | E54: =[1]!AgePb76($D$54) -> 5306.261575
B55: 15.28 | C55: 15.18 | D55: 0.9934554974 | E55: =[1]!AgePb76($D$55) -> 5228.144371
B56: 17.4 | C56: 14.1 | D56: 0.8103448276 | E56: =[1]!AgePb76($D$56) -> 4940.027981
B57: 18.76 | C57: 15.88 | D57: 0.8464818763 | E57: =[1]!AgePb76($D$57) -> 5002.02993
B58: 20.05 | C58: 16.5 | D58: 0.8229426434 | E58: =[1]!AgePb76($D$58) -> 4961.970565
B59: 18.72 | C59: 15.83 | D59: 0.8456196581 | E59: =[1]!AgePb76($D$59) -> 5000.583586
D60: Average | E60: =AVERAGE(E51:E59) -> 5138.102426
D61: Maximum | E61: =MAX(E51:E60) -> 5314.373148
D62: Minimum | E62: =MIN(E51:E61) -> 4940.027981
D63: Difference | E63: =(E61-E62) -> 374.3451674
D66: Summary | E66: Pb207/Pb206 | F66: Pb207/Pb206 | G66: 87Rb/86Sr
D67: Average | E67: 5143.462812 | F67: 5138.102426 | G67: 40051.58588
D68: Maximum | E68: 5362.112889 | F68: 5314.373148 | G68: 205092.8869
D69: Minimum | E69: 4698.268558 | F69: 4940.027981 | G69: 1443.040528
D70: Difference | E70: 663.8443304 | F70: 374.3451674 | G70: 203649.8463

Sheet Rb-Sr _18
A1: Rubidium | B1: TABLE 1. | K1: Rubidium_014.pdf
A2: Strontium | B2: Initial | C2: Today | D2: Today | E2: The Ratio | F2: Half | G2: Decay | H2: 2.303/Delta | I2: Age | J2: Age | K2: Age | L2: Model Age | M2: Model Age | N2: Model Age
A3: Dating | B3: 87Sr/86Sr | C3: 87Sr/86Sr | D3: 87Rb/86Sr | E3: Plus One | F3: Life | G3: Constant | H3: Constant | I3: Years | J3: Million Years | K3: Billion Years | L3: Million Years | M3: % Difference | N3: Difference
A4: TABLE 1 | B4: 0.7047 | C4: 0.00064 | D4: 0.025 | E4: =1+((C4-B4)/D4) -> -27.1624 | F4: 48800000000 | G4: =(0.693/F4) -> 1.420081967e-11 | H4: =(2.303/G4) -> 1.621737374e+11 | I4: =(LOG(E4))*(H4) ->  | K4: =(J4/1000) -> 0 | L4: 2500 | M4: =(J4/L4) * 100 -> 0 | N4: =(J4-L4) -> -2500
B5: 0.7047 | C5: 0.0004 | D5: 0.0014 | E5: -502.0714286 | F5: 48800000000 | G5: 1.420081967e-11 | H5: 1.621737374e+11 | I5: 0 | K5: 0 | L5: 2500 | M5: =(J5/L5) * 100 -> 0 | N5: -2500
B6: 0.7047 | C6: 6e-05 | D6: 0.0019 | E6: -369.8631579 | F6: 48800000000 | G6: 1.420081967e-11 | H6: 1.621737374e+11 | I6: 0 | K6: 0 | L6: 2500 | M6: 0 | N6: =(J6-L6) -> -2500
B7: 0.7047 | C7: 0.0014 | D7: 0.0085 | E7: -81.74117647 | F7: 48800000000 | G7: 1.420081967e-11 | H7: 1.621737374e+11 | I7: 0 | K7: 0 | L7: 2500 | M7: 0 | N7: -2500
B8: 0.7047 | C8: 0.00029 | D8: 0.188 | E8: -2.746861702 | F8: 48800000000 | G8: 1.420081967e-11 | H8: 1.621737374e+11 | I8: 0 | K8: 0 | L8: 2500 | M8: 0 | N8: -2500
B9: 0.7047 | C9: 0.00019 | D9: 0.0018 | E9: -390.3944444 | F9: 48800000000 | G9: 1.420081967e-11 | H9: 1.621737374e+11 | I9: 0 | K9: 0 | L9: 2500 | M9: 0 | N9: -2500
B10: 0.7047 | C10: 4.5e-05 | D10: 0.232 | E10: -2.037306034 | F10: 48800000000 | G10: 1.420081967e-11 | H10: 1.621737374e+11 | I10: 0 | K10: 0 | L10: 2500 | M10: 0 | N10: -2500
B11: 0.7047 | C11: 0.00076 | D11: 0.403 | E11: -0.7467493797 | F11: 48800000000 | G11: 1.420081967e-11 | H11: 1.621737374e+11 | I11: 0 | K11: 0 | L11: 2500 | M11: 0 | N11: -2500
B12: 0.7047 | C12: 0.0264 | D12: 0.201 | E12: -2.374626866 | F12: 48800000000 | G12: 1.420081967e-11 | H12: 1.621737374e+11 | I12: 0 | K12: 0 | L12: 2500 | M12: 0 | N12: -2500
B13: 0.7047 | C13: 3.61 | D13: 0.263 | E13: 12.04676806 | F13: 48800000000 | G13: 1.420081967e-11 | H13: 1.621737374e+11 | I13: =(LOG(E13))*(H13) -> 1.752888165e+11 | J13: =(I13/1000000) -> 175288.8165 | K13: 175.2888165 | L13: 2500 | M13: 7011.552661 | N13: 172788.8165
B14: 0.7047 | C14: 0.001 | D14: 1.99 | E14: 0.6463819095 | F14: 48800000000 | G14: 1.420081967e-11 | H14: 1.621737374e+11 | I14: -3.073367581e+10 | J14: -30733.67581 | K14: -30.73367581 | L14: 2500 | M14: -1229.347032 | N14: -33233.67581
B15: 0.7047 | C15: 0.0387 | D15: 0.598 | E15: -0.1137123746 | F15: 48800000000 | G15: 1.420081967e-11 | H15: 1.621737374e+11 | I15: 0 | K15: 0 | L15: 2500 | M15: 0 | N15: -2500
B16: 0.7047 | C16: 0.2064 | D16: 2.03 | E16: 0.7545320197 | F16: 48800000000 | G16: 1.420081967e-11 | H16: 1.621737374e+11 | I16: -1.98374687e+10 | J16: -19837.4687 | K16: -19.8374687 | L16: 2500 | M16: -793.498748 | N16: -22337.4687
B17: 0.7047 | C17: 0.1612 | D17: 0.233 | E17: -1.332618026 | F17: 48800000000 | G17: 1.420081967e-11 | H17: 1.621737374e+11 | I17: 0 | K17: 0 | L17: 2500 | M17: 0 | N17: -2500
I18: Average | J18: =AVERAGE(J4:J17) -> 41572.55734
B19: TABLE 5 | C19: Sm-Nd | D19: Rb-Sr | I19: Maximum | J19: =MAX(J4:J18) -> 175288.8165
B20: Sample | C20: Age | D20: Age | I20: Minimum | J20: =MIN(J4:J19) -> -30733.67581
B21: Ib/K1 | C21: 2090 | D21: 2210 | E21: =(D21 * 1000) -> 2210000 | I21: Difference | J21: =(J19+ABS(J20)) -> 206022.4923
B22: Ib/8 | C22: 2900 | D22: 1790 | E22: =(D22 * 1000) -> 1790000
B23: D1 | C23: 1450 | D23: 1660 | E23: 1660000
B24: Ib/5 | C24: 1100 | D24: 1430 | E24: 1430000
B25: D45 | C25: 1630 | D25: 530 | E25: 530000
B26: D58 | C26: 3200 | D26: 1930 | E26: 1930000

Sheet Rb-Sr _19
A1: Rubidium | B1: TABLE 1. | K1: Rubidium_015.pdf
A2: Strontium | B2: Initial | C2: Today | D2: Today | E2: The Ratio | F2: Half | G2: Decay | H2: 2.303/Delta | I2: Age | J2: Age | K2: Age | L2: Model Age | M2: Model Age | N2: Model Age
A3: Dating | B3: 87Sr/86Sr | C3: 87Sr/86Sr | D3: 87Rb/86Sr | E3: Plus One | F3: Life | G3: Constant | H3: Constant | I3: Years | J3: Million Years | K3: Billion Years | L3: Million Years | M3: % Difference | N3: Difference
A4: TABLE 2 | B4: 0.7032 | C4: 0.70453 | D4: 0.033 | E4: =1+((C4-B4)/D4) -> 1.04030303 | F4: 48800000000 | G4: =(0.693/F4) -> 1.420081967e-11 | H4: =(2.303/G4) -> 1.621737374e+11 | I4: =(LOG(E4))*(H4) -> 2782879204 | J4: =(I4/1000000) -> 2782.879204 | K4: =(J4/1000) -> 2.782879204 | L4: 1500 | M4: =(J4/L4) * 100 -> 185.5252803 | N4: =(J4-L4) -> 1282.879204
B5: 0.7032 | C5: 0.70464 | D5: 0.029 | E5: 1.049655172 | F5: 48800000000 | G5: 1.420081967e-11 | H5: 1.621737374e+11 | I5: 3413213922 | J5: 3413.213922 | K5: 3.413213922 | L5: 1500 | M5: =(J5/L5) * 100 -> 227.5475948 | N5: 1913.213922
B6: 0.7032 | C6: 0.70463 | D6: 0.023 | E6: 1.062173913 | F6: 48800000000 | G6: 1.420081967e-11 | H6: 1.621737374e+11 | I6: 4248243375 | J6: 4248.243375 | K6: 4.248243375 | L6: 1500 | M6: 283.216225 | N6: =(J6-L6) -> 2748.243375
B7: 0.7032 | C7: 0.70482 | D7: 0.03 | E7: 1.054 | F7: 48800000000 | G7: 1.420081967e-11 | H7: 1.621737374e+11 | I7: 3704147230 | J7: 3704.14723 | K7: 3.70414723 | L7: 1500 | M7: 246.9431486 | N7: 2204.14723
B8: 0.7032 | C8: 0.70366 | D8: 0.041 | E8: 1.011219512 | F8: 48800000000 | G8: 1.420081967e-11 | H8: 1.621737374e+11 | I8: 785803282.4 | J8: 785.8032824 | K8: 0.7858032824 | L8: 1500 | M8: 52.38688549 | N8: -714.1967176
B9: 0.7032 | C9: 0.70356 | D9: 0.018 | E9: 1.02 | F9: 48800000000 | G9: 1.420081967e-11 | H9: 1.621737374e+11 | I9: 1394721997 | J9: 1394.721997 | K9: 1.394721997 | L9: 1500 | M9: 92.98146645 | N9: -105.2780033
B10: 0.7032 | C10: 0.70412 | D10: 0.058 | E10: 1.015862069 | F10: 48800000000 | G10: 1.420081967e-11 | H10: 1.621737374e+11 | I10: 1108416077 | J10: 1108.416077 | K10: 1.108416077 | L10: 1500 | M10: 73.89440513 | N10: -391.583923
B11: 0.7032 | C11: 0.70383 | D11: 0.042 | E11: 1.015 | F11: 48800000000 | G11: 1.420081967e-11 | H11: 1.621737374e+11 | I11: 1048622238 | J11: 1048.622238 | K11: 1.048622238 | L11: 1500 | M11: 69.90814917 | N11: -451.3777624
B12: 0.7032 | C12: 0.70521 | D12: 0.1 | E12: 1.0201 | F12: 48800000000 | G12: 1.420081967e-11 | H12: 1.621737374e+11 | I12: 1401626674 | J12: 1401.626674 | K12: 1.401626674 | L12: 1500 | M12: 93.44177826 | N12: -98.37332616
B13: 0.7032 | C13: 0.70384 | D13: 0.026 | E13: 1.024615385 | F13: 48800000000 | G13: 1.420081967e-11 | H13: 1.621737374e+11 | I13: 1712696168 | J13: 1712.696168 | K13: 1.712696168 | L13: 1500 | M13: 114.1797445 | N13: 212.6961677
B14: 0.7032 | C14: 0.70546 | D14: 1.183 | E14: 1.001910397 | F14: 48800000000 | G14: 1.420081967e-11 | H14: 1.621737374e+11 | I14: 134423136.2 | J14: 134.4231362 | K14: 0.1344231362 | L14: 1500 | M14: 8.961542411 | N14: -1365.576864
B15: 0.7032 | C15: 0.70553 | D15: 0.903 | E15: 1.002580288 | F15: 48800000000 | G15: 1.420081967e-11 | H15: 1.621737374e+11 | I15: 181498611.3 | J15: 181.4986113 | K15: 0.1814986113 | L15: 1500 | M15: 12.09990742 | N15: -1318.501389
B16: 0.7032 | C16: 0.70551 | D16: 1.034 | E16: 1.002234043 | F16: 48800000000 | G16: 1.420081967e-11 | H16: 1.621737374e+11 | I16: 157170709.1 | J16: 157.1707091 | K16: 0.1571707091 | L16: 1500 | M16: 10.47804727 | N16: -1342.829291
B17: 0.7032 | C17: 0.70554 | D17: 0.013 | E17: 1.18 | F17: 48800000000 | G17: 1.420081967e-11 | H17: 1.621737374e+11 | I17: 1.165737377e+10 | J17: 11657.37377 | K17: 11.65737377 | L17: 1500 | M17: 777.1582517 | N17: 10157.37377
B18: 0.7032 | C18: 0.70505 | D18: 0.703 | E18: =1+((C18-B18)/D18) -> 1.002631579 | F18: 48800000000 | G18: =(0.693/F18) -> 1.420081967e-11 | H18: =(2.303/G18) -> 1.621737374e+11 | I18: =(LOG(E18))*(H18) -> 185101707.7 | J18: =(I18/1000000) -> 185.1017077 | K18: =(J18/1000) -> 0.1851017077 | L18: 1500 | M18: =(J18/L18) * 100 -> 12.34011385 | N18: =(J18-L18) -> -1314.898292
B19: 0.7032 | C19: 0.70353 | D19: 0.026 | E19: 1.012692308 | F19: 48800000000 | G19: 1.420081967e-11 | H19: 1.621737374e+11 | I19: 888308452.3 | J19: 888.3084523 | K19: 0.8883084523 | L19: 1500 | M19: 59.22056349 | N19: -611.6915477
B20: 0.7032 | C20: 0.70338 | D20: 0.025 | E20: 1.0072 | F20: 48800000000 | G20: 1.420081967e-11 | H20: 1.621737374e+11 | I20: 505287486.7 | J20: 505.2874867 | K20: 0.5052874867 | L20: 1500 | M20: 33.68583244 | N20: -994.7125133
B21: 0.7032 | C21: 0.70834 | D21: 0.336 | E21: 1.015297619 | F21: 48800000000 | G21: 1.420081967e-11 | H21: 1.621737374e+11 | I21: 1069271087 | J21: 1069.271087 | K21: 1.069271087 | L21: 1500 | M21: 71.28473912 | N21: -430.7289132
B22: 0.7032 | C22: 0.7083 | D22: 0.33 | E22: 1.015454545 | F22: 48800000000 | G22: 1.420081967e-11 | H22: 1.621737374e+11 | I22: 1080156225 | J22: 1080.156225 | K22: 1.080156225 | L22: 1500 | M22: 72.01041499 | N22: -419.8437752
B23: 0.7032 | C23: 0.70709 | D23: 0.207 | E23: 1.018792271 | F23: 48800000000 | G23: 1.420081967e-11 | H23: 1.621737374e+11 | I23: 1311278678 | J23: 1311.278678 | K23: 1.311278678 | L23: 1500 | M23: 87.41857854 | N23: -188.7213219
B24: 0.7032 | C24: 0.70704 | D24: 0.218 | E24: 1.017614679 | F24: 48800000000 | G24: 1.420081967e-11 | H24: 1.621737374e+11 | I24: 1229822314 | J24: 1229.822314 | K24: 1.229822314 | L24: 1500 | M24: 81.98815426 | N24: -270.1776861
I25: Average | J25: =AVERAGE(J4:J24) -> 1904.764874
I26: Maximum | J26: =MAX(J4:J25) -> 11657.37377
I27: Minimum | J27: =MIN(J4:J26) -> 134.4231362
I28: Difference | J28: =(J26-J27) -> 11522.95064
A31: TABLE 3 | B31: 0.7032 | C31: 0.70448 | D31: 0.0014 | E31: =1+((C31-B31)/D31) -> 1.914285714 | F31: 48800000000 | G31: =(0.693/F31) -> 1.420081967e-11 | H31: =(2.303/G31) -> 1.621737374e+11 | I31: =(LOG(E31))*(H31) -> 4.573408997e+10 | J31: =(I31/1000000) -> 45734.08997 | K31: =(J31/1000) -> 45.73408997 | L31: 1500 | M31: =(J31/L31) * 100 -> 3048.939331 | N31: =(J31-L31) -> 44234.08997
B32: 0.7032 | C32: 0.70444 | D32: 0.0017 | E32: 1.729411765 | F32: 48800000000 | G32: 1.420081967e-11 | H32: 1.621737374e+11 | I32: 3.858087411e+10 | J32: 38580.87411 | K32: 38.58087411 | L32: 1500 | M32: 2572.058274 | N32: 37080.87411
B33: 0.7032 | C33: 0.70464 | D33: 0.0016 | E33: 1.9 | F33: 48800000000 | G33: 1.420081967e-11 | H33: 1.621737374e+11 | I33: 4.520651327e+10 | J33: 45206.51327 | K33: 45.20651327 | L33: 1500 | M33: 3013.767552 | N33: 43706.51327
B34: 0.7032 | C34: 0.7046 | D34: 0.0012 | E34: 2.166666667 | F34: 48800000000 | G34: 1.420081967e-11 | H34: 1.621737374e+11 | I34: 5.445666015e+10 | J34: 54456.66015 | K34: 54.45666015 | L34: 1500 | M34: 3630.44401 | N34: 52956.66015
B35: 0.7032 | C35: 0.70501 | D35: 0.0012 | E35: 2.508333333 | F35: 48800000000 | G35: 1.420081967e-11 | H35: 1.621737374e+11 | I35: 6.476979857e+10 | J35: 64769.79857 | K35: 64.76979857 | L35: 1500 | M35: 4317.986571 | N35: 63269.79857
B36: 0.7032 | C36: 0.70706 | D36: 0.0086 | E36: 1.448837209 | F36: 48800000000 | G36: 1.420081967e-11 | H36: 1.621737374e+11 | I36: 2.611314888e+10 | J36: 26113.14888 | K36: 26.11314888 | L36: 1500 | M36: 1740.876592 | N36: 24613.14888
B37: 0.7032 | C37: 0.70721 | D37: 0.00019 | E37: 22.10526316 | F37: 48800000000 | G37: 1.420081967e-11 | H37: 1.621737374e+11 | I37: 2.180418908e+11 | J37: 218041.8908 | K37: 218.0418908 | L37: 1500 | M37: 14536.12606 | N37: 216541.8908
B38: 0.7032 | C38: 0.70494 | D38: 2.9381 | E38: 1.000592219 | F38: 48800000000 | G38: 1.420081967e-11 | H38: 1.621737374e+11 | I38: 41698357.14 | J38: 41.69835714 | K38: 0.04169835714 | L38: 1500 | M38: 2.779890476 | N38: -1458.301643
B39: 0.7032 | C39: 0.7053 | D39: 0.0115 | E39: 1.182608696 | F39: 48800000000 | G39: 1.420081967e-11 | H39: 1.621737374e+11 | I39: 1.181290823e+10 | J39: 11812.90823 | K39: 11.81290823 | L39: 1500 | M39: 787.5272156 | N39: 10312.90823
B40: 0.7032 | C40: 0.70506 | D40: 0.0019 | E40: 1.978947368 | F40: 48800000000 | G40: 1.420081967e-11 | H40: 1.621737374e+11 | I40: 4.807384923e+10 | J40: 48073.84923 | K40: 48.07384923 | L40: 1500 | M40: 3204.923282 | N40: 46573.84923
B41: 0.7032 | C41: 0.70775 | D41: 0.0164 | E41: 1.277439024 | F41: 48800000000 | G41: 1.420081967e-11 | H41: 1.621737374e+11 | I41: 1.72455843e+10 | J41: 17245.5843 | K41: 17.2455843 | L41: 1500 | M41: 1149.70562 | N41: 15745.5843
B42: 0.7032 | C42: 0.70248 | D42: 0.0036 | E42: 0.8 | F42: 48800000000 | G42: 1.420081967e-11 | H42: 1.621737374e+11 | I42: -1.5716259e+10 | J42: -15716.259 | K42: -15.716259 | L42: 1500 | M42: -1047.7506 | N42: -17216.259
B43: 0.7032 | C43: 0.70314 | D43: 0.0777 | E43: 0.9992277992 | F43: 48800000000 | G43: 1.420081967e-11 | H43: 1.621737374e+11 | I43: -54408005.22 | J43: -54.40800522 | K43: -0.05440800522 | L43: 1500 | M43: -3.627200348 | N43: -1554.408005
I44: Average | J44: =AVERAGE(J31:J43) -> 42638.94992
I45: Maximum | J45: =MAX(J31:J44) -> 218041.8908
I46: Minimum | J46: =MIN(J31:J45) -> -15716.259
I47: Difference | J47: =(J45+ABS(J46)) -> 233758.1498
D48: Average | E48: 1904.764874 | F48: 42638.94992
D49: Maximum | E49: 11657.37377 | F49: 218041.8908
D50: Minimum | E50: 134.4231362 | F50: -15716.259 | K50: Age | L50: Age
D51: Difference | E51: 11522.95064 | F51: 233758.1498 | K51: 218041.8908 | L51: 45206.51327
K52: 64769.79857 | L52: 38580.87411
K53: 54456.66015 | L53: 26113.14888
K54: 48073.84923 | L54: 17245.5843
K55: 45734.08997 | L55: 11812.90823
F58: =(281/4.5) -> 62.44444444
K61: 41.69835714
K62: -54.40800522
K63: -15716.259

Sheet Rb-Sr _20
B1: Pb206/Pb204 | C1: Pb207/Pb204 | D1: Pb207/Pb204 | E1: Age | G1: Age | H1: Age
A2: TABLE 2 | B2: 19.327 | C2: 15.586 | D2: =(C2/B2) -> 0.8064365913 | E2: =[1]!AgePb76($D$2) -> 4933.146904 | G2: 4933.146904 | H2: 4928.037331
B3: 18.917 | C3: 15.554 | D3: =(C3/B3) -> 0.8222233969 | E3: =[1]!AgePb76($D$3) -> 4960.727441 | G3: 4960.727441 | H3: 4955.533839
B4: 19.033 | C4: 15.559 | D4: 0.817474912 | E4: =[1]!AgePb76($D$4) -> 4952.491176 | G4: 4952.491176 | H4: 4947.058974
B5: 19.041 | C5: 15.565 | D5: 0.8174465627 | E5: =[1]!AgePb76($D$5) -> 4952.441852 | G5: 4952.441852 | H5: 4957.226814
B6: 19.225 | C6: 15.596 | D6: 0.8112353706 | E6: =[1]!AgePb76($D$6) -> 4941.590986 | G6: 4941.590986 | H6: 4927.207748
B7: 18.665 | C7: 15.529 | D7: 0.8319849987 | E7: =[1]!AgePb76($D$7) -> 4977.501292 | G7: 4977.501292 | H7: 4951.794251
B8: 19.203 | C8: 15.56 | D8: 0.8102900588 | E8: =[1]!AgePb76($D$8) -> 4939.931796 | G8: 4939.931796 | H8: 4954.10971
B9: 19.137 | C9: 15.589 | D9: 0.8145999895 | E9: =[1]!AgePb76($D$9) -> 4947.479852 | G9: 4947.479852
B10: 19.394 | C10: 15.584 | D10: 0.8035474889 | E10: =[1]!AgePb76($D$10) -> 4928.037331 | G10: 4928.037331
B11: 18.985 | C11: 15.553 | D11: 0.8192257045 | E11: =[1]!AgePb76($D$11) -> 4955.533839 | G11: 4955.533839
B12: 19.096 | C12: 15.551 | D12: 0.8143590281 | E12: =[1]!AgePb76($D$12) -> 4947.058974 | G12: 4947.058974
B13: 18.949 | C13: 15.542 | D13: 0.8202015938 | E13: =[1]!AgePb76($D$13) -> 4957.226814 | G13: 4957.226814
B14: 19.419 | C14: 15.595 | D14: 0.8030794583 | E14: =[1]!AgePb76($D$14) -> 4927.207748 | G14: 4927.207748
B15: 19.046 | C15: 15.562 | D15: 0.8170744513 | E15: =[1]!AgePb76($D$15) -> 4951.794251 | G15: 4951.794251
B16: 19.081 | C16: 15.616 | D16: 0.8184057439 | E16: =[1]!AgePb76($D$16) -> 4954.10971 | G16: 4954.10971

Sheet Rb-Sr _21
A1: Rubidium | B1: TABLE 1. | K1: Rubidium_017.pdf
A2: Strontium | B2: Initial | C2: Today | D2: Today | E2: The Ratio | F2: Half | G2: Decay | H2: 2.303/Delta | I2: Age | J2: Age | K2: Age | L2: Model Age | M2: Model Age | N2: Model Age
A3: Dating | B3: 87Sr/86Sr | C3: 87Sr/86Sr | D3: 87Rb/86Sr | E3: Plus One | F3: Life | G3: Constant | H3: Constant | I3: Years | J3: Million Years | K3: Billion Years | L3: Million Years | M3: % Difference | N3: Difference
A4: TABLE 3 | B4: 0.7042 | C4: 0.7042 | D4: 0.00014 | E4: =1+((C4-B4)/D4) -> 1 | F4: 48800000000 | G4: =(0.693/F4) -> 1.420081967e-11 | H4: =(2.303/G4) -> 1.621737374e+11 | I4: =(LOG(E4))*(H4) -> 0 | J4: =(I4/1000000) -> 0 | K4: =(J4/1000) -> 0 | L4: 1500 | M4: =(J4/L4) * 100 -> 0 | N4: =(J4-L4) -> -1500
B5: 0.70455 | C5: 0.70455 | D5: 0.00394 | E5: 1 | F5: 48800000000 | G5: 1.420081967e-11 | H5: 1.621737374e+11 | I5: 0 | J5: 0 | K5: 0 | L5: 1500 | M5: =(J5/L5) * 100 -> 0 | N5: -1500
B6: 0.70935 | C6: 0.70936 | D6: 0.00064 | E6: 1.015625 | F6: 48800000000 | G6: 1.420081967e-11 | H6: 1.621737374e+11 | I6: 1091977831 | J6: 1091.977831 | K6: 1.091977831 | L6: 1500 | M6: 72.79852206 | N6: -408.022169
B7: 0.70901 | C7: 0.70924 | D7: 0.04041 | E7: 1.00569166 | F7: 48800000000 | G7: 1.420081967e-11 | H7: 1.621737374e+11 | I7: 399733747.3 | J7: 399.7337473 | K7: 0.3997337473 | L7: 1500 | M7: 26.64891649 | N7: -1100.266253
B8: 0.71002 | C8: 0.71002 | D8: 0.00023 | E8: 1 | F8: 48800000000 | G8: 1.420081967e-11 | H8: 1.621737374e+11 | I8: 0 | J8: 0 | K8: 0 | L8: 1500 | M8: 0 | N8: -1500
B9: 0.70864 | C9: 0.70874 | D9: 0.05972 | E9: 1.001674481 | F9: 48800000000 | G9: 1.420081967e-11 | H9: 1.621737374e+11 | I9: 117837001.3 | J9: 117.8370013 | K9: 0.1178370013 | L9: 1500 | M9: 7.855800087 | N9: -1382.162999
B10: 0.70832 | C10: 0.70857 | D10: 0.04513 | E10: 1.005539552 | F10: 48800000000 | G10: 1.420081967e-11 | H10: 1.621737374e+11 | I10: 389080424.1 | J10: 389.0804241 | K10: 0.3890804241 | L10: 1500 | M10: 25.93869494 | N10: -1110.919576
B11: 0.70998 | C11: 0.71027 | D11: 0.05111 | E11: 1.005674036 | F11: 48800000000 | G11: 1.420081967e-11 | H11: 1.621737374e+11 | I11: 398499476.6 | J11: 398.4994766 | K11: 0.3984994766 | L11: 1500 | M11: 26.56663177 | N11: -1101.500523
B12: 0.71006 | C12: 0.71032 | D12: 0.04653 | E12: 1.005587793 | F12: 48800000000 | G12: 1.420081967e-11 | H12: 1.621737374e+11 | I12: 392459253.9 | J12: 392.4592539 | K12: 0.3924592539 | L12: 1500 | M12: 26.16395026 | N12: -1107.540746
I13: Average | J13: =AVERAGE(J4:J12) -> 309.9541927
I14: Maximum | J14: =MAX(J4:J13) -> 1091.977831
I15: Minimum | J15: =MIN(J4:J14) -> 0
I16: Difference | J16: =(J14+ABS(J15)) -> 1091.977831
K18: Rubidium_017.pdf
A19: TABLE 1 | B19: 0.7042 | C19: 0.7042 | D19: 0.0001 | E19: =1+((C19-B19)/D19) -> 1 | F19: 48800000000 | G19: =(0.693/F19) -> 1.420081967e-11 | H19: =(2.303/G19) -> 1.621737374e+11 | I19: =(LOG(E19))*(H19) -> 0 | J19: =(I19/1000000) -> 0 | K19: =(J19/1000) -> 0 | L19: 1500 | M19: =(J19/L19) * 100 -> 0 | N19: =(J19-L19) -> -1500
B20: 0.70374 | C20: 0.70375 | D20: 0.0034 | E20: 1.002941176 | F20: 48800000000 | G20: 1.420081967e-11 | H20: 1.621737374e+11 | I20: 206846431.3 | J20: 206.8464313 | K20: 0.2068464313 | L20: 1500 | M20: 13.78976209 | N20: -1293.153569
B21: 0.70936 | C21: 0.70936 | D21: 0.0005 | E21: 1 | F21: 48800000000 | G21: 1.420081967e-11 | H21: 1.621737374e+11 | I21: 0 | J21: 0 | K21: 0 | L21: 1500 | M21: 0 | N21: -1500
B22: 0.70906 | C22: 0.70907 | D22: 0.0058 | E22: 1.001724138 | F22: 48800000000 | G22: 1.420081967e-11 | H22: 1.621737374e+11 | I22: 121328469.7 | J22: 121.3284697 | K22: 0.1213284697 | L22: 1500 | M22: 8.088564647 | N22: -1378.67153
B23: 0.71002 | C23: 0.71002 | D23: 0.0002 | E23: 1 | F23: 48800000000 | G23: 1.420081967e-11 | H23: 1.621737374e+11 | I23: 0 | J23: 0 | K23: 0 | L23: 1500 | M23: 0 | N23: -1500
B24: 0.71098 | C24: 0.71106 | D24: 0.0434 | E24: 1.001843318 | F24: 48800000000 | G24: 1.420081967e-11 | H24: 1.621737374e+11 | I24: 129707512.3 | J24: 129.7075123 | K24: 0.1297075123 | L24: 1500 | M24: 8.647167484 | N24: -1370.292488
B25: 0.70614 | C25: 0.70617 | D25: 0.0152 | E25: 1.001973684 | F25: 48800000000 | G25: 1.420081967e-11 | H25: 1.621737374e+11 | I25: 138871867.4 | J25: 138.8718674 | K25: 0.1388718674 | L25: 1500 | M25: 9.258124492 | N25: -1361.128133
B26: 0.70995 | C26: 0.70998 | D26: 0.0178 | E26: 1.001685393 | F26: 48800000000 | G26: 1.420081967e-11 | H26: 1.621737374e+11 | I26: 118604281.6 | J26: 118.6042816 | K26: 0.1186042816 | L26: 1500 | M26: 7.906952107 | N26: -1381.395718
B27: 0.71024 | C27: 0.71032 | D27: 0.045 | E27: 1.001777778 | F27: 48800000000 | G27: 1.420081967e-11 | H27: 1.621737374e+11 | I27: 125099782.9 | J27: 125.0997829 | K27: 0.1250997829 | L27: 1500 | M27: 8.339985526 | N27: -1374.900217
B28: 0.70631 | C28: 0.70711 | D28: 0.469 | E28: 1.001705757 | F28: 48800000000 | G28: 1.420081967e-11 | H28: 1.621737374e+11 | I28: 120036090.8 | J28: 120.0360908 | K28: 0.1200360908 | L28: 1500 | M28: 8.002406056 | N28: -1379.963909
B29: 0.70824 | C29: 0.70935 | D29: 0.6487 | E29: 1.001711115 | F29: 48800000000 | G29: 1.420081967e-11 | H29: 1.621737374e+11 | I29: 120412789.8 | J29: 120.4127898 | K29: 0.1204127898 | L29: 1500 | M29: 8.027519317 | N29: -1379.58721
B30: 0.7058 | C30: 0.70758 | D30: 1.0451 | E30: 1.001703186 | F30: 48800000000 | G30: 1.420081967e-11 | H30: 1.621737374e+11 | I30: 119855346.3 | J30: 119.8553463 | K30: 0.1198553463 | L30: 1500 | M30: 7.990356423 | N30: -1380.144654
B31: 0.70953 | C31: 0.71018 | D31: 0.3753 | E31: 1.001731948 | F31: 48800000000 | G31: 1.420081967e-11 | H31: 1.621737374e+11 | I31: 121877577.2 | J31: 121.8775772 | K31: 0.1218775772 | L31: 1500 | M31: 8.125171814 | N31: -1378.122423
B32: 0.70972 | C32: 0.71039 | D32: 0.3955 | E32: 1.001694058 | F32: 48800000000 | G32: 1.420081967e-11 | H32: 1.621737374e+11 | I32: 119213530.8 | J32: 119.2135308 | K32: 0.1192135308 | L32: 1500 | M32: 7.94756872 | N32: -1380.786469
I33: Average | J33: =AVERAGE(J19:J32) -> 102.9895486
I34: Maximum | J34: =MAX(J19:J33) -> 206.8464313
I35: Minimum | J35: =MIN(J19:J34) -> 0
I36: Difference | J36: =(J34+ABS(J35)) -> 206.8464313
G38: Summary | H38: 87Rb/86Sr | I38: 87Rb/86Sr | J38: 147Sm/144Nd | K38: 147Sm/144Nd
G39: Average | H39: 309.9541927 | I39: 102.9895486 | J39: 120.4392921 | K39: 159.1162377
G40: Maximum | H40: 1091.977831 | I40: 206.8464313 | J40: 123.0968588 | K40: 400.2996303
G41: Minimum | H41: 0 | I41: 0 | J41: 119.8496456 | K41: 118.8213678
G42: Difference | H42: 1091.977831 | I42: 206.8464313 | J42: 3.247213224 | K42: 281.4782625
A45: Neodymium | K45: Rubidium_017.pdf
A46: Samarium | B46: Initial | C46: Today | D46: Today | E46: The Ratio | F46: Half | G46: Decay | H46: 2.303/Delta | I46: Age | J46: Age | K46: Age
A47: Dating | B47: 143Nd/144Nd | C47: 143Nd/144Nd | D47: 147Sm/144Nd | E47: Plus One | F47: Life | G47: Constant | H47: Constant | I47: Years | J47: Million Years | K47: Billion Years
B48: 0.511562 | C48: 0.511594 | D48: 0.0402 | E48: =1+((C48-B48)/D48) -> 1.00079602 | F48: 106000000000 | G48: =(0.693/F48) -> 6.537735849e-12 | H48: =(2.303/G48) -> 3.522626263e+11 | I48: =(LOG(E48))*(H48) -> 121731229.6 | J48: =(I48/1000000) -> 121.7312296 | K48: =(J48/1000) -> 0.1217312296
B49: 0.511539 | C49: 0.511565 | D49: 0.0323 | E49: =1+((C49-B49)/D49) -> 1.000804954 | F49: 106000000000 | G49: 6.537735849e-12 | H49: =(2.303/G49) -> 3.522626263e+11 | I49: =(LOG(E49))*(H49) -> 123096858.8 | J49: =(I49/1000000) -> 123.0968588 | K49: =(J49/1000) -> 0.1230968588
B50: 0.518521 | C50: 0.518733 | D50: 0.2696 | E50: 1.00078635 | F50: 106000000000 | G50: 6.537735849e-12 | H50: 3.522626263e+11 | I50: 120253065.2 | J50: 120.2530652 | K50: 0.1202530652
B51: 0.51571 | C51: 0.515833 | D51: 0.156 | E51: 1.000788462 | F51: 106000000000 | G51: 6.537735849e-12 | H51: 3.522626263e+11 | I51: 120575823.6 | J51: 120.5758236 | K51: 0.1205758236
B52: 0.523877 | C52: 0.524274 | D52: 0.5057 | E52: =1+((C52-B52)/D52) -> 1.00078505 | F52: 106000000000 | G52: =(0.693/F52) -> 6.537735849e-12 | H52: =(2.303/G52) -> 3.522626263e+11 | I52: =(LOG(E52))*(H52) -> 120054382.2 | J52: =(I52/1000000) -> 120.0543822 | K52: =(J52/1000) -> 0.1200543822
B53: 0.514044 | C53: 0.514121 | D53: 0.0976 | E53: 1.000788934 | F53: 106000000000 | G53: 6.537735849e-12 | H53: 3.522626263e+11 | I53: 120648111.6 | J53: 120.6481116 | K53: 0.1206481116
B54: 0.516441 | C54: 0.516525 | D54: 0.1068 | E54: 1.000786517 | F54: 106000000000 | G54: 6.537735849e-12 | H54: 3.522626263e+11 | I54: 120278548.7 | J54: 120.2785487 | K54: 0.1202785487
B55: 0.514631 | C55: 0.514756 | D55: 0.1592 | E55: 1.000785176 | F55: 106000000000 | G55: 6.537735849e-12 | H55: 3.522626263e+11 | I55: 120073559.9 | J55: 120.0735599 | K55: 0.1200735599
B56: 0.515492 | C56: 0.515575 | D56: 0.1054 | E56: 1.000787476 | F56: 106000000000 | G56: 6.537735849e-12 | H56: 3.522626263e+11 | I56: 120425211.9 | J56: 120.4252119 | K56: 0.1204252119
B57: 0.511804 | C57: 0.512008 | D57: 0.2603 | E57: 1.000783711 | F57: 106000000000 | G57: 6.537735849e-12 | H57: 3.522626263e+11 | I57: 119849645.6 | J57: 119.8496456 | K57: 0.1198496456
B58: 0.511862 | C58: 0.512052 | D58: 0.2418 | E58: 1.000785773 | F58: 106000000000 | G58: 6.537735849e-12 | H58: 3.522626263e+11 | I58: 120164895.1 | J58: 120.1648951 | K58: 0.1201648951
B59: 0.518005 | C59: 0.518923 | D59: 1.1697 | E59: 1.000784817 | F59: 106000000000 | G59: 6.537735849e-12 | H59: 3.522626263e+11 | I59: 120018641.4 | J59: 120.0186414 | K59: 0.1200186414
B60: 0.514864 | C60: 0.515339 | D60: 0.6051 | E60: 1.000784994 | F60: 106000000000 | G60: 6.537735849e-12 | H60: 3.522626263e+11 | I60: 120045789.7 | J60: 120.0457897 | K60: 0.1200457897
B61: 0.523601 | C61: 0.525428 | D61: 2.3273 | E61: 1.00078503 | F61: 106000000000 | G61: 6.537735849e-12 | H61: 3.522626263e+11 | I61: 120051239 | J61: 120.051239 | K61: 0.120051239
B62: 0.514707 | C62: 0.514928 | D62: 0.281 | E62: 1.000786477 | F62: 106000000000 | G62: 6.537735849e-12 | H62: 3.522626263e+11 | I62: 120272436.3 | J62: 120.2724363 | K62: 0.1202724363
B63: 0.519272 | C63: 0.519583 | D63: 0.396 | E63: 1.000785354 | F63: 106000000000 | G63: 6.537735849e-12 | H63: 3.522626263e+11 | I63: 120100717.4 | J63: 120.1007174 | K63: 0.1201007174
B64: 0.514952 | C64: 0.515129 | D64: 0.2251 | E64: 1.000786317 | F64: 106000000000 | G64: 6.537735849e-12 | H64: 3.522626263e+11 | I64: 120248027.4 | J64: 120.2480274 | K64: 0.1202480274
B65: 0.517311 | C65: 0.517737 | D65: 0.5428 | E65: 1.000784819 | F65: 106000000000 | G65: 6.537735849e-12 | H65: 3.522626263e+11 | I65: 120019074.7 | J65: 120.0190747 | K65: 0.1200190747
I66: Average | J66: =AVERAGE(J48:J65) -> 120.4392921
I67: Maximum | J67: =MAX(J48:J66) -> 123.0968588
I68: Minimum | J68: =MIN(J48:J67) -> 119.8496456
I69: Difference | J69: =(J67-ABS(J68)) -> 3.247213224
A72: Neodymium | K72: Rubidium_017.pdf
A73: Samarium | B73: Initial | C73: Today | D73: Today | E73: The Ratio | F73: Half | G73: Decay | H73: 2.303/Delta | I73: Age | J73: Age | K73: Age
A74: Dating | B74: 143Nd/144Nd | C74: 143Nd/144Nd | D74: 147Sm/144Nd | E74: Plus One | F74: Life | G74: Constant | H74: Constant | I74: Years | J74: Million Years | K74: Billion Years
B75: 0.511764 | C75: 0.511801 | D75: 0.04762 | E75: =1+((C75-B75)/D75) -> 1.000776984 | F75: 106000000000 | G75: =(0.693/F75) -> 6.537735849e-12 | H75: =(2.303/G75) -> 3.522626263e+11 | I75: =(LOG(E75))*(H75) -> 118821367.8 | J75: =(I75/1000000) -> 118.8213678 | K75: =(J75/1000) -> 0.1188213678
B76: 0.511655 | C76: 0.511682 | D76: 0.0346 | E76: =1+((C76-B76)/D76) -> 1.000780347 | F76: 106000000000 | G76: 6.537735849e-12 | H76: =(2.303/G76) -> 3.522626263e+11 | I76: =(LOG(E76))*(H76) -> 119335360.7 | J76: =(I76/1000000) -> 119.3353607 | K76: =(J76/1000) -> 0.1193353607
B77: 0.518432 | C77: 0.518848 | D77: 0.53016 | E77: 1.000784669 | F77: 106000000000 | G77: 6.537735849e-12 | H77: 3.522626263e+11 | I77: 119996041.6 | J77: 119.9960416 | K77: 0.1199960416
B78: 0.51481 | C78: 0.515531 | D78: 0.27519 | E78: =1+((C78-B78)/D78) -> 1.002620008 | F78: 106000000000 | G78: =(0.693/F78) -> 6.537735849e-12 | H78: =(2.303/G78) -> 3.522626263e+11 | I78: =(LOG(E78))*(H78) -> 400299630.3 | J78: =(I78/1000000) -> 400.2996303 | K78: =(J78/1000) -> 0.4002996303
B79: 0.523751 | C79: 0.524993 | D79: 0.98017 | E79: 1.001267127 | F79: 106000000000 | G79: 6.537735849e-12 | H79: 3.522626263e+11 | I79: 193729635.7 | J79: 193.7296357 | K79: 0.1937296357
B80: 0.514525 | C80: 0.514659 | D80: 0.17106 | E80: 1.000783351 | F80: 106000000000 | G80: 6.537735849e-12 | H80: 3.522626263e+11 | I80: 119794578.4 | J80: 119.7945784 | K80: 0.1197945784
B81: 0.518116 | C81: 0.51836 | D81: 0.31118 | E81: 1.000784112 | F81: 106000000000 | G81: 6.537735849e-12 | H81: 3.522626263e+11 | I81: 119910942.8 | J81: 119.9109428 | K81: 0.1199109428
B82: 0.514848 | C82: 0.515017 | D82: 0.21486 | E82: 1.000786559 | F82: 106000000000 | G82: 6.537735849e-12 | H82: 3.522626263e+11 | I82: 120284943.9 | J82: 120.2849439 | K82: 0.1202849439
B83: 0.516495 | C83: 0.516764 | D83: 0.34317 | E83: 1.000783868 | F83: 106000000000 | G83: 6.537735849e-12 | H83: 3.522626263e+11 | I83: 119873638.1 | J83: 119.8736381 | K83: 0.1198736381
I84: Average | J84: =AVERAGE(J75:J83) -> 159.1162377
I85: Maximum | J85: =MAX(J75:J84) -> 400.2996303
I86: Minimum | J86: =MIN(J75:J85) -> 118.8213678
I87: Difference | J87: =(J85-ABS(J86)) -> 281.4782625

Sheet Rb-Sr _22
A1: Rubidium | B1: TABLE 1. | K1: Rubidium_018.pdf | Q1: 17171 | R1: -1
A2: Strontium | B2: Initial | C2: Today | D2: Today | E2: The Ratio | F2: Half | G2: Decay | H2: 2.303/Delta | I2: Age | J2: Age | K2: Age | L2: Model Age | M2: Model Age | N2: Model Age | Q2: 15343 | R2: -4
A3: Dating | B3: 87Sr/86Sr | C3: 87Sr/86Sr | D3: 87Rb/86Sr | E3: Plus One | F3: Life | G3: Constant | H3: Constant | I3: Years | J3: Million Years | K3: Billion Years | L3: Million Years | M3: % Difference | N3: Difference | Q3: 15299 | R3: -26
A4: TABLE 2 | B4: 0.70753 | C4: 0.70473 | D4: 0.0657 | E4: =1+((C4-B4)/D4) -> 0.9573820396 | F4: 48800000000 | G4: =(0.693/F4) -> 1.420081967e-11 | H4: =(2.303/G4) -> 1.621737374e+11 | I4: =(LOG(E4))*(H4) -> -3067471501 | J4: =(I4/1000000) -> -3067.471501 | K4: =(J4/1000) -> -3.067471501 | Q4: 15136 | R4: -481
B5: 0.70753 | C5: 0.7038 | D5: 0.2004 | E5: =1+((C5-B5)/D5) -> 0.9813872255 | F5: 48800000000 | G5: =(0.693/F5) -> 1.420081967e-11 | H5: =(2.303/G5) -> 1.621737374e+11 | I5: =(LOG(E5))*(H5) -> -1323272732 | J5: =(I5/1000000) -> -1323.272732 | K5: =(J5/1000) -> -1.323272732 | Q5: 15054 | R5: -552
B6: 0.70753 | C6: 0.70514 | D6: 6.5099 | E6: 0.9996328669 | F6: 48800000000 | G6: 1.420081967e-11 | H6: 1.621737374e+11 | I6: -25862360.1 | J6: -25.8623601 | K6: -0.0258623601 | Q6: 13476 | R6: -750
B7: 0.70753 | C7: 0.7054 | D7: 200.745 | E7: 0.9999893895 | F7: 48800000000 | G7: 1.420081967e-11 | H7: 1.621737374e+11 | I7: -747312.0879 | J7: -0.7473120879 | K7: -0.0007473120879 | Q7: 13322 | R7: -754
B8: 0.70753 | C8: 0.71039 | D8: 502.002 | E8: 1.000005697 | F8: 48800000000 | G8: 1.420081967e-11 | H8: 1.621737374e+11 | I8: 401258.4445 | J8: 0.4012584445 | K8: 0.0004012584445 | Q8: 13202 | R8: -927
B9: 0.70753 | C9: 0.70513 | D9: 41.069 | E9: 0.9999415618 | F9: 48800000000 | G9: 1.420081967e-11 | H9: 1.621737374e+11 | I9: -4115993.12 | J9: -4.11599312 | K9: -0.00411599312 | Q9: 13001 | R9: -1194
B10: 0.70753 | C10: 0.7052 | D10: 0.22 | E10: 0.9894090909 | F10: 48800000000 | G10: 1.420081967e-11 | H10: 1.621737374e+11 | I10: -749908156.3 | J10: -749.9081563 | K10: -0.7499081563 | Q10: 11119 | R10: -1229
B11: 0.70753 | C11: 0.70513 | D11: 0.3074 | E11: 0.992192583 | F11: 48800000000 | G11: 1.420081967e-11 | H11: 1.621737374e+11 | I11: -552043264.5 | J11: -552.0432645 | K11: -0.5520432645 | Q11: 10873 | R11: -1245
B12: 0.70753 | C12: 0.70495 | D12: 0.0961 | E12: 0.9731529657 | F12: 48800000000 | G12: 1.420081967e-11 | H12: 1.621737374e+11 | I12: -1916713484 | J12: -1916.713484 | K12: -1.916713484 | Q12: 10758 | R12: -1323
B13: 0.70753 | C13: 0.70495 | D13: 0.3794 | E13: 0.9931997891 | F13: 48800000000 | G13: 1.420081967e-11 | H13: 1.621737374e+11 | I13: -480582623.8 | J13: -480.5826238 | K13: -0.4805826238 | Q13: 9737 | R13: -1370
B14: 0.70753 | C14: 0.70544 | D14: 0.1208 | E14: 0.9826986755 | F14: 48800000000 | G14: 1.420081967e-11 | H14: 1.621737374e+11 | I14: -1229216811 | J14: -1229.216811 | K14: -1.229216811 | Q14: 9707 | R14: -1499
B15: 0.70753 | C15: 0.70527 | D15: 0.2121 | E15: 0.9893446488 | F15: 48800000000 | G15: 1.420081967e-11 | H15: 1.621737374e+11 | I15: -754495625.5 | J15: -754.4956255 | K15: -0.7544956255 | Q15: 9049 | R15: -1611
B16: 0.70753 | C16: 0.7051 | D16: 0.1859 | E16: 0.9869284562 | F16: 48800000000 | G16: 1.420081967e-11 | H16: 1.621737374e+11 | I16: -926714059.9 | J16: -926.7140599 | K16: -0.9267140599 | Q16: 8584 | R16: -1917
B17: 0.70753 | C17: 0.70443 | D17: 0.1769 | E17: 0.9824759751 | F17: 48800000000 | G17: 1.420081967e-11 | H17: 1.621737374e+11 | I17: -1245179815 | J17: -1245.179815 | K17: -1.245179815 | Q17: 8420 | R17: -1926
B18: 0.70753 | C18: 0.70474 | D18: 0.1448 | E18: 0.9807320442 | F18: 48800000000 | G18: 1.420081967e-11 | H18: 1.621737374e+11 | I18: -1370308796 | J18: -1370.308796 | K18: -1.370308796 | Q18: 8419 | R18: -2050
B19: 0.70753 | C19: 0.70453 | D19: 0.1425 | E19: 0.9789473684 | F19: 48800000000 | G19: 1.420081967e-11 | H19: 1.621737374e+11 | I19: -1498591838 | J19: -1498.591838 | K19: -1.498591838 | Q19: 8368 | R19: -2725
B20: 0.70753 | C20: 0.7047 | D20: 0.1049 | E20: 0.9730219256 | F20: 48800000000 | G20: 1.420081967e-11 | H20: 1.621737374e+11 | I20: -1926198038 | J20: -1926.198038 | K20: -1.926198038 | Q20: 7975 | R20: -2981
B21: 0.70753 | C21: 0.70417 | D21: 0.1486 | E21: 0.9773889637 | F21: 48800000000 | G21: 1.420081967e-11 | H21: 1.621737374e+11 | I21: -1610801866 | J21: -1610.801866 | K21: -1.610801866 | Q21: 7968 | R21: -3067
B22: 0.70753 | C22: 0.70417 | D22: 0.0783 | E22: 0.9570881226 | F22: 48800000000 | G22: 1.420081967e-11 | H22: 1.621737374e+11 | I22: -3089097237 | J22: -3089.097237 | K22: -3.089097237 | Q22: 7830 | R22: -3089
B23: 0.70753 | C23: 0.70382 | D23: 0.0746 | E23: 0.9502680965 | F23: 48800000000 | G23: 1.420081967e-11 | H23: 1.621737374e+11 | I23: -3592772833 | J23: -3592.772833 | K23: -3.592772833 | Q23: 7314 | R23: -3231
B24: 0.70753 | C24: 0.70417 | D24: 0.1171 | E24: 0.9713065756 | F24: 48800000000 | G24: 1.420081967e-11 | H24: 1.621737374e+11 | I24: -2050471406 | J24: -2050.471406 | K24: -2.050471406 | Q24: 7250 | R24: -3593
B25: 0.70753 | C25: 0.70497 | D25: 0.0571 | E25: 0.9551663748 | F25: 48800000000 | G25: 1.420081967e-11 | H25: 1.621737374e+11 | I25: -3230658910 | J25: -3230.65891 | K25: -3.23065891 | Q25: 7184
B26: 0.70753 | C26: 0.70494 | D26: 0.0625 | E26: 0.95856 | F26: 48800000000 | G26: 1.420081967e-11 | H26: 1.621737374e+11 | I26: -2980866450 | J26: -2980.86645 | K26: -2.98086645 | Q26: 6972
B27: 0.70753 | C27: 0.70408 | D27: 0.0909 | E27: 0.9620462046 | F27: 48800000000 | G27: 1.420081967e-11 | H27: 1.621737374e+11 | I27: -2725178739 | J27: -2725.178739 | K27: -2.725178739 | Q27: 6861
B28: 0.70753 | C28: 0.70357 | D28: 0.2355 | E28: 0.9831847134 | F28: 48800000000 | G28: 1.420081967e-11 | H28: 1.621737374e+11 | I28: -1194390522 | J28: -1194.390522 | K28: -1.194390522 | Q28: 6656
I29: Average | J29: =AVERAGE(J4:J28) -> -1501.810365 | Q29: 6654
I30: Maximum | J30: =MAX(J4:J29) -> 0.4012584445 | Q30: 6628
I31: Minimum | J31: =MIN(J4:J30) -> -3592.772833 | Q31: 6577
I32: Difference | J32: =(J30+ABS(J31)) -> 3593.174092 | Q32: 6518
Q33: 6448
Q34: 5758
B35: 206Pb | C35: 207Pb | D35: 208Pb | E35: 238U | F35: 232Th | G35: 207Pb | H35: 207Pb/206Pb | I35: 206Pb | J35: 206Pb/238U | K35: 208Pb | L35: 208Pb | M35: 208Pb/232Th | Q35: 5576
B36: 204Pb | C36: 204Pb | D36: 204Pb | E36: 204Pb | F36: 238U | G36: 206Pb | H36: Age | I36: 238U | J36: Age | K36: 238U | L36: 232Th | M36: Age | Q36: 5520
B37: 17.403 | C37: 15.417 | D37: 37.292 | E37: 13.7 | F37: 4.82 | G37: =(C37/B37) -> 0.8858817445 | H37: =[1]!AgePb76(G37) -> 5066.504442 | I37: =(B37/E37) -> 1.270291971 | J37: =[1]!AgePb6U8(I37) -> 5285.469426 | K37: =+(D37/E37) -> 2.722043796 | L37: =+(K37/F37) -> 0.5647393767 | M37: =[1]!AgePb8Th2(L37) -> 9049.404298 | Q37: 5285
B38: 17.948 | C38: 15.41 | D38: 37.938 | E38: 23.9 | F38: 4.09 | G38: =(C38/B38) -> 0.8585914865 | H38: =[1]!AgePb76(G38) -> 5022.179691 | I38: =(B38/E38) -> 0.7509623431 | J38: =[1]!AgePb6U8(I38) -> 3611.059127 | K38: =+(D38/E38) -> 1.587364017 | L38: =+(K38/F38) -> 0.3881085615 | M38: =[1]!AgePb8Th2(L38) -> 6628.440089 | Q38: 5159
B39: 17.473 | C39: 15.471 | D39: 37.682 | E39: 12.9 | F39: 4.72 | G39: 0.8854232244 | H39: =[1]!AgePb76(G39) -> 5065.771744 | I39: 1.354496124 | J39: =[1]!AgePb6U8(I39) -> 5520.23687 | K39: 2.921085271 | L39: 0.6188739982 | M39: =[1]!AgePb8Th2(L39) -> 9736.85386 | Q39: 5120
B40: 17.298 | C40: 15.325 | D40: 37.565 | E40: 15.7 | F40: 4.63 | G40: 0.8859405712 | H40: =[1]!AgePb76(G40) -> 5066.598415 | I40: 1.101783439 | J40: =[1]!AgePb6U8(I40) -> 4788.30776 | K40: 2.392675159 | L40: 0.5167764923 | M40: =[1]!AgePb8Th2(L40) -> 8420.15875 | Q40: 5109
B41: 17.46 | C41: 15.447 | D41: 37.606 | E41: 0 | F41: 0 | G41: 0.8847079038 | H41: =[1]!AgePb76(G41) -> 5064.627886 | I41: 0 | K41: 0 | Q41: 5099
B42: 17.711 | C42: 15.51 | D42: 37.938 | E42: 9.8 | F42: 3.5 | G42: 0.8757269494 | H42: =[1]!AgePb76(G42) -> 5050.182513 | I42: 1.807244898 | J42: =[1]!AgePb6U8(I42) -> 6654.011533 | K42: 3.87122449 | L42: 1.10606414 | M42: =[1]!AgePb8Th2(L42) -> 15054.48952 | Q42: 5097
B43: 17.464 | C43: 15.465 | D43: 37.739 | E43: 12.7 | F43: 4.82 | G43: 0.8855359597 | H43: =[1]!AgePb76(G43) -> 5065.951928 | I43: 1.37511811 | J43: =[1]!AgePb6U8(I43) -> 5576.452325 | K43: 2.971574803 | L43: 0.6165092953 | M43: =[1]!AgePb8Th2(L43) -> 9707.308103 | Q43: 5077
B44: 17.511 | C44: 15.521 | D44: 37.759 | E44: 8.3 | F44: 5.04 | G44: 0.8863571469 | H44: =[1]!AgePb76(G44) -> 5067.263691 | I44: 2.109759036 | J44: =[1]!AgePb6U8(I44) -> 7313.748544 | K44: 4.549277108 | L44: 0.9026343469 | M44: =[1]!AgePb8Th2(L44) -> 13001.30216 | Q44: 5067
B45: 17.486 | C45: 15.303 | D45: 37.574 | E45: 10 | F45: 3.32 | G45: 0.8751572687 | H45: =[1]!AgePb76(G45) -> 5049.260918 | I45: 1.7486 | J45: =[1]!AgePb6U8(I45) -> 6517.915817 | K45: 3.7574 | L45: 1.131746988 | M45: =[1]!AgePb8Th2(L45) -> 15299.48107 | Q45: 5067
B46: 17.534 | C46: 15.46 | D46: 37.704 | E46: 10.2 | F46: 5.04 | G46: 0.8817155241 | H46: =[1]!AgePb76(G46) -> 5059.832157 | I46: 1.719019608 | J46: =[1]!AgePb6U8(I46) -> 6448.163591 | K46: 3.696470588 | L46: 0.733426704 | M46: =[1]!AgePb8Th2(L46) -> 11118.75095 | Q46: 5067
B47: 18.082 | C47: 15.438 | D47: 37.954 | E47: 10 | F47: 3.34 | G47: 0.853777237 | H47: =[1]!AgePb76(G47) -> 5014.205392 | I47: 1.8082 | J47: =[1]!AgePb6U8(I47) -> 6656.204407 | K47: 3.7954 | L47: 1.136347305 | M47: =[1]!AgePb8Th2(L47) -> 15343.05213 | Q47: 5066
B48: 16.723 | C48: 15.382 | D48: 36.542 | E48: 6 | F48: 4.55 | G48: 0.9198110387 | H48: =[1]!AgePb76(G48) -> 5119.634763 | I48: 2.787166667 | J48: =[1]!AgePb6U8(I48) -> 8584.16218 | K48: 6.090333333 | L48: 1.338534799 | M48: =[1]!AgePb8Th2(L48) -> 17170.78482 | Q48: 5066
B49: 16.874 | C49: 15.407 | D49: 36.761 | E49: 6.9 | F49: 4.78 | G49: 0.9130615148 | H49: =[1]!AgePb76(G49) -> 5109.232943 | I49: 2.445507246 | J49: =[1]!AgePb6U8(I49) -> 7974.672909 | K49: 5.327681159 | L49: 1.114577648 | M49: =[1]!AgePb8Th2(L49) -> 15136.0303 | Q49: 5065
B50: 16.996 | C50: 15.382 | D50: 36.948 | E50: 8.3 | F50: 4.83 | G50: 0.9050364792 | H50: =[1]!AgePb76(G50) -> 5096.758843 | I50: 2.047710843 | J50: =[1]!AgePb6U8(I50) -> 7183.824436 | K50: 4.451566265 | L50: 0.9216493302 | M50: =[1]!AgePb8Th2(L50) -> 13202.30103 | Q50: 5062
B51: 17.626 | C51: 15.432 | D51: 37.691 | E51: 19.5 | F51: 4 | G51: 0.8755247929 | H51: =[1]!AgePb76(G51) -> 5049.855549 | I51: 0.9038974359 | J51: =[1]!AgePb6U8(I51) -> 4150.865864 | K51: 1.932871795 | L51: 0.4832179487 | M51: =[1]!AgePb8Th2(L51) -> 7967.943751 | Q51: 5060
B52: 17.668 | C52: 15.411 | D52: 37.645 | E52: 20.4 | F52: 3.9 | G52: 0.8722549242 | H52: =[1]!AgePb76(G52) -> 5044.555773 | I52: 0.8660784314 | J52: =[1]!AgePb6U8(I52) -> 4021.525437 | K52: 1.845343137 | L52: 0.473164907 | M52: =[1]!AgePb8Th2(L52) -> 7830.481746 | Q52: 5060
B53: 17.628 | C53: 15.433 | D53: 37.711 | E53: 19.4 | F53: 3.79 | G53: 0.8754821874 | H53: =[1]!AgePb76(G53) -> 5049.78663 | I53: 0.9086597938 | J53: =[1]!AgePb6U8(I53) -> 4166.970618 | K53: 1.943865979 | L53: 0.5128933983 | M53: =[1]!AgePb8Th2(L53) -> 8368.347147 | Q53: 5059
B54: 17.599 | C54: 15.421 | D54: 37.716 | E54: 14.6 | F54: 5 | G54: 0.8762429684 | H54: =[1]!AgePb76(G54) -> 5051.016749 | I54: 1.205410959 | J54: =[1]!AgePb6U8(I54) -> 5098.558372 | K54: 2.583287671 | L54: 0.5166575342 | M54: =[1]!AgePb8Th2(L54) -> 8418.57348 | Q54: 5051
B55: 17.671 | C55: 15.404 | D55: 37.621 | E55: 21.8 | F55: 4 | G55: 0.8717107125 | H55: =[1]!AgePb76(G55) -> 5043.671673 | I55: 0.8105963303 | J55: =[1]!AgePb6U8(I55) -> 3826.954103 | K55: 1.725733945 | L55: 0.4314334862 | M55: =[1]!AgePb8Th2(L55) -> 7249.648916 | Q55: 5050
B56: 17.471 | C56: 15.407 | D56: 37.512 | E56: 9.2 | F56: 4.37 | G56: 0.8818613703 | H56: =[1]!AgePb76(G56) -> 5060.066297 | I56: 1.899021739 | J56: =[1]!AgePb6U8(I56) -> 6861.39145 | K56: 4.077391304 | L56: 0.9330414884 | M56: =[1]!AgePb8Th2(L56) -> 13321.77187 | Q56: 5050
B57: 17.4 | C57: 15.365 | D57: 37.442 | E57: 90.3 | F57: 0.59 | G57: 0.883045977 | H57: =[1]!AgePb76(G57) -> 5061.966532 | I57: 0.1926910299 | J57: =[1]!AgePb6U8(I57) -> 1135.936334 | K57: 0.4146400886 | L57: 0.7027798112 | M57: =[1]!AgePb8Th2(L57) -> 10758.20311 | Q57: 5050
B58: 17.655 | C58: 15.391 | D58: 37.51 | E58: 19.5 | F58: 4.67 | G58: 0.8717643727 | H58: =[1]!AgePb76(G58) -> 5043.758873 | I58: 0.9053846154 | J58: =[1]!AgePb6U8(I58) -> 4155.899346 | K58: 1.923589744 | L58: 0.4119035854 | M58: =[1]!AgePb8Th2(L58) -> 6971.982909 | Q58: 5049
B59: 17.173 | C59: 15.322 | D59: 37.111 | E59: 11.9 | F59: 3.29 | G59: 0.8922145228 | H59: =[1]!AgePb76(G59) -> 5076.583029 | I59: 1.443109244 | J59: =[1]!AgePb6U8(I59) -> 5758.39812 | K59: 3.118571429 | L59: 0.9478940512 | M59: =[1]!AgePb8Th2(L59) -> 13476.47934 | Q59: 5045
B60: 17.414 | C60: 15.341 | D60: 37.333 | E60: 14.2 | F60: 3.69 | G60: 0.88095785 | H60: =[1]!AgePb76(G60) -> 5058.615134 | I60: 1.226338028 | J60: =[1]!AgePb6U8(I60) -> 5159.43978 | K60: 2.629084507 | L60: 0.7124890263 | M60: =[1]!AgePb8Th2(L60) -> 10873.12548 | Q60: 5044
B61: 17.849 | C61: 15.439 | D61: 37.769 | E61: 26.4 | F61: 3.72 | G61: 0.8649784302 | H61: =[1]!AgePb76(G61) -> 5032.686034 | I61: 0.6760984848 | J61: =[1]!AgePb6U8(I61) -> 3329.371553 | K61: 1.430643939 | L61: 0.3845817041 | M61: =[1]!AgePb8Th2(L61) -> 6577.020219 | Q61: 5044
B62: 18.243 | C62: 15.437 | D62: 38.092 | E62: 36.3 | F62: 4.74 | G62: 0.8461875788 | H62: =[1]!AgePb76(G62) -> 5001.536431 | I62: 0.5025619835 | J62: =[1]!AgePb6U8(I62) -> 2624.797036 | K62: 1.049366391 | L62: 0.2213853146 | M62: =[1]!AgePb8Th2(L62) -> 4042.157015 | Q62: 5033
G63: Average | H63: =AVERAGE(H37:H62) -> 5057.388617 | J63: =AVERAGE(J37:J62) -> 5296.173477 | M63: =AVERAGE(M37:M62) -> 10588.96368 | Q63: 5022
G64: Maximum | H64: =MAX(H37:H63) -> 5119.634763 | J64: =MAX(J37:J63) -> 8584.16218 | M64: =MAX(M37:M63) -> 17170.78482 | Q64: 5014
G65: Minimum | H65: =MIN(H37:H64) -> 5001.536431 | J65: =MIN(J37:J64) -> 1135.936334 | M65: =MIN(M37:M64) -> 4042.157015 | Q65: 5002
G66: Difference | H66: =(H64-H65) -> 118.0983319 | J66: =(J64-J65) -> 7448.225846 | M66: =(M64-M65) -> 13128.6278
M68: 208Pb/232Th
M69: Age | N69: Age | O69: Age | P69: Age
M70: 17170.78482 | N70: 13321.77187 | O70: 9736.85386 | P70: 7967.943751
M71: 15343.05213 | N71: 13202.30103 | O71: 9707.308103 | P71: 7830.481746
F72: Table | G72: 207Pb/206Pb | H72: 206Pb/238U | I72: 208Pb/232Th | J72: 87Rb/86Sr | M72: 15299.48107 | N72: 13001.30216 | O72: 9049.404298 | P72: 7249.648916
F73: Summaries | G73: Age | H73: Age | I73: Age | J73: Age | M73: 15136.0303 | N73: 11118.75095 | O73: 8420.15875 | P73: 6971.982909
F74: Average | G74: 5057.388617 | H74: 5296 | I74: 10589 | J74: -1501.810365 | M74: 15054.48952 | N74: 10873.12548 | O74: 8418.57348 | P74: 6628.440089
F75: Maximum | G75: 5119.634763 | H75: 8584.16218 | I75: 17170.78482 | J75: 0.4012584445 | M75: 13476.47934 | N75: 10758.20311 | O75: 8368.347147 | P75: 6577.020219
F76: Minimum | G76: 5001.536431 | H76: 1136 | I76: 4042 | J76: -3592.772833
F77: Difference | G77: 118.0983319 | H77: 7448 | I77: 13129 | J77: 3593.174092
M78: 206Pb/238U
M79: Age | N79: Age | O79: Age
M80: 8584.16218 | N80: 6656.204407 | O80: 5576.452325
M81: 7974.672909 | N81: 6654.011533 | O81: 5520.23687
M82: 7313.748544 | N82: 6517.915817 | O82: 5285.469426
M83: 7183.824436 | N83: 6448.163591 | O83: 5159.43978
M84: 6861.39145 | N84: 5758.39812 | O84: 5098.558372
M87: 207Pb/206Pb
M88: Age | N88: Age | O88: Age | P88: Age
M89: 5119.634763 | N89: 5066.504442 | O89: 5059.832157 | P89: 5049.260918
M90: 5109.232943 | N90: 5065.951928 | O90: 5058.615134 | P90: 5044.555773
M91: 5096.758843 | N91: 5065.771744 | O91: 5051.016749 | P91: 5043.758873
M92: 5076.583029 | N92: 5064.627886 | O92: 5050.182513 | P92: 5043.671673
M93: 5067.263691 | N93: 5061.966532 | O93: 5049.855549 | P93: 5032.686034
M94: 5066.598415 | N94: 5060.066297 | O94: 5049.78663 | P94: 5022.179691
M96: 87Rb/86Sr
M97: Age | N97: Age | O97: Age | P97: Age
M98: -3592.772833 | N98: -2980.86645 | O98: -1916.713484 | P98: -1323.272732
M99: -3230.65891 | N99: -2725.178739 | O99: -1610.801866 | P99: -1245.179815
M100: -3089.097237 | N100: -2050.471406 | O100: -1498.591838 | P100: -1229.216811
M101: -3067.471501 | N101: -1926.198038 | O101: -1370.308796 | P101: -1194.390522

Sheet Rb-Sr _23
A1: Rubidium | B1: TABLE 1. | K1: Rubidium_019.pdf | Q1: 94396
A2: Strontium | B2: Initial | C2: Today | D2: Today | E2: The Ratio | F2: Half | G2: Decay | H2: 2.303/Delta | I2: Age | J2: Age | K2: Age | L2: Model Age | M2: Model Age | N2: Model Age | Q2: 90683
A3: Dating | B3: 87Sr/86Sr | C3: 87Sr/86Sr | D3: 87Rb/86Sr | E3: Plus One | F3: Life | G3: Constant | H3: Constant | I3: Years | J3: Million Years | K3: Billion Years | L3: Million Years | M3: % Difference | N3: Difference | Q3: 74639
B4: 0.70753 | C4: 0.70473 | D4: 0.0657 | E4: =1+((C4-B4)/D4) -> 0.9573820396 | F4: 48800000000 | G4: =(0.693/F4) -> 1.420081967e-11 | H4: =(2.303/G4) -> 1.621737374e+11 | I4: =(LOG(E4))*(H4) -> -3067471501 | J4: =(I4/1000000) -> -3067.471501 | K4: =(J4/1000) -> -3.067471501 | Q4: 58153
B5: 0.70753 | C5: 0.7038 | D5: 0.2004 | E5: 0.9813872255 | F5: 48800000000 | G5: 1.420081967e-11 | H5: 1.621737374e+11 | I5: -1323272732 | J5: -1323.272732 | K5: -1.323272732 | Q5: 55324
Q6: 45242
Q7: 39267
Q8: 26266
Q9: 22201
I10: 232Th/208Pb | K10: 206Pb/238U | M10: 207Pb/206Pb | Q10: 21813
B11: 206Pb/204Pb | C11: 207Pb/204Pb | D11: 208Pb/204Pb | E11: 238U/204Pb | F11: 232Th/238U | G11: 208Pb/238U | H11: 232Th/208Pb | I11: Age | J11: 206Pb/238U | K11: Age | L11: 207Pb/206Pb | M11: Age | Q11: 19320
A12: TABLE 1 | B12: 18.836 | C12: 15.602 | D12: 38.377 | E12: 0.99 | F12: 4.18 | G12: =(D12/E12) -> 38.76464646 | H12: =(G12/E12) -> 39.15620855 | I12: =[1]!AgePb8Th2(H12) -> 74639.25341 | J12: =(B12/E12) -> 19.02626263 | K12: =[1]!AgePb6U8(J12) -> 19320.19045 | L12: =(C12/B12) -> 0.8283074963 | M12: =[1]!AgePb76(L12) -> 4971.206735 | Q12: 18334
B13: 18.185 | C13: 15.605 | D13: 38.061 | E13: 0.6 | F13: 0.941 | G13: =(D13/E13) -> 63.435 | H13: =(G13/E13) -> 105.725 | I13: =[1]!AgePb8Th2(H13) -> 94396.26948 | J13: =(B13/E13) -> 30.30833333 | K13: =[1]!AgePb6U8(J13) -> 22200.70461 | L13: 0.8581248282 | M13: =[1]!AgePb76(L13) -> 5021.408801 | Q13: 16656
B14: 18.841 | C14: 15.682 | D14: 38.474 | E14: 6.13 | F14: 0.501 | G14: 6.27634584 | H14: 1.02387371 | I14: =[1]!AgePb8Th2(H14) -> 14249.89092 | J14: 3.073572594 | K14: =[1]!AgePb6U8(J14) -> 9054.120236 | L14: 0.8323337402 | M14: =[1]!AgePb76(L14) -> 4978.096676 | Q14: 16357
B15: 18.494 | C15: 15.612 | D15: 38.221 | E15: 1.51 | F15: 0.774 | G15: 25.31192053 | H15: 16.76286128 | I15: =[1]!AgePb8Th2(H15) -> 58152.80106 | J15: 12.24768212 | K15: =[1]!AgePb6U8(J15) -> 16656.39067 | L15: 0.8441656754 | M15: =[1]!AgePb76(L15) -> 4998.141024 | Q15: 16200
B16: 19.035 | C16: 15.773 | D16: 38.727 | E16: 2.15 | F16: 0.865 | G16: 18.01255814 | H16: 8.377934018 | I16: =[1]!AgePb8Th2(H16) -> 45242.23315 | J16: 8.853488372 | K16: =[1]!AgePb6U8(J16) -> 14748.27102 | L16: 0.8286314683 | M16: =[1]!AgePb76(L16) -> 4971.76245 | Q16: 14748
B17: 18.627 | C17: 15.664 | D17: 38.441 | E17: - | F17: 4.61 | G17: 0 | H17: 0 | J17: 0 | L17: 0.840929833 | M17: =[1]!AgePb76(L17) -> 4992.689019 | Q17: 14250
B18: 17.698 | C18: 15.327 | D18: 37.745 | E18: 10.7 | F18: 3.34 | G18: =(D18/E18) -> 3.527570093 | H18: =(G18/E18) -> 0.329679448 | I18: =[1]!AgePb8Th2(H18) -> 5759.229846 | J18: 1.654018692 | K18: =[1]!AgePb6U8(J18) -> 6292.183585 | L18: 0.8660300599 | M18: =[1]!AgePb76(L18) -> 5034.408037 | Q18: 13607
B19: 18.258 | C19: 15.488 | D19: 37.973 | E19: 26.3 | F19: 4.05 | G19: 1.443840304 | H19: 0.05489887088 | I19: =[1]!AgePb8Th2(H19) -> 1080.240634 | J19: 0.6942205323 | K19: =[1]!AgePb6U8(J19) -> 3398.696355 | L19: 0.848285683 | M19: =[1]!AgePb76(L19) -> 5005.050703 | Q19: 11256
B20: 18.374 | C20: 15.484 | D20: 37.904 | E20: 1.62 | F20: 0.513 | G20: 23.39753086 | H20: 14.44292029 | I20: =[1]!AgePb8Th2(H20) -> 55323.91439 | J20: 11.34197531 | K20: =[1]!AgePb6U8(J20) -> 16199.87803 | L20: 0.8427125286 | M20: =[1]!AgePb76(L20) -> 4995.695398 | Q20: 11215
B21: 18.08 | C21: 15.48 | D21: 38.005 | E21: 8.05 | F21: 2.84 | G21: 4.721118012 | H21: 0.5864742873 | I21: =[1]!AgePb8Th2(H21) -> 9328.228897 | J21: 2.245962733 | K21: =[1]!AgePb6U8(J21) -> 7590.085338 | L21: 0.8561946903 | M21: =[1]!AgePb76(L21) -> 5018.215601 | Q21: 10595
B22: 18.814 | C22: 15.589 | D22: 38.62 | E22: 99.4 | F22: 4.46 | G22: 0.3885311871 | H22: 0.003908764458 | I22: =[1]!AgePb8Th2(H22) -> 78.85083551 | J22: 0.1892756539 | K22: =[1]!AgePb6U8(J22) -> 1117.449977 | L22: 0.8285850962 | M22: =[1]!AgePb76(L22) -> 4971.682921 | Q22: 10284
B23: 18.816 | C23: 15.581 | D23: 38.218 | E23: 45.2 | F23: 4.07 | G23: 0.8455309735 | H23: 0.01870643747 | I23: =[1]!AgePb8Th2(H23) -> 374.6058391 | J23: 0.4162831858 | K23: =[1]!AgePb6U8(J23) -> 2243.583982 | L23: 0.8280718537 | M23: =[1]!AgePb76(L23) -> 4970.802388 | Q23: 9878
B24: 17.626 | C24: 15.432 | D24: 37.691 | E24: 19.52 | F24: 4.005 | G24: 1.930891393 | H24: 0.09891861647 | I24: =[1]!AgePb8Th2(H24) -> 1906.551194 | J24: 0.9029713115 | K24: =[1]!AgePb6U8(J24) -> 4147.729333 | L24: 0.8755247929 | M24: =[1]!AgePb76(L24) -> 5049.855549 | Q24: 9656
B25: 17.668 | C25: 15.411 | D25: 37.645 | E25: 20.37 | F25: 3.902 | G25: 1.848060874 | H25: 0.09072463789 | I25: =[1]!AgePb8Th2(H25) -> 1755.276013 | J25: 0.8673539519 | K25: =[1]!AgePb6U8(J25) -> 4025.930249 | L25: 0.8722549242 | M25: =[1]!AgePb76(L25) -> 5044.555773 | Q25: 9328
B26: 17.628 | C26: 15.433 | D26: 37.711 | E26: 19.365 | F26: 3.788 | G26: 1.947379293 | H26: 0.1005618018 | I26: =[1]!AgePb8Th2(H26) -> 1936.751458 | J26: 0.9103020914 | K26: =[1]!AgePb6U8(J26) -> 4172.515021 | L26: 0.8754821874 | M26: =[1]!AgePb76(L26) -> 5049.78663 | Q26: 9054
B27: 17.599 | C27: 15.421 | D27: 37.716 | E27: 14.6 | F27: 5.01 | G27: 2.583287671 | H27: 0.1769375117 | I27: =[1]!AgePb8Th2(H27) -> 3292.89006 | J27: 1.205410959 | K27: =[1]!AgePb6U8(J27) -> 5098.558372 | L27: 0.8762429684 | M27: =[1]!AgePb76(L27) -> 5051.016749 | Q27: 8821
B28: 17.671 | C28: 15.404 | D28: 37.621 | E28: 21.8 | F28: 4 | G28: 1.725733945 | H28: 0.07916210757 | I28: =[1]!AgePb8Th2(H28) -> 1539.866876 | J28: 0.8105963303 | K28: =[1]!AgePb6U8(J28) -> 3826.954103 | L28: 0.8717107125 | M28: =[1]!AgePb76(L28) -> 5043.671673 | Q28: 8771
B29: 17.773 | C29: 15.494 | D29: 37.683 | E29: 8.55 | F29: 1.17 | G29: 4.407368421 | H29: 0.5154816867 | I29: =[1]!AgePb8Th2(H29) -> 8402.897088 | J29: 2.07871345 | K29: =[1]!AgePb6U8(J29) -> 7249.068808 | L29: 0.8717717887 | M29: =[1]!AgePb76(L29) -> 5043.770924 | Q29: 8403
B30: 18.428 | C30: 15.553 | D30: 38.136 | E30: 9.35 | F30: 3.11 | G30: 4.078716578 | H30: 0.4362263719 | I30: =[1]!AgePb8Th2(H30) -> 7317.21271 | J30: 1.970909091 | K30: =[1]!AgePb6U8(J30) -> 7019.2941 | L30: 0.8439874105 | M30: =[1]!AgePb76(L30) -> 4997.841248 | Q30: 8242
B31: 18.293 | C31: 15.524 | D31: 37.409 | E31: 14.9 | F31: 1.28 | G31: 2.510671141 | H31: 0.1685014189 | I31: =[1]!AgePb8Th2(H31) -> 3147.490435 | J31: 1.227718121 | K31: =[1]!AgePb6U8(J31) -> 5163.434633 | L31: 0.8486306237 | M31: =[1]!AgePb76(L31) -> 5005.627586 | Q31: 8171
B32: 18.627 | C32: 15.563 | D32: 38.23 | E32: 8.76 | F32: 4.71 | G32: 4.364155251 | H32: 0.4981912387 | I32: =[1]!AgePb8Th2(H32) -> 8170.965935 | J32: 2.126369863 | K32: =[1]!AgePb6U8(J32) -> 7348.090529 | L32: 0.8355075965 | M32: =[1]!AgePb76(L32) -> 4983.503042 | Q32: 8044
B33: 18.162 | C33: 15.367 | D33: 37.628 | E33: 19.3 | F33: 2.03 | G33: 1.949637306 | H33: 0.101017477 | I33: =[1]!AgePb8Th2(H33) -> 1945.11837 | J33: 0.9410362694 | K33: =[1]!AgePb6U8(J33) -> 4275.403642 | L33: 0.8461072569 | M33: =[1]!AgePb76(L33) -> 5001.40171 | Q33: 7996
B34: 18.981 | C34: 15.666 | D34: 38.554 | E34: 17.8 | F34: 3.26 | G34: 2.165955056 | H34: 0.1216828683 | I34: =[1]!AgePb8Th2(H34) -> 2320.972584 | J34: 1.066348315 | K34: =[1]!AgePb6U8(J34) -> 4678.697503 | L34: 0.8253516675 | M34: =[1]!AgePb76(L34) -> 4966.125852 | Q34: 7789
B35: 18.613 | C35: 15.41 | D35: 38.299 | E35: 15 | F35: 1.49 | G35: 2.553266667 | H35: 0.1702177778 | I35: =[1]!AgePb8Th2(H35) -> 3177.15748 | J35: 1.240866667 | K35: =[1]!AgePb6U8(J35) -> 5201.371125 | L35: 0.8279159727 | M35: =[1]!AgePb76(L35) -> 4970.534839 | Q35: 7638
B36: 18.529 | C36: 15.557 | D36: 38.169 | E36: 9.01 | F36: 4.59 | G36: 4.236293008 | H36: 0.4701768044 | I36: =[1]!AgePb8Th2(H36) -> 7789.44252 | J36: 2.056492786 | K36: =[1]!AgePb6U8(J36) -> 7202.372991 | L36: 0.8396027848 | M36: =[1]!AgePb76(L36) -> 4990.446654 | Q36: 7590
B37: 18.18 | C37: 15.608 | D37: 38.356 | E37: 21.6 | F37: 4.94 | G37: 1.775740741 | H37: 0.08221021948 | I37: =[1]!AgePb8Th2(H37) -> 1596.876188 | J37: 0.8416666667 | K37: =[1]!AgePb6U8(J37) -> 3936.637929 | L37: 0.8585258526 | M37: =[1]!AgePb76(L37) -> 5022.071295 | Q37: 7422
B38: 18.309 | C38: 15.566 | D38: 38.242 | E38: 16.5 | F38: 4.67 | G38: 2.31769697 | H38: 0.140466483 | I38: =[1]!AgePb8Th2(H38) -> 2656.64223 | J38: 1.109636364 | K38: =[1]!AgePb6U8(J38) -> 4812.348707 | L38: 0.8501829701 | M38: =[1]!AgePb76(L38) -> 5008.220672 | Q38: 7375
B39: 17.826 | C39: 15.415 | D39: 37.646 | E39: 14.3 | F39: 5.91 | G39: 2.632587413 | H39: 0.1840970219 | I39: =[1]!AgePb8Th2(H39) -> 3415.472001 | J39: 1.246573427 | K39: =[1]!AgePb6U8(J39) -> 5217.76718 | L39: 0.8647481207 | M39: =[1]!AgePb76(L39) -> 5032.308615 | Q39: 7348
B40: 18.424 | C40: 15.577 | D40: 37.94 | E40: 7.42 | F40: 4.04 | G40: 5.113207547 | H40: 0.6891115293 | I40: =[1]!AgePb8Th2(H40) -> 10595.30406 | J40: 2.483018868 | K40: =[1]!AgePb6U8(J40) -> 8044.476445 | L40: 0.8454732957 | M40: =[1]!AgePb76(L40) -> 5000.337912 | Q40: 7335
B41: 19.306 | C41: 15.701 | D41: 38.527 | E41: 5.56 | F41: 0.595 | G41: 6.929316547 | H41: 1.246279954 | I41: =[1]!AgePb8Th2(H41) -> 16357.26113 | J41: 3.472302158 | K41: =[1]!AgePb6U8(J41) -> 9656.105078 | L41: 0.8132704859 | M41: =[1]!AgePb76(L41) -> 4945.156008 | Q41: 7317
B42: 17.978 | C42: 15.556 | D42: 37.526 | E42: 74.8 | F42: 8 | G42: 0.501684492 | H42: 0.006707011925 | I42: =[1]!AgePb8Th2(H42) -> 135.1110659 | J42: 0.2403475936 | K42: =[1]!AgePb6U8(J42) -> 1388.503837 | L42: 0.8652797864 | M42: =[1]!AgePb76(L42) -> 5033.17972 | Q42: 7249
B43: 17.926 | C43: 15.472 | D43: 37.339 | E43: 8.29 | F43: 8.43 | G43: 4.504101327 | H43: 0.5433174098 | I43: =[1]!AgePb8Th2(H43) -> 8770.778408 | J43: 2.162364294 | K43: =[1]!AgePb6U8(J43) -> 7421.885204 | L43: 0.8631038715 | M43: =[1]!AgePb76(L43) -> 5029.610999 | Q43: 7202
B44: 18.798 | C44: 15.61 | D44: 38.251 | E44: 0.66 | F44: 3.85 | G44: 57.95606061 | H44: 87.81221304 | I44: =[1]!AgePb8Th2(H44) -> 90682.65133 | J44: 28.48181818 | K44: =[1]!AgePb6U8(J44) -> 21813.20703 | L44: 0.8304074902 | M44: =[1]!AgePb76(L44) -> 4974.804796 | Q44: 7019
B45: 17.471 | C45: 15.407 | D45: 37.512 | E45: 9.23 | F45: 4.371 | G45: 4.064138678 | H45: 0.4403183833 | I45: =[1]!AgePb8Th2(H45) -> 7374.718316 | J45: 1.892849404 | K45: =[1]!AgePb6U8(J45) -> 6847.651696 | L45: 0.8818613703 | M45: =[1]!AgePb76(L45) -> 5060.066297 | Q45: 6923
B46: 17.4 | C46: 15.365 | D46: 37.442 | E46: 9.03 | F46: 5.86 | G46: 4.146400886 | H46: 0.4591806075 | I46: =[1]!AgePb8Th2(H46) -> 7637.696826 | J46: 1.926910299 | K46: =[1]!AgePb6U8(J46) -> 6923.1095 | L46: 0.883045977 | M46: =[1]!AgePb76(L46) -> 5061.966532 | Q46: 6848
B47: 17.655 | C47: 15.391 | D47: 37.51 | E47: 19.49 | F47: 4.674 | G47: 1.924576706 | H47: 0.09874688076 | I47: =[1]!AgePb8Th2(H47) -> 1903.392241 | J47: 0.9058491534 | K47: =[1]!AgePb6U8(J47) -> 4157.470808 | L47: 0.8717643727 | M47: =[1]!AgePb76(L47) -> 5043.758873 | Q47: 6292
B48: 17.173 | C48: 15.322 | D48: 37.111 | E48: 11.94 | F48: 3.294 | G48: 3.108123953 | H48: 0.2603118889 | I48: =[1]!AgePb8Th2(H48) -> 4676.285421 | J48: 1.438274707 | K48: =[1]!AgePb6U8(J48) -> 5745.629021 | L48: 0.8922145228 | M48: =[1]!AgePb76(L48) -> 5076.583029 | Q48: 5759
B49: 17.414 | C49: 15.341 | D49: 37.333 | E49: 14.2 | F49: 3.605 | G49: 2.629084507 | H49: 0.1851467963 | I49: =[1]!AgePb8Th2(H49) -> 3433.383439 | J49: 1.226338028 | K49: =[1]!AgePb6U8(J49) -> 5159.43978 | L49: 0.88095785 | M49: =[1]!AgePb76(L49) -> 5058.615134 | Q49: 5746
B50: 17.849 | C50: 15.439 | D50: 37.769 | E50: 26.38 | F50: 3.725 | G50: 1.431728582 | H50: 0.05427325937 | I50: =[1]!AgePb8Th2(H50) -> 1068.250144 | J50: 0.676611069 | K50: =[1]!AgePb6U8(J50) -> 3331.342693 | L50: 0.8649784302 | M50: =[1]!AgePb76(L50) -> 5032.686034 | Q50: 5700
B51: 17.697 | C51: 15.554 | D51: 37.312 | E51: 3.74 | F51: 0.737 | G51: 9.976470588 | H51: 2.667505505 | I51: =[1]!AgePb8Th2(H51) -> 26266.02793 | J51: 4.731818182 | K51: =[1]!AgePb6U8(J51) -> 11255.65054 | L51: 0.8789060293 | M51: =[1]!AgePb76(L51) -> 5055.313786 | Q51: 5218
B52: 17.489 | C52: 15.536 | D52: 37.239 | E52: 8.25 | F52: 3.64 | G52: 4.513818182 | H52: 0.5471294766 | I52: =[1]!AgePb8Th2(H52) -> 8820.642008 | J52: 2.119878788 | K52: =[1]!AgePb6U8(J52) -> 7334.692352 | L52: 0.8883298073 | M52: =[1]!AgePb76(L52) -> 5070.409555 | Q52: 5201
B53: 18.673 | C53: 15.574 | D53: 38.312 | E53: 7.6 | F53: 0.544 | G53: 5.041052632 | H53: 0.6632963989 | I53: =[1]!AgePb8Th2(H53) -> 10284.01042 | J53: 2.456973684 | K53: =[1]!AgePb6U8(J53) -> 7996.090563 | L53: 0.8340384512 | M53: =[1]!AgePb76(L53) -> 4981.003209 | Q53: 5163
B54: 18.118 | C54: 15.42 | D54: 37.705 | E54: 34.3 | F54: 0.894 | G54: 1.099271137 | H54: 0.0320487212 | I54: =[1]!AgePb8Th2(H54) -> 637.6124589 | J54: 0.5282215743 | K54: =[1]!AgePb6U8(J54) -> 2733.954486 | L54: 0.8510873165 | M54: =[1]!AgePb76(L54) -> 5009.729002 | Q54: 5159
B55: 18.299 | C55: 15.518 | D55: 37.817 | E55: 19 | F55: 2.18 | G55: 1.990368421 | H55: 0.1047562327 | I55: =[1]!AgePb8Th2(H55) -> 2013.637327 | J55: 0.9631052632 | K55: =[1]!AgePb6U8(J55) -> 4348.283884 | L55: 0.8480244822 | M55: =[1]!AgePb76(L55) -> 5004.613702 | Q55: 5099
B56: 18.208 | C56: 15.48 | D56: 37.661 | E56: 2.51 | F56: 0.542 | G56: 15.00438247 | H56: 5.977841622 | I56: =[1]!AgePb8Th2(H56) -> 39267.09744 | J56: 7.254183267 | K56: =[1]!AgePb6U8(J56) -> 13606.57621 | L56: 0.8501757469 | M56: =[1]!AgePb76(L56) -> 5008.208618 | Q56: 5077
B57: 18.506 | C57: 15.614 | D57: 38.418 | E57: 5.1 | F57: 4.39 | G57: 7.532941176 | H57: 1.47704729 | I57: =[1]!AgePb8Th2(H57) -> 18333.85026 | J57: 3.628627451 | K57: =[1]!AgePb6U8(J57) -> 9877.585027 | L57: 0.843726359 | M57: =[1]!AgePb76(L57) -> 4997.402133 | Q57: 5070
B58: 18.683 | C58: 15.656 | D58: 38.558 | E58: 7.21 | F58: 4.3 | G58: 5.347850208 | H58: 0.7417267972 | I58: =[1]!AgePb8Th2(H58) -> 11215.30133 | J58: 2.591262136 | K58: =[1]!AgePb6U8(J58) -> 8241.764452 | L58: 0.8379810523 | M58: =[1]!AgePb76(L58) -> 4987.701232 | Q58: 5062
B59: 17.905 | C59: 15.429 | D59: 37.74 | E59: 12.6 | F59: 3.72 | G59: 2.995238095 | H59: 0.2377173091 | I59: =[1]!AgePb8Th2(H59) -> 4310.637764 | J59: 1.421031746 | K59: =[1]!AgePb6U8(J59) -> 5699.879392 | L59: 0.8617146049 | M59: =[1]!AgePb76(L59) -> 5027.327462 | Q59: 5060
B60: 17.89 | C60: 15.477 | D60: 37.722 | E60: 17.6 | F60: 3.72 | G60: 2.143295455 | H60: 0.1217781508 | I60: =[1]!AgePb8Th2(H60) -> 2322.68946 | J60: 1.016477273 | K60: =[1]!AgePb6U8(J60) -> 4521.205896 | L60: 0.8651201789 | M60: =[1]!AgePb76(L60) -> 5032.918272 | Q60: 5059
B61: 18.243 | C61: 15.437 | D61: 38.092 | E61: 36.3 | F61: 4.74 | G61: 1.049366391 | H61: 0.02890816505 | I61: =[1]!AgePb8Th2(H61) -> 576.0122501 | J61: 0.5025619835 | K61: =[1]!AgePb6U8(J61) -> 2624.797036 | L61: 0.8461875788 | M61: =[1]!AgePb76(L61) -> 5001.536431 | Q61: 5055
H62: Average | I62: =AVERAGE(I12:I61) -> 14197.53985 | K62: =AVERAGE(K12:K61) -> 7365.857743 | M62: =AVERAGE(M12:M61) -> 5013.656546 | Q62: 5051
H63: Maximum | I63: =MAX(I12:I62) -> 94396.26948 | K63: =MAX(K12:K62) -> 22200.70461 | M63: =MAX(M12:M62) -> 5076.583029 | Q63: 5050
H64: Minimum | I64: =MIN(I12:I63) -> 78.85083551 | K64: =MIN(K12:K63) -> 1117.449977 | M64: =MIN(M12:M63) -> 4945.156008 | Q64: 5050
H65: Difference | I65: =(I63-I64) -> 94317.41865 | K65: =(K63-K64) -> 21083.25463 | M65: =(M63-M64) -> 131.4270206 | Q65: 5045
Q66: 5044
I67: 232Th/208Pb | Q67: 5044
B68: Dating | C68: 232Th/208Pb | D68: 206Pb/238U | E68: 207Pb/206Pb | I68: Age | J68: Age | K68: Age | L68: Age | Q68: 5044
B69: Summaries | C69: Age | D69: Age | E69: Age | I69: 94396.26948 | J69: 39267.09744 | K69: 10595.30406 | L69: 8170.965935 | Q69: 5034
B70: Average | C70: 14198 | D70: 7366 | E70: 5013.656546 | I70: 90682.65133 | J70: 26266.02793 | K70: 10284.01042 | L70: 7789.44252 | Q70: 5033
B71: Maximum | C71: 94396.26948 | D71: 22200.70461 | E71: 5076.583029 | I71: 74639.25341 | J71: 18333.85026 | K71: 9328.228897 | L71: 7637.696826 | Q71: 5033
B72: Minimum | C72: 79 | D72: 1117 | E72: 4945.156008 | I72: 58152.80106 | J72: 16357.26113 | K72: 8820.642008 | L72: 7374.718316 | Q72: 5033
B73: Difference | C73: 94317 | D73: 21083 | E73: 131.4270206 | I73: 55323.91439 | J73: 14249.89092 | K73: 8770.778408 | L73: 7317.21271 | Q73: 5032
I74: 45242.23315 | J74: 11215.30133 | K74: 8402.897088 | L74: 5759.229846 | Q74: 5030
Q75: 5027
Q76: 5022
I77: 206Pb/238U | Q77: 5021
I78: Age | J78: Age | K78: Age | L78: Age | Q78: 5018
I79: 22200.70461 | J79: 9877.585027 | K79: 7348.090529 | L79: 5745.629021 | Q79: 5010
I80: 21813.20703 | J80: 9656.105078 | K80: 7334.692352 | L80: 5699.879392 | Q80: 5008
I81: 19320.19045 | J81: 9054.120236 | K81: 7249.068808 | L81: 5217.76718 | Q81: 5008
I82: 16656.39067 | J82: 8241.764452 | K82: 7202.372991 | L82: 5201.371125 | Q82: 5006
I83: 16199.87803 | J83: 8044.476445 | K83: 7019.2941 | L83: 5163.434633 | Q83: 5005
I84: 14748.27102 | J84: 7996.090563 | K84: 6923.1095 | L84: 5159.43978 | Q84: 5005
I85: 13606.57621 | J85: 7590.085338 | K85: 6847.651696 | L85: 5098.558372 | Q85: 5002
I86: 11255.65054 | J86: 7421.885204 | K86: 6292.183585 | L86: 4812.348707 | Q86: 5001
Q87: 5000
Q88: 4998
Q89: 4998
Q90: 4997
Q91: 4996
Q92: 4993
Q93: 4990
Q94: 4988
Q95: 4984
Q96: 4981
Q97: 4978
Q98: 4975
Q99: 4972
Q100: 4972
Q101: 4971
Q102: 4971
Q103: 4971
Q104: 4966
Q105: 4945

Sheet Rb-Sr _24
A1: Rubidium | B1: TABLE 1. | K1: Rubidium_020.pdf
A2: Strontium | B2: Initial | C2: Today | D2: Today | E2: The Ratio | F2: Half | G2: Decay | H2: 2.303/Delta | I2: Age | J2: Age | K2: Age | L2: Model Age | M2: Model Age | N2: Model Age
A3: Dating | B3: 87Sr/86Sr | C3: 87Sr/86Sr | D3: 87Rb/86Sr | E3: Plus One | F3: Life | G3: Constant | H3: Constant | I3: Years | J3: Million Years | K3: Billion Years | L3: Million Years | M3: % Difference | N3: Difference
B4: 0.7067 | C4: 0.830285 | D4: 46.183 | E4: =1+((C4-B4)/D4) -> 1.002675985 | F4: 48800000000 | G4: =(0.693/F4) -> 1.420081967e-11 | H4: =(2.303/G4) -> 1.621737374e+11 | I4: =(LOG(E4))*(H4) -> 188220976.4 | J4: =(I4/1000000) -> 188.2209764 | K4: =(J4/1000) -> 0.1882209764 | L4: 1600
B5: 0.7067 | C5: 0.797492 | D5: 33.572 | E5: =1+((C5-B5)/D5) -> 1.002704397 | F5: 48800000000 | G5: =(0.693/F5) -> 1.420081967e-11 | H5: =(2.303/G5) -> 1.621737374e+11 | I5: =(LOG(E5))*(H5) -> 190216687.1 | J5: =(I5/1000000) -> 190.2166871 | K5: =(J5/1000) -> 0.1902166871 | L5: 1600
B6: 0.7067 | C6: 0.819544 | D6: 42.957 | E6: 1.002626906 | F6: 48800000000 | G6: 1.420081967e-11 | H6: 1.621737374e+11 | I6: 184773448 | J6: 184.773448 | K6: 0.184773448 | L6: 1600
B7: 0.7067 | C7: 0.815274 | D7: 41.698 | E7: 1.002603818 | F7: 48800000000 | G7: 1.420081967e-11 | H7: 1.621737374e+11 | I7: 183151571.9 | J7: 183.1515719 | K7: 0.1831515719 | L7: 1600
B8: 0.7067 | C8: 0.707765 | D8: 0.233 | E8: 1.004570815 | F8: 48800000000 | G8: 1.420081967e-11 | H8: 1.621737374e+11 | I8: 321194328.8 | J8: 321.1943288 | K8: 0.3211943288 | L8: 1600
B9: 0.7067 | C9: 0.707975 | D9: 0.318 | E9: 1.004009434 | F9: 48800000000 | G9: 1.420081967e-11 | H9: 1.621737374e+11 | I9: 281824480.4 | J9: 281.8244804 | K9: 0.2818244804 | L9: 1600
B10: 0.7067 | C10: 0.803819 | D10: 36.526 | E10: 1.002658901 | F10: 48800000000 | G10: 1.420081967e-11 | H10: 1.621737374e+11 | I10: 187020920.2 | J10: 187.0209202 | K10: 0.1870209202 | L10: 1600
B11: 0.7067 | C11: 0.81292 | D11: 39.225 | E11: 1.002707967 | F11: 48800000000 | G11: 1.420081967e-11 | H11: 1.621737374e+11 | I11: 190467471.4 | J11: 190.4674714 | K11: 0.1904674714 | L11: 1600
B12: 0.7067 | C12: 0.720956 | D12: 5.085 | E12: 1.00280354 | F12: 48800000000 | G12: 1.420081967e-11 | H12: 1.621737374e+11 | I12: 197180287.3 | J12: 197.1802873 | K12: 0.1971802873 | L12: 1600
B13: 0.7067 | C13: 0.762517 | D13: 18.661 | E13: 1.002991104 | F13: 48800000000 | G13: 1.420081967e-11 | H13: 1.621737374e+11 | I13: 210352516.7 | J13: 210.3525167 | K13: 0.2103525167 | L13: 1600
B14: 0.7067 | C14: 0.77339 | D14: 22.552 | E14: 1.002957166 | F14: 48800000000 | G14: 1.420081967e-11 | H14: 1.621737374e+11 | I14: 207969257.2 | J14: 207.9692572 | K14: 0.2079692572 | L14: 1600
B15: 0.7067 | C15: 0.747571 | D15: 14.17 | E15: 1.002884333 | F15: 48800000000 | G15: 1.420081967e-11 | H15: 1.621737374e+11 | I15: 202854514.2 | J15: 202.8545142 | K15: 0.2028545142 | L15: 1600
B16: 0.7067 | C16: 0.750797 | D16: 15.402 | E16: 1.00286307 | F16: 48800000000 | G16: 1.420081967e-11 | H16: 1.621737374e+11 | I16: 201361202 | J16: 201.361202 | K16: 0.201361202 | L16: 1600
B17: 0.7067 | C17: 1.03894 | D17: 130.327 | E17: 1.00254928 | F17: 48800000000 | G17: 1.420081967e-11 | H17: 1.621737374e+11 | I17: 179320266 | J17: 179.320266 | K17: 0.179320266 | L17: 1600
B18: 0.7067 | C18: 0.811285 | D18: 40.036 | E18: 1.002612274 | F18: 48800000000 | G18: 1.420081967e-11 | H18: 1.621737374e+11 | I18: 183745590.3 | J18: 183.7455903 | K18: 0.1837455903 | L18: 1600
B19: 0.7067 | C19: 0.773939 | D19: 24.81 | E19: 1.002710157 | F19: 48800000000 | G19: 1.420081967e-11 | H19: 1.621737374e+11 | I19: 190621322.6 | J19: 190.6213226 | K19: 0.1906213226 | L19: 1600
B20: 0.7067 | C20: 0.750205 | D20: 15.06 | E20: 1.002888778 | F20: 48800000000 | G20: 1.420081967e-11 | H20: 1.621737374e+11 | I20: 203166688.2 | J20: 203.1666882 | K20: 0.2031666882 | L20: 1600
B21: 0.7067 | C21: 0.886487 | D21: 70.091 | E21: 1.002565051 | F21: 48800000000 | G21: 1.420081967e-11 | H21: 1.621737374e+11 | I21: 180428220.9 | J21: 180.4282209 | K21: 0.1804282209 | L21: 1600
B22: 0.7067 | C22: 0.752649 | D22: 16.216 | E22: 1.002833559 | F22: 48800000000 | G22: 1.420081967e-11 | H22: 1.621737374e+11 | I22: 199288661.7 | J22: 199.2886617 | K22: 0.1992886617 | L22: 1600
B23: 0.7067 | C23: 0.758272 | D23: 18.464 | E23: 1.002793111 | F23: 48800000000 | G23: 1.420081967e-11 | H23: 1.621737374e+11 | I23: 196447817.2 | J23: 196.4478172 | K23: 0.1964478172 | L23: 1600
B24: 0.7067 | C24: 0.752701 | D24: 16.16 | E24: 1.002846597 | F24: 48800000000 | G24: 1.420081967e-11 | H24: 1.621737374e+11 | I24: 200204278.5 | J24: 200.2042785 | K24: 0.2002042785 | L24: 1600
B25: 0.7067 | C25: 0.715466 | D25: 3.156 | E25: 1.002777567 | F25: 48800000000 | G25: 1.420081967e-11 | H25: 1.621737374e+11 | I25: 195356049.5 | J25: 195.3560495 | K25: 0.1953560495 | L25: 1600
B26: 0.7067 | C26: 0.748492 | D26: 15.923 | E26: 1.002624631 | F26: 48800000000 | G26: 1.420081967e-11 | H26: 1.621737374e+11 | I26: 184613641 | J26: 184.613641 | K26: 0.184613641 | L26: 1600
B27: 0.7067 | C27: 0.943333 | D27: 92.652 | E27: 1.002553998 | F27: 48800000000 | G27: 1.420081967e-11 | H27: 1.621737374e+11 | I27: 179651705.1 | J27: 179.6517051 | K27: 0.1796517051 | L27: 1600
B28: 0.7067 | C28: 0.70855 | D28: 0.831 | E28: 1.002226233 | F28: 48800000000 | G28: 1.420081967e-11 | H28: 1.621737374e+11 | I28: 156621929 | J28: 156.621929 | K28: 0.156621929 | L28: 1600
B29: 0.7067 | C29: 0.707257 | D29: 0.303 | E29: 1.001838284 | F29: 48800000000 | G29: 1.420081967e-11 | H29: 1.621737374e+11 | I29: 129353603.1 | J29: 129.3536031 | K29: 0.1293536031 | L29: 1600
B30: 0.7067 | C30: 0.708102 | D30: 0.568 | E30: 1.00246831 | F30: 48800000000 | G30: 1.420081967e-11 | H30: 1.621737374e+11 | I30: 173631724.4 | J30: 173.6317244 | K30: 0.1736317244 | L30: 1600
B31: 0.7067 | C31: 0.709591 | D31: 1.193 | E31: 1.002423303 | F31: 48800000000 | G31: 1.420081967e-11 | H31: 1.621737374e+11 | I31: 170469544.9 | J31: 170.4695449 | K31: 0.1704695449 | L31: 1600
B32: 0.7067 | C32: 0.70862 | D32: 0.797 | E32: 1.002409034 | F32: 48800000000 | G32: 1.420081967e-11 | H32: 1.621737374e+11 | I32: 169467004.6 | J32: 169.4670046 | K32: 0.1694670046 | L32: 1600
B33: 0.7067 | C33: 0.709521 | D33: 1.243 | E33: 1.002269509 | F33: 48800000000 | G33: 1.420081967e-11 | H33: 1.621737374e+11 | I33: 159663057.6 | J33: 159.6630576 | K33: 0.1596630576 | L33: 1600
B34: 0.7067 | C34: 0.70837 | D34: 0.933 | E34: 1.001789925 | F34: 48800000000 | G34: 1.420081967e-11 | H34: 1.621737374e+11 | I34: 125953800.5 | J34: 125.9538005 | K34: 0.1259538005 | L34: 1600
B35: 0.7067 | C35: 0.757643 | D35: 21.604 | E35: 1.002358036 | F35: 48800000000 | G35: 1.420081967e-11 | H35: 1.621737374e+11 | I35: 165883674.2 | J35: 165.8836742 | K35: 0.1658836742 | L35: 1600
B36: 0.7067 | C36: 0.751472 | D36: 18.306 | E36: 1.002445755 | F36: 48800000000 | G36: 1.420081967e-11 | H36: 1.621737374e+11 | I36: 172047087.5 | J36: 172.0470875 | K36: 0.1720470875 | L36: 1600
B37: 0.7067 | C37: 0.767326 | D37: 25.858 | E37: 1.002344574 | F37: 48800000000 | G37: 1.420081967e-11 | H37: 1.621737374e+11 | I37: 164937800.8 | J37: 164.9378008 | K37: 0.1649378008 | L37: 1600
B38: 0.7067 | C38: 0.707707 | D38: 0.29 | E38: 1.003472414 | F38: 48800000000 | G38: 1.420081967e-11 | H38: 1.621737374e+11 | I38: 244142491.9 | J38: 244.1424919 | K38: 0.2441424919 | L38: 1600
B39: 0.7067 | C39: 0.707722 | D39: 0.421 | E39: 1.002427553 | F39: 48800000000 | G39: 1.420081967e-11 | H39: 1.621737374e+11 | I39: 170768212.5 | J39: 170.7682125 | K39: 0.1707682125 | L39: 1600
B40: 0.7067 | C40: 0.70735 | D40: 0.432 | E40: 1.00150463 | F40: 48800000000 | G40: 1.420081967e-11 | H40: 1.621737374e+11 | I40: 105893164 | J40: 105.893164 | K40: 0.105893164 | L40: 1600
B41: 0.7067 | C41: 0.707891 | D41: 0.474 | E41: 1.002512658 | F41: 48800000000 | G41: 1.420081967e-11 | H41: 1.621737374e+11 | I41: 176747471.7 | J41: 176.7474717 | K41: 0.1767474717 | L41: 1600
B42: 0.7067 | C42: 0.706618 | D42: 0.469 | E42: 0.9998251599 | F42: 48800000000 | G42: 1.420081967e-11 | H42: 1.621737374e+11 | I42: -12315266.52 | J42: -12.31526652 | K42: -0.01231526652 | L42: 1600
B43: 0.7067 | C43: 0.706354 | D43: 0.319 | E43: 0.9989153605 | F43: 48800000000 | G43: 1.420081967e-11 | H43: 1.621737374e+11 | I43: -76433876.34 | J43: -76.43387634 | K43: -0.07643387634 | L43: 1600
B44: 0.7067 | C44: 0.706784 | D44: 0.006 | E44: 1.014 | F44: 48800000000 | G44: 1.420081967e-11 | H44: 1.621737374e+11 | I44: 979197728 | J44: 979.197728 | K44: 0.979197728 | L44: 1600
B45: 0.7067 | C45: 0.706692 | D45: 0.008 | E45: 0.999 | F45: 48800000000 | G45: 1.420081967e-11 | H45: 1.621737374e+11 | I45: -70466398.33 | J45: -70.46639833 | K45: -0.07046639833 | L45: 1600
B46: 0.7067 | C46: 0.70782 | D46: 0.004 | E46: 1.28 | F46: 48800000000 | G46: 1.420081967e-11 | H46: 1.621737374e+11 | I46: 1.738664146e+10 | J46: 17386.64146 | K46: 17.38664146 | L46: 1600
B47: 0.7067 | C47: 0.706639 | D47: 0.037 | E47: 0.9983513514 | F47: 48800000000 | G47: 1.420081967e-11 | H47: 1.621737374e+11 | I47: -116212058.3 | J47: -116.2120583 | K47: -0.1162120583 | L47: 1600
B48: 0.7067 | C48: 0.706225 | D48: 0.155 | E48: 0.9969354839 | F48: 48800000000 | G48: 1.420081967e-11 | H48: 1.621737374e+11 | I48: -216168819.4 | J48: -216.1688194 | K48: -0.2161688194 | L48: 1600
B49: 0.7067 | C49: 0.706509 | D49: 0.003 | E49: 0.9363333333 | F49: 48800000000 | G49: 1.420081967e-11 | H49: 1.621737374e+11 | I49: -4633225107 | J49: -4633.225107 | K49: -4.633225107 | L49: 1600
B50: 0.7067 | C50: 0.706397 | D50: 0.396 | E50: 0.9992348485 | F50: 48800000000 | G50: 1.420081967e-11 | H50: 1.621737374e+11 | I50: -53911135.94 | J50: -53.91113594 | K50: -0.05391113594 | L50: 1600
I51: Average | J51: =AVERAGE(J1:J50) -> 432.1727446
I52: Maximum | J52: =MAX(J1:J51) -> 17386.64146
I53: Minimum | J53: =MIN(J1:J52) -> -4633.225107
I54: Difference | J54: =(J52+ABS(J53)) -> 22019.86657

Sheet Rb-Sr _25
A1: Rubidium | B1: TABLE 1. | K1: Rubidium_021.pdf | P1: 232Th/208Pb | R1: 206Pb/238U | T1: 207Pb/206Pb
A2: Strontium | B2: Initial | C2: Today | D2: Today | E2: The Ratio | F2: Half | G2: Decay | H2: 2.303/Delta | I2: Age | J2: Age | K2: Age | L2: Model Age | M2: Model Age | N2: Model Age | P2: 13286.71038 | R2: 6285.48251 | T2: 5015.84652
A3: Dating | B3: 87Sr/86Sr | C3: 87Sr/86Sr | D3: 87Rb/86Sr | E3: Plus One | F3: Life | G3: Constant | H3: Constant | I3: Years | J3: Million Years | K3: Billion Years | L3: Million Years | M3: % Difference | N3: Difference | P3: 11832.49268 | R3: 6164.82923 | T3: 4999.508268
B4: 0.70753 | C4: 0.70473 | D4: 0.0657 | E4: =1+((C4-B4)/D4) -> 0.9573820396 | F4: 48800000000 | G4: =(0.693/F4) -> 1.420081967e-11 | H4: =(2.303/G4) -> 1.621737374e+11 | I4: =(LOG(E4))*(H4) -> -3067471501 | J4: =(I4/1000000) -> -3067.471501 | K4: =(J4/1000) -> -3.067471501 | P4: 11017.08089 | R4: 5766.756635 | T4: 4999.388469
B5: 0.70753 | C5: 0.7038 | D5: 0.2004 | E5: 0.9813872255 | F5: 48800000000 | G5: 1.420081967e-11 | H5: 1.621737374e+11 | I5: -1323272732 | J5: -1323.272732 | K5: -1.323272732 | P5: 10357.2654 | R5: 5552.611364 | T5: 4998.734914
P6: 9101.262052 | R6: 5152.323146 | T6: 4994.519418
P7: 8725.121271 | R7: 4903.387116 | T7: 4991.310295
P8: 8608.677369 | R8: 4633.396887 | T8: 4989.043363
P9: 7541.311163 | T9: 4973.013147
H10: 232Th/208Pb | J10: 206Pb/238U | L10: 207Pb/206Pb | P10: 7517.377913 | T10: 4970.56238
B11: 206Pb/204Pb | C11: 207Pb/204Pb | D11: 208Pb/204Pb | E11: 238U/204Pb | F11: 232Th/204Pb | G11: 208Pb/232Th | H11: Age | I11: 206Pb/238U | J11: Age | K11: 207Pb/206Pb | L11: Age | P11: 7446.111608 | T11: 4970.330239
A12: TABLE 1 | B12: 18.603 | C12: 15.664 | D12: 39.14 | E12: 15.2 | F12: 42.1 | G12: =(D12/F12) -> 0.9296912114 | H12: =[1]!AgePb8Th2(G12) -> 13286.71038 | I12: =(B12/E12) -> 1.223881579 | J12: =[1]!AgePb6U8(I12) -> 5152.323146 | K12: =(C12/B12) -> 0.8420147288 | L12: =[1]!AgePb76(K12) -> 4994.519418 | P12: 7362.944634 | T12: 4969.397104
B13: 18.657 | C13: 15.674 | D13: 39.29 | E13: 12.9 | F13: 58.7 | G13: =(D13/F13) -> 0.6693356048 | H13: =[1]!AgePb8Th2(G13) -> 10357.2654 | I13: =(B13/E13) -> 1.44627907 | J13: =[1]!AgePb6U8(I13) -> 5766.756635 | K13: =(C13/B13) -> 0.8401136303 | L13: =[1]!AgePb76(K13) -> 4991.310295 | P13: 7361.552991 | T13: 4969.327068
B14: 19.039 | C14: 15.724 | D14: 40.8 | E14: 18.1 | F14: 91.6 | G14: 0.4454148472 | H14: =[1]!AgePb8Th2(G14) -> 7446.111608 | I14: 1.051878453 | J14: =[1]!AgePb6U8(I14) -> 4633.396887 | K14: 0.8258837124 | L14: =[1]!AgePb76(K14) -> 4967.04183 | P14: 7079.731098 | T14: 4967.04183
B15: 18.995 | C15: 15.724 | D15: 40.78 | E15: 20.3 | F15: 76.8 | G15: 0.5309895833 | H15: =[1]!AgePb8Th2(G15) -> 8608.677369 | I15: 0.9357142857 | J15: =[1]!AgePb6U8(I15) -> 4257.704421 | K15: 0.8277967886 | L15: =[1]!AgePb76(K15) -> 4970.330239 | P15: 7017.383136 | T15: 4964.899739
B16: 18.533 | C16: 15.66 | D16: 39.1 | E16: 27 | F16: 121 | G16: 0.3231404959 | H16: =[1]!AgePb8Th2(G16) -> 5659.587153 | I16: 0.6864074074 | J16: =[1]!AgePb6U8(I16) -> 3368.899093 | K16: 0.8449792262 | L16: =[1]!AgePb76(K16) -> 4999.508268 | P16: 6678.75937 | T16: 4963.982025
B17: 18.915 | C17: 15.588 | D17: 39.3 | E17: 22.2 | F17: 72.8 | G17: 0.5398351648 | H17: =[1]!AgePb8Th2(G17) -> 8725.121271 | I17: 0.852027027 | J17: =[1]!AgePb6U8(I17) -> 3972.800835 | K17: 0.8241078509 | L17: =[1]!AgePb76(K17) -> 4963.982025 | P17: 6539.865093 | T17: 4963.48251
B18: 19.075 | C18: 15.595 | D18: 39.39 | E18: 22.1 | F18: 87.1 | G18: 0.452238806 | H18: =[1]!AgePb8Th2(G18) -> 7541.311163 | I18: 0.8631221719 | J18: =[1]!AgePb6U8(I18) -> 4011.304867 | K18: 0.8175622543 | L18: =[1]!AgePb76(K18) -> 4952.643131 | P18: 6478.717137 | T18: 4962.321335
B19: 19.032 | C19: 15.603 | D19: 39.3 | E19: 16.7 | F19: 107 | G19: 0.3672897196 | H19: =[1]!AgePb8Th2(G19) -> 6323.000982 | I19: 1.139640719 | J19: =[1]!AgePb6U8(I19) -> 4903.387116 | K19: 0.8198297604 | L19: =[1]!AgePb76(K19) -> 4956.582009 | P19: 6323.000982 | T19: 4956.582009
B20: 19.065 | C20: 15.602 | D20: 39.35 | E20: 11.9 | F20: 103 | G20: 0.382038835 | H20: =[1]!AgePb8Th2(G20) -> 6539.865093 | I20: 1.60210084 | J20: =[1]!AgePb6U8(I20) -> 6164.82923 | K20: 0.8183582481 | L20: =[1]!AgePb76(K20) -> 4954.027171 | P20: 5659.587153 | T20: 4954.027171
B21: 18.961 | C21: 15.636 | D21: 39.64 | E21: 21.1 | F21: 95.5 | G21: 0.415078534 | H21: =[1]!AgePb8Th2(G21) -> 7017.383136 | I21: 0.8986255924 | J21: =[1]!AgePb6U8(I21) -> 4132.991149 | K21: 0.8246400506 | L21: =[1]!AgePb76(K21) -> 4964.899739 | P21: 5641.171063 | T21: 4952.643131
B22: 19.01 | C22: 15.648 | D22: 39.72 | E22: 21.1 | F22: 90.4 | G22: 0.439380531 | H22: =[1]!AgePb8Th2(G22) -> 7361.552991 | I22: 0.9009478673 | J22: =[1]!AgePb6U8(I22) -> 4140.871164 | K22: 0.8231457128 | L22: =[1]!AgePb76(K22) -> 4962.321335
B23: 18.925 | C23: 15.655 | D23: 39.68 | E23: 22 | F23: 94.6 | G23: 0.4194503171 | H23: =[1]!AgePb8Th2(G23) -> 7079.731098 | I23: 0.8602272727 | J23: =[1]!AgePb6U8(I23) -> 4001.280708 | K23: 0.8272126816 | L23: =[1]!AgePb76(K23) -> 4969.327068
B24: 18.719 | C24: 15.701 | D24: 40.15 | E24: 13.7 | F24: 55.4 | G24: 0.7247292419 | H24: =[1]!AgePb8Th2(G24) -> 11017.08089 | I24: 1.366350365 | J24: =[1]!AgePb6U8(I24) -> 5552.611364 | K24: 0.8387734388 | L24: =[1]!AgePb76(K24) -> 4989.043363
B25: 18.329 | C25: 15.667 | D25: 39.15 | E25: 11.1 | F25: 49.2 | G25: 0.7957317073 | H25: =[1]!AgePb8Th2(G25) -> 11832.49268 | I25: 1.651261261 | J25: =[1]!AgePb6U8(I25) -> 6285.48251 | K25: 0.8547656719 | L25: =[1]!AgePb76(K25) -> 5015.84652
B26: 18.923 | C26: 15.694 | D26: 39.92 | E26: 31.8 | F26: 124 | G26: 0.3219354839 | H26: =[1]!AgePb8Th2(G26) -> 5641.171063 | I26: 0.5950628931 | J26: =[1]!AgePb6U8(I26) -> 3009.915661 | K26: 0.829361095 | L26: =[1]!AgePb76(K26) -> 4973.013147
B27: 18.946 | C27: 15.686 | D27: 39.94 | E27: 24.9 | F27: 102 | G27: 0.3915686275 | H27: =[1]!AgePb8Th2(G27) -> 6678.75937 | I27: 0.7608835341 | J27: =[1]!AgePb6U8(I27) -> 3647.482296 | K27: 0.8279320173 | L27: =[1]!AgePb76(K27) -> 4970.56238
B28: 18.491 | C28: 15.616 | D28: 38.96 | E28: 20 | F28: 68.5 | G28: 0.5687591241 | H28: =[1]!AgePb8Th2(G28) -> 9101.262052 | I28: 0.92455 | J28: =[1]!AgePb6U8(I28) -> 4220.416917 | K28: 0.8445189552 | L28: =[1]!AgePb76(K28) -> 4998.734914
B29: 18.46 | C29: 15.597 | D29: 38.85 | E29: 22.4 | F29: 88.4 | G29: 0.439479638 | H29: =[1]!AgePb8Th2(G29) -> 7362.944634 | I29: 0.8241071429 | J29: =[1]!AgePb6U8(I29) -> 3874.879165 | K29: 0.844907909 | L29: =[1]!AgePb76(K29) -> 4999.388469
B30: 18.86 | C30: 15.602 | D30: 38.92 | E30: 25.7 | F30: 103 | G30: 0.3778640777 | H30: =[1]!AgePb8Th2(G30) -> 6478.717137 | I30: 0.7338521401 | J30: =[1]!AgePb6U8(I30) -> 3547.755705 | K30: 0.8272534464 | L30: =[1]!AgePb76(K30) -> 4969.397104
B31: 18.935 | C31: 15.599 | D31: 38.97 | E31: 19.7 | F31: 86.5 | G31: 0.4505202312 | H31: =[1]!AgePb8Th2(G31) -> 7517.377913 | I31: 0.9611675127 | J31: =[1]!AgePb6U8(I31) -> 4341.917587 | K31: 0.8238183259 | L31: =[1]!AgePb76(K31) -> 4963.48251
G32: Average | H32: =AVERAGE(H12:H31) -> 8078.806169 | J32: =AVERAGE(J12:J31) -> 4449.350323 | L32: =AVERAGE(L12:L31) -> 4976.298047
G33: Maximum | H33: =MAX(H12:H32) -> 13286.71038 | J33: =MAX(J12:J32) -> 6285.48251 | L33: =MAX(L12:L32) -> 5015.84652
G34: Minimum | H34: =MIN(H12:H33) -> 5641.171063 | J34: =MIN(J12:J33) -> 3009.915661 | L34: =MIN(L12:L33) -> 4952.643131
G35: Difference | H35: =(H33-H34) -> 7645.539317 | J35: =(J33-J34) -> 3275.56685 | L35: =(L33-L34) -> 63.20338883
B37: Table | C37: 232Th/208Pb | D37: 206Pb/238U | E37: 207Pb/206Pb | H37: 232Th/208Pb
B38: Summaries | C38: Age | D38: Age | E38: Age | H38: Age | I38: Age | J38: Age | K38: Age
B39: Average | C39: 8078.806169 | D39: 4449.350323 | E39: 4976.298047 | H39: 13286.71038 | I39: 8725.121271 | J39: 7362.944634 | K39: 6539.865093
B40: Maximum | C40: 13286.71038 | D40: 6285.48251 | E40: 5015.84652 | H40: 11832.49268 | I40: 8608.677369 | J40: 7361.552991 | K40: 6478.717137
B41: Minimum | C41: 5641.171063 | D41: 3009.915661 | E41: 4952.643131 | H41: 11017.08089 | I41: 7541.311163 | J41: 7079.731098 | K41: 6323.000982
B42: Difference | C42: 7645.539317 | D42: 3275.56685 | E42: 63.20338883 | H42: 10357.2654 | I42: 7517.377913 | J42: 7017.383136 | K42: 5659.587153
H43: 9101.262052 | I43: 7446.111608 | J43: 6678.75937 | K43: 5641.171063
H46: 206Pb/238U
H47: Age | I47: Age | J47: Age | K47: Age
H48: 6285.48251 | I48: 4903.387116 | J48: 4140.871164 | K48: 3874.879165
H49: 6164.82923 | I49: 4633.396887 | J49: 4132.991149 | K49: 3647.482296
H50: 5766.756635 | I50: 4341.917587 | J50: 4011.304867 | K50: 3547.755705
H51: 5552.611364 | I51: 4257.704421 | J51: 4001.280708 | K51: 3368.899093
H52: 5152.323146 | I52: 4220.416917 | J52: 3972.800835 | K52: 3009.915661

Sheet Rb-Sr _26
A1: Rubidium | B1: TABLE 1. | K1: Rubidium_022.pdf | R1: 207Pb/206Pb | S1: 206Pb/238U | T1: 208Pb/232Th | U1: 207Pb/235U
A2: Strontium | B2: Initial | C2: Today | D2: Today | E2: The Ratio | F2: Half | G2: Decay | H2: 2.303/Delta | I2: Age | J2: Age | K2: Age | L2: Model Age | M2: Model Age | N2: Model Age | R2: 5017.957799 | S2: 56922.5097 | T2: 65285.77199 | U2: 8128.175199
A3: Dating | B3: 87Sr/86Sr | C3: 87Sr/86Sr | D3: 87Rb/86Sr | E3: Plus One | F3: Life | G3: Constant | H3: Constant | I3: Years | J3: Million Years | K3: Billion Years | L3: Million Years | M3: % Difference | N3: Difference | R3: 4988.596148 | S3: 27312.53082 | T3: 33897.85873 | U3: 6654.752911
A4: Table 3. | B4: 0.6991 | C4: 0.699148 | D4: 0.001296 | E4: =1+((C4-B4)/D4) -> 1.037037037 | F4: 48800000000 | G4: =(0.693/F4) -> 1.420081967e-11 | H4: =(2.303/G4) -> 1.621737374e+11 | I4: =(LOG(E4))*(H4) -> 2561415338 | J4: =(I4/1000000) -> 2561.415338 | K4: =(J4/1000) -> 2.561415338 | R4: 4977.964633 | S4: 17873.25526 | T4: 25012.7193 | U4: 5988.149013
B5: 0.6991 | C5: 0.699304 | D5: 0.002659 | E5: 1.076720572 | F5: 48800000000 | G5: 1.420081967e-11 | H5: 1.621737374e+11 | I5: 5206265225 | J5: 5206.265225 | K5: 5.206265225 | R5: 4977.406787 | S5: 13680.20481 | T5: 22178.43488 | U5: 5891.679387
B6: 0.6991 | C6: 0.69914 | D6: 0.0022 | E6: =1+((C6-B6)/D6) -> 1.018181818 | F6: 48800000000 | G6: =(0.693/F6) -> 1.420081967e-11 | H6: =(2.303/G6) -> 1.621737374e+11 | I6: =(LOG(E6))*(H6) -> 1269064231 | J6: =(I6/1000000) -> 1269.064231 | K6: =(J6/1000) -> 1.269064231 | R6: 4950.869276 | S6: 13622.81335 | T6: 21204.0797 | U6: 5427.426463
B7: 0.6991 | C7: 0.700476 | D7: 0.0245 | E7: 1.056163265 | F7: 48800000000 | G7: 1.420081967e-11 | H7: 1.621737374e+11 | I7: 3848554385 | J7: 3848.554385 | K7: 3.848554385 | R7: 4923.176835 | S7: 10895.05763 | T7: 17610.78051 | U7: 5300.111833
B8: 0.6991 | C8: 0.699943 | D8: 0.02152 | E8: 1.039172862 | F8: 48800000000 | G8: 1.420081967e-11 | H8: 1.621737374e+11 | I8: 2706322376 | J8: 2706.322376 | K8: 2.706322376 | R8: 4909.122471 | S8: 10277.67461 | T8: 14430.11056 | U8: 5172.730375
B9: 0.6991 | C9: 0.699836 | D9: 0.009263 | E9: 1.0794559 | F9: 48800000000 | G9: 1.420081967e-11 | H9: 1.621737374e+11 | I9: 5384963434 | J9: 5384.963434 | K9: 5.384963434 | R9: 4907.913198 | S9: 9652.785873 | T9: 14410.30435 | U9: 4848.365701
B10: 0.6991 | C10: 0.701166 | D10: 0.0474 | E10: 1.043586498 | F10: 48800000000 | G10: 1.420081967e-11 | H10: 1.621737374e+11 | I10: 3004828225 | J10: 3004.828225 | K10: 3.004828225 | R10: 4907.505809 | S10: 8009.179634 | T10: 13106.89384 | U10: 4844.07232
B11: 0.6991 | C11: 0.700687 | D11: 0.0208 | E11: 1.076298077 | F11: 48800000000 | G11: 1.420081967e-11 | H11: 1.621737374e+11 | I11: 5178623296 | J11: 5178.623296 | K11: 5.178623296 | R11: 4907.505809 | S11: 7394.584639 | T11: 12737.89552
B12: 0.6991 | C12: 0.699146 | D12: 0.000966 | E12: 1.047619048 | F12: 48800000000 | G12: 1.420081967e-11 | H12: 1.621737374e+11 | I12: 3276458630 | J12: 3276.45863 | K12: 3.27645863 | R12: 4885.118078 | S12: 6764.331971 | T12: 11641.0102
B13: 0.6991 | C13: 0.699135 | D13: 0.000727 | E13: 1.048143054 | F13: 48800000000 | G13: 1.420081967e-11 | H13: 1.621737374e+11 | I13: 3311678612 | J13: 3311.678612 | K13: 3.311678612 | R13: 4877.64727 | S13: 6669.504971 | T13: 11174.33239
B14: 0.6991 | C14: 0.69986 | D14: 0.01545 | E14: 1.049190939 | F14: 48800000000 | G14: 1.420081967e-11 | H14: 1.621737374e+11 | I14: 3382057248 | J14: 3382.057248 | K14: 3.382057248 | R14: 4870.05289 | S14: 6448.591261 | T14: 9094.056894
B15: 0.6991 | C15: 0.699415 | D15: 0.006691 | E15: 1.047078165 | F15: 48800000000 | G15: 1.420081967e-11 | H15: 1.621737374e+11 | I15: 3240085819 | J15: 3240.085819 | K15: 3.240085819 | R15: 4869.953633 | S15: 6436.251806 | T15: 6520.275229
B16: 0.6991 | C16: 0.699328 | D16: 0.003922 | E16: 1.058133605 | F16: 48800000000 | G16: 1.420081967e-11 | H16: 1.621737374e+11 | I16: 3979825799 | J16: 3979.825799 | K16: 3.979825799 | R16: 4869.953633 | S16: 6069.740784 | T16: 6165.847004
B17: 0.6991 | C17: 0.700282 | D17: 0.019 | E17: 1.062210526 | F17: 48800000000 | G17: 1.420081967e-11 | H17: 1.621737374e+11 | I17: 4250671104 | J17: 4250.671104 | K17: 4.250671104 | R17: 4843.068004 | S17: 5776.55455 | T17: 6121.103269
B18: 0.6991 | C18: 0.699126 | D18: 0.000404 | E18: 1.064356436 | F18: 48800000000 | G18: 1.420081967e-11 | H18: 1.621737374e+11 | I18: 4392814696 | J18: 4392.814696 | K18: 4.392814696 | R18: 4829.625094 | S18: 5624.80457 | T18: 5671.185972
B19: 0.6991 | C19: 0.699193 | D19: 0.00133 | E19: 1.069924812 | F19: 48800000000 | G19: 1.420081967e-11 | H19: 1.621737374e+11 | I19: 4760327735 | J19: 4760.327735 | K19: 4.760327735 | R19: 4781.158226 | S19: 5601.595619 | T19: 5408.416387
B20: 0.6991 | C20: 0.699148 | D20: 0.001068 | E20: 1.04494382 | F20: 48800000000 | G20: 1.420081967e-11 | H20: 1.621737374e+11 | I20: 3096373747 | J20: 3096.373747 | K20: 3.096373747 | R20: 4744.119824 | S20: 5277.536845 | T20: 5400.681425
B21: 0.6991 | C21: 0.703415 | D21: 0.07779 | E21: 1.055469855 | F21: 48800000000 | G21: 1.420081967e-11 | H21: 1.621737374e+11 | I21: 3802298516 | J21: 3802.298516 | K21: 3.802298516 | R21: 4735.312684 | S21: 5146.866664 | T21: 5396.039027
B22: 0.6991 | C22: 0.702404 | D22: 0.05866 | E22: 1.056324582 | F22: 48800000000 | G22: 1.420081967e-11 | H22: 1.621737374e+11 | I22: 3859311129 | J22: 3859.311129 | K22: 3.859311129 | R22: 4700.199469 | S22: 4952.487691 | T22: 5365.062426
B23: 0.6991 | C23: 0.700162 | D23: 0.01896 | E23: 1.056012658 | F23: 48800000000 | G23: 1.420081967e-11 | H23: 1.621737374e+11 | I23: 3838510305 | J23: 3838.510305 | K23: 3.838510305 | R23: 4700.160267 | S23: 4922.518254 | T23: 5098.2562
B24: 0.6991 | C24: 0.704076 | D24: 0.08252 | E24: 1.060300533 | F24: 48800000000 | G24: 1.420081967e-11 | H24: 1.621737374e+11 | I24: 4123912693 | J24: 4123.912693 | K24: 4.123912693 | S24: 4828.717566 | T24: 5035.33381
B25: 0.6991 | C25: 0.700186 | D25: 0.1055 | E25: 1.010293839 | F25: 48800000000 | G25: 1.420081967e-11 | H25: 1.621737374e+11 | I25: 721300863.5 | J25: 721.3008635 | K25: 0.7213008635
B26: 0.6991 | C26: 0.703034 | D26: 0.07073 | E26: 1.055619963 | F26: 48800000000 | G26: 1.420081967e-11 | H26: 1.621737374e+11 | I26: 3812314495 | J26: 3812.314495 | K26: 3.812314495
B27: 0.6991 | C27: 0.700186 | D27: 0.0194 | E27: 1.055979381 | F27: 48800000000 | G27: 1.420081967e-11 | H27: 1.621737374e+11 | I27: 3836290863 | J27: 3836.290863 | K27: 3.836290863
I28: Average | J28: =AVERAGE(J4:J27) -> 3618.511198
I29: Maximum | J29: =MAX(J4:J28) -> 5384.963434
I30: Minimum | J30: =MIN(J4:J29) -> 721.3008635
I31: Difference | J31: =(J29-J30) -> 4663.662571
A34: Table 1. | K34: 207Pb/206Pb | L34: 206Pb/238U | M34: 208Pb/232Th | N34: 207Pb/235U
A35: Sample | B35: 206Pb/204Pb | C35: 207Pb/204Pb | D35: 208Pb/204Pb | E35: 238U/ 204Pb | F35: 232Th/204Pb | G35: 206Pb/238U | H35: 207Pb/235U | I35: 208Pb/232Th | J35: 207Pb/206Pb | K35: Age | L35: Age | M35: Age | N35: Age
A36: PL1,W | B36: 18.637 | C36: 15.954 | D36: 38.414 | E36: 1.027 | F36: 3.749 | G36: 7.275 | H36: 363.1 | I36: 1.996 | J36: =(C36/B36) -> 0.8560390621 | K36: =[1]!AgePb76($J$36) -> 5017.957799 | L36: =[1]!AgePb6U8(G36) -> 13622.81335 | M36: =[1]!AgePb8Th2(I36) -> 22178.43488 | N36: =[1]!AgePb7U5(H36) -> 5988.149013
A37: PL2.W | B37: 18.879 | C37: 15.706 | D37: 38.874 | E37: 0.1131 | F37: 0.327 | G37: 68.19 | H37: 2995 | I37: 24.28 | J37: =(C37/B37) -> 0.8319296573 | K37: =[1]!AgePb76($J$37) -> 4977.406787 | L37: =[1]!AgePb6U8(G37) -> 27312.53082 | M37: =[1]!AgePb8Th2(I37) -> 65285.77199 | N37: =[1]!AgePb7U5(H37) -> 8128.175199
A38: PL3,W | B38: 19.19 | C38: 15.971 | D38: 39.003 | E38: 0.535 | F38: 1.86 | G38: 15 | H38: 701 | I38: 4.35 | J38: 0.8322563835 | K38: =[1]!AgePb76($J$38) -> 4977.964633 | L38: =[1]!AgePb6U8(G38) -> 17873.25526 | M38: =[1]!AgePb8Th2(I38) -> 33897.85873 | N38: =[1]!AgePb7U5(H38) -> 6654.752911
A39: PX 1 ,W | B39: 20.845 | C39: 16.529 | D39: 41.507 | E39: 2.789 | F39: 13.58 | G39: 3.47 | H39: 162.1 | I39: 0.7788 | J39: 0.7929479491 | K39: =[1]!AgePb76($J$39) -> 4909.122471 | L39: =[1]!AgePb6U8(G39) -> 9652.785873 | M39: =[1]!AgePb8Th2(I39) -> 11641.0102 | N39: =[1]!AgePb7U5(H39) -> 5172.730375
A40: PX2,W | B40: 20.508 | C40: 16.423 | D40: 40.689 | E40: 2.38 | F40: 10.69 | G40: 3.925 | H40: 183.9 | I40: 0.9126 | J40: 0.8008094402 | K40: =[1]!AgePb76($J$40) -> 4923.176835 | L40: =[1]!AgePb6U8(G40) -> 10277.67461 | M40: =[1]!AgePb8Th2(I40) -> 13106.89384 | N40: =[1]!AgePb7U5(H40) -> 5300.111833
A41: WR,W | B41: 26.04 | C41: 18.88 | D41: 47.01 | E41: 9.51 | F41: 45.07 | G41: 1.564 | H41: 81.64 | I41: 0.3567 | J41: 0.7250384025 | K41: =[1]!AgePb76($J$41) -> 4781.158226 | L41: =[1]!AgePb6U8(G41) -> 6069.740784 | M41: =[1]!AgePb8Th2(I41) -> 6165.847004 | N41: =[1]!AgePb7U5(H41) -> 4482.402218
A42: 1L,W | B42: 59 | C42: 31 | D42: 67 | E42: 60 | F42: 200 | G42: 0.742 | H42: 39.2 | I42: 0.236 | J42: 0.5254237288 | K42: =[1]!AgePb76($J$42) -> 4314.167698 | L42: =[1]!AgePb6U8(G42) -> 3577.978265 | M42: =[1]!AgePb8Th2(I42) -> 4282.57421 | N42: =[1]!AgePb7U5(H42) -> 3750.689948
A43: MAG,W | B43: 18.998 | C43: 15.93 | D43: 38.908 | E43: 1.772 | F43: 4.3 | G43: 4.42 | H43: 208.6 | I43: 1.855 | J43: 0.8385093168 | K43: =[1]!AgePb76($J$43) -> 4988.596148 | L43: =[1]!AgePb6U8(G43) -> 10895.05763 | M43: =[1]!AgePb8Th2(I43) -> 21204.0797 | N43: =[1]!AgePb7U5(H43) -> 5427.426463
A44: PL 1 ,L1 | B44: 24.15 | C44: 18.83 | D44: 45.06 | E44: 13.2 | F44: 13.6 | G44: 0.983 | H44: 58.3 | I44: 1.04 | J44: 0.7797101449 | K44: =[1]!AgePb76($J$44) -> 4885.118078 | L44: =[1]!AgePb6U8(G44) -> 4413.28509 | M44: =[1]!AgePb8Th2(I44) -> 14410.30435 | N44: =[1]!AgePb7U5(H44) -> 4145.412302
A45: PL2,L 1 | B45: 19.585 | C45: 15.992 | D45: 39.679 | E45: 1.145 | F45: 3.573 | G45: 7.349 | H45: 330.1 | I45: 2.447 | J45: 0.8165432729 | K45: =[1]!AgePb76($J$45) -> 4950.869276 | L45: =[1]!AgePb6U8(G45) -> 13680.20481 | M45: =[1]!AgePb8Th2(I45) -> 25012.7193 | N45: =[1]!AgePb7U5(H45) -> 5891.679387
A46: PL3,L1 | B46: 37.93 | C46: 23.42 | D46: 57.05 | E46: 24 | F46: 85.3 | G46: 1.115 | H46: 58.39 | I46: 0.3063 | J46: 0.6174532033 | K46: =[1]!AgePb76($J$46) -> 4549.61538 | L46: =[1]!AgePb6U8(G46) -> 4828.717566 | M46: =[1]!AgePb8Th2(I46) -> 5400.681425 | N46: =[1]!AgePb7U5(H46) -> 4146.952188
A47: PX1.,L1 | B47: 20.946 | C47: 16.595 | D47: 41.26 | E47: 5.6883 | F47: 9.907 | G47: 1.7192 | H47: 81.073 | I47: 1.042 | J47: 0.7922753748 | K47: =[1]!AgePb76($J$47) -> 4907.913198 | L47: =[1]!AgePb6U8(G47) -> 6448.591261 | M47: =[1]!AgePb8Th2(I47) -> 14430.11056 | N47: =[1]!AgePb7U5(H47) -> 4475.411581
A48: PX2,L1 | B48: 21.657 | C48: 16.798 | D48: 42.082 | E48: 4.881 | F48: 8.002 | G48: 2.149 | H48: 100.2 | I48: 1.39 | J48: 0.7756383617 | K48: =[1]!AgePb76($J$48) -> 4877.64727 | L48: =[1]!AgePb6U8(G48) -> 7394.584639 | M48: =[1]!AgePb8Th2(I48) -> 17610.78051 | N48: =[1]!AgePb7U5(H48) -> 4688.123833
A49: WR,L1 | B49: 32.057 | C49: 21.272 | D49: 53.639 | E49: 30.56 | F49: 59.64 | G49: 0,6836 | H49: 36.2 | I49: 0.3807 | J49: 0.6635680195 | K49: =[1]!AgePb76($J$49) -> 4653.772495 | L49: =[1]!AgePb6U8(G49) -> 56922.5097 | M49: =[1]!AgePb8Th2(I49) -> 6520.275229 | N49: =[1]!AgePb7U5(H49) -> 3671.938632
A50: 1L,L1 | B50: 138 | C50: 64.9 | D50: 139 | E50: 491 | F50: 123 | G50: 0.2575 | H50: 14.52 | I50: 0.878 | J50: 0.4702898551 | K50: =[1]!AgePb76($J$50) -> 4150.678268 | L50: =[1]!AgePb6U8(G50) -> 1477.038666 | M50: =[1]!AgePb8Th2(I50) -> 12737.89552 | N50: =[1]!AgePb7U5(H50) -> 2784.311839
A51: MAGL 1 | B51: 22.221 | C51: 17.144 | D51: 42.357 | E51: 5.9569 | F51: 15.47 | G51: 1.8557 | H51: 90.13 | I51: 0.7382 | J51: 0.7715224337 | K51: =[1]!AgePb76($J$51) -> 4870.05289 | L51: =[1]!AgePb6U8(G51) -> 6764.331971 | M51: =[1]!AgePb8Th2(I51) -> 11174.33239 | N51: =[1]!AgePb7U5(H51) -> 4581.699811
A52: PL2,L2 | B52: 22.831 | C52: 17.285 | D52: 43.962 | E52: 4.733 | F52: 22.93 | G52: 2.464 | H52: 117.5 | I52: 0.5682 | J52: 0.7570846656 | K52: =[1]!AgePb76($J$52) -> 4843.068004 | L52: =[1]!AgePb6U8(G52) -> 8009.179634 | M52: =[1]!AgePb8Th2(I52) -> 9094.056894 | N52: =[1]!AgePb7U5(H52) -> 4848.365701
A53: PL3,L2 | B53: 40 | C53: 30 | D53: 70 | E53: 20 | F53: 200 | G53: 1 | H53: 90 | I53: 0.2 | J53: 0.75 | K53: =[1]!AgePb76($J$53) -> 4829.625094 | L53: =[1]!AgePb6U8(G53) -> 4468.313815 | M53: =[1]!AgePb8Th2(I53) -> 3685.124948 | N53: =[1]!AgePb7U5(H53) -> 4580.250299
A54: PX1,L2 | B54: 27.13 | C54: 19.169 | D54: 49.33 | E54: 8.799 | F54: 56.79 | G54: 1.814 | H54: 92.75 | I54: 0.3239 | J54: 0.7065610026 | K54: =[1]!AgePb76($J$54) -> 4744.119824 | L54: =[1]!AgePb6U8(G54) -> 6669.504971 | M54: =[1]!AgePb8Th2(I54) -> 5671.185972 | N54: =[1]!AgePb7U5(H54) -> 4610.480444
A55: PX2,L2 | B55: 27.21 | C55: 19.108 | D55: 48.405 | E55: 9.36 | F55: 49.4 | G55: 1.714 | H55: 86.29 | I55: 0.3537 | J55: 0.7022418229 | K55: =[1]!AgePb76($J$55) -> 4735.312684 | L55: =[1]!AgePb6U8(G55) -> 6436.251806 | M55: =[1]!AgePb8Th2(I55) -> 6121.103269 | N55: =[1]!AgePb7U5(H55) -> 4537.986403
A56: WR,L2 | B56: 85.73 | C56: 42.67 | D56: 110.9 | E56: 92.75 | F56: 261.3 | G56: 0.8038 | H56: 43.73 | I56: 0.306 | J56: 0.497725417 | K56: =[1]!AgePb76($J$56) -> 4234.487 | L56: =[1]!AgePb6U8(G56) -> 3802.711044 | M56: =[1]!AgePb8Th2(I56) -> 5396.039027 | N56: =[1]!AgePb7U5(H56) -> 3859.109933
A57: MAG,L2 29 | B57: 31.66 | C57: 21.111 | D57: 52.872 | E57: 16.78 | F57: 76.46 | G57: 1.222 | H57: 64.61 | I57: 0.2869 | J57: 0.6668035376 | K57: =[1]!AgePb76($J$57) -> 4660.786873 | L57: =[1]!AgePb6U8(G57) -> 5146.866664 | M57: =[1]!AgePb8Th2(I57) -> 5098.2562 | N57: =[1]!AgePb7U5(H57) -> 4248.086636
A58: PL1,R | B58: 42.62 | C58: 32.88 | D58: 66.73 | E58: 27.44 | F58: 138.9 | G58: 1.146 | H58: 98.62 | I58: 0.2578 | J58: 0.771468794 | K58: =[1]!AgePb76($J$58) -> 4869.953633 | L58: =[1]!AgePb6U8(G58) -> 4922.518254 | M58: =[1]!AgePb8Th2(I58) -> 4635.960851 | N58: =[1]!AgePb7U5(H58) -> 4672.145959
A59: PL2,R | B59: 36.708 | C59: 25.156 | D59: 60.942 | E59: 20.15 | F59: 106.1 | G59: 1.2675 | H59: 81.465 | I59: 0.2829 | J59: 0.685300207 | K59: =[1]!AgePb76($J$59) -> 4700.199469 | L59: =[1]!AgePb6U8(G59) -> 5277.536845 | M59: =[1]!AgePb8Th2(I59) -> 5035.33381 | N59: =[1]!AgePb7U5(H59) -> 4480.249745
A60: PL3,R | B60: 32.7 | C60: 25.9 | D60: 56.86 | E60: 14.9 | F60: 85.2 | G60: 1.45 | H60: 117 | I60: 0.304 | J60: 0.7920489297 | K60: =[1]!AgePb76($J$60) -> 4907.505809 | L60: =[1]!AgePb6U8(G60) -> 5776.55455 | M60: =[1]!AgePb8Th2(I60) -> 5365.062426 | N60: =[1]!AgePb7U5(H60) -> 4844.07232
A61: PX1,R | B61: 61.13 | C61: 34.01 | D61: 86.11 | E61: 43.23 | F61: 221.4 | G61: 1.156 | H61: 66.23 | I61: 0.2492 | J61: 0.5563553084 | K61: =[1]!AgePb76($J$61) -> 4397.951609 | L61: =[1]!AgePb6U8(G61) -> 4952.487691 | M61: =[1]!AgePb8Th2(I61) -> 4497.288457 | N61: =[1]!AgePb7U5(H61) -> 4272.853304
A62: PX2,R | B62: 37.206 | C62: 23.92 | D62: 59.692 | E62: 18.693 | F62: 110.4 | G62: 1.393 | H62: 78.7 | I62: 0.2604 | J62: 0.642907058 | K62: =[1]!AgePb76($J$62) -> 4608.098602 | L62: =[1]!AgePb6U8(G62) -> 5624.80457 | M62: =[1]!AgePb8Th2(I62) -> 4677.698452 | N62: =[1]!AgePb7U5(H62) -> 4445.62074
A63: WR,R | B63: 105.2 | C63: 53.019 | D63: 130.59 | E63: 95.57 | F63: 452.9 | G63: 0.98438 | H63: 57.376 | I63: 0.22 | J63: 0.5039828897 | K63: =[1]!AgePb76($J$63) -> 4252.900678 | L63: =[1]!AgePb6U8(G63) -> 4417.769688 | M63: =[1]!AgePb8Th2(I63) -> 4019.218974 | N63: =[1]!AgePb7U5(H63) -> 4129.46626
A64: 1L,R | B64: 507 | C64: 216 | D64: 507 | E64: 508 | F64: 2250 | G64: 0.97667 | H64: 55.022 | I64: 0.2115 | J64: 0.426035503 | K64: =[1]!AgePb76($J$64) -> 4003.609529 | L64: =[1]!AgePb6U8(G64) -> 4392.674364 | M64: =[1]!AgePb8Th2(I64) -> 3877.903209 | N64: =[1]!AgePb7U5(H64) -> 4087.672712
A65: MAG,R | B65: 33.08 | C65: 22.207 | D65: 53.568 | E65: 15.829 | F65: 73.79 | G65: 1.3844 | H65: 78.026 | I65: 0.3068 | J65: 0.671311971 | K65: =[1]!AgePb76($J$65) -> 4670.50031 | L65: =[1]!AgePb6U8(G65) -> 5601.595619 | M65: =[1]!AgePb8Th2(I65) -> 5408.416387 | N65: =[1]!AgePb7U5(H65) -> 4436.997423
A66: PL 1 | B66: 42.62 | C66: 32.88 | D66: 66.73 | E66: 29.94 | F66: 141.5 | G66: 1.05 | H66: 90.37 | I66: 0.2531 | J66: 0.771468794 | K66: =[1]!AgePb76($J$66) -> 4869.953633 | L66: =[1]!AgePb6U8(G66) -> 4627.492623 | M66: =[1]!AgePb8Th2(I66) -> 4560.292697 | N66: =[1]!AgePb7U5(H66) -> 4584.370409
A67: PL2,T | B67: 36.709 | C67: 25.156 | D67: 60.942 | E67: 29.146 | F67: 141.87 | G67: 0.87634 | H67: 56.32 | I67: 0.2115 | J67: 0.6852815386 | K67: =[1]!AgePb76($J$67) -> 4700.160267 | L67: =[1]!AgePb6U8(G67) -> 4056.877169 | M67: =[1]!AgePb8Th2(I67) -> 3877.903209 | N67: =[1]!AgePb7U5(H67) -> 4110.930195
A68: PL3,T | B68: 32.7 | C68: 25.9 | D68: 56.86 | E68: 42.1 | F68: 194 | G68: 0.511 | H68: 41.4 | I68: 0.134 | J68: 0.7920489297 | K68: =[1]!AgePb76($J$68) -> 4907.505809 | L68: =[1]!AgePb6U8(G68) -> 2660.897233 | M68: =[1]!AgePb8Th2(I68) -> 2541.712083 | N68: =[1]!AgePb7U5(H68) -> 3804.790945
A69: PX LT | B69: 61.13 | C69: 34.01 | D69: 86.11 | E69: 76.68 | F69: 322.3 | G69: 0.6516 | H69: 37.34 | I69: 0.1712 | J69: 0.5563553084 | K69: =[1]!AgePb76($J$69) -> 4397.951609 | L69: =[1]!AgePb6U8(G69) -> 3234.452957 | M69: =[1]!AgePb8Th2(I69) -> 3194.115497 | N69: =[1]!AgePb7U5(H69) -> 3702.587945
A70: PX2,T | B70: 37.205 | C70: 23.92 | D70: 59.693 | E70: 32.342 | F70: 139.73 | G70: 0.80508 | H70: 45.49 | I70: 0.2058 | J70: 0.6429243381 | K70: =[1]!AgePb76($J$70) -> 4608.137456 | L70: =[1]!AgePb6U8(G70) -> 3807.283882 | M70: =[1]!AgePb8Th2(I70) -> 3782.582053 | N70: =[1]!AgePb7U5(H70) -> 3898.296427
A71: WR,T | B71: 105.24 | C71: 53.019 | D71: 130.59 | E71: 136.83 | F71: 557.55 | G71: 0.68754 | H71: 40.076 | I71: 0.17874 | J71: 0.5037913341 | K71: =[1]!AgePb76($J$71) -> 4252.340674 | L71: =[1]!AgePb6U8(G71) -> 3373.227057 | M71: =[1]!AgePb8Th2(I71) -> 3323.821554 | N71: =[1]!AgePb7U5(H71) -> 3772.578575
A72: 1L,T | B72: 507 | C72: 210 | D72: 507 | E72: 611.26 | F72: 2275.8 | G72: 0.8118 | H72: 45.735 | I72: 0.20913 | J72: 0.4142011834 | K72: =[1]!AgePb76($J$72) -> 3961.446742 | L72: =[1]!AgePb6U8(G72) -> 3831.238203 | M72: =[1]!AgePb8Th2(I72) -> 3838.324259 | N72: =[1]!AgePb7U5(H72) -> 3903.633395
A73: MAG,T | B73: 33.08 | C73: 22.207 | D73: 53.569 | E73: 36.36 | F73: 147.91 | G73: 0.60267 | H73: 33.97 | I73: 0.153 | J73: 0.671311971 | K73: =[1]!AgePb76($J$73) -> 4670.50031 | L73: =[1]!AgePb6U8(G73) -> 3040.586549 | M73: =[1]!AgePb8Th2(I73) -> 2877.559197 | N73: =[1]!AgePb7U5(H73) -> 3609.169469
J74: Average | K74: =AVERAGE(K36:K73) -> 4672.66666 | L74: =AVERAGE(L36:L73) -> 8035.313829 | M74: =AVERAGE(M36:M73) -> 10148.38235 | N74: =AVERAGE(N36:N73) -> 4545.517968
J75: Maximum | K75: =MAX(K36:K74) -> 5017.957799 | L75: =MAX(L36:L74) -> 56922.5097 | M75: =MAX(M36:M74) -> 65285.77199 | N75: =MAX(N36:N74) -> 8128.175199
J76: Minimum | K76: =MIN(K36:K75) -> 3961.446742 | L76: =MIN(L36:L75) -> 1477.038666 | M76: =MIN(M36:M75) -> 2541.712083 | N76: =MIN(N36:N75) -> 2784.311839
J77: Difference | K77: =(K75-K76) -> 1056.511057 | L77: =(L75-L76) -> 55445.47104 | M77: =(M75-M76) -> 62744.05991 | N77: =(N75-N76) -> 5343.86336
D78: Table | E78: 207Pb/206Pb | F78: 206Pb/238U | G78: 208Pb/232Th | H78: 207Pb/235U | I78: 87Rb/86Sr
D79: Summaries | E79: Age | F79: Age | G79: Age | H79: Age | I79: Age | M79: 208Pb/232Th
D80: Average | E80: 4672.66666 | F80: 8035.313829 | G80: 10148.38235 | H80: 4545.517968 | I80: 3618.511198 | M80: Age | N80: Age | O80: Age | P80: Age
D81: Maximum | E81: 5017.957799 | F81: 56922.5097 | G81: 65285.77199 | H81: 8128.175199 | I81: 5384.963434 | M81: 65285.77199 | N81: 14430.11056 | O81: 9094.056894 | P81: 5400.681425
D82: Minimum | E82: 3961.446742 | F82: 1477.038666 | G82: 2541.712083 | H82: 2784.311839 | I82: 721.3008635 | M82: 33897.85873 | N82: 14410.30435 | O82: 6520.275229 | P82: 5396.039027
D83: Difference | E83: 1056.511057 | F83: 55445.47104 | G83: 62744.05991 | H83: 5343.86336 | I83: 4663.662571 | M83: 25012.7193 | N83: 13106.89384 | O83: 6165.847004 | P83: 5365.062426
M84: 22178.43488 | N84: 12737.89552 | O84: 6121.103269 | P84: 5098.2562
M85: 21204.0797 | N85: 11641.0102 | O85: 5671.185972 | P85: 5035.33381
M86: 17610.78051 | N86: 11174.33239 | O86: 5408.416387 | P86: 4677.698452
M89: 206Pb/238U
M90: Age | N90: Age | O90: Age | P90: Age
M91: 56922.5097 | N91: 10895.05763 | O91: 6764.331971 | P91: 5776.55455
M92: 27312.53082 | N92: 10277.67461 | O92: 6669.504971 | P92: 5624.80457
M93: 17873.25526 | N93: 9652.785873 | O93: 6448.591261 | P93: 5601.595619
M94: 13680.20481 | N94: 8009.179634 | O94: 6436.251806 | P94: 5277.536845
M95: 13622.81335 | N95: 7394.584639 | O95: 6069.740784 | P95: 5146.866664

Sheet Rb-Sr _27
A1: Rubidium | B1: TABLE 1. | K1: Rubidium_023.pdf
A2: Strontium | B2: Initial | C2: Today | D2: Today | E2: The Ratio | F2: Half | G2: Decay | H2: 2.303/Delta | I2: Age | J2: Age | K2: Age | L2: Model Age | M2: Model Age | N2: Model Age
